Workbook

Sheet Turma
B1: Ano: | C1: 2 | F1: Média Global: | G1: =IF(COUNTA(G4:G53)>0,AVERAGE(G4:G53),"") -> 136.5
A2: =COUNTIF(B4:B53,"x") -> 1 | B2: Turma: | C2: G | F2: Desvio Padrão Global: | G2: =IF(COUNTA(G4:G53)>0,_xlfn.STDEV.P(G4:G53),"") -> 5.408326913
A3: ID Aluno | B3: =_xlfn.CONCAT("Ver: ",A2) -> Ver: 1 | C3: Nome | D3: Género | E3: Data de nascimento | F3: Data de avaliação | G3: Altura | H3: Idade
A4: 1 | C4: Manuel Lopes | D4: Menino | E4: 2011-05-11 | F4: 2020-08-07 | G4: 134 | H4: =IF(AND(E4<>"",F4<>""),INT(12*_xlfn.DAYS(F4,E4)/365),"") -> 110
A5: =A4+1 -> 2 | C5: Amélia Costa | D5: Menina | E5: 2010-12-04 | F5: 2020-08-07 | G5: 129 | H5: =IF(AND(E5<>"",F5<>""),INT(12*_xlfn.DAYS(F5,E5)/365),"") -> 116
A6: =A5+1 -> 3 | C6: Rui Silva | D6: Menino | E6: 2011-08-10 | F6: 2020-08-07 | G6: 143 | H6: 108
A7: 4 | B7: x | C7: Joana Andrade | D7: Menina | E7: 2013-03-11 | F7: 2021-12-12 | G7: 140 | H7: 105
A8: 5
A9: 6
A10: 7
A11: 8
A12: 9
A13: 10
A14: 11
A15: 12
A16: 13
A17: 14
A18: 15
A19: 16
A20: 17
A21: 18
A22: 19
A23: 20
A24: 21
A25: 22
A26: 23
A27: 24
A28: 25
A29: 26
A30: 27
A31: 28
A32: 29
A33: 30
A34: 31
A35: 32
A36: 33
A37: 34
A38: 35
A39: 36
A40: 37
A41: 38
A42: 39
A43: 40
A44: 41
A45: 42
A46: 43
A47: 44
A48: 45
A49: 46
A50: 47
A51: 48
A52: 49
A53: 50

Sheet Relatório
A1: RELATÓRIO INDIVIDUAL - ALTURA
A2: =IF(Turma!A2=1,VLOOKUP("x",Turma!B$4:G$53,2,0),"") -> Joana Andrade
A3: =IF(Turma!A2=1,_xlfn.CONCAT(TEXT(VLOOKUP("x",Turma!B$4:G$53,4,0),"dd-mm-aaaa")," | ",Turma!C1,"º ano"," | ",Turma!C2),"") -> 11-03-2013 | 2º ano | G
B5: Resultado | D5: Média | F5: Mínimo | H5: Máximo
B6: da criança | D6: da turma | F6: da turma | H6: da turma
A7: Altura (cm) | B7: =IF(Turma!$A$2=1,VLOOKUP("x",Turma!B4:J53,6,0),0) -> 140 | D7: =IF(Turma!$A$2=1,Turma!G1,0) -> 136.5 | F7: =IF(Turma!$A$2=1,SMALL(Turma!G4:G53,1),0) -> 129 | H7: =IF(Turma!$A$2=1,LARGE(Turma!G4:G53,1),0) -> 143
A13: Cartas de Referência da Organização Mundial de Saúde
A15: Carta Percentílica
A32: Carta score-z

Sheet dadosPercentis (hidden)
A1: meses | B1: anos | C1: P3 | D1: P15 | E1: P50 | F1: P85 | G1: P97 | H1: Género | I1: Meses | J1: Altura
A2: 60 | B2: =IF(A2/12=INT(A2/12),A2/12,"") -> 5 | H2: =IF(Turma!A2=1,VLOOKUP("x",Turma!B4:G53,3,0),"") -> Menina | I2: =IF(Turma!A2=1,VLOOKUP("x",Turma!B4:H53,7,0),"") -> 105 | J2: =IF(Turma!A2=1,VLOOKUP("x",Turma!B4:H53,6,0),"") -> 140
A3: 61 | B3: =IF(A3/12=INT(A3/12),A3/12,"") ->  | C3: =IF(Turma!A$2=1,IF(VLOOKUP("x",Turma!$B$4:$G$53,3,0)="Menina",tblMLS!K2,tblMLS!K170),"") -> 100.624 | D3: =IF(Turma!A$2=1,IF(VLOOKUP("x",Turma!$B$4:$G$53,3,0)="Menina",tblMLS!N2,tblMLS!N170),"") -> 104.655 | E3: =IF(Turma!A$2=1,IF(VLOOKUP("x",Turma!$B$4:$G$53,3,0)="Menina",tblMLS!P2,tblMLS!P170),"") -> 109.602 | F3: =IF(Turma!A$2=1,IF(VLOOKUP("x",Turma!$B$4:$G$53,3,0)="Menina",tblMLS!R2,tblMLS!R170),"") -> 114.549 | G3: =IF(Turma!A$2=1,IF(VLOOKUP("x",Turma!$B$4:$G$53,3,0)="Menina",tblMLS!U2,tblMLS!U170),"") -> 118.579
A4: 62 | C4: =IF(Turma!A$2=1,IF(VLOOKUP("x",Turma!$B$4:$G$53,3,0)="Menina",tblMLS!K3,tblMLS!K171),"") -> 101.087 | D4: =IF(Turma!A$2=1,IF(VLOOKUP("x",Turma!$B$4:$G$53,3,0)="Menina",tblMLS!N3,tblMLS!N171),"") -> 105.145 | E4: =IF(Turma!A$2=1,IF(VLOOKUP("x",Turma!$B$4:$G$53,3,0)="Menina",tblMLS!P3,tblMLS!P171),"") -> 110.126 | F4: =IF(Turma!A$2=1,IF(VLOOKUP("x",Turma!$B$4:$G$53,3,0)="Menina",tblMLS!R3,tblMLS!R171),"") -> 115.107 | G4: =IF(Turma!A$2=1,IF(VLOOKUP("x",Turma!$B$4:$G$53,3,0)="Menina",tblMLS!U3,tblMLS!U171),"") -> 119.165
A5: 63 | C5: =IF(Turma!A$2=1,IF(VLOOKUP("x",Turma!$B$4:$G$53,3,0)="Menina",tblMLS!K4,tblMLS!K172),"") -> 101.545 | D5: =IF(Turma!A$2=1,IF(VLOOKUP("x",Turma!$B$4:$G$53,3,0)="Menina",tblMLS!N4,tblMLS!N172),"") -> 105.63 | E5: =IF(Turma!A$2=1,IF(VLOOKUP("x",Turma!$B$4:$G$53,3,0)="Menina",tblMLS!P4,tblMLS!P172),"") -> 110.645 | F5: =IF(Turma!A$2=1,IF(VLOOKUP("x",Turma!$B$4:$G$53,3,0)="Menina",tblMLS!R4,tblMLS!R172),"") -> 115.66 | G5: =IF(Turma!A$2=1,IF(VLOOKUP("x",Turma!$B$4:$G$53,3,0)="Menina",tblMLS!U4,tblMLS!U172),"") -> 119.745
A6: 64 | C6: =IF(Turma!A$2=1,IF(VLOOKUP("x",Turma!$B$4:$G$53,3,0)="Menina",tblMLS!K5,tblMLS!K173),"") -> 101.998 | D6: =IF(Turma!A$2=1,IF(VLOOKUP("x",Turma!$B$4:$G$53,3,0)="Menina",tblMLS!N5,tblMLS!N173),"") -> 106.111 | E6: =IF(Turma!A$2=1,IF(VLOOKUP("x",Turma!$B$4:$G$53,3,0)="Menina",tblMLS!P5,tblMLS!P173),"") -> 111.16 | F6: =IF(Turma!A$2=1,IF(VLOOKUP("x",Turma!$B$4:$G$53,3,0)="Menina",tblMLS!R5,tblMLS!R173),"") -> 116.208 | G6: =IF(Turma!A$2=1,IF(VLOOKUP("x",Turma!$B$4:$G$53,3,0)="Menina",tblMLS!U5,tblMLS!U173),"") -> 120.321
A7: 65 | C7: =IF(Turma!A$2=1,IF(VLOOKUP("x",Turma!$B$4:$G$53,3,0)="Menina",tblMLS!K6,tblMLS!K174),"") -> 102.449 | D7: =IF(Turma!A$2=1,IF(VLOOKUP("x",Turma!$B$4:$G$53,3,0)="Menina",tblMLS!N6,tblMLS!N174),"") -> 106.589 | E7: =IF(Turma!A$2=1,IF(VLOOKUP("x",Turma!$B$4:$G$53,3,0)="Menina",tblMLS!P6,tblMLS!P174),"") -> 111.67 | F7: =IF(Turma!A$2=1,IF(VLOOKUP("x",Turma!$B$4:$G$53,3,0)="Menina",tblMLS!R6,tblMLS!R174),"") -> 116.751 | G7: =IF(Turma!A$2=1,IF(VLOOKUP("x",Turma!$B$4:$G$53,3,0)="Menina",tblMLS!U6,tblMLS!U174),"") -> 120.89
A8: 66 | C8: =IF(Turma!A$2=1,IF(VLOOKUP("x",Turma!$B$4:$G$53,3,0)="Menina",tblMLS!K7,tblMLS!K175),"") -> 102.894 | D8: =IF(Turma!A$2=1,IF(VLOOKUP("x",Turma!$B$4:$G$53,3,0)="Menina",tblMLS!N7,tblMLS!N175),"") -> 107.061 | E8: =IF(Turma!A$2=1,IF(VLOOKUP("x",Turma!$B$4:$G$53,3,0)="Menina",tblMLS!P7,tblMLS!P175),"") -> 112.175 | F8: =IF(Turma!A$2=1,IF(VLOOKUP("x",Turma!$B$4:$G$53,3,0)="Menina",tblMLS!R7,tblMLS!R175),"") -> 117.29 | G8: =IF(Turma!A$2=1,IF(VLOOKUP("x",Turma!$B$4:$G$53,3,0)="Menina",tblMLS!U7,tblMLS!U175),"") -> 121.456
A9: 67 | C9: =IF(Turma!A$2=1,IF(VLOOKUP("x",Turma!$B$4:$G$53,3,0)="Menina",tblMLS!K8,tblMLS!K176),"") -> 103.337 | D9: =IF(Turma!A$2=1,IF(VLOOKUP("x",Turma!$B$4:$G$53,3,0)="Menina",tblMLS!N8,tblMLS!N176),"") -> 107.53 | E9: =IF(Turma!A$2=1,IF(VLOOKUP("x",Turma!$B$4:$G$53,3,0)="Menina",tblMLS!P8,tblMLS!P176),"") -> 112.677 | F9: =IF(Turma!A$2=1,IF(VLOOKUP("x",Turma!$B$4:$G$53,3,0)="Menina",tblMLS!R8,tblMLS!R176),"") -> 117.823 | G9: =IF(Turma!A$2=1,IF(VLOOKUP("x",Turma!$B$4:$G$53,3,0)="Menina",tblMLS!U8,tblMLS!U176),"") -> 122.016
A10: 68 | C10: =IF(Turma!A$2=1,IF(VLOOKUP("x",Turma!$B$4:$G$53,3,0)="Menina",tblMLS!K9,tblMLS!K177),"") -> 103.776 | D10: =IF(Turma!A$2=1,IF(VLOOKUP("x",Turma!$B$4:$G$53,3,0)="Menina",tblMLS!N9,tblMLS!N177),"") -> 107.995 | E10: =IF(Turma!A$2=1,IF(VLOOKUP("x",Turma!$B$4:$G$53,3,0)="Menina",tblMLS!P9,tblMLS!P177),"") -> 113.174 | F10: =IF(Turma!A$2=1,IF(VLOOKUP("x",Turma!$B$4:$G$53,3,0)="Menina",tblMLS!R9,tblMLS!R177),"") -> 118.353 | G10: =IF(Turma!A$2=1,IF(VLOOKUP("x",Turma!$B$4:$G$53,3,0)="Menina",tblMLS!U9,tblMLS!U177),"") -> 122.572
A11: 69 | C11: =IF(Turma!A$2=1,IF(VLOOKUP("x",Turma!$B$4:$G$53,3,0)="Menina",tblMLS!K10,tblMLS!K178),"") -> 104.212 | D11: =IF(Turma!A$2=1,IF(VLOOKUP("x",Turma!$B$4:$G$53,3,0)="Menina",tblMLS!N10,tblMLS!N178),"") -> 108.457 | E11: =IF(Turma!A$2=1,IF(VLOOKUP("x",Turma!$B$4:$G$53,3,0)="Menina",tblMLS!P10,tblMLS!P178),"") -> 113.667 | F11: =IF(Turma!A$2=1,IF(VLOOKUP("x",Turma!$B$4:$G$53,3,0)="Menina",tblMLS!R10,tblMLS!R178),"") -> 118.878 | G11: =IF(Turma!A$2=1,IF(VLOOKUP("x",Turma!$B$4:$G$53,3,0)="Menina",tblMLS!U10,tblMLS!U178),"") -> 123.123
A12: 70 | C12: =IF(Turma!A$2=1,IF(VLOOKUP("x",Turma!$B$4:$G$53,3,0)="Menina",tblMLS!K11,tblMLS!K179),"") -> 104.643 | D12: =IF(Turma!A$2=1,IF(VLOOKUP("x",Turma!$B$4:$G$53,3,0)="Menina",tblMLS!N11,tblMLS!N179),"") -> 108.914 | E12: =IF(Turma!A$2=1,IF(VLOOKUP("x",Turma!$B$4:$G$53,3,0)="Menina",tblMLS!P11,tblMLS!P179),"") -> 114.156 | F12: =IF(Turma!A$2=1,IF(VLOOKUP("x",Turma!$B$4:$G$53,3,0)="Menina",tblMLS!R11,tblMLS!R179),"") -> 119.399 | G12: =IF(Turma!A$2=1,IF(VLOOKUP("x",Turma!$B$4:$G$53,3,0)="Menina",tblMLS!U11,tblMLS!U179),"") -> 123.67
A13: 71 | C13: =IF(Turma!A$2=1,IF(VLOOKUP("x",Turma!$B$4:$G$53,3,0)="Menina",tblMLS!K12,tblMLS!K180),"") -> 105.071 | D13: =IF(Turma!A$2=1,IF(VLOOKUP("x",Turma!$B$4:$G$53,3,0)="Menina",tblMLS!N12,tblMLS!N180),"") -> 109.368 | E13: =IF(Turma!A$2=1,IF(VLOOKUP("x",Turma!$B$4:$G$53,3,0)="Menina",tblMLS!P12,tblMLS!P180),"") -> 114.642 | F13: =IF(Turma!A$2=1,IF(VLOOKUP("x",Turma!$B$4:$G$53,3,0)="Menina",tblMLS!R12,tblMLS!R180),"") -> 119.916 | G13: =IF(Turma!A$2=1,IF(VLOOKUP("x",Turma!$B$4:$G$53,3,0)="Menina",tblMLS!U12,tblMLS!U180),"") -> 124.213
A14: 72 | B14: 6 | C14: =IF(Turma!A$2=1,IF(VLOOKUP("x",Turma!$B$4:$G$53,3,0)="Menina",tblMLS!K13,tblMLS!K181),"") -> 105.496 | D14: =IF(Turma!A$2=1,IF(VLOOKUP("x",Turma!$B$4:$G$53,3,0)="Menina",tblMLS!N13,tblMLS!N181),"") -> 109.818 | E14: =IF(Turma!A$2=1,IF(VLOOKUP("x",Turma!$B$4:$G$53,3,0)="Menina",tblMLS!P13,tblMLS!P181),"") -> 115.124 | F14: =IF(Turma!A$2=1,IF(VLOOKUP("x",Turma!$B$4:$G$53,3,0)="Menina",tblMLS!R13,tblMLS!R181),"") -> 120.431 | G14: =IF(Turma!A$2=1,IF(VLOOKUP("x",Turma!$B$4:$G$53,3,0)="Menina",tblMLS!U13,tblMLS!U181),"") -> 124.753
A15: 73 | C15: =IF(Turma!A$2=1,IF(VLOOKUP("x",Turma!$B$4:$G$53,3,0)="Menina",tblMLS!K14,tblMLS!K182),"") -> 105.92 | D15: =IF(Turma!A$2=1,IF(VLOOKUP("x",Turma!$B$4:$G$53,3,0)="Menina",tblMLS!N14,tblMLS!N182),"") -> 110.267 | E15: =IF(Turma!A$2=1,IF(VLOOKUP("x",Turma!$B$4:$G$53,3,0)="Menina",tblMLS!P14,tblMLS!P182),"") -> 115.604 | F15: =IF(Turma!A$2=1,IF(VLOOKUP("x",Turma!$B$4:$G$53,3,0)="Menina",tblMLS!R14,tblMLS!R182),"") -> 120.94 | G15: =IF(Turma!A$2=1,IF(VLOOKUP("x",Turma!$B$4:$G$53,3,0)="Menina",tblMLS!U14,tblMLS!U182),"") -> 125.288
A16: 74 | C16: =IF(Turma!A$2=1,IF(VLOOKUP("x",Turma!$B$4:$G$53,3,0)="Menina",tblMLS!K15,tblMLS!K183),"") -> 106.342 | D16: =IF(Turma!A$2=1,IF(VLOOKUP("x",Turma!$B$4:$G$53,3,0)="Menina",tblMLS!N15,tblMLS!N183),"") -> 110.714 | E16: =IF(Turma!A$2=1,IF(VLOOKUP("x",Turma!$B$4:$G$53,3,0)="Menina",tblMLS!P15,tblMLS!P183),"") -> 116.081 | F16: =IF(Turma!A$2=1,IF(VLOOKUP("x",Turma!$B$4:$G$53,3,0)="Menina",tblMLS!R15,tblMLS!R183),"") -> 121.448 | G16: =IF(Turma!A$2=1,IF(VLOOKUP("x",Turma!$B$4:$G$53,3,0)="Menina",tblMLS!U15,tblMLS!U183),"") -> 125.821
A17: 75 | C17: =IF(Turma!A$2=1,IF(VLOOKUP("x",Turma!$B$4:$G$53,3,0)="Menina",tblMLS!K16,tblMLS!K184),"") -> 106.76 | D17: =IF(Turma!A$2=1,IF(VLOOKUP("x",Turma!$B$4:$G$53,3,0)="Menina",tblMLS!N16,tblMLS!N184),"") -> 111.158 | E17: =IF(Turma!A$2=1,IF(VLOOKUP("x",Turma!$B$4:$G$53,3,0)="Menina",tblMLS!P16,tblMLS!P184),"") -> 116.557 | F17: =IF(Turma!A$2=1,IF(VLOOKUP("x",Turma!$B$4:$G$53,3,0)="Menina",tblMLS!R16,tblMLS!R184),"") -> 121.956 | G17: =IF(Turma!A$2=1,IF(VLOOKUP("x",Turma!$B$4:$G$53,3,0)="Menina",tblMLS!U16,tblMLS!U184),"") -> 126.354
A18: 76 | C18: =IF(Turma!A$2=1,IF(VLOOKUP("x",Turma!$B$4:$G$53,3,0)="Menina",tblMLS!K17,tblMLS!K185),"") -> 107.181 | D18: =IF(Turma!A$2=1,IF(VLOOKUP("x",Turma!$B$4:$G$53,3,0)="Menina",tblMLS!N17,tblMLS!N185),"") -> 111.603 | E18: =IF(Turma!A$2=1,IF(VLOOKUP("x",Turma!$B$4:$G$53,3,0)="Menina",tblMLS!P17,tblMLS!P185),"") -> 117.031 | F18: =IF(Turma!A$2=1,IF(VLOOKUP("x",Turma!$B$4:$G$53,3,0)="Menina",tblMLS!R17,tblMLS!R185),"") -> 122.459 | G18: =IF(Turma!A$2=1,IF(VLOOKUP("x",Turma!$B$4:$G$53,3,0)="Menina",tblMLS!U17,tblMLS!U185),"") -> 126.881
A19: 77 | C19: =IF(Turma!A$2=1,IF(VLOOKUP("x",Turma!$B$4:$G$53,3,0)="Menina",tblMLS!K18,tblMLS!K186),"") -> 107.599 | D19: =IF(Turma!A$2=1,IF(VLOOKUP("x",Turma!$B$4:$G$53,3,0)="Menina",tblMLS!N18,tblMLS!N186),"") -> 112.046 | E19: =IF(Turma!A$2=1,IF(VLOOKUP("x",Turma!$B$4:$G$53,3,0)="Menina",tblMLS!P18,tblMLS!P186),"") -> 117.504 | F19: =IF(Turma!A$2=1,IF(VLOOKUP("x",Turma!$B$4:$G$53,3,0)="Menina",tblMLS!R18,tblMLS!R186),"") -> 122.963 | G19: =IF(Turma!A$2=1,IF(VLOOKUP("x",Turma!$B$4:$G$53,3,0)="Menina",tblMLS!U18,tblMLS!U186),"") -> 127.41
A20: 78 | C20: =IF(Turma!A$2=1,IF(VLOOKUP("x",Turma!$B$4:$G$53,3,0)="Menina",tblMLS!K19,tblMLS!K187),"") -> 108.016 | D20: =IF(Turma!A$2=1,IF(VLOOKUP("x",Turma!$B$4:$G$53,3,0)="Menina",tblMLS!N19,tblMLS!N187),"") -> 112.488 | E20: =IF(Turma!A$2=1,IF(VLOOKUP("x",Turma!$B$4:$G$53,3,0)="Menina",tblMLS!P19,tblMLS!P187),"") -> 117.977 | F20: =IF(Turma!A$2=1,IF(VLOOKUP("x",Turma!$B$4:$G$53,3,0)="Menina",tblMLS!R19,tblMLS!R187),"") -> 123.466 | G20: =IF(Turma!A$2=1,IF(VLOOKUP("x",Turma!$B$4:$G$53,3,0)="Menina",tblMLS!U19,tblMLS!U187),"") -> 127.938
A21: 79 | C21: =IF(Turma!A$2=1,IF(VLOOKUP("x",Turma!$B$4:$G$53,3,0)="Menina",tblMLS!K20,tblMLS!K188),"") -> 108.435 | D21: =IF(Turma!A$2=1,IF(VLOOKUP("x",Turma!$B$4:$G$53,3,0)="Menina",tblMLS!N20,tblMLS!N188),"") -> 112.931 | E21: =IF(Turma!A$2=1,IF(VLOOKUP("x",Turma!$B$4:$G$53,3,0)="Menina",tblMLS!P20,tblMLS!P188),"") -> 118.449 | F21: =IF(Turma!A$2=1,IF(VLOOKUP("x",Turma!$B$4:$G$53,3,0)="Menina",tblMLS!R20,tblMLS!R188),"") -> 123.967 | G21: =IF(Turma!A$2=1,IF(VLOOKUP("x",Turma!$B$4:$G$53,3,0)="Menina",tblMLS!U20,tblMLS!U188),"") -> 128.463
A22: 80 | C22: =IF(Turma!A$2=1,IF(VLOOKUP("x",Turma!$B$4:$G$53,3,0)="Menina",tblMLS!K21,tblMLS!K189),"") -> 108.851 | D22: =IF(Turma!A$2=1,IF(VLOOKUP("x",Turma!$B$4:$G$53,3,0)="Menina",tblMLS!N21,tblMLS!N189),"") -> 113.372 | E22: =IF(Turma!A$2=1,IF(VLOOKUP("x",Turma!$B$4:$G$53,3,0)="Menina",tblMLS!P21,tblMLS!P189),"") -> 118.921 | F22: =IF(Turma!A$2=1,IF(VLOOKUP("x",Turma!$B$4:$G$53,3,0)="Menina",tblMLS!R21,tblMLS!R189),"") -> 124.47 | G22: =IF(Turma!A$2=1,IF(VLOOKUP("x",Turma!$B$4:$G$53,3,0)="Menina",tblMLS!U21,tblMLS!U189),"") -> 128.99
A23: 81 | C23: =IF(Turma!A$2=1,IF(VLOOKUP("x",Turma!$B$4:$G$53,3,0)="Menina",tblMLS!K22,tblMLS!K190),"") -> 109.27 | D23: =IF(Turma!A$2=1,IF(VLOOKUP("x",Turma!$B$4:$G$53,3,0)="Menina",tblMLS!N22,tblMLS!N190),"") -> 113.814 | E23: =IF(Turma!A$2=1,IF(VLOOKUP("x",Turma!$B$4:$G$53,3,0)="Menina",tblMLS!P22,tblMLS!P190),"") -> 119.393 | F23: =IF(Turma!A$2=1,IF(VLOOKUP("x",Turma!$B$4:$G$53,3,0)="Menina",tblMLS!R22,tblMLS!R190),"") -> 124.971 | G23: =IF(Turma!A$2=1,IF(VLOOKUP("x",Turma!$B$4:$G$53,3,0)="Menina",tblMLS!U22,tblMLS!U190),"") -> 129.515
A24: 82 | C24: =IF(Turma!A$2=1,IF(VLOOKUP("x",Turma!$B$4:$G$53,3,0)="Menina",tblMLS!K23,tblMLS!K191),"") -> 109.688 | D24: =IF(Turma!A$2=1,IF(VLOOKUP("x",Turma!$B$4:$G$53,3,0)="Menina",tblMLS!N23,tblMLS!N191),"") -> 114.257 | E24: =IF(Turma!A$2=1,IF(VLOOKUP("x",Turma!$B$4:$G$53,3,0)="Menina",tblMLS!P23,tblMLS!P191),"") -> 119.865 | F24: =IF(Turma!A$2=1,IF(VLOOKUP("x",Turma!$B$4:$G$53,3,0)="Menina",tblMLS!R23,tblMLS!R191),"") -> 125.473 | G24: =IF(Turma!A$2=1,IF(VLOOKUP("x",Turma!$B$4:$G$53,3,0)="Menina",tblMLS!U23,tblMLS!U191),"") -> 130.041
A25: 83 | C25: =IF(Turma!A$2=1,IF(VLOOKUP("x",Turma!$B$4:$G$53,3,0)="Menina",tblMLS!K24,tblMLS!K192),"") -> 110.107 | D25: =IF(Turma!A$2=1,IF(VLOOKUP("x",Turma!$B$4:$G$53,3,0)="Menina",tblMLS!N24,tblMLS!N192),"") -> 114.7 | E25: =IF(Turma!A$2=1,IF(VLOOKUP("x",Turma!$B$4:$G$53,3,0)="Menina",tblMLS!P24,tblMLS!P192),"") -> 120.337 | F25: =IF(Turma!A$2=1,IF(VLOOKUP("x",Turma!$B$4:$G$53,3,0)="Menina",tblMLS!R24,tblMLS!R192),"") -> 125.975 | G25: =IF(Turma!A$2=1,IF(VLOOKUP("x",Turma!$B$4:$G$53,3,0)="Menina",tblMLS!U24,tblMLS!U192),"") -> 130.568
A26: 84 | B26: 7 | C26: =IF(Turma!A$2=1,IF(VLOOKUP("x",Turma!$B$4:$G$53,3,0)="Menina",tblMLS!K25,tblMLS!K193),"") -> 110.529 | D26: =IF(Turma!A$2=1,IF(VLOOKUP("x",Turma!$B$4:$G$53,3,0)="Menina",tblMLS!N25,tblMLS!N193),"") -> 115.145 | E26: =IF(Turma!A$2=1,IF(VLOOKUP("x",Turma!$B$4:$G$53,3,0)="Menina",tblMLS!P25,tblMLS!P193),"") -> 120.81 | F26: =IF(Turma!A$2=1,IF(VLOOKUP("x",Turma!$B$4:$G$53,3,0)="Menina",tblMLS!R25,tblMLS!R193),"") -> 126.476 | G26: =IF(Turma!A$2=1,IF(VLOOKUP("x",Turma!$B$4:$G$53,3,0)="Menina",tblMLS!U25,tblMLS!U193),"") -> 131.092
A27: 85 | C27: =IF(Turma!A$2=1,IF(VLOOKUP("x",Turma!$B$4:$G$53,3,0)="Menina",tblMLS!K26,tblMLS!K194),"") -> 110.949 | D27: =IF(Turma!A$2=1,IF(VLOOKUP("x",Turma!$B$4:$G$53,3,0)="Menina",tblMLS!N26,tblMLS!N194),"") -> 115.589 | E27: =IF(Turma!A$2=1,IF(VLOOKUP("x",Turma!$B$4:$G$53,3,0)="Menina",tblMLS!P26,tblMLS!P194),"") -> 121.284 | F27: =IF(Turma!A$2=1,IF(VLOOKUP("x",Turma!$B$4:$G$53,3,0)="Menina",tblMLS!R26,tblMLS!R194),"") -> 126.98 | G27: =IF(Turma!A$2=1,IF(VLOOKUP("x",Turma!$B$4:$G$53,3,0)="Menina",tblMLS!U26,tblMLS!U194),"") -> 131.62
A28: 86 | C28: =IF(Turma!A$2=1,IF(VLOOKUP("x",Turma!$B$4:$G$53,3,0)="Menina",tblMLS!K27,tblMLS!K195),"") -> 111.371 | D28: =IF(Turma!A$2=1,IF(VLOOKUP("x",Turma!$B$4:$G$53,3,0)="Menina",tblMLS!N27,tblMLS!N195),"") -> 116.035 | E28: =IF(Turma!A$2=1,IF(VLOOKUP("x",Turma!$B$4:$G$53,3,0)="Menina",tblMLS!P27,tblMLS!P195),"") -> 121.759 | F28: =IF(Turma!A$2=1,IF(VLOOKUP("x",Turma!$B$4:$G$53,3,0)="Menina",tblMLS!R27,tblMLS!R195),"") -> 127.483 | G28: =IF(Turma!A$2=1,IF(VLOOKUP("x",Turma!$B$4:$G$53,3,0)="Menina",tblMLS!U27,tblMLS!U195),"") -> 132.146
A29: 87 | C29: =IF(Turma!A$2=1,IF(VLOOKUP("x",Turma!$B$4:$G$53,3,0)="Menina",tblMLS!K28,tblMLS!K196),"") -> 111.792 | D29: =IF(Turma!A$2=1,IF(VLOOKUP("x",Turma!$B$4:$G$53,3,0)="Menina",tblMLS!N28,tblMLS!N196),"") -> 116.48 | E29: =IF(Turma!A$2=1,IF(VLOOKUP("x",Turma!$B$4:$G$53,3,0)="Menina",tblMLS!P28,tblMLS!P196),"") -> 122.234 | F29: =IF(Turma!A$2=1,IF(VLOOKUP("x",Turma!$B$4:$G$53,3,0)="Menina",tblMLS!R28,tblMLS!R196),"") -> 127.988 | G29: =IF(Turma!A$2=1,IF(VLOOKUP("x",Turma!$B$4:$G$53,3,0)="Menina",tblMLS!U28,tblMLS!U196),"") -> 132.676
A30: 88 | C30: =IF(Turma!A$2=1,IF(VLOOKUP("x",Turma!$B$4:$G$53,3,0)="Menina",tblMLS!K29,tblMLS!K197),"") -> 112.216 | D30: =IF(Turma!A$2=1,IF(VLOOKUP("x",Turma!$B$4:$G$53,3,0)="Menina",tblMLS!N29,tblMLS!N197),"") -> 116.927 | E30: =IF(Turma!A$2=1,IF(VLOOKUP("x",Turma!$B$4:$G$53,3,0)="Menina",tblMLS!P29,tblMLS!P197),"") -> 122.71 | F30: =IF(Turma!A$2=1,IF(VLOOKUP("x",Turma!$B$4:$G$53,3,0)="Menina",tblMLS!R29,tblMLS!R197),"") -> 128.493 | G30: =IF(Turma!A$2=1,IF(VLOOKUP("x",Turma!$B$4:$G$53,3,0)="Menina",tblMLS!U29,tblMLS!U197),"") -> 133.204
A31: 89 | C31: =IF(Turma!A$2=1,IF(VLOOKUP("x",Turma!$B$4:$G$53,3,0)="Menina",tblMLS!K30,tblMLS!K198),"") -> 112.643 | D31: =IF(Turma!A$2=1,IF(VLOOKUP("x",Turma!$B$4:$G$53,3,0)="Menina",tblMLS!N30,tblMLS!N198),"") -> 117.376 | E31: =IF(Turma!A$2=1,IF(VLOOKUP("x",Turma!$B$4:$G$53,3,0)="Menina",tblMLS!P30,tblMLS!P198),"") -> 123.187 | F31: =IF(Turma!A$2=1,IF(VLOOKUP("x",Turma!$B$4:$G$53,3,0)="Menina",tblMLS!R30,tblMLS!R198),"") -> 128.997 | G31: =IF(Turma!A$2=1,IF(VLOOKUP("x",Turma!$B$4:$G$53,3,0)="Menina",tblMLS!U30,tblMLS!U198),"") -> 133.731
A32: 90 | C32: =IF(Turma!A$2=1,IF(VLOOKUP("x",Turma!$B$4:$G$53,3,0)="Menina",tblMLS!K31,tblMLS!K199),"") -> 113.068 | D32: =IF(Turma!A$2=1,IF(VLOOKUP("x",Turma!$B$4:$G$53,3,0)="Menina",tblMLS!N31,tblMLS!N199),"") -> 117.825 | E32: =IF(Turma!A$2=1,IF(VLOOKUP("x",Turma!$B$4:$G$53,3,0)="Menina",tblMLS!P31,tblMLS!P199),"") -> 123.665 | F32: =IF(Turma!A$2=1,IF(VLOOKUP("x",Turma!$B$4:$G$53,3,0)="Menina",tblMLS!R31,tblMLS!R199),"") -> 129.504 | G32: =IF(Turma!A$2=1,IF(VLOOKUP("x",Turma!$B$4:$G$53,3,0)="Menina",tblMLS!U31,tblMLS!U199),"") -> 134.261
A33: 91 | C33: =IF(Turma!A$2=1,IF(VLOOKUP("x",Turma!$B$4:$G$53,3,0)="Menina",tblMLS!K32,tblMLS!K200),"") -> 113.494 | D33: =IF(Turma!A$2=1,IF(VLOOKUP("x",Turma!$B$4:$G$53,3,0)="Menina",tblMLS!N32,tblMLS!N200),"") -> 118.275 | E33: =IF(Turma!A$2=1,IF(VLOOKUP("x",Turma!$B$4:$G$53,3,0)="Menina",tblMLS!P32,tblMLS!P200),"") -> 124.144 | F33: =IF(Turma!A$2=1,IF(VLOOKUP("x",Turma!$B$4:$G$53,3,0)="Menina",tblMLS!R32,tblMLS!R200),"") -> 130.012 | G33: =IF(Turma!A$2=1,IF(VLOOKUP("x",Turma!$B$4:$G$53,3,0)="Menina",tblMLS!U32,tblMLS!U200),"") -> 134.793
A34: 92 | C34: =IF(Turma!A$2=1,IF(VLOOKUP("x",Turma!$B$4:$G$53,3,0)="Menina",tblMLS!K33,tblMLS!K201),"") -> 113.923 | D34: =IF(Turma!A$2=1,IF(VLOOKUP("x",Turma!$B$4:$G$53,3,0)="Menina",tblMLS!N33,tblMLS!N201),"") -> 118.727 | E34: =IF(Turma!A$2=1,IF(VLOOKUP("x",Turma!$B$4:$G$53,3,0)="Menina",tblMLS!P33,tblMLS!P201),"") -> 124.623 | F34: =IF(Turma!A$2=1,IF(VLOOKUP("x",Turma!$B$4:$G$53,3,0)="Menina",tblMLS!R33,tblMLS!R201),"") -> 130.52 | G34: =IF(Turma!A$2=1,IF(VLOOKUP("x",Turma!$B$4:$G$53,3,0)="Menina",tblMLS!U33,tblMLS!U201),"") -> 135.323
A35: 93 | C35: =IF(Turma!A$2=1,IF(VLOOKUP("x",Turma!$B$4:$G$53,3,0)="Menina",tblMLS!K34,tblMLS!K202),"") -> 114.354 | D35: =IF(Turma!A$2=1,IF(VLOOKUP("x",Turma!$B$4:$G$53,3,0)="Menina",tblMLS!N34,tblMLS!N202),"") -> 119.18 | E35: =IF(Turma!A$2=1,IF(VLOOKUP("x",Turma!$B$4:$G$53,3,0)="Menina",tblMLS!P34,tblMLS!P202),"") -> 125.104 | F35: =IF(Turma!A$2=1,IF(VLOOKUP("x",Turma!$B$4:$G$53,3,0)="Menina",tblMLS!R34,tblMLS!R202),"") -> 131.029 | G35: =IF(Turma!A$2=1,IF(VLOOKUP("x",Turma!$B$4:$G$53,3,0)="Menina",tblMLS!U34,tblMLS!U202),"") -> 135.855
A36: 94 | C36: =IF(Turma!A$2=1,IF(VLOOKUP("x",Turma!$B$4:$G$53,3,0)="Menina",tblMLS!K35,tblMLS!K203),"") -> 114.785 | D36: =IF(Turma!A$2=1,IF(VLOOKUP("x",Turma!$B$4:$G$53,3,0)="Menina",tblMLS!N35,tblMLS!N203),"") -> 119.635 | E36: =IF(Turma!A$2=1,IF(VLOOKUP("x",Turma!$B$4:$G$53,3,0)="Menina",tblMLS!P35,tblMLS!P203),"") -> 125.587 | F36: =IF(Turma!A$2=1,IF(VLOOKUP("x",Turma!$B$4:$G$53,3,0)="Menina",tblMLS!R35,tblMLS!R203),"") -> 131.539 | G36: =IF(Turma!A$2=1,IF(VLOOKUP("x",Turma!$B$4:$G$53,3,0)="Menina",tblMLS!U35,tblMLS!U203),"") -> 136.388
A37: 95 | C37: =IF(Turma!A$2=1,IF(VLOOKUP("x",Turma!$B$4:$G$53,3,0)="Menina",tblMLS!K36,tblMLS!K204),"") -> 115.218 | D37: =IF(Turma!A$2=1,IF(VLOOKUP("x",Turma!$B$4:$G$53,3,0)="Menina",tblMLS!N36,tblMLS!N204),"") -> 120.09 | E37: =IF(Turma!A$2=1,IF(VLOOKUP("x",Turma!$B$4:$G$53,3,0)="Menina",tblMLS!P36,tblMLS!P204),"") -> 126.071 | F37: =IF(Turma!A$2=1,IF(VLOOKUP("x",Turma!$B$4:$G$53,3,0)="Menina",tblMLS!R36,tblMLS!R204),"") -> 132.051 | G37: =IF(Turma!A$2=1,IF(VLOOKUP("x",Turma!$B$4:$G$53,3,0)="Menina",tblMLS!U36,tblMLS!U204),"") -> 136.923
A38: 96 | B38: 8 | C38: =IF(Turma!A$2=1,IF(VLOOKUP("x",Turma!$B$4:$G$53,3,0)="Menina",tblMLS!K37,tblMLS!K205),"") -> 115.652 | D38: =IF(Turma!A$2=1,IF(VLOOKUP("x",Turma!$B$4:$G$53,3,0)="Menina",tblMLS!N37,tblMLS!N205),"") -> 120.547 | E38: =IF(Turma!A$2=1,IF(VLOOKUP("x",Turma!$B$4:$G$53,3,0)="Menina",tblMLS!P37,tblMLS!P205),"") -> 126.556 | F38: =IF(Turma!A$2=1,IF(VLOOKUP("x",Turma!$B$4:$G$53,3,0)="Menina",tblMLS!R37,tblMLS!R205),"") -> 132.565 | G38: =IF(Turma!A$2=1,IF(VLOOKUP("x",Turma!$B$4:$G$53,3,0)="Menina",tblMLS!U37,tblMLS!U205),"") -> 137.46
A39: 97 | C39: =IF(Turma!A$2=1,IF(VLOOKUP("x",Turma!$B$4:$G$53,3,0)="Menina",tblMLS!K38,tblMLS!K206),"") -> 116.087 | D39: =IF(Turma!A$2=1,IF(VLOOKUP("x",Turma!$B$4:$G$53,3,0)="Menina",tblMLS!N38,tblMLS!N206),"") -> 121.005 | E39: =IF(Turma!A$2=1,IF(VLOOKUP("x",Turma!$B$4:$G$53,3,0)="Menina",tblMLS!P38,tblMLS!P206),"") -> 127.042 | F39: =IF(Turma!A$2=1,IF(VLOOKUP("x",Turma!$B$4:$G$53,3,0)="Menina",tblMLS!R38,tblMLS!R206),"") -> 133.08 | G39: =IF(Turma!A$2=1,IF(VLOOKUP("x",Turma!$B$4:$G$53,3,0)="Menina",tblMLS!U38,tblMLS!U206),"") -> 137.998
A40: 98 | C40: =IF(Turma!A$2=1,IF(VLOOKUP("x",Turma!$B$4:$G$53,3,0)="Menina",tblMLS!K39,tblMLS!K207),"") -> 116.526 | D40: =IF(Turma!A$2=1,IF(VLOOKUP("x",Turma!$B$4:$G$53,3,0)="Menina",tblMLS!N39,tblMLS!N207),"") -> 121.466 | E40: =IF(Turma!A$2=1,IF(VLOOKUP("x",Turma!$B$4:$G$53,3,0)="Menina",tblMLS!P39,tblMLS!P207),"") -> 127.53 | F40: =IF(Turma!A$2=1,IF(VLOOKUP("x",Turma!$B$4:$G$53,3,0)="Menina",tblMLS!R39,tblMLS!R207),"") -> 133.595 | G40: =IF(Turma!A$2=1,IF(VLOOKUP("x",Turma!$B$4:$G$53,3,0)="Menina",tblMLS!U39,tblMLS!U207),"") -> 138.535
A41: 99 | C41: =IF(Turma!A$2=1,IF(VLOOKUP("x",Turma!$B$4:$G$53,3,0)="Menina",tblMLS!K40,tblMLS!K208),"") -> 116.966 | D41: =IF(Turma!A$2=1,IF(VLOOKUP("x",Turma!$B$4:$G$53,3,0)="Menina",tblMLS!N40,tblMLS!N208),"") -> 121.928 | E41: =IF(Turma!A$2=1,IF(VLOOKUP("x",Turma!$B$4:$G$53,3,0)="Menina",tblMLS!P40,tblMLS!P208),"") -> 128.02 | F41: =IF(Turma!A$2=1,IF(VLOOKUP("x",Turma!$B$4:$G$53,3,0)="Menina",tblMLS!R40,tblMLS!R208),"") -> 134.111 | G41: =IF(Turma!A$2=1,IF(VLOOKUP("x",Turma!$B$4:$G$53,3,0)="Menina",tblMLS!U40,tblMLS!U208),"") -> 139.074
A42: 100 | C42: =IF(Turma!A$2=1,IF(VLOOKUP("x",Turma!$B$4:$G$53,3,0)="Menina",tblMLS!K41,tblMLS!K209),"") -> 117.407 | D42: =IF(Turma!A$2=1,IF(VLOOKUP("x",Turma!$B$4:$G$53,3,0)="Menina",tblMLS!N41,tblMLS!N209),"") -> 122.392 | E42: =IF(Turma!A$2=1,IF(VLOOKUP("x",Turma!$B$4:$G$53,3,0)="Menina",tblMLS!P41,tblMLS!P209),"") -> 128.511 | F42: =IF(Turma!A$2=1,IF(VLOOKUP("x",Turma!$B$4:$G$53,3,0)="Menina",tblMLS!R41,tblMLS!R209),"") -> 134.63 | G42: =IF(Turma!A$2=1,IF(VLOOKUP("x",Turma!$B$4:$G$53,3,0)="Menina",tblMLS!U41,tblMLS!U209),"") -> 139.615
A43: 101 | C43: =IF(Turma!A$2=1,IF(VLOOKUP("x",Turma!$B$4:$G$53,3,0)="Menina",tblMLS!K42,tblMLS!K210),"") -> 117.85 | D43: =IF(Turma!A$2=1,IF(VLOOKUP("x",Turma!$B$4:$G$53,3,0)="Menina",tblMLS!N42,tblMLS!N210),"") -> 122.857 | E43: =IF(Turma!A$2=1,IF(VLOOKUP("x",Turma!$B$4:$G$53,3,0)="Menina",tblMLS!P42,tblMLS!P210),"") -> 129.004 | F43: =IF(Turma!A$2=1,IF(VLOOKUP("x",Turma!$B$4:$G$53,3,0)="Menina",tblMLS!R42,tblMLS!R210),"") -> 135.15 | G43: =IF(Turma!A$2=1,IF(VLOOKUP("x",Turma!$B$4:$G$53,3,0)="Menina",tblMLS!U42,tblMLS!U210),"") -> 140.157
A44: 102 | C44: =IF(Turma!A$2=1,IF(VLOOKUP("x",Turma!$B$4:$G$53,3,0)="Menina",tblMLS!K43,tblMLS!K211),"") -> 118.294 | D44: =IF(Turma!A$2=1,IF(VLOOKUP("x",Turma!$B$4:$G$53,3,0)="Menina",tblMLS!N43,tblMLS!N211),"") -> 123.324 | E44: =IF(Turma!A$2=1,IF(VLOOKUP("x",Turma!$B$4:$G$53,3,0)="Menina",tblMLS!P43,tblMLS!P211),"") -> 129.498 | F44: =IF(Turma!A$2=1,IF(VLOOKUP("x",Turma!$B$4:$G$53,3,0)="Menina",tblMLS!R43,tblMLS!R211),"") -> 135.671 | G44: =IF(Turma!A$2=1,IF(VLOOKUP("x",Turma!$B$4:$G$53,3,0)="Menina",tblMLS!U43,tblMLS!U211),"") -> 140.701
A45: 103 | C45: =IF(Turma!A$2=1,IF(VLOOKUP("x",Turma!$B$4:$G$53,3,0)="Menina",tblMLS!K44,tblMLS!K212),"") -> 118.742 | D45: =IF(Turma!A$2=1,IF(VLOOKUP("x",Turma!$B$4:$G$53,3,0)="Menina",tblMLS!N44,tblMLS!N212),"") -> 123.793 | E45: =IF(Turma!A$2=1,IF(VLOOKUP("x",Turma!$B$4:$G$53,3,0)="Menina",tblMLS!P44,tblMLS!P212),"") -> 129.993 | F45: =IF(Turma!A$2=1,IF(VLOOKUP("x",Turma!$B$4:$G$53,3,0)="Menina",tblMLS!R44,tblMLS!R212),"") -> 136.193 | G45: =IF(Turma!A$2=1,IF(VLOOKUP("x",Turma!$B$4:$G$53,3,0)="Menina",tblMLS!U44,tblMLS!U212),"") -> 141.245
A46: 104 | C46: =IF(Turma!A$2=1,IF(VLOOKUP("x",Turma!$B$4:$G$53,3,0)="Menina",tblMLS!K45,tblMLS!K213),"") -> 119.191 | D46: =IF(Turma!A$2=1,IF(VLOOKUP("x",Turma!$B$4:$G$53,3,0)="Menina",tblMLS!N45,tblMLS!N213),"") -> 124.264 | E46: =IF(Turma!A$2=1,IF(VLOOKUP("x",Turma!$B$4:$G$53,3,0)="Menina",tblMLS!P45,tblMLS!P213),"") -> 130.49 | F46: =IF(Turma!A$2=1,IF(VLOOKUP("x",Turma!$B$4:$G$53,3,0)="Menina",tblMLS!R45,tblMLS!R213),"") -> 136.717 | G46: =IF(Turma!A$2=1,IF(VLOOKUP("x",Turma!$B$4:$G$53,3,0)="Menina",tblMLS!U45,tblMLS!U213),"") -> 141.79
A47: 105 | C47: =IF(Turma!A$2=1,IF(VLOOKUP("x",Turma!$B$4:$G$53,3,0)="Menina",tblMLS!K46,tblMLS!K214),"") -> 119.639 | D47: =IF(Turma!A$2=1,IF(VLOOKUP("x",Turma!$B$4:$G$53,3,0)="Menina",tblMLS!N46,tblMLS!N214),"") -> 124.735 | E47: =IF(Turma!A$2=1,IF(VLOOKUP("x",Turma!$B$4:$G$53,3,0)="Menina",tblMLS!P46,tblMLS!P214),"") -> 130.989 | F47: =IF(Turma!A$2=1,IF(VLOOKUP("x",Turma!$B$4:$G$53,3,0)="Menina",tblMLS!R46,tblMLS!R214),"") -> 137.244 | G47: =IF(Turma!A$2=1,IF(VLOOKUP("x",Turma!$B$4:$G$53,3,0)="Menina",tblMLS!U46,tblMLS!U214),"") -> 142.339
A48: 106 | C48: =IF(Turma!A$2=1,IF(VLOOKUP("x",Turma!$B$4:$G$53,3,0)="Menina",tblMLS!K47,tblMLS!K215),"") -> 120.094 | D48: =IF(Turma!A$2=1,IF(VLOOKUP("x",Turma!$B$4:$G$53,3,0)="Menina",tblMLS!N47,tblMLS!N215),"") -> 125.21 | E48: =IF(Turma!A$2=1,IF(VLOOKUP("x",Turma!$B$4:$G$53,3,0)="Menina",tblMLS!P47,tblMLS!P215),"") -> 131.49 | F48: =IF(Turma!A$2=1,IF(VLOOKUP("x",Turma!$B$4:$G$53,3,0)="Menina",tblMLS!R47,tblMLS!R215),"") -> 137.769 | G48: =IF(Turma!A$2=1,IF(VLOOKUP("x",Turma!$B$4:$G$53,3,0)="Menina",tblMLS!U47,tblMLS!U215),"") -> 142.885
A49: 107 | C49: =IF(Turma!A$2=1,IF(VLOOKUP("x",Turma!$B$4:$G$53,3,0)="Menina",tblMLS!K48,tblMLS!K216),"") -> 120.547 | D49: =IF(Turma!A$2=1,IF(VLOOKUP("x",Turma!$B$4:$G$53,3,0)="Menina",tblMLS!N48,tblMLS!N216),"") -> 125.685 | E49: =IF(Turma!A$2=1,IF(VLOOKUP("x",Turma!$B$4:$G$53,3,0)="Menina",tblMLS!P48,tblMLS!P216),"") -> 131.991 | F49: =IF(Turma!A$2=1,IF(VLOOKUP("x",Turma!$B$4:$G$53,3,0)="Menina",tblMLS!R48,tblMLS!R216),"") -> 138.298 | G49: =IF(Turma!A$2=1,IF(VLOOKUP("x",Turma!$B$4:$G$53,3,0)="Menina",tblMLS!U48,tblMLS!U216),"") -> 143.435
A50: 108 | B50: 9 | C50: =IF(Turma!A$2=1,IF(VLOOKUP("x",Turma!$B$4:$G$53,3,0)="Menina",tblMLS!K49,tblMLS!K217),"") -> 121.002 | D50: =IF(Turma!A$2=1,IF(VLOOKUP("x",Turma!$B$4:$G$53,3,0)="Menina",tblMLS!N49,tblMLS!N217),"") -> 126.161 | E50: =IF(Turma!A$2=1,IF(VLOOKUP("x",Turma!$B$4:$G$53,3,0)="Menina",tblMLS!P49,tblMLS!P217),"") -> 132.494 | F50: =IF(Turma!A$2=1,IF(VLOOKUP("x",Turma!$B$4:$G$53,3,0)="Menina",tblMLS!R49,tblMLS!R217),"") -> 138.828 | G50: =IF(Turma!A$2=1,IF(VLOOKUP("x",Turma!$B$4:$G$53,3,0)="Menina",tblMLS!U49,tblMLS!U217),"") -> 143.987
A51: 109 | C51: =IF(Turma!A$2=1,IF(VLOOKUP("x",Turma!$B$4:$G$53,3,0)="Menina",tblMLS!K50,tblMLS!K218),"") -> 121.46 | D51: =IF(Turma!A$2=1,IF(VLOOKUP("x",Turma!$B$4:$G$53,3,0)="Menina",tblMLS!N50,tblMLS!N218),"") -> 126.64 | E51: =IF(Turma!A$2=1,IF(VLOOKUP("x",Turma!$B$4:$G$53,3,0)="Menina",tblMLS!P50,tblMLS!P218),"") -> 132.999 | F51: =IF(Turma!A$2=1,IF(VLOOKUP("x",Turma!$B$4:$G$53,3,0)="Menina",tblMLS!R50,tblMLS!R218),"") -> 139.358 | G51: =IF(Turma!A$2=1,IF(VLOOKUP("x",Turma!$B$4:$G$53,3,0)="Menina",tblMLS!U50,tblMLS!U218),"") -> 144.538
A52: 110 | C52: =IF(Turma!A$2=1,IF(VLOOKUP("x",Turma!$B$4:$G$53,3,0)="Menina",tblMLS!K51,tblMLS!K219),"") -> 121.919 | D52: =IF(Turma!A$2=1,IF(VLOOKUP("x",Turma!$B$4:$G$53,3,0)="Menina",tblMLS!N51,tblMLS!N219),"") -> 127.12 | E52: =IF(Turma!A$2=1,IF(VLOOKUP("x",Turma!$B$4:$G$53,3,0)="Menina",tblMLS!P51,tblMLS!P219),"") -> 133.505 | F52: =IF(Turma!A$2=1,IF(VLOOKUP("x",Turma!$B$4:$G$53,3,0)="Menina",tblMLS!R51,tblMLS!R219),"") -> 139.889 | G52: =IF(Turma!A$2=1,IF(VLOOKUP("x",Turma!$B$4:$G$53,3,0)="Menina",tblMLS!U51,tblMLS!U219),"") -> 145.09
A53: 111 | C53: =IF(Turma!A$2=1,IF(VLOOKUP("x",Turma!$B$4:$G$53,3,0)="Menina",tblMLS!K52,tblMLS!K220),"") -> 122.38 | D53: =IF(Turma!A$2=1,IF(VLOOKUP("x",Turma!$B$4:$G$53,3,0)="Menina",tblMLS!N52,tblMLS!N220),"") -> 127.602 | E53: =IF(Turma!A$2=1,IF(VLOOKUP("x",Turma!$B$4:$G$53,3,0)="Menina",tblMLS!P52,tblMLS!P220),"") -> 134.012 | F53: =IF(Turma!A$2=1,IF(VLOOKUP("x",Turma!$B$4:$G$53,3,0)="Menina",tblMLS!R52,tblMLS!R220),"") -> 140.422 | G53: =IF(Turma!A$2=1,IF(VLOOKUP("x",Turma!$B$4:$G$53,3,0)="Menina",tblMLS!U52,tblMLS!U220),"") -> 145.644
A54: 112 | C54: =IF(Turma!A$2=1,IF(VLOOKUP("x",Turma!$B$4:$G$53,3,0)="Menina",tblMLS!K53,tblMLS!K221),"") -> 122.842 | D54: =IF(Turma!A$2=1,IF(VLOOKUP("x",Turma!$B$4:$G$53,3,0)="Menina",tblMLS!N53,tblMLS!N221),"") -> 128.085 | E54: =IF(Turma!A$2=1,IF(VLOOKUP("x",Turma!$B$4:$G$53,3,0)="Menina",tblMLS!P53,tblMLS!P221),"") -> 134.52 | F54: =IF(Turma!A$2=1,IF(VLOOKUP("x",Turma!$B$4:$G$53,3,0)="Menina",tblMLS!R53,tblMLS!R221),"") -> 140.956 | G54: =IF(Turma!A$2=1,IF(VLOOKUP("x",Turma!$B$4:$G$53,3,0)="Menina",tblMLS!U53,tblMLS!U221),"") -> 146.199
A55: 113 | C55: =IF(Turma!A$2=1,IF(VLOOKUP("x",Turma!$B$4:$G$53,3,0)="Menina",tblMLS!K54,tblMLS!K222),"") -> 123.307 | D55: =IF(Turma!A$2=1,IF(VLOOKUP("x",Turma!$B$4:$G$53,3,0)="Menina",tblMLS!N54,tblMLS!N222),"") -> 128.57 | E55: =IF(Turma!A$2=1,IF(VLOOKUP("x",Turma!$B$4:$G$53,3,0)="Menina",tblMLS!P54,tblMLS!P222),"") -> 135.03 | F55: =IF(Turma!A$2=1,IF(VLOOKUP("x",Turma!$B$4:$G$53,3,0)="Menina",tblMLS!R54,tblMLS!R222),"") -> 141.49 | G55: =IF(Turma!A$2=1,IF(VLOOKUP("x",Turma!$B$4:$G$53,3,0)="Menina",tblMLS!U54,tblMLS!U222),"") -> 146.753
A56: 114 | C56: =IF(Turma!A$2=1,IF(VLOOKUP("x",Turma!$B$4:$G$53,3,0)="Menina",tblMLS!K55,tblMLS!K223),"") -> 123.771 | D56: =IF(Turma!A$2=1,IF(VLOOKUP("x",Turma!$B$4:$G$53,3,0)="Menina",tblMLS!N55,tblMLS!N223),"") -> 129.055 | E56: =IF(Turma!A$2=1,IF(VLOOKUP("x",Turma!$B$4:$G$53,3,0)="Menina",tblMLS!P55,tblMLS!P223),"") -> 135.541 | F56: =IF(Turma!A$2=1,IF(VLOOKUP("x",Turma!$B$4:$G$53,3,0)="Menina",tblMLS!R55,tblMLS!R223),"") -> 142.027 | G56: =IF(Turma!A$2=1,IF(VLOOKUP("x",Turma!$B$4:$G$53,3,0)="Menina",tblMLS!U55,tblMLS!U223),"") -> 147.311
A57: 115 | C57: =IF(Turma!A$2=1,IF(VLOOKUP("x",Turma!$B$4:$G$53,3,0)="Menina",tblMLS!K56,tblMLS!K224),"") -> 124.239 | D57: =IF(Turma!A$2=1,IF(VLOOKUP("x",Turma!$B$4:$G$53,3,0)="Menina",tblMLS!N56,tblMLS!N224),"") -> 129.543 | E57: =IF(Turma!A$2=1,IF(VLOOKUP("x",Turma!$B$4:$G$53,3,0)="Menina",tblMLS!P56,tblMLS!P224),"") -> 136.053 | F57: =IF(Turma!A$2=1,IF(VLOOKUP("x",Turma!$B$4:$G$53,3,0)="Menina",tblMLS!R56,tblMLS!R224),"") -> 142.564 | G57: =IF(Turma!A$2=1,IF(VLOOKUP("x",Turma!$B$4:$G$53,3,0)="Menina",tblMLS!U56,tblMLS!U224),"") -> 147.868
A58: 116 | C58: =IF(Turma!A$2=1,IF(VLOOKUP("x",Turma!$B$4:$G$53,3,0)="Menina",tblMLS!K57,tblMLS!K225),"") -> 124.711 | D58: =IF(Turma!A$2=1,IF(VLOOKUP("x",Turma!$B$4:$G$53,3,0)="Menina",tblMLS!N57,tblMLS!N225),"") -> 130.033 | E58: =IF(Turma!A$2=1,IF(VLOOKUP("x",Turma!$B$4:$G$53,3,0)="Menina",tblMLS!P57,tblMLS!P225),"") -> 136.567 | F58: =IF(Turma!A$2=1,IF(VLOOKUP("x",Turma!$B$4:$G$53,3,0)="Menina",tblMLS!R57,tblMLS!R225),"") -> 143.101 | G58: =IF(Turma!A$2=1,IF(VLOOKUP("x",Turma!$B$4:$G$53,3,0)="Menina",tblMLS!U57,tblMLS!U225),"") -> 148.423
A59: 117 | C59: =IF(Turma!A$2=1,IF(VLOOKUP("x",Turma!$B$4:$G$53,3,0)="Menina",tblMLS!K58,tblMLS!K226),"") -> 125.181 | D59: =IF(Turma!A$2=1,IF(VLOOKUP("x",Turma!$B$4:$G$53,3,0)="Menina",tblMLS!N58,tblMLS!N226),"") -> 130.524 | E59: =IF(Turma!A$2=1,IF(VLOOKUP("x",Turma!$B$4:$G$53,3,0)="Menina",tblMLS!P58,tblMLS!P226),"") -> 137.082 | F59: =IF(Turma!A$2=1,IF(VLOOKUP("x",Turma!$B$4:$G$53,3,0)="Menina",tblMLS!R58,tblMLS!R226),"") -> 143.64 | G59: =IF(Turma!A$2=1,IF(VLOOKUP("x",Turma!$B$4:$G$53,3,0)="Menina",tblMLS!U58,tblMLS!U226),"") -> 148.983
A60: 118 | C60: =IF(Turma!A$2=1,IF(VLOOKUP("x",Turma!$B$4:$G$53,3,0)="Menina",tblMLS!K59,tblMLS!K227),"") -> 125.653 | D60: =IF(Turma!A$2=1,IF(VLOOKUP("x",Turma!$B$4:$G$53,3,0)="Menina",tblMLS!N59,tblMLS!N227),"") -> 131.016 | E60: =IF(Turma!A$2=1,IF(VLOOKUP("x",Turma!$B$4:$G$53,3,0)="Menina",tblMLS!P59,tblMLS!P227),"") -> 137.599 | F60: =IF(Turma!A$2=1,IF(VLOOKUP("x",Turma!$B$4:$G$53,3,0)="Menina",tblMLS!R59,tblMLS!R227),"") -> 144.182 | G60: =IF(Turma!A$2=1,IF(VLOOKUP("x",Turma!$B$4:$G$53,3,0)="Menina",tblMLS!U59,tblMLS!U227),"") -> 149.545
A61: 119 | C61: =IF(Turma!A$2=1,IF(VLOOKUP("x",Turma!$B$4:$G$53,3,0)="Menina",tblMLS!K60,tblMLS!K228),"") -> 126.128 | D61: =IF(Turma!A$2=1,IF(VLOOKUP("x",Turma!$B$4:$G$53,3,0)="Menina",tblMLS!N60,tblMLS!N228),"") -> 131.51 | E61: =IF(Turma!A$2=1,IF(VLOOKUP("x",Turma!$B$4:$G$53,3,0)="Menina",tblMLS!P60,tblMLS!P228),"") -> 138.117 | F61: =IF(Turma!A$2=1,IF(VLOOKUP("x",Turma!$B$4:$G$53,3,0)="Menina",tblMLS!R60,tblMLS!R228),"") -> 144.723 | G61: =IF(Turma!A$2=1,IF(VLOOKUP("x",Turma!$B$4:$G$53,3,0)="Menina",tblMLS!U60,tblMLS!U228),"") -> 150.105
A62: 120 | B62: 10 | C62: =IF(Turma!A$2=1,IF(VLOOKUP("x",Turma!$B$4:$G$53,3,0)="Menina",tblMLS!K61,tblMLS!K229),"") -> 126.605 | D62: =IF(Turma!A$2=1,IF(VLOOKUP("x",Turma!$B$4:$G$53,3,0)="Menina",tblMLS!N61,tblMLS!N229),"") -> 132.007 | E62: =IF(Turma!A$2=1,IF(VLOOKUP("x",Turma!$B$4:$G$53,3,0)="Menina",tblMLS!P61,tblMLS!P229),"") -> 138.636 | F62: =IF(Turma!A$2=1,IF(VLOOKUP("x",Turma!$B$4:$G$53,3,0)="Menina",tblMLS!R61,tblMLS!R229),"") -> 145.266 | G62: =IF(Turma!A$2=1,IF(VLOOKUP("x",Turma!$B$4:$G$53,3,0)="Menina",tblMLS!U61,tblMLS!U229),"") -> 150.667
A63: 121 | C63: =IF(Turma!A$2=1,IF(VLOOKUP("x",Turma!$B$4:$G$53,3,0)="Menina",tblMLS!K62,tblMLS!K230),"") -> 127.087 | D63: =IF(Turma!A$2=1,IF(VLOOKUP("x",Turma!$B$4:$G$53,3,0)="Menina",tblMLS!N62,tblMLS!N230),"") -> 132.506 | E63: =IF(Turma!A$2=1,IF(VLOOKUP("x",Turma!$B$4:$G$53,3,0)="Menina",tblMLS!P62,tblMLS!P230),"") -> 139.158 | F63: =IF(Turma!A$2=1,IF(VLOOKUP("x",Turma!$B$4:$G$53,3,0)="Menina",tblMLS!R62,tblMLS!R230),"") -> 145.809 | G63: =IF(Turma!A$2=1,IF(VLOOKUP("x",Turma!$B$4:$G$53,3,0)="Menina",tblMLS!U62,tblMLS!U230),"") -> 151.228
A64: 122 | C64: =IF(Turma!A$2=1,IF(VLOOKUP("x",Turma!$B$4:$G$53,3,0)="Menina",tblMLS!K63,tblMLS!K231),"") -> 127.567 | D64: =IF(Turma!A$2=1,IF(VLOOKUP("x",Turma!$B$4:$G$53,3,0)="Menina",tblMLS!N63,tblMLS!N231),"") -> 133.005 | E64: =IF(Turma!A$2=1,IF(VLOOKUP("x",Turma!$B$4:$G$53,3,0)="Menina",tblMLS!P63,tblMLS!P231),"") -> 139.68 | F64: =IF(Turma!A$2=1,IF(VLOOKUP("x",Turma!$B$4:$G$53,3,0)="Menina",tblMLS!R63,tblMLS!R231),"") -> 146.356 | G64: =IF(Turma!A$2=1,IF(VLOOKUP("x",Turma!$B$4:$G$53,3,0)="Menina",tblMLS!U63,tblMLS!U231),"") -> 151.794
A65: 123 | C65: =IF(Turma!A$2=1,IF(VLOOKUP("x",Turma!$B$4:$G$53,3,0)="Menina",tblMLS!K64,tblMLS!K232),"") -> 128.051 | D65: =IF(Turma!A$2=1,IF(VLOOKUP("x",Turma!$B$4:$G$53,3,0)="Menina",tblMLS!N64,tblMLS!N232),"") -> 133.507 | E65: =IF(Turma!A$2=1,IF(VLOOKUP("x",Turma!$B$4:$G$53,3,0)="Menina",tblMLS!P64,tblMLS!P232),"") -> 140.205 | F65: =IF(Turma!A$2=1,IF(VLOOKUP("x",Turma!$B$4:$G$53,3,0)="Menina",tblMLS!R64,tblMLS!R232),"") -> 146.902 | G65: =IF(Turma!A$2=1,IF(VLOOKUP("x",Turma!$B$4:$G$53,3,0)="Menina",tblMLS!U64,tblMLS!U232),"") -> 152.359
A66: 124 | C66: =IF(Turma!A$2=1,IF(VLOOKUP("x",Turma!$B$4:$G$53,3,0)="Menina",tblMLS!K65,tblMLS!K233),"") -> 128.537 | D66: =IF(Turma!A$2=1,IF(VLOOKUP("x",Turma!$B$4:$G$53,3,0)="Menina",tblMLS!N65,tblMLS!N233),"") -> 134.012 | E66: =IF(Turma!A$2=1,IF(VLOOKUP("x",Turma!$B$4:$G$53,3,0)="Menina",tblMLS!P65,tblMLS!P233),"") -> 140.731 | F66: =IF(Turma!A$2=1,IF(VLOOKUP("x",Turma!$B$4:$G$53,3,0)="Menina",tblMLS!R65,tblMLS!R233),"") -> 147.451 | G66: =IF(Turma!A$2=1,IF(VLOOKUP("x",Turma!$B$4:$G$53,3,0)="Menina",tblMLS!U65,tblMLS!U233),"") -> 152.925
A67: 125 | B67: =IF(A67/12=INT(A67/12),A67/12,"") ->  | C67: =IF(Turma!A$2=1,IF(VLOOKUP("x",Turma!$B$4:$G$53,3,0)="Menina",tblMLS!K66,tblMLS!K234),"") -> 129.025 | D67: =IF(Turma!A$2=1,IF(VLOOKUP("x",Turma!$B$4:$G$53,3,0)="Menina",tblMLS!N66,tblMLS!N234),"") -> 134.517 | E67: =IF(Turma!A$2=1,IF(VLOOKUP("x",Turma!$B$4:$G$53,3,0)="Menina",tblMLS!P66,tblMLS!P234),"") -> 141.259 | F67: =IF(Turma!A$2=1,IF(VLOOKUP("x",Turma!$B$4:$G$53,3,0)="Menina",tblMLS!R66,tblMLS!R234),"") -> 148.001 | G67: =IF(Turma!A$2=1,IF(VLOOKUP("x",Turma!$B$4:$G$53,3,0)="Menina",tblMLS!U66,tblMLS!U234),"") -> 153.494
A68: 126 | C68: =IF(Turma!A$2=1,IF(VLOOKUP("x",Turma!$B$4:$G$53,3,0)="Menina",tblMLS!K67,tblMLS!K235),"") -> 129.514 | D68: =IF(Turma!A$2=1,IF(VLOOKUP("x",Turma!$B$4:$G$53,3,0)="Menina",tblMLS!N67,tblMLS!N235),"") -> 135.025 | E68: =IF(Turma!A$2=1,IF(VLOOKUP("x",Turma!$B$4:$G$53,3,0)="Menina",tblMLS!P67,tblMLS!P235),"") -> 141.789 | F68: =IF(Turma!A$2=1,IF(VLOOKUP("x",Turma!$B$4:$G$53,3,0)="Menina",tblMLS!R67,tblMLS!R235),"") -> 148.554 | G68: =IF(Turma!A$2=1,IF(VLOOKUP("x",Turma!$B$4:$G$53,3,0)="Menina",tblMLS!U67,tblMLS!U235),"") -> 154.064
A69: 127 | C69: =IF(Turma!A$2=1,IF(VLOOKUP("x",Turma!$B$4:$G$53,3,0)="Menina",tblMLS!K68,tblMLS!K236),"") -> 130.008 | D69: =IF(Turma!A$2=1,IF(VLOOKUP("x",Turma!$B$4:$G$53,3,0)="Menina",tblMLS!N68,tblMLS!N236),"") -> 135.535 | E69: =IF(Turma!A$2=1,IF(VLOOKUP("x",Turma!$B$4:$G$53,3,0)="Menina",tblMLS!P68,tblMLS!P236),"") -> 142.321 | F69: =IF(Turma!A$2=1,IF(VLOOKUP("x",Turma!$B$4:$G$53,3,0)="Menina",tblMLS!R68,tblMLS!R236),"") -> 149.106 | G69: =IF(Turma!A$2=1,IF(VLOOKUP("x",Turma!$B$4:$G$53,3,0)="Menina",tblMLS!U68,tblMLS!U236),"") -> 154.634
A70: 128 | C70: =IF(Turma!A$2=1,IF(VLOOKUP("x",Turma!$B$4:$G$53,3,0)="Menina",tblMLS!K69,tblMLS!K237),"") -> 130.502 | D70: =IF(Turma!A$2=1,IF(VLOOKUP("x",Turma!$B$4:$G$53,3,0)="Menina",tblMLS!N69,tblMLS!N237),"") -> 136.047 | E70: =IF(Turma!A$2=1,IF(VLOOKUP("x",Turma!$B$4:$G$53,3,0)="Menina",tblMLS!P69,tblMLS!P237),"") -> 142.853 | F70: =IF(Turma!A$2=1,IF(VLOOKUP("x",Turma!$B$4:$G$53,3,0)="Menina",tblMLS!R69,tblMLS!R237),"") -> 149.66 | G70: =IF(Turma!A$2=1,IF(VLOOKUP("x",Turma!$B$4:$G$53,3,0)="Menina",tblMLS!U69,tblMLS!U237),"") -> 155.205
A71: 129 | C71: =IF(Turma!A$2=1,IF(VLOOKUP("x",Turma!$B$4:$G$53,3,0)="Menina",tblMLS!K70,tblMLS!K238),"") -> 130.998 | D71: =IF(Turma!A$2=1,IF(VLOOKUP("x",Turma!$B$4:$G$53,3,0)="Menina",tblMLS!N70,tblMLS!N238),"") -> 136.56 | E71: =IF(Turma!A$2=1,IF(VLOOKUP("x",Turma!$B$4:$G$53,3,0)="Menina",tblMLS!P70,tblMLS!P238),"") -> 143.387 | F71: =IF(Turma!A$2=1,IF(VLOOKUP("x",Turma!$B$4:$G$53,3,0)="Menina",tblMLS!R70,tblMLS!R238),"") -> 150.215 | G71: =IF(Turma!A$2=1,IF(VLOOKUP("x",Turma!$B$4:$G$53,3,0)="Menina",tblMLS!U70,tblMLS!U238),"") -> 155.777
A72: 130 | C72: =IF(Turma!A$2=1,IF(VLOOKUP("x",Turma!$B$4:$G$53,3,0)="Menina",tblMLS!K71,tblMLS!K239),"") -> 131.495 | D72: =IF(Turma!A$2=1,IF(VLOOKUP("x",Turma!$B$4:$G$53,3,0)="Menina",tblMLS!N71,tblMLS!N239),"") -> 137.074 | E72: =IF(Turma!A$2=1,IF(VLOOKUP("x",Turma!$B$4:$G$53,3,0)="Menina",tblMLS!P71,tblMLS!P239),"") -> 143.922 | F72: =IF(Turma!A$2=1,IF(VLOOKUP("x",Turma!$B$4:$G$53,3,0)="Menina",tblMLS!R71,tblMLS!R239),"") -> 150.77 | G72: =IF(Turma!A$2=1,IF(VLOOKUP("x",Turma!$B$4:$G$53,3,0)="Menina",tblMLS!U71,tblMLS!U239),"") -> 156.349
A73: 131 | C73: =IF(Turma!A$2=1,IF(VLOOKUP("x",Turma!$B$4:$G$53,3,0)="Menina",tblMLS!K72,tblMLS!K240),"") -> 131.992 | D73: =IF(Turma!A$2=1,IF(VLOOKUP("x",Turma!$B$4:$G$53,3,0)="Menina",tblMLS!N72,tblMLS!N240),"") -> 137.588 | E73: =IF(Turma!A$2=1,IF(VLOOKUP("x",Turma!$B$4:$G$53,3,0)="Menina",tblMLS!P72,tblMLS!P240),"") -> 144.458 | F73: =IF(Turma!A$2=1,IF(VLOOKUP("x",Turma!$B$4:$G$53,3,0)="Menina",tblMLS!R72,tblMLS!R240),"") -> 151.327 | G73: =IF(Turma!A$2=1,IF(VLOOKUP("x",Turma!$B$4:$G$53,3,0)="Menina",tblMLS!U72,tblMLS!U240),"") -> 156.923
A74: 132 | B74: 11 | C74: =IF(Turma!A$2=1,IF(VLOOKUP("x",Turma!$B$4:$G$53,3,0)="Menina",tblMLS!K73,tblMLS!K241),"") -> 132.492 | D74: =IF(Turma!A$2=1,IF(VLOOKUP("x",Turma!$B$4:$G$53,3,0)="Menina",tblMLS!N73,tblMLS!N241),"") -> 138.104 | E74: =IF(Turma!A$2=1,IF(VLOOKUP("x",Turma!$B$4:$G$53,3,0)="Menina",tblMLS!P73,tblMLS!P241),"") -> 144.993 | F74: =IF(Turma!A$2=1,IF(VLOOKUP("x",Turma!$B$4:$G$53,3,0)="Menina",tblMLS!R73,tblMLS!R241),"") -> 151.882 | G74: =IF(Turma!A$2=1,IF(VLOOKUP("x",Turma!$B$4:$G$53,3,0)="Menina",tblMLS!U73,tblMLS!U241),"") -> 157.494
A75: 133 | C75: =IF(Turma!A$2=1,IF(VLOOKUP("x",Turma!$B$4:$G$53,3,0)="Menina",tblMLS!K74,tblMLS!K242),"") -> 132.992 | D75: =IF(Turma!A$2=1,IF(VLOOKUP("x",Turma!$B$4:$G$53,3,0)="Menina",tblMLS!N74,tblMLS!N242),"") -> 138.62 | E75: =IF(Turma!A$2=1,IF(VLOOKUP("x",Turma!$B$4:$G$53,3,0)="Menina",tblMLS!P74,tblMLS!P242),"") -> 145.528 | F75: =IF(Turma!A$2=1,IF(VLOOKUP("x",Turma!$B$4:$G$53,3,0)="Menina",tblMLS!R74,tblMLS!R242),"") -> 152.436 | G75: =IF(Turma!A$2=1,IF(VLOOKUP("x",Turma!$B$4:$G$53,3,0)="Menina",tblMLS!U74,tblMLS!U242),"") -> 158.064
A76: 134 | C76: =IF(Turma!A$2=1,IF(VLOOKUP("x",Turma!$B$4:$G$53,3,0)="Menina",tblMLS!K75,tblMLS!K243),"") -> 133.491 | D76: =IF(Turma!A$2=1,IF(VLOOKUP("x",Turma!$B$4:$G$53,3,0)="Menina",tblMLS!N75,tblMLS!N243),"") -> 139.135 | E76: =IF(Turma!A$2=1,IF(VLOOKUP("x",Turma!$B$4:$G$53,3,0)="Menina",tblMLS!P75,tblMLS!P243),"") -> 146.062 | F76: =IF(Turma!A$2=1,IF(VLOOKUP("x",Turma!$B$4:$G$53,3,0)="Menina",tblMLS!R75,tblMLS!R243),"") -> 152.99 | G76: =IF(Turma!A$2=1,IF(VLOOKUP("x",Turma!$B$4:$G$53,3,0)="Menina",tblMLS!U75,tblMLS!U243),"") -> 158.633
A77: 135 | C77: =IF(Turma!A$2=1,IF(VLOOKUP("x",Turma!$B$4:$G$53,3,0)="Menina",tblMLS!K76,tblMLS!K244),"") -> 133.992 | D77: =IF(Turma!A$2=1,IF(VLOOKUP("x",Turma!$B$4:$G$53,3,0)="Menina",tblMLS!N76,tblMLS!N244),"") -> 139.65 | E77: =IF(Turma!A$2=1,IF(VLOOKUP("x",Turma!$B$4:$G$53,3,0)="Menina",tblMLS!P76,tblMLS!P244),"") -> 146.595 | F77: =IF(Turma!A$2=1,IF(VLOOKUP("x",Turma!$B$4:$G$53,3,0)="Menina",tblMLS!R76,tblMLS!R244),"") -> 153.54 | G77: =IF(Turma!A$2=1,IF(VLOOKUP("x",Turma!$B$4:$G$53,3,0)="Menina",tblMLS!U76,tblMLS!U244),"") -> 159.198
A78: 136 | C78: =IF(Turma!A$2=1,IF(VLOOKUP("x",Turma!$B$4:$G$53,3,0)="Menina",tblMLS!K77,tblMLS!K245),"") -> 134.489 | D78: =IF(Turma!A$2=1,IF(VLOOKUP("x",Turma!$B$4:$G$53,3,0)="Menina",tblMLS!N77,tblMLS!N245),"") -> 140.162 | E78: =IF(Turma!A$2=1,IF(VLOOKUP("x",Turma!$B$4:$G$53,3,0)="Menina",tblMLS!P77,tblMLS!P245),"") -> 147.126 | F78: =IF(Turma!A$2=1,IF(VLOOKUP("x",Turma!$B$4:$G$53,3,0)="Menina",tblMLS!R77,tblMLS!R245),"") -> 154.09 | G78: =IF(Turma!A$2=1,IF(VLOOKUP("x",Turma!$B$4:$G$53,3,0)="Menina",tblMLS!U77,tblMLS!U245),"") -> 159.764
A79: 137 | C79: =IF(Turma!A$2=1,IF(VLOOKUP("x",Turma!$B$4:$G$53,3,0)="Menina",tblMLS!K78,tblMLS!K246),"") -> 134.986 | D79: =IF(Turma!A$2=1,IF(VLOOKUP("x",Turma!$B$4:$G$53,3,0)="Menina",tblMLS!N78,tblMLS!N246),"") -> 140.673 | E79: =IF(Turma!A$2=1,IF(VLOOKUP("x",Turma!$B$4:$G$53,3,0)="Menina",tblMLS!P78,tblMLS!P246),"") -> 147.655 | F79: =IF(Turma!A$2=1,IF(VLOOKUP("x",Turma!$B$4:$G$53,3,0)="Menina",tblMLS!R78,tblMLS!R246),"") -> 154.636 | G79: =IF(Turma!A$2=1,IF(VLOOKUP("x",Turma!$B$4:$G$53,3,0)="Menina",tblMLS!U78,tblMLS!U246),"") -> 160.324
A80: 138 | C80: =IF(Turma!A$2=1,IF(VLOOKUP("x",Turma!$B$4:$G$53,3,0)="Menina",tblMLS!K79,tblMLS!K247),"") -> 135.48 | D80: =IF(Turma!A$2=1,IF(VLOOKUP("x",Turma!$B$4:$G$53,3,0)="Menina",tblMLS!N79,tblMLS!N247),"") -> 141.182 | E80: =IF(Turma!A$2=1,IF(VLOOKUP("x",Turma!$B$4:$G$53,3,0)="Menina",tblMLS!P79,tblMLS!P247),"") -> 148.18 | F80: =IF(Turma!A$2=1,IF(VLOOKUP("x",Turma!$B$4:$G$53,3,0)="Menina",tblMLS!R79,tblMLS!R247),"") -> 155.179 | G80: =IF(Turma!A$2=1,IF(VLOOKUP("x",Turma!$B$4:$G$53,3,0)="Menina",tblMLS!U79,tblMLS!U247),"") -> 160.881
A81: 139 | C81: =IF(Turma!A$2=1,IF(VLOOKUP("x",Turma!$B$4:$G$53,3,0)="Menina",tblMLS!K80,tblMLS!K248),"") -> 135.971 | D81: =IF(Turma!A$2=1,IF(VLOOKUP("x",Turma!$B$4:$G$53,3,0)="Menina",tblMLS!N80,tblMLS!N248),"") -> 141.687 | E81: =IF(Turma!A$2=1,IF(VLOOKUP("x",Turma!$B$4:$G$53,3,0)="Menina",tblMLS!P80,tblMLS!P248),"") -> 148.702 | F81: =IF(Turma!A$2=1,IF(VLOOKUP("x",Turma!$B$4:$G$53,3,0)="Menina",tblMLS!R80,tblMLS!R248),"") -> 155.718 | G81: =IF(Turma!A$2=1,IF(VLOOKUP("x",Turma!$B$4:$G$53,3,0)="Menina",tblMLS!U80,tblMLS!U248),"") -> 161.433
A82: 140 | C82: =IF(Turma!A$2=1,IF(VLOOKUP("x",Turma!$B$4:$G$53,3,0)="Menina",tblMLS!K81,tblMLS!K249),"") -> 136.461 | D82: =IF(Turma!A$2=1,IF(VLOOKUP("x",Turma!$B$4:$G$53,3,0)="Menina",tblMLS!N81,tblMLS!N249),"") -> 142.189 | E82: =IF(Turma!A$2=1,IF(VLOOKUP("x",Turma!$B$4:$G$53,3,0)="Menina",tblMLS!P81,tblMLS!P249),"") -> 149.22 | F82: =IF(Turma!A$2=1,IF(VLOOKUP("x",Turma!$B$4:$G$53,3,0)="Menina",tblMLS!R81,tblMLS!R249),"") -> 156.25 | G82: =IF(Turma!A$2=1,IF(VLOOKUP("x",Turma!$B$4:$G$53,3,0)="Menina",tblMLS!U81,tblMLS!U249),"") -> 161.978
A83: 141 | C83: =IF(Turma!A$2=1,IF(VLOOKUP("x",Turma!$B$4:$G$53,3,0)="Menina",tblMLS!K82,tblMLS!K250),"") -> 136.944 | D83: =IF(Turma!A$2=1,IF(VLOOKUP("x",Turma!$B$4:$G$53,3,0)="Menina",tblMLS!N82,tblMLS!N250),"") -> 142.685 | E83: =IF(Turma!A$2=1,IF(VLOOKUP("x",Turma!$B$4:$G$53,3,0)="Menina",tblMLS!P82,tblMLS!P250),"") -> 149.732 | F83: =IF(Turma!A$2=1,IF(VLOOKUP("x",Turma!$B$4:$G$53,3,0)="Menina",tblMLS!R82,tblMLS!R250),"") -> 156.779 | G83: =IF(Turma!A$2=1,IF(VLOOKUP("x",Turma!$B$4:$G$53,3,0)="Menina",tblMLS!U82,tblMLS!U250),"") -> 162.52
A84: 142 | C84: =IF(Turma!A$2=1,IF(VLOOKUP("x",Turma!$B$4:$G$53,3,0)="Menina",tblMLS!K83,tblMLS!K251),"") -> 137.425 | D84: =IF(Turma!A$2=1,IF(VLOOKUP("x",Turma!$B$4:$G$53,3,0)="Menina",tblMLS!N83,tblMLS!N251),"") -> 143.177 | E84: =IF(Turma!A$2=1,IF(VLOOKUP("x",Turma!$B$4:$G$53,3,0)="Menina",tblMLS!P83,tblMLS!P251),"") -> 150.239 | F84: =IF(Turma!A$2=1,IF(VLOOKUP("x",Turma!$B$4:$G$53,3,0)="Menina",tblMLS!R83,tblMLS!R251),"") -> 157.301 | G84: =IF(Turma!A$2=1,IF(VLOOKUP("x",Turma!$B$4:$G$53,3,0)="Menina",tblMLS!U83,tblMLS!U251),"") -> 163.053
A85: 143 | C85: =IF(Turma!A$2=1,IF(VLOOKUP("x",Turma!$B$4:$G$53,3,0)="Menina",tblMLS!K84,tblMLS!K252),"") -> 137.899 | D85: =IF(Turma!A$2=1,IF(VLOOKUP("x",Turma!$B$4:$G$53,3,0)="Menina",tblMLS!N84,tblMLS!N252),"") -> 143.664 | E85: =IF(Turma!A$2=1,IF(VLOOKUP("x",Turma!$B$4:$G$53,3,0)="Menina",tblMLS!P84,tblMLS!P252),"") -> 150.739 | F85: =IF(Turma!A$2=1,IF(VLOOKUP("x",Turma!$B$4:$G$53,3,0)="Menina",tblMLS!R84,tblMLS!R252),"") -> 157.815 | G85: =IF(Turma!A$2=1,IF(VLOOKUP("x",Turma!$B$4:$G$53,3,0)="Menina",tblMLS!U84,tblMLS!U252),"") -> 163.58
A86: 144 | B86: 12 | C86: =IF(Turma!A$2=1,IF(VLOOKUP("x",Turma!$B$4:$G$53,3,0)="Menina",tblMLS!K85,tblMLS!K253),"") -> 138.368 | D86: =IF(Turma!A$2=1,IF(VLOOKUP("x",Turma!$B$4:$G$53,3,0)="Menina",tblMLS!N85,tblMLS!N253),"") -> 144.143 | E86: =IF(Turma!A$2=1,IF(VLOOKUP("x",Turma!$B$4:$G$53,3,0)="Menina",tblMLS!P85,tblMLS!P253),"") -> 151.233 | F86: =IF(Turma!A$2=1,IF(VLOOKUP("x",Turma!$B$4:$G$53,3,0)="Menina",tblMLS!R85,tblMLS!R253),"") -> 158.322 | G86: =IF(Turma!A$2=1,IF(VLOOKUP("x",Turma!$B$4:$G$53,3,0)="Menina",tblMLS!U85,tblMLS!U253),"") -> 164.098
A87: 145 | C87: =IF(Turma!A$2=1,IF(VLOOKUP("x",Turma!$B$4:$G$53,3,0)="Menina",tblMLS!K86,tblMLS!K254),"") -> 138.832 | D87: =IF(Turma!A$2=1,IF(VLOOKUP("x",Turma!$B$4:$G$53,3,0)="Menina",tblMLS!N86,tblMLS!N254),"") -> 144.617 | E87: =IF(Turma!A$2=1,IF(VLOOKUP("x",Turma!$B$4:$G$53,3,0)="Menina",tblMLS!P86,tblMLS!P254),"") -> 151.718 | F87: =IF(Turma!A$2=1,IF(VLOOKUP("x",Turma!$B$4:$G$53,3,0)="Menina",tblMLS!R86,tblMLS!R254),"") -> 158.819 | G87: =IF(Turma!A$2=1,IF(VLOOKUP("x",Turma!$B$4:$G$53,3,0)="Menina",tblMLS!U86,tblMLS!U254),"") -> 164.605
A88: 146 | C88: =IF(Turma!A$2=1,IF(VLOOKUP("x",Turma!$B$4:$G$53,3,0)="Menina",tblMLS!K87,tblMLS!K255),"") -> 139.285 | D88: =IF(Turma!A$2=1,IF(VLOOKUP("x",Turma!$B$4:$G$53,3,0)="Menina",tblMLS!N87,tblMLS!N255),"") -> 145.081 | E88: =IF(Turma!A$2=1,IF(VLOOKUP("x",Turma!$B$4:$G$53,3,0)="Menina",tblMLS!P87,tblMLS!P255),"") -> 152.195 | F88: =IF(Turma!A$2=1,IF(VLOOKUP("x",Turma!$B$4:$G$53,3,0)="Menina",tblMLS!R87,tblMLS!R255),"") -> 159.309 | G88: =IF(Turma!A$2=1,IF(VLOOKUP("x",Turma!$B$4:$G$53,3,0)="Menina",tblMLS!U87,tblMLS!U255),"") -> 165.105
A89: 147 | C89: =IF(Turma!A$2=1,IF(VLOOKUP("x",Turma!$B$4:$G$53,3,0)="Menina",tblMLS!K88,tblMLS!K256),"") -> 139.733 | D89: =IF(Turma!A$2=1,IF(VLOOKUP("x",Turma!$B$4:$G$53,3,0)="Menina",tblMLS!N88,tblMLS!N256),"") -> 145.538 | E89: =IF(Turma!A$2=1,IF(VLOOKUP("x",Turma!$B$4:$G$53,3,0)="Menina",tblMLS!P88,tblMLS!P256),"") -> 152.663 | F89: =IF(Turma!A$2=1,IF(VLOOKUP("x",Turma!$B$4:$G$53,3,0)="Menina",tblMLS!R88,tblMLS!R256),"") -> 159.788 | G89: =IF(Turma!A$2=1,IF(VLOOKUP("x",Turma!$B$4:$G$53,3,0)="Menina",tblMLS!U88,tblMLS!U256),"") -> 165.592
A90: 148 | C90: =IF(Turma!A$2=1,IF(VLOOKUP("x",Turma!$B$4:$G$53,3,0)="Menina",tblMLS!K89,tblMLS!K257),"") -> 140.17 | D90: =IF(Turma!A$2=1,IF(VLOOKUP("x",Turma!$B$4:$G$53,3,0)="Menina",tblMLS!N89,tblMLS!N257),"") -> 145.984 | E90: =IF(Turma!A$2=1,IF(VLOOKUP("x",Turma!$B$4:$G$53,3,0)="Menina",tblMLS!P89,tblMLS!P257),"") -> 153.121 | F90: =IF(Turma!A$2=1,IF(VLOOKUP("x",Turma!$B$4:$G$53,3,0)="Menina",tblMLS!R89,tblMLS!R257),"") -> 160.257 | G90: =IF(Turma!A$2=1,IF(VLOOKUP("x",Turma!$B$4:$G$53,3,0)="Menina",tblMLS!U89,tblMLS!U257),"") -> 166.071
A91: 149 | C91: =IF(Turma!A$2=1,IF(VLOOKUP("x",Turma!$B$4:$G$53,3,0)="Menina",tblMLS!K90,tblMLS!K258),"") -> 140.599 | D91: =IF(Turma!A$2=1,IF(VLOOKUP("x",Turma!$B$4:$G$53,3,0)="Menina",tblMLS!N90,tblMLS!N258),"") -> 146.421 | E91: =IF(Turma!A$2=1,IF(VLOOKUP("x",Turma!$B$4:$G$53,3,0)="Menina",tblMLS!P90,tblMLS!P258),"") -> 153.568 | F91: =IF(Turma!A$2=1,IF(VLOOKUP("x",Turma!$B$4:$G$53,3,0)="Menina",tblMLS!R90,tblMLS!R258),"") -> 160.714 | G91: =IF(Turma!A$2=1,IF(VLOOKUP("x",Turma!$B$4:$G$53,3,0)="Menina",tblMLS!U90,tblMLS!U258),"") -> 166.536
A92: 150 | C92: =IF(Turma!A$2=1,IF(VLOOKUP("x",Turma!$B$4:$G$53,3,0)="Menina",tblMLS!K91,tblMLS!K259),"") -> 141.019 | D92: =IF(Turma!A$2=1,IF(VLOOKUP("x",Turma!$B$4:$G$53,3,0)="Menina",tblMLS!N91,tblMLS!N259),"") -> 146.849 | E92: =IF(Turma!A$2=1,IF(VLOOKUP("x",Turma!$B$4:$G$53,3,0)="Menina",tblMLS!P91,tblMLS!P259),"") -> 154.004 | F92: =IF(Turma!A$2=1,IF(VLOOKUP("x",Turma!$B$4:$G$53,3,0)="Menina",tblMLS!R91,tblMLS!R259),"") -> 161.16 | G92: =IF(Turma!A$2=1,IF(VLOOKUP("x",Turma!$B$4:$G$53,3,0)="Menina",tblMLS!U91,tblMLS!U259),"") -> 166.989
A93: 151 | C93: =IF(Turma!A$2=1,IF(VLOOKUP("x",Turma!$B$4:$G$53,3,0)="Menina",tblMLS!K92,tblMLS!K260),"") -> 141.428 | D93: =IF(Turma!A$2=1,IF(VLOOKUP("x",Turma!$B$4:$G$53,3,0)="Menina",tblMLS!N92,tblMLS!N260),"") -> 147.265 | E93: =IF(Turma!A$2=1,IF(VLOOKUP("x",Turma!$B$4:$G$53,3,0)="Menina",tblMLS!P92,tblMLS!P260),"") -> 154.429 | F93: =IF(Turma!A$2=1,IF(VLOOKUP("x",Turma!$B$4:$G$53,3,0)="Menina",tblMLS!R92,tblMLS!R260),"") -> 161.593 | G93: =IF(Turma!A$2=1,IF(VLOOKUP("x",Turma!$B$4:$G$53,3,0)="Menina",tblMLS!U92,tblMLS!U260),"") -> 167.43
A94: 152 | C94: =IF(Turma!A$2=1,IF(VLOOKUP("x",Turma!$B$4:$G$53,3,0)="Menina",tblMLS!K93,tblMLS!K261),"") -> 141.83 | D94: =IF(Turma!A$2=1,IF(VLOOKUP("x",Turma!$B$4:$G$53,3,0)="Menina",tblMLS!N93,tblMLS!N261),"") -> 147.672 | E94: =IF(Turma!A$2=1,IF(VLOOKUP("x",Turma!$B$4:$G$53,3,0)="Menina",tblMLS!P93,tblMLS!P261),"") -> 154.842 | F94: =IF(Turma!A$2=1,IF(VLOOKUP("x",Turma!$B$4:$G$53,3,0)="Menina",tblMLS!R93,tblMLS!R261),"") -> 162.013 | G94: =IF(Turma!A$2=1,IF(VLOOKUP("x",Turma!$B$4:$G$53,3,0)="Menina",tblMLS!U93,tblMLS!U261),"") -> 167.854
A95: 153 | C95: =IF(Turma!A$2=1,IF(VLOOKUP("x",Turma!$B$4:$G$53,3,0)="Menina",tblMLS!K94,tblMLS!K262),"") -> 142.218 | D95: =IF(Turma!A$2=1,IF(VLOOKUP("x",Turma!$B$4:$G$53,3,0)="Menina",tblMLS!N94,tblMLS!N262),"") -> 148.066 | E95: =IF(Turma!A$2=1,IF(VLOOKUP("x",Turma!$B$4:$G$53,3,0)="Menina",tblMLS!P94,tblMLS!P262),"") -> 155.244 | F95: =IF(Turma!A$2=1,IF(VLOOKUP("x",Turma!$B$4:$G$53,3,0)="Menina",tblMLS!R94,tblMLS!R262),"") -> 162.421 | G95: =IF(Turma!A$2=1,IF(VLOOKUP("x",Turma!$B$4:$G$53,3,0)="Menina",tblMLS!U94,tblMLS!U262),"") -> 168.269
A96: 154 | C96: =IF(Turma!A$2=1,IF(VLOOKUP("x",Turma!$B$4:$G$53,3,0)="Menina",tblMLS!K95,tblMLS!K263),"") -> 142.596 | D96: =IF(Turma!A$2=1,IF(VLOOKUP("x",Turma!$B$4:$G$53,3,0)="Menina",tblMLS!N95,tblMLS!N263),"") -> 148.449 | E96: =IF(Turma!A$2=1,IF(VLOOKUP("x",Turma!$B$4:$G$53,3,0)="Menina",tblMLS!P95,tblMLS!P263),"") -> 155.633 | F96: =IF(Turma!A$2=1,IF(VLOOKUP("x",Turma!$B$4:$G$53,3,0)="Menina",tblMLS!R95,tblMLS!R263),"") -> 162.817 | G96: =IF(Turma!A$2=1,IF(VLOOKUP("x",Turma!$B$4:$G$53,3,0)="Menina",tblMLS!U95,tblMLS!U263),"") -> 168.67
A97: 155 | C97: =IF(Turma!A$2=1,IF(VLOOKUP("x",Turma!$B$4:$G$53,3,0)="Menina",tblMLS!K96,tblMLS!K264),"") -> 142.965 | D97: =IF(Turma!A$2=1,IF(VLOOKUP("x",Turma!$B$4:$G$53,3,0)="Menina",tblMLS!N96,tblMLS!N264),"") -> 148.821 | E97: =IF(Turma!A$2=1,IF(VLOOKUP("x",Turma!$B$4:$G$53,3,0)="Menina",tblMLS!P96,tblMLS!P264),"") -> 156.01 | F97: =IF(Turma!A$2=1,IF(VLOOKUP("x",Turma!$B$4:$G$53,3,0)="Menina",tblMLS!R96,tblMLS!R264),"") -> 163.199 | G97: =IF(Turma!A$2=1,IF(VLOOKUP("x",Turma!$B$4:$G$53,3,0)="Menina",tblMLS!U96,tblMLS!U264),"") -> 169.056
A98: 156 | B98: 13 | C98: =IF(Turma!A$2=1,IF(VLOOKUP("x",Turma!$B$4:$G$53,3,0)="Menina",tblMLS!K97,tblMLS!K265),"") -> 143.319 | D98: =IF(Turma!A$2=1,IF(VLOOKUP("x",Turma!$B$4:$G$53,3,0)="Menina",tblMLS!N97,tblMLS!N265),"") -> 149.18 | E98: =IF(Turma!A$2=1,IF(VLOOKUP("x",Turma!$B$4:$G$53,3,0)="Menina",tblMLS!P97,tblMLS!P265),"") -> 156.375 | F98: =IF(Turma!A$2=1,IF(VLOOKUP("x",Turma!$B$4:$G$53,3,0)="Menina",tblMLS!R97,tblMLS!R265),"") -> 163.569 | G98: =IF(Turma!A$2=1,IF(VLOOKUP("x",Turma!$B$4:$G$53,3,0)="Menina",tblMLS!U97,tblMLS!U265),"") -> 169.43
A99: 157 | C99: =IF(Turma!A$2=1,IF(VLOOKUP("x",Turma!$B$4:$G$53,3,0)="Menina",tblMLS!K98,tblMLS!K266),"") -> 143.666 | D99: =IF(Turma!A$2=1,IF(VLOOKUP("x",Turma!$B$4:$G$53,3,0)="Menina",tblMLS!N98,tblMLS!N266),"") -> 149.529 | E99: =IF(Turma!A$2=1,IF(VLOOKUP("x",Turma!$B$4:$G$53,3,0)="Menina",tblMLS!P98,tblMLS!P266),"") -> 156.727 | F99: =IF(Turma!A$2=1,IF(VLOOKUP("x",Turma!$B$4:$G$53,3,0)="Menina",tblMLS!R98,tblMLS!R266),"") -> 163.924 | G99: =IF(Turma!A$2=1,IF(VLOOKUP("x",Turma!$B$4:$G$53,3,0)="Menina",tblMLS!U98,tblMLS!U266),"") -> 169.788
A100: 158 | C100: =IF(Turma!A$2=1,IF(VLOOKUP("x",Turma!$B$4:$G$53,3,0)="Menina",tblMLS!K99,tblMLS!K267),"") -> 144.001 | D100: =IF(Turma!A$2=1,IF(VLOOKUP("x",Turma!$B$4:$G$53,3,0)="Menina",tblMLS!N99,tblMLS!N267),"") -> 149.866 | E100: =IF(Turma!A$2=1,IF(VLOOKUP("x",Turma!$B$4:$G$53,3,0)="Menina",tblMLS!P99,tblMLS!P267),"") -> 157.067 | F100: =IF(Turma!A$2=1,IF(VLOOKUP("x",Turma!$B$4:$G$53,3,0)="Menina",tblMLS!R99,tblMLS!R267),"") -> 164.267 | G100: =IF(Turma!A$2=1,IF(VLOOKUP("x",Turma!$B$4:$G$53,3,0)="Menina",tblMLS!U99,tblMLS!U267),"") -> 170.133
A101: 159 | C101: =IF(Turma!A$2=1,IF(VLOOKUP("x",Turma!$B$4:$G$53,3,0)="Menina",tblMLS!K100,tblMLS!K268),"") -> 144.324 | D101: =IF(Turma!A$2=1,IF(VLOOKUP("x",Turma!$B$4:$G$53,3,0)="Menina",tblMLS!N100,tblMLS!N268),"") -> 150.191 | E101: =IF(Turma!A$2=1,IF(VLOOKUP("x",Turma!$B$4:$G$53,3,0)="Menina",tblMLS!P100,tblMLS!P268),"") -> 157.394 | F101: =IF(Turma!A$2=1,IF(VLOOKUP("x",Turma!$B$4:$G$53,3,0)="Menina",tblMLS!R100,tblMLS!R268),"") -> 164.596 | G101: =IF(Turma!A$2=1,IF(VLOOKUP("x",Turma!$B$4:$G$53,3,0)="Menina",tblMLS!U100,tblMLS!U268),"") -> 170.463
A102: 160 | C102: =IF(Turma!A$2=1,IF(VLOOKUP("x",Turma!$B$4:$G$53,3,0)="Menina",tblMLS!K101,tblMLS!K269),"") -> 144.633 | D102: =IF(Turma!A$2=1,IF(VLOOKUP("x",Turma!$B$4:$G$53,3,0)="Menina",tblMLS!N101,tblMLS!N269),"") -> 150.503 | E102: =IF(Turma!A$2=1,IF(VLOOKUP("x",Turma!$B$4:$G$53,3,0)="Menina",tblMLS!P101,tblMLS!P269),"") -> 157.708 | F102: =IF(Turma!A$2=1,IF(VLOOKUP("x",Turma!$B$4:$G$53,3,0)="Menina",tblMLS!R101,tblMLS!R269),"") -> 164.913 | G102: =IF(Turma!A$2=1,IF(VLOOKUP("x",Turma!$B$4:$G$53,3,0)="Menina",tblMLS!U101,tblMLS!U269),"") -> 170.783
A103: 161 | C103: =IF(Turma!A$2=1,IF(VLOOKUP("x",Turma!$B$4:$G$53,3,0)="Menina",tblMLS!K102,tblMLS!K270),"") -> 144.934 | D103: =IF(Turma!A$2=1,IF(VLOOKUP("x",Turma!$B$4:$G$53,3,0)="Menina",tblMLS!N102,tblMLS!N270),"") -> 150.804 | E103: =IF(Turma!A$2=1,IF(VLOOKUP("x",Turma!$B$4:$G$53,3,0)="Menina",tblMLS!P102,tblMLS!P270),"") -> 158.01 | F103: =IF(Turma!A$2=1,IF(VLOOKUP("x",Turma!$B$4:$G$53,3,0)="Menina",tblMLS!R102,tblMLS!R270),"") -> 165.216 | G103: =IF(Turma!A$2=1,IF(VLOOKUP("x",Turma!$B$4:$G$53,3,0)="Menina",tblMLS!U102,tblMLS!U270),"") -> 171.086
A104: 162 | C104: =IF(Turma!A$2=1,IF(VLOOKUP("x",Turma!$B$4:$G$53,3,0)="Menina",tblMLS!K103,tblMLS!K271),"") -> 145.223 | D104: =IF(Turma!A$2=1,IF(VLOOKUP("x",Turma!$B$4:$G$53,3,0)="Menina",tblMLS!N103,tblMLS!N271),"") -> 151.094 | E104: =IF(Turma!A$2=1,IF(VLOOKUP("x",Turma!$B$4:$G$53,3,0)="Menina",tblMLS!P103,tblMLS!P271),"") -> 158.3 | F104: =IF(Turma!A$2=1,IF(VLOOKUP("x",Turma!$B$4:$G$53,3,0)="Menina",tblMLS!R103,tblMLS!R271),"") -> 165.506 | G104: =IF(Turma!A$2=1,IF(VLOOKUP("x",Turma!$B$4:$G$53,3,0)="Menina",tblMLS!U103,tblMLS!U271),"") -> 171.376
A105: 163 | C105: =IF(Turma!A$2=1,IF(VLOOKUP("x",Turma!$B$4:$G$53,3,0)="Menina",tblMLS!K104,tblMLS!K272),"") -> 145.502 | D105: =IF(Turma!A$2=1,IF(VLOOKUP("x",Turma!$B$4:$G$53,3,0)="Menina",tblMLS!N104,tblMLS!N272),"") -> 151.372 | E105: =IF(Turma!A$2=1,IF(VLOOKUP("x",Turma!$B$4:$G$53,3,0)="Menina",tblMLS!P104,tblMLS!P272),"") -> 158.577 | F105: =IF(Turma!A$2=1,IF(VLOOKUP("x",Turma!$B$4:$G$53,3,0)="Menina",tblMLS!R104,tblMLS!R272),"") -> 165.782 | G105: =IF(Turma!A$2=1,IF(VLOOKUP("x",Turma!$B$4:$G$53,3,0)="Menina",tblMLS!U104,tblMLS!U272),"") -> 171.652
A106: 164 | C106: =IF(Turma!A$2=1,IF(VLOOKUP("x",Turma!$B$4:$G$53,3,0)="Menina",tblMLS!K105,tblMLS!K273),"") -> 145.769 | D106: =IF(Turma!A$2=1,IF(VLOOKUP("x",Turma!$B$4:$G$53,3,0)="Menina",tblMLS!N105,tblMLS!N273),"") -> 151.638 | E106: =IF(Turma!A$2=1,IF(VLOOKUP("x",Turma!$B$4:$G$53,3,0)="Menina",tblMLS!P105,tblMLS!P273),"") -> 158.842 | F106: =IF(Turma!A$2=1,IF(VLOOKUP("x",Turma!$B$4:$G$53,3,0)="Menina",tblMLS!R105,tblMLS!R273),"") -> 166.047 | G106: =IF(Turma!A$2=1,IF(VLOOKUP("x",Turma!$B$4:$G$53,3,0)="Menina",tblMLS!U105,tblMLS!U273),"") -> 171.916
A107: 165 | C107: =IF(Turma!A$2=1,IF(VLOOKUP("x",Turma!$B$4:$G$53,3,0)="Menina",tblMLS!K106,tblMLS!K274),"") -> 146.023 | D107: =IF(Turma!A$2=1,IF(VLOOKUP("x",Turma!$B$4:$G$53,3,0)="Menina",tblMLS!N106,tblMLS!N274),"") -> 151.892 | E107: =IF(Turma!A$2=1,IF(VLOOKUP("x",Turma!$B$4:$G$53,3,0)="Menina",tblMLS!P106,tblMLS!P274),"") -> 159.096 | F107: =IF(Turma!A$2=1,IF(VLOOKUP("x",Turma!$B$4:$G$53,3,0)="Menina",tblMLS!R106,tblMLS!R274),"") -> 166.3 | G107: =IF(Turma!A$2=1,IF(VLOOKUP("x",Turma!$B$4:$G$53,3,0)="Menina",tblMLS!U106,tblMLS!U274),"") -> 172.169
A108: 166 | C108: =IF(Turma!A$2=1,IF(VLOOKUP("x",Turma!$B$4:$G$53,3,0)="Menina",tblMLS!K107,tblMLS!K275),"") -> 146.269 | D108: =IF(Turma!A$2=1,IF(VLOOKUP("x",Turma!$B$4:$G$53,3,0)="Menina",tblMLS!N107,tblMLS!N275),"") -> 152.136 | E108: =IF(Turma!A$2=1,IF(VLOOKUP("x",Turma!$B$4:$G$53,3,0)="Menina",tblMLS!P107,tblMLS!P275),"") -> 159.338 | F108: =IF(Turma!A$2=1,IF(VLOOKUP("x",Turma!$B$4:$G$53,3,0)="Menina",tblMLS!R107,tblMLS!R275),"") -> 166.54 | G108: =IF(Turma!A$2=1,IF(VLOOKUP("x",Turma!$B$4:$G$53,3,0)="Menina",tblMLS!U107,tblMLS!U275),"") -> 172.407
A109: 167 | C109: =IF(Turma!A$2=1,IF(VLOOKUP("x",Turma!$B$4:$G$53,3,0)="Menina",tblMLS!K108,tblMLS!K276),"") -> 146.505 | D109: =IF(Turma!A$2=1,IF(VLOOKUP("x",Turma!$B$4:$G$53,3,0)="Menina",tblMLS!N108,tblMLS!N276),"") -> 152.37 | E109: =IF(Turma!A$2=1,IF(VLOOKUP("x",Turma!$B$4:$G$53,3,0)="Menina",tblMLS!P108,tblMLS!P276),"") -> 159.569 | F109: =IF(Turma!A$2=1,IF(VLOOKUP("x",Turma!$B$4:$G$53,3,0)="Menina",tblMLS!R108,tblMLS!R276),"") -> 166.768 | G109: =IF(Turma!A$2=1,IF(VLOOKUP("x",Turma!$B$4:$G$53,3,0)="Menina",tblMLS!U108,tblMLS!U276),"") -> 172.633
A110: 168 | B110: 14 | C110: =IF(Turma!A$2=1,IF(VLOOKUP("x",Turma!$B$4:$G$53,3,0)="Menina",tblMLS!K109,tblMLS!K277),"") -> 146.731 | D110: =IF(Turma!A$2=1,IF(VLOOKUP("x",Turma!$B$4:$G$53,3,0)="Menina",tblMLS!N109,tblMLS!N277),"") -> 152.593 | E110: =IF(Turma!A$2=1,IF(VLOOKUP("x",Turma!$B$4:$G$53,3,0)="Menina",tblMLS!P109,tblMLS!P277),"") -> 159.789 | F110: =IF(Turma!A$2=1,IF(VLOOKUP("x",Turma!$B$4:$G$53,3,0)="Menina",tblMLS!R109,tblMLS!R277),"") -> 166.985 | G110: =IF(Turma!A$2=1,IF(VLOOKUP("x",Turma!$B$4:$G$53,3,0)="Menina",tblMLS!U109,tblMLS!U277),"") -> 172.847
A111: 169 | C111: =IF(Turma!A$2=1,IF(VLOOKUP("x",Turma!$B$4:$G$53,3,0)="Menina",tblMLS!K110,tblMLS!K278),"") -> 146.947 | D111: =IF(Turma!A$2=1,IF(VLOOKUP("x",Turma!$B$4:$G$53,3,0)="Menina",tblMLS!N110,tblMLS!N278),"") -> 152.806 | E111: =IF(Turma!A$2=1,IF(VLOOKUP("x",Turma!$B$4:$G$53,3,0)="Menina",tblMLS!P110,tblMLS!P278),"") -> 159.998 | F111: =IF(Turma!A$2=1,IF(VLOOKUP("x",Turma!$B$4:$G$53,3,0)="Menina",tblMLS!R110,tblMLS!R278),"") -> 167.19 | G111: =IF(Turma!A$2=1,IF(VLOOKUP("x",Turma!$B$4:$G$53,3,0)="Menina",tblMLS!U110,tblMLS!U278),"") -> 173.049
A112: 170 | C112: =IF(Turma!A$2=1,IF(VLOOKUP("x",Turma!$B$4:$G$53,3,0)="Menina",tblMLS!K111,tblMLS!K279),"") -> 147.151 | D112: =IF(Turma!A$2=1,IF(VLOOKUP("x",Turma!$B$4:$G$53,3,0)="Menina",tblMLS!N111,tblMLS!N279),"") -> 153.008 | E112: =IF(Turma!A$2=1,IF(VLOOKUP("x",Turma!$B$4:$G$53,3,0)="Menina",tblMLS!P111,tblMLS!P279),"") -> 160.197 | F112: =IF(Turma!A$2=1,IF(VLOOKUP("x",Turma!$B$4:$G$53,3,0)="Menina",tblMLS!R111,tblMLS!R279),"") -> 167.386 | G112: =IF(Turma!A$2=1,IF(VLOOKUP("x",Turma!$B$4:$G$53,3,0)="Menina",tblMLS!U111,tblMLS!U279),"") -> 173.243
A113: 171 | C113: =IF(Turma!A$2=1,IF(VLOOKUP("x",Turma!$B$4:$G$53,3,0)="Menina",tblMLS!K112,tblMLS!K280),"") -> 147.348 | D113: =IF(Turma!A$2=1,IF(VLOOKUP("x",Turma!$B$4:$G$53,3,0)="Menina",tblMLS!N112,tblMLS!N280),"") -> 153.201 | E113: =IF(Turma!A$2=1,IF(VLOOKUP("x",Turma!$B$4:$G$53,3,0)="Menina",tblMLS!P112,tblMLS!P280),"") -> 160.386 | F113: =IF(Turma!A$2=1,IF(VLOOKUP("x",Turma!$B$4:$G$53,3,0)="Menina",tblMLS!R112,tblMLS!R280),"") -> 167.57 | G113: =IF(Turma!A$2=1,IF(VLOOKUP("x",Turma!$B$4:$G$53,3,0)="Menina",tblMLS!U112,tblMLS!U280),"") -> 173.423
A114: 172 | C114: =IF(Turma!A$2=1,IF(VLOOKUP("x",Turma!$B$4:$G$53,3,0)="Menina",tblMLS!K113,tblMLS!K281),"") -> 147.537 | D114: =IF(Turma!A$2=1,IF(VLOOKUP("x",Turma!$B$4:$G$53,3,0)="Menina",tblMLS!N113,tblMLS!N281),"") -> 153.385 | E114: =IF(Turma!A$2=1,IF(VLOOKUP("x",Turma!$B$4:$G$53,3,0)="Menina",tblMLS!P113,tblMLS!P281),"") -> 160.564 | F114: =IF(Turma!A$2=1,IF(VLOOKUP("x",Turma!$B$4:$G$53,3,0)="Menina",tblMLS!R113,tblMLS!R281),"") -> 167.743 | G114: =IF(Turma!A$2=1,IF(VLOOKUP("x",Turma!$B$4:$G$53,3,0)="Menina",tblMLS!U113,tblMLS!U281),"") -> 173.592
A115: 173 | C115: =IF(Turma!A$2=1,IF(VLOOKUP("x",Turma!$B$4:$G$53,3,0)="Menina",tblMLS!K114,tblMLS!K282),"") -> 147.713 | D115: =IF(Turma!A$2=1,IF(VLOOKUP("x",Turma!$B$4:$G$53,3,0)="Menina",tblMLS!N114,tblMLS!N282),"") -> 153.558 | E115: =IF(Turma!A$2=1,IF(VLOOKUP("x",Turma!$B$4:$G$53,3,0)="Menina",tblMLS!P114,tblMLS!P282),"") -> 160.733 | F115: =IF(Turma!A$2=1,IF(VLOOKUP("x",Turma!$B$4:$G$53,3,0)="Menina",tblMLS!R114,tblMLS!R282),"") -> 167.908 | G115: =IF(Turma!A$2=1,IF(VLOOKUP("x",Turma!$B$4:$G$53,3,0)="Menina",tblMLS!U114,tblMLS!U282),"") -> 173.754
A116: 174 | C116: =IF(Turma!A$2=1,IF(VLOOKUP("x",Turma!$B$4:$G$53,3,0)="Menina",tblMLS!K115,tblMLS!K283),"") -> 147.884 | D116: =IF(Turma!A$2=1,IF(VLOOKUP("x",Turma!$B$4:$G$53,3,0)="Menina",tblMLS!N115,tblMLS!N283),"") -> 153.724 | E116: =IF(Turma!A$2=1,IF(VLOOKUP("x",Turma!$B$4:$G$53,3,0)="Menina",tblMLS!P115,tblMLS!P283),"") -> 160.893 | F116: =IF(Turma!A$2=1,IF(VLOOKUP("x",Turma!$B$4:$G$53,3,0)="Menina",tblMLS!R115,tblMLS!R283),"") -> 168.061 | G116: =IF(Turma!A$2=1,IF(VLOOKUP("x",Turma!$B$4:$G$53,3,0)="Menina",tblMLS!U115,tblMLS!U283),"") -> 173.902
A117: 175 | C117: =IF(Turma!A$2=1,IF(VLOOKUP("x",Turma!$B$4:$G$53,3,0)="Menina",tblMLS!K116,tblMLS!K284),"") -> 148.043 | D117: =IF(Turma!A$2=1,IF(VLOOKUP("x",Turma!$B$4:$G$53,3,0)="Menina",tblMLS!N116,tblMLS!N284),"") -> 153.879 | E117: =IF(Turma!A$2=1,IF(VLOOKUP("x",Turma!$B$4:$G$53,3,0)="Menina",tblMLS!P116,tblMLS!P284),"") -> 161.043 | F117: =IF(Turma!A$2=1,IF(VLOOKUP("x",Turma!$B$4:$G$53,3,0)="Menina",tblMLS!R116,tblMLS!R284),"") -> 168.207 | G117: =IF(Turma!A$2=1,IF(VLOOKUP("x",Turma!$B$4:$G$53,3,0)="Menina",tblMLS!U116,tblMLS!U284),"") -> 174.043
A118: 176 | C118: =IF(Turma!A$2=1,IF(VLOOKUP("x",Turma!$B$4:$G$53,3,0)="Menina",tblMLS!K117,tblMLS!K285),"") -> 148.197 | D118: =IF(Turma!A$2=1,IF(VLOOKUP("x",Turma!$B$4:$G$53,3,0)="Menina",tblMLS!N117,tblMLS!N285),"") -> 154.028 | E118: =IF(Turma!A$2=1,IF(VLOOKUP("x",Turma!$B$4:$G$53,3,0)="Menina",tblMLS!P117,tblMLS!P285),"") -> 161.184 | F118: =IF(Turma!A$2=1,IF(VLOOKUP("x",Turma!$B$4:$G$53,3,0)="Menina",tblMLS!R117,tblMLS!R285),"") -> 168.341 | G118: =IF(Turma!A$2=1,IF(VLOOKUP("x",Turma!$B$4:$G$53,3,0)="Menina",tblMLS!U117,tblMLS!U285),"") -> 174.172
A119: 177 | C119: =IF(Turma!A$2=1,IF(VLOOKUP("x",Turma!$B$4:$G$53,3,0)="Menina",tblMLS!K118,tblMLS!K286),"") -> 148.341 | D119: =IF(Turma!A$2=1,IF(VLOOKUP("x",Turma!$B$4:$G$53,3,0)="Menina",tblMLS!N118,tblMLS!N286),"") -> 154.167 | E119: =IF(Turma!A$2=1,IF(VLOOKUP("x",Turma!$B$4:$G$53,3,0)="Menina",tblMLS!P118,tblMLS!P286),"") -> 161.318 | F119: =IF(Turma!A$2=1,IF(VLOOKUP("x",Turma!$B$4:$G$53,3,0)="Menina",tblMLS!R118,tblMLS!R286),"") -> 168.469 | G119: =IF(Turma!A$2=1,IF(VLOOKUP("x",Turma!$B$4:$G$53,3,0)="Menina",tblMLS!U118,tblMLS!U286),"") -> 174.294
A120: 178 | C120: =IF(Turma!A$2=1,IF(VLOOKUP("x",Turma!$B$4:$G$53,3,0)="Menina",tblMLS!K119,tblMLS!K287),"") -> 148.477 | D120: =IF(Turma!A$2=1,IF(VLOOKUP("x",Turma!$B$4:$G$53,3,0)="Menina",tblMLS!N119,tblMLS!N287),"") -> 154.298 | E120: =IF(Turma!A$2=1,IF(VLOOKUP("x",Turma!$B$4:$G$53,3,0)="Menina",tblMLS!P119,tblMLS!P287),"") -> 161.442 | F120: =IF(Turma!A$2=1,IF(VLOOKUP("x",Turma!$B$4:$G$53,3,0)="Menina",tblMLS!R119,tblMLS!R287),"") -> 168.587 | G120: =IF(Turma!A$2=1,IF(VLOOKUP("x",Turma!$B$4:$G$53,3,0)="Menina",tblMLS!U119,tblMLS!U287),"") -> 174.408
A121: 179 | C121: =IF(Turma!A$2=1,IF(VLOOKUP("x",Turma!$B$4:$G$53,3,0)="Menina",tblMLS!K120,tblMLS!K288),"") -> 148.606 | D121: =IF(Turma!A$2=1,IF(VLOOKUP("x",Turma!$B$4:$G$53,3,0)="Menina",tblMLS!N120,tblMLS!N288),"") -> 154.421 | E121: =IF(Turma!A$2=1,IF(VLOOKUP("x",Turma!$B$4:$G$53,3,0)="Menina",tblMLS!P120,tblMLS!P288),"") -> 161.56 | F121: =IF(Turma!A$2=1,IF(VLOOKUP("x",Turma!$B$4:$G$53,3,0)="Menina",tblMLS!R120,tblMLS!R288),"") -> 168.698 | G121: =IF(Turma!A$2=1,IF(VLOOKUP("x",Turma!$B$4:$G$53,3,0)="Menina",tblMLS!U120,tblMLS!U288),"") -> 174.513
A122: 180 | B122: 15 | C122: =IF(Turma!A$2=1,IF(VLOOKUP("x",Turma!$B$4:$G$53,3,0)="Menina",tblMLS!K121,tblMLS!K289),"") -> 148.731 | D122: =IF(Turma!A$2=1,IF(VLOOKUP("x",Turma!$B$4:$G$53,3,0)="Menina",tblMLS!N121,tblMLS!N289),"") -> 154.54 | E122: =IF(Turma!A$2=1,IF(VLOOKUP("x",Turma!$B$4:$G$53,3,0)="Menina",tblMLS!P121,tblMLS!P289),"") -> 161.669 | F122: =IF(Turma!A$2=1,IF(VLOOKUP("x",Turma!$B$4:$G$53,3,0)="Menina",tblMLS!R121,tblMLS!R289),"") -> 168.799 | G122: =IF(Turma!A$2=1,IF(VLOOKUP("x",Turma!$B$4:$G$53,3,0)="Menina",tblMLS!U121,tblMLS!U289),"") -> 174.607
A123: 181 | C123: =IF(Turma!A$2=1,IF(VLOOKUP("x",Turma!$B$4:$G$53,3,0)="Menina",tblMLS!K122,tblMLS!K290),"") -> 148.847 | D123: =IF(Turma!A$2=1,IF(VLOOKUP("x",Turma!$B$4:$G$53,3,0)="Menina",tblMLS!N122,tblMLS!N290),"") -> 154.649 | E123: =IF(Turma!A$2=1,IF(VLOOKUP("x",Turma!$B$4:$G$53,3,0)="Menina",tblMLS!P122,tblMLS!P290),"") -> 161.772 | F123: =IF(Turma!A$2=1,IF(VLOOKUP("x",Turma!$B$4:$G$53,3,0)="Menina",tblMLS!R122,tblMLS!R290),"") -> 168.894 | G123: =IF(Turma!A$2=1,IF(VLOOKUP("x",Turma!$B$4:$G$53,3,0)="Menina",tblMLS!U122,tblMLS!U290),"") -> 174.697
A124: 182 | C124: =IF(Turma!A$2=1,IF(VLOOKUP("x",Turma!$B$4:$G$53,3,0)="Menina",tblMLS!K123,tblMLS!K291),"") -> 148.956 | D124: =IF(Turma!A$2=1,IF(VLOOKUP("x",Turma!$B$4:$G$53,3,0)="Menina",tblMLS!N123,tblMLS!N291),"") -> 154.752 | E124: =IF(Turma!A$2=1,IF(VLOOKUP("x",Turma!$B$4:$G$53,3,0)="Menina",tblMLS!P123,tblMLS!P291),"") -> 161.867 | F124: =IF(Turma!A$2=1,IF(VLOOKUP("x",Turma!$B$4:$G$53,3,0)="Menina",tblMLS!R123,tblMLS!R291),"") -> 168.982 | G124: =IF(Turma!A$2=1,IF(VLOOKUP("x",Turma!$B$4:$G$53,3,0)="Menina",tblMLS!U123,tblMLS!U291),"") -> 174.779
A125: 183 | C125: =IF(Turma!A$2=1,IF(VLOOKUP("x",Turma!$B$4:$G$53,3,0)="Menina",tblMLS!K124,tblMLS!K292),"") -> 149.056 | D125: =IF(Turma!A$2=1,IF(VLOOKUP("x",Turma!$B$4:$G$53,3,0)="Menina",tblMLS!N124,tblMLS!N292),"") -> 154.848 | E125: =IF(Turma!A$2=1,IF(VLOOKUP("x",Turma!$B$4:$G$53,3,0)="Menina",tblMLS!P124,tblMLS!P292),"") -> 161.956 | F125: =IF(Turma!A$2=1,IF(VLOOKUP("x",Turma!$B$4:$G$53,3,0)="Menina",tblMLS!R124,tblMLS!R292),"") -> 169.065 | G125: =IF(Turma!A$2=1,IF(VLOOKUP("x",Turma!$B$4:$G$53,3,0)="Menina",tblMLS!U124,tblMLS!U292),"") -> 174.856
A126: 184 | C126: =IF(Turma!A$2=1,IF(VLOOKUP("x",Turma!$B$4:$G$53,3,0)="Menina",tblMLS!K125,tblMLS!K293),"") -> 149.154 | D126: =IF(Turma!A$2=1,IF(VLOOKUP("x",Turma!$B$4:$G$53,3,0)="Menina",tblMLS!N125,tblMLS!N293),"") -> 154.939 | E126: =IF(Turma!A$2=1,IF(VLOOKUP("x",Turma!$B$4:$G$53,3,0)="Menina",tblMLS!P125,tblMLS!P293),"") -> 162.039 | F126: =IF(Turma!A$2=1,IF(VLOOKUP("x",Turma!$B$4:$G$53,3,0)="Menina",tblMLS!R125,tblMLS!R293),"") -> 169.14 | G126: =IF(Turma!A$2=1,IF(VLOOKUP("x",Turma!$B$4:$G$53,3,0)="Menina",tblMLS!U125,tblMLS!U293),"") -> 174.925
A127: 185 | C127: =IF(Turma!A$2=1,IF(VLOOKUP("x",Turma!$B$4:$G$53,3,0)="Menina",tblMLS!K126,tblMLS!K294),"") -> 149.246 | D127: =IF(Turma!A$2=1,IF(VLOOKUP("x",Turma!$B$4:$G$53,3,0)="Menina",tblMLS!N126,tblMLS!N294),"") -> 155.024 | E127: =IF(Turma!A$2=1,IF(VLOOKUP("x",Turma!$B$4:$G$53,3,0)="Menina",tblMLS!P126,tblMLS!P294),"") -> 162.116 | F127: =IF(Turma!A$2=1,IF(VLOOKUP("x",Turma!$B$4:$G$53,3,0)="Menina",tblMLS!R126,tblMLS!R294),"") -> 169.209 | G127: =IF(Turma!A$2=1,IF(VLOOKUP("x",Turma!$B$4:$G$53,3,0)="Menina",tblMLS!U126,tblMLS!U294),"") -> 174.987
A128: 186 | C128: =IF(Turma!A$2=1,IF(VLOOKUP("x",Turma!$B$4:$G$53,3,0)="Menina",tblMLS!K127,tblMLS!K295),"") -> 149.334 | D128: =IF(Turma!A$2=1,IF(VLOOKUP("x",Turma!$B$4:$G$53,3,0)="Menina",tblMLS!N127,tblMLS!N295),"") -> 155.104 | E128: =IF(Turma!A$2=1,IF(VLOOKUP("x",Turma!$B$4:$G$53,3,0)="Menina",tblMLS!P127,tblMLS!P295),"") -> 162.188 | F128: =IF(Turma!A$2=1,IF(VLOOKUP("x",Turma!$B$4:$G$53,3,0)="Menina",tblMLS!R127,tblMLS!R295),"") -> 169.272 | G128: =IF(Turma!A$2=1,IF(VLOOKUP("x",Turma!$B$4:$G$53,3,0)="Menina",tblMLS!U127,tblMLS!U295),"") -> 175.042
A129: 187 | C129: =IF(Turma!A$2=1,IF(VLOOKUP("x",Turma!$B$4:$G$53,3,0)="Menina",tblMLS!K128,tblMLS!K296),"") -> 149.413 | D129: =IF(Turma!A$2=1,IF(VLOOKUP("x",Turma!$B$4:$G$53,3,0)="Menina",tblMLS!N128,tblMLS!N296),"") -> 155.178 | E129: =IF(Turma!A$2=1,IF(VLOOKUP("x",Turma!$B$4:$G$53,3,0)="Menina",tblMLS!P128,tblMLS!P296),"") -> 162.254 | F129: =IF(Turma!A$2=1,IF(VLOOKUP("x",Turma!$B$4:$G$53,3,0)="Menina",tblMLS!R128,tblMLS!R296),"") -> 169.331 | G129: =IF(Turma!A$2=1,IF(VLOOKUP("x",Turma!$B$4:$G$53,3,0)="Menina",tblMLS!U128,tblMLS!U296),"") -> 175.096
A130: 188 | C130: =IF(Turma!A$2=1,IF(VLOOKUP("x",Turma!$B$4:$G$53,3,0)="Menina",tblMLS!K129,tblMLS!K297),"") -> 149.491 | D130: =IF(Turma!A$2=1,IF(VLOOKUP("x",Turma!$B$4:$G$53,3,0)="Menina",tblMLS!N129,tblMLS!N297),"") -> 155.248 | E130: =IF(Turma!A$2=1,IF(VLOOKUP("x",Turma!$B$4:$G$53,3,0)="Menina",tblMLS!P129,tblMLS!P297),"") -> 162.315 | F130: =IF(Turma!A$2=1,IF(VLOOKUP("x",Turma!$B$4:$G$53,3,0)="Menina",tblMLS!R129,tblMLS!R297),"") -> 169.383 | G130: =IF(Turma!A$2=1,IF(VLOOKUP("x",Turma!$B$4:$G$53,3,0)="Menina",tblMLS!U129,tblMLS!U297),"") -> 175.14
A131: 189 | B131: =IF(A131/12=INT(A131/12),A131/12,"") ->  | C131: =IF(Turma!A$2=1,IF(VLOOKUP("x",Turma!$B$4:$G$53,3,0)="Menina",tblMLS!K130,tblMLS!K298),"") -> 149.561 | D131: =IF(Turma!A$2=1,IF(VLOOKUP("x",Turma!$B$4:$G$53,3,0)="Menina",tblMLS!N130,tblMLS!N298),"") -> 155.312 | E131: =IF(Turma!A$2=1,IF(VLOOKUP("x",Turma!$B$4:$G$53,3,0)="Menina",tblMLS!P130,tblMLS!P298),"") -> 162.372 | F131: =IF(Turma!A$2=1,IF(VLOOKUP("x",Turma!$B$4:$G$53,3,0)="Menina",tblMLS!R130,tblMLS!R298),"") -> 169.432 | G131: =IF(Turma!A$2=1,IF(VLOOKUP("x",Turma!$B$4:$G$53,3,0)="Menina",tblMLS!U130,tblMLS!U298),"") -> 175.183
A132: 190 | C132: =IF(Turma!A$2=1,IF(VLOOKUP("x",Turma!$B$4:$G$53,3,0)="Menina",tblMLS!K131,tblMLS!K299),"") -> 149.627 | D132: =IF(Turma!A$2=1,IF(VLOOKUP("x",Turma!$B$4:$G$53,3,0)="Menina",tblMLS!N131,tblMLS!N299),"") -> 155.372 | E132: =IF(Turma!A$2=1,IF(VLOOKUP("x",Turma!$B$4:$G$53,3,0)="Menina",tblMLS!P131,tblMLS!P299),"") -> 162.424 | F132: =IF(Turma!A$2=1,IF(VLOOKUP("x",Turma!$B$4:$G$53,3,0)="Menina",tblMLS!R131,tblMLS!R299),"") -> 169.476 | G132: =IF(Turma!A$2=1,IF(VLOOKUP("x",Turma!$B$4:$G$53,3,0)="Menina",tblMLS!U131,tblMLS!U299),"") -> 175.221
A133: 191 | C133: =IF(Turma!A$2=1,IF(VLOOKUP("x",Turma!$B$4:$G$53,3,0)="Menina",tblMLS!K132,tblMLS!K300),"") -> 149.693 | D133: =IF(Turma!A$2=1,IF(VLOOKUP("x",Turma!$B$4:$G$53,3,0)="Menina",tblMLS!N132,tblMLS!N300),"") -> 155.43 | E133: =IF(Turma!A$2=1,IF(VLOOKUP("x",Turma!$B$4:$G$53,3,0)="Menina",tblMLS!P132,tblMLS!P300),"") -> 162.472 | F133: =IF(Turma!A$2=1,IF(VLOOKUP("x",Turma!$B$4:$G$53,3,0)="Menina",tblMLS!R132,tblMLS!R300),"") -> 169.514 | G133: =IF(Turma!A$2=1,IF(VLOOKUP("x",Turma!$B$4:$G$53,3,0)="Menina",tblMLS!U132,tblMLS!U300),"") -> 175.251
A134: 192 | B134: 16 | C134: =IF(Turma!A$2=1,IF(VLOOKUP("x",Turma!$B$4:$G$53,3,0)="Menina",tblMLS!K133,tblMLS!K301),"") -> 149.751 | D134: =IF(Turma!A$2=1,IF(VLOOKUP("x",Turma!$B$4:$G$53,3,0)="Menina",tblMLS!N133,tblMLS!N301),"") -> 155.482 | E134: =IF(Turma!A$2=1,IF(VLOOKUP("x",Turma!$B$4:$G$53,3,0)="Menina",tblMLS!P133,tblMLS!P301),"") -> 162.516 | F134: =IF(Turma!A$2=1,IF(VLOOKUP("x",Turma!$B$4:$G$53,3,0)="Menina",tblMLS!R133,tblMLS!R301),"") -> 169.55 | G134: =IF(Turma!A$2=1,IF(VLOOKUP("x",Turma!$B$4:$G$53,3,0)="Menina",tblMLS!U133,tblMLS!U301),"") -> 175.28
A135: 193 | C135: =IF(Turma!A$2=1,IF(VLOOKUP("x",Turma!$B$4:$G$53,3,0)="Menina",tblMLS!K134,tblMLS!K302),"") -> 149.807 | D135: =IF(Turma!A$2=1,IF(VLOOKUP("x",Turma!$B$4:$G$53,3,0)="Menina",tblMLS!N134,tblMLS!N302),"") -> 155.53 | E135: =IF(Turma!A$2=1,IF(VLOOKUP("x",Turma!$B$4:$G$53,3,0)="Menina",tblMLS!P134,tblMLS!P302),"") -> 162.556 | F135: =IF(Turma!A$2=1,IF(VLOOKUP("x",Turma!$B$4:$G$53,3,0)="Menina",tblMLS!R134,tblMLS!R302),"") -> 169.582 | G135: =IF(Turma!A$2=1,IF(VLOOKUP("x",Turma!$B$4:$G$53,3,0)="Menina",tblMLS!U134,tblMLS!U302),"") -> 175.305
A136: 194 | C136: =IF(Turma!A$2=1,IF(VLOOKUP("x",Turma!$B$4:$G$53,3,0)="Menina",tblMLS!K135,tblMLS!K303),"") -> 149.86 | D136: =IF(Turma!A$2=1,IF(VLOOKUP("x",Turma!$B$4:$G$53,3,0)="Menina",tblMLS!N135,tblMLS!N303),"") -> 155.576 | E136: =IF(Turma!A$2=1,IF(VLOOKUP("x",Turma!$B$4:$G$53,3,0)="Menina",tblMLS!P135,tblMLS!P303),"") -> 162.593 | F136: =IF(Turma!A$2=1,IF(VLOOKUP("x",Turma!$B$4:$G$53,3,0)="Menina",tblMLS!R135,tblMLS!R303),"") -> 169.61 | G136: =IF(Turma!A$2=1,IF(VLOOKUP("x",Turma!$B$4:$G$53,3,0)="Menina",tblMLS!U135,tblMLS!U303),"") -> 175.327
A137: 195 | C137: =IF(Turma!A$2=1,IF(VLOOKUP("x",Turma!$B$4:$G$53,3,0)="Menina",tblMLS!K136,tblMLS!K304),"") -> 149.91 | D137: =IF(Turma!A$2=1,IF(VLOOKUP("x",Turma!$B$4:$G$53,3,0)="Menina",tblMLS!N136,tblMLS!N304),"") -> 155.619 | E137: =IF(Turma!A$2=1,IF(VLOOKUP("x",Turma!$B$4:$G$53,3,0)="Menina",tblMLS!P136,tblMLS!P304),"") -> 162.628 | F137: =IF(Turma!A$2=1,IF(VLOOKUP("x",Turma!$B$4:$G$53,3,0)="Menina",tblMLS!R136,tblMLS!R304),"") -> 169.636 | G137: =IF(Turma!A$2=1,IF(VLOOKUP("x",Turma!$B$4:$G$53,3,0)="Menina",tblMLS!U136,tblMLS!U304),"") -> 175.346
A138: 196 | C138: =IF(Turma!A$2=1,IF(VLOOKUP("x",Turma!$B$4:$G$53,3,0)="Menina",tblMLS!K137,tblMLS!K305),"") -> 149.957 | D138: =IF(Turma!A$2=1,IF(VLOOKUP("x",Turma!$B$4:$G$53,3,0)="Menina",tblMLS!N137,tblMLS!N305),"") -> 155.66 | E138: =IF(Turma!A$2=1,IF(VLOOKUP("x",Turma!$B$4:$G$53,3,0)="Menina",tblMLS!P137,tblMLS!P305),"") -> 162.659 | F138: =IF(Turma!A$2=1,IF(VLOOKUP("x",Turma!$B$4:$G$53,3,0)="Menina",tblMLS!R137,tblMLS!R305),"") -> 169.659 | G138: =IF(Turma!A$2=1,IF(VLOOKUP("x",Turma!$B$4:$G$53,3,0)="Menina",tblMLS!U137,tblMLS!U305),"") -> 175.362
A139: 197 | C139: =IF(Turma!A$2=1,IF(VLOOKUP("x",Turma!$B$4:$G$53,3,0)="Menina",tblMLS!K138,tblMLS!K306),"") -> 150 | D139: =IF(Turma!A$2=1,IF(VLOOKUP("x",Turma!$B$4:$G$53,3,0)="Menina",tblMLS!N138,tblMLS!N306),"") -> 155.696 | E139: =IF(Turma!A$2=1,IF(VLOOKUP("x",Turma!$B$4:$G$53,3,0)="Menina",tblMLS!P138,tblMLS!P306),"") -> 162.689 | F139: =IF(Turma!A$2=1,IF(VLOOKUP("x",Turma!$B$4:$G$53,3,0)="Menina",tblMLS!R138,tblMLS!R306),"") -> 169.682 | G139: =IF(Turma!A$2=1,IF(VLOOKUP("x",Turma!$B$4:$G$53,3,0)="Menina",tblMLS!U138,tblMLS!U306),"") -> 175.378
A140: 198 | C140: =IF(Turma!A$2=1,IF(VLOOKUP("x",Turma!$B$4:$G$53,3,0)="Menina",tblMLS!K139,tblMLS!K307),"") -> 150.044 | D140: =IF(Turma!A$2=1,IF(VLOOKUP("x",Turma!$B$4:$G$53,3,0)="Menina",tblMLS!N139,tblMLS!N307),"") -> 155.733 | E140: =IF(Turma!A$2=1,IF(VLOOKUP("x",Turma!$B$4:$G$53,3,0)="Menina",tblMLS!P139,tblMLS!P307),"") -> 162.716 | F140: =IF(Turma!A$2=1,IF(VLOOKUP("x",Turma!$B$4:$G$53,3,0)="Menina",tblMLS!R139,tblMLS!R307),"") -> 169.7 | G140: =IF(Turma!A$2=1,IF(VLOOKUP("x",Turma!$B$4:$G$53,3,0)="Menina",tblMLS!U139,tblMLS!U307),"") -> 175.389
A141: 199 | C141: =IF(Turma!A$2=1,IF(VLOOKUP("x",Turma!$B$4:$G$53,3,0)="Menina",tblMLS!K140,tblMLS!K308),"") -> 150.083 | D141: =IF(Turma!A$2=1,IF(VLOOKUP("x",Turma!$B$4:$G$53,3,0)="Menina",tblMLS!N140,tblMLS!N308),"") -> 155.766 | E141: =IF(Turma!A$2=1,IF(VLOOKUP("x",Turma!$B$4:$G$53,3,0)="Menina",tblMLS!P140,tblMLS!P308),"") -> 162.742 | F141: =IF(Turma!A$2=1,IF(VLOOKUP("x",Turma!$B$4:$G$53,3,0)="Menina",tblMLS!R140,tblMLS!R308),"") -> 169.719 | G141: =IF(Turma!A$2=1,IF(VLOOKUP("x",Turma!$B$4:$G$53,3,0)="Menina",tblMLS!U140,tblMLS!U308),"") -> 175.402
A142: 200 | C142: =IF(Turma!A$2=1,IF(VLOOKUP("x",Turma!$B$4:$G$53,3,0)="Menina",tblMLS!K141,tblMLS!K309),"") -> 150.124 | D142: =IF(Turma!A$2=1,IF(VLOOKUP("x",Turma!$B$4:$G$53,3,0)="Menina",tblMLS!N141,tblMLS!N309),"") -> 155.8 | E142: =IF(Turma!A$2=1,IF(VLOOKUP("x",Turma!$B$4:$G$53,3,0)="Menina",tblMLS!P141,tblMLS!P309),"") -> 162.767 | F142: =IF(Turma!A$2=1,IF(VLOOKUP("x",Turma!$B$4:$G$53,3,0)="Menina",tblMLS!R141,tblMLS!R309),"") -> 169.734 | G142: =IF(Turma!A$2=1,IF(VLOOKUP("x",Turma!$B$4:$G$53,3,0)="Menina",tblMLS!U141,tblMLS!U309),"") -> 175.41
A143: 201 | C143: =IF(Turma!A$2=1,IF(VLOOKUP("x",Turma!$B$4:$G$53,3,0)="Menina",tblMLS!K142,tblMLS!K310),"") -> 150.161 | D143: =IF(Turma!A$2=1,IF(VLOOKUP("x",Turma!$B$4:$G$53,3,0)="Menina",tblMLS!N142,tblMLS!N310),"") -> 155.831 | E143: =IF(Turma!A$2=1,IF(VLOOKUP("x",Turma!$B$4:$G$53,3,0)="Menina",tblMLS!P142,tblMLS!P310),"") -> 162.79 | F143: =IF(Turma!A$2=1,IF(VLOOKUP("x",Turma!$B$4:$G$53,3,0)="Menina",tblMLS!R142,tblMLS!R310),"") -> 169.75 | G143: =IF(Turma!A$2=1,IF(VLOOKUP("x",Turma!$B$4:$G$53,3,0)="Menina",tblMLS!U142,tblMLS!U310),"") -> 175.42
A144: 202 | C144: =IF(Turma!A$2=1,IF(VLOOKUP("x",Turma!$B$4:$G$53,3,0)="Menina",tblMLS!K143,tblMLS!K311),"") -> 150.2 | D144: =IF(Turma!A$2=1,IF(VLOOKUP("x",Turma!$B$4:$G$53,3,0)="Menina",tblMLS!N143,tblMLS!N311),"") -> 155.862 | E144: =IF(Turma!A$2=1,IF(VLOOKUP("x",Turma!$B$4:$G$53,3,0)="Menina",tblMLS!P143,tblMLS!P311),"") -> 162.813 | F144: =IF(Turma!A$2=1,IF(VLOOKUP("x",Turma!$B$4:$G$53,3,0)="Menina",tblMLS!R143,tblMLS!R311),"") -> 169.763 | G144: =IF(Turma!A$2=1,IF(VLOOKUP("x",Turma!$B$4:$G$53,3,0)="Menina",tblMLS!U143,tblMLS!U311),"") -> 175.426
A145: 203 | C145: =IF(Turma!A$2=1,IF(VLOOKUP("x",Turma!$B$4:$G$53,3,0)="Menina",tblMLS!K144,tblMLS!K312),"") -> 150.235 | D145: =IF(Turma!A$2=1,IF(VLOOKUP("x",Turma!$B$4:$G$53,3,0)="Menina",tblMLS!N144,tblMLS!N312),"") -> 155.891 | E145: =IF(Turma!A$2=1,IF(VLOOKUP("x",Turma!$B$4:$G$53,3,0)="Menina",tblMLS!P144,tblMLS!P312),"") -> 162.834 | F145: =IF(Turma!A$2=1,IF(VLOOKUP("x",Turma!$B$4:$G$53,3,0)="Menina",tblMLS!R144,tblMLS!R312),"") -> 169.777 | G145: =IF(Turma!A$2=1,IF(VLOOKUP("x",Turma!$B$4:$G$53,3,0)="Menina",tblMLS!U144,tblMLS!U312),"") -> 175.433
A146: 204 | B146: 17 | C146: =IF(Turma!A$2=1,IF(VLOOKUP("x",Turma!$B$4:$G$53,3,0)="Menina",tblMLS!K145,tblMLS!K313),"") -> 150.269 | D146: =IF(Turma!A$2=1,IF(VLOOKUP("x",Turma!$B$4:$G$53,3,0)="Menina",tblMLS!N145,tblMLS!N313),"") -> 155.919 | E146: =IF(Turma!A$2=1,IF(VLOOKUP("x",Turma!$B$4:$G$53,3,0)="Menina",tblMLS!P145,tblMLS!P313),"") -> 162.854 | F146: =IF(Turma!A$2=1,IF(VLOOKUP("x",Turma!$B$4:$G$53,3,0)="Menina",tblMLS!R145,tblMLS!R313),"") -> 169.79 | G146: =IF(Turma!A$2=1,IF(VLOOKUP("x",Turma!$B$4:$G$53,3,0)="Menina",tblMLS!U145,tblMLS!U313),"") -> 175.44
A147: 205 | C147: =IF(Turma!A$2=1,IF(VLOOKUP("x",Turma!$B$4:$G$53,3,0)="Menina",tblMLS!K146,tblMLS!K314),"") -> 150.302 | D147: =IF(Turma!A$2=1,IF(VLOOKUP("x",Turma!$B$4:$G$53,3,0)="Menina",tblMLS!N146,tblMLS!N314),"") -> 155.946 | E147: =IF(Turma!A$2=1,IF(VLOOKUP("x",Turma!$B$4:$G$53,3,0)="Menina",tblMLS!P146,tblMLS!P314),"") -> 162.874 | F147: =IF(Turma!A$2=1,IF(VLOOKUP("x",Turma!$B$4:$G$53,3,0)="Menina",tblMLS!R146,tblMLS!R314),"") -> 169.802 | G147: =IF(Turma!A$2=1,IF(VLOOKUP("x",Turma!$B$4:$G$53,3,0)="Menina",tblMLS!U146,tblMLS!U314),"") -> 175.446
A148: 206 | C148: =IF(Turma!A$2=1,IF(VLOOKUP("x",Turma!$B$4:$G$53,3,0)="Menina",tblMLS!K147,tblMLS!K315),"") -> 150.335 | D148: =IF(Turma!A$2=1,IF(VLOOKUP("x",Turma!$B$4:$G$53,3,0)="Menina",tblMLS!N147,tblMLS!N315),"") -> 155.973 | E148: =IF(Turma!A$2=1,IF(VLOOKUP("x",Turma!$B$4:$G$53,3,0)="Menina",tblMLS!P147,tblMLS!P315),"") -> 162.894 | F148: =IF(Turma!A$2=1,IF(VLOOKUP("x",Turma!$B$4:$G$53,3,0)="Menina",tblMLS!R147,tblMLS!R315),"") -> 169.814 | G148: =IF(Turma!A$2=1,IF(VLOOKUP("x",Turma!$B$4:$G$53,3,0)="Menina",tblMLS!U147,tblMLS!U315),"") -> 175.452
A149: 207 | C149: =IF(Turma!A$2=1,IF(VLOOKUP("x",Turma!$B$4:$G$53,3,0)="Menina",tblMLS!K148,tblMLS!K316),"") -> 150.368 | D149: =IF(Turma!A$2=1,IF(VLOOKUP("x",Turma!$B$4:$G$53,3,0)="Menina",tblMLS!N148,tblMLS!N316),"") -> 155.999 | E149: =IF(Turma!A$2=1,IF(VLOOKUP("x",Turma!$B$4:$G$53,3,0)="Menina",tblMLS!P148,tblMLS!P316),"") -> 162.912 | F149: =IF(Turma!A$2=1,IF(VLOOKUP("x",Turma!$B$4:$G$53,3,0)="Menina",tblMLS!R148,tblMLS!R316),"") -> 169.825 | G149: =IF(Turma!A$2=1,IF(VLOOKUP("x",Turma!$B$4:$G$53,3,0)="Menina",tblMLS!U148,tblMLS!U316),"") -> 175.456
A150: 208 | C150: =IF(Turma!A$2=1,IF(VLOOKUP("x",Turma!$B$4:$G$53,3,0)="Menina",tblMLS!K149,tblMLS!K317),"") -> 150.4 | D150: =IF(Turma!A$2=1,IF(VLOOKUP("x",Turma!$B$4:$G$53,3,0)="Menina",tblMLS!N149,tblMLS!N317),"") -> 156.025 | E150: =IF(Turma!A$2=1,IF(VLOOKUP("x",Turma!$B$4:$G$53,3,0)="Menina",tblMLS!P149,tblMLS!P317),"") -> 162.93 | F150: =IF(Turma!A$2=1,IF(VLOOKUP("x",Turma!$B$4:$G$53,3,0)="Menina",tblMLS!R149,tblMLS!R317),"") -> 169.835 | G150: =IF(Turma!A$2=1,IF(VLOOKUP("x",Turma!$B$4:$G$53,3,0)="Menina",tblMLS!U149,tblMLS!U317),"") -> 175.46
A151: 209 | C151: =IF(Turma!A$2=1,IF(VLOOKUP("x",Turma!$B$4:$G$53,3,0)="Menina",tblMLS!K150,tblMLS!K318),"") -> 150.431 | D151: =IF(Turma!A$2=1,IF(VLOOKUP("x",Turma!$B$4:$G$53,3,0)="Menina",tblMLS!N150,tblMLS!N318),"") -> 156.05 | E151: =IF(Turma!A$2=1,IF(VLOOKUP("x",Turma!$B$4:$G$53,3,0)="Menina",tblMLS!P150,tblMLS!P318),"") -> 162.948 | F151: =IF(Turma!A$2=1,IF(VLOOKUP("x",Turma!$B$4:$G$53,3,0)="Menina",tblMLS!R150,tblMLS!R318),"") -> 169.845 | G151: =IF(Turma!A$2=1,IF(VLOOKUP("x",Turma!$B$4:$G$53,3,0)="Menina",tblMLS!U150,tblMLS!U318),"") -> 175.464
A152: 210 | C152: =IF(Turma!A$2=1,IF(VLOOKUP("x",Turma!$B$4:$G$53,3,0)="Menina",tblMLS!K151,tblMLS!K319),"") -> 150.46 | D152: =IF(Turma!A$2=1,IF(VLOOKUP("x",Turma!$B$4:$G$53,3,0)="Menina",tblMLS!N151,tblMLS!N319),"") -> 156.074 | E152: =IF(Turma!A$2=1,IF(VLOOKUP("x",Turma!$B$4:$G$53,3,0)="Menina",tblMLS!P151,tblMLS!P319),"") -> 162.965 | F152: =IF(Turma!A$2=1,IF(VLOOKUP("x",Turma!$B$4:$G$53,3,0)="Menina",tblMLS!R151,tblMLS!R319),"") -> 169.856 | G152: =IF(Turma!A$2=1,IF(VLOOKUP("x",Turma!$B$4:$G$53,3,0)="Menina",tblMLS!U151,tblMLS!U319),"") -> 175.47
A153: 211 | C153: =IF(Turma!A$2=1,IF(VLOOKUP("x",Turma!$B$4:$G$53,3,0)="Menina",tblMLS!K152,tblMLS!K320),"") -> 150.49 | D153: =IF(Turma!A$2=1,IF(VLOOKUP("x",Turma!$B$4:$G$53,3,0)="Menina",tblMLS!N152,tblMLS!N320),"") -> 156.098 | E153: =IF(Turma!A$2=1,IF(VLOOKUP("x",Turma!$B$4:$G$53,3,0)="Menina",tblMLS!P152,tblMLS!P320),"") -> 162.982 | F153: =IF(Turma!A$2=1,IF(VLOOKUP("x",Turma!$B$4:$G$53,3,0)="Menina",tblMLS!R152,tblMLS!R320),"") -> 169.865 | G153: =IF(Turma!A$2=1,IF(VLOOKUP("x",Turma!$B$4:$G$53,3,0)="Menina",tblMLS!U152,tblMLS!U320),"") -> 175.473
A154: 212 | C154: =IF(Turma!A$2=1,IF(VLOOKUP("x",Turma!$B$4:$G$53,3,0)="Menina",tblMLS!K153,tblMLS!K321),"") -> 150.518 | D154: =IF(Turma!A$2=1,IF(VLOOKUP("x",Turma!$B$4:$G$53,3,0)="Menina",tblMLS!N153,tblMLS!N321),"") -> 156.121 | E154: =IF(Turma!A$2=1,IF(VLOOKUP("x",Turma!$B$4:$G$53,3,0)="Menina",tblMLS!P153,tblMLS!P321),"") -> 162.998 | F154: =IF(Turma!A$2=1,IF(VLOOKUP("x",Turma!$B$4:$G$53,3,0)="Menina",tblMLS!R153,tblMLS!R321),"") -> 169.876 | G154: =IF(Turma!A$2=1,IF(VLOOKUP("x",Turma!$B$4:$G$53,3,0)="Menina",tblMLS!U153,tblMLS!U321),"") -> 175.479
A155: 213 | C155: =IF(Turma!A$2=1,IF(VLOOKUP("x",Turma!$B$4:$G$53,3,0)="Menina",tblMLS!K154,tblMLS!K322),"") -> 150.548 | D155: =IF(Turma!A$2=1,IF(VLOOKUP("x",Turma!$B$4:$G$53,3,0)="Menina",tblMLS!N154,tblMLS!N322),"") -> 156.145 | E155: =IF(Turma!A$2=1,IF(VLOOKUP("x",Turma!$B$4:$G$53,3,0)="Menina",tblMLS!P154,tblMLS!P322),"") -> 163.014 | F155: =IF(Turma!A$2=1,IF(VLOOKUP("x",Turma!$B$4:$G$53,3,0)="Menina",tblMLS!R154,tblMLS!R322),"") -> 169.884 | G155: =IF(Turma!A$2=1,IF(VLOOKUP("x",Turma!$B$4:$G$53,3,0)="Menina",tblMLS!U154,tblMLS!U322),"") -> 175.481
A156: 214 | C156: =IF(Turma!A$2=1,IF(VLOOKUP("x",Turma!$B$4:$G$53,3,0)="Menina",tblMLS!K155,tblMLS!K323),"") -> 150.575 | D156: =IF(Turma!A$2=1,IF(VLOOKUP("x",Turma!$B$4:$G$53,3,0)="Menina",tblMLS!N155,tblMLS!N323),"") -> 156.166 | E156: =IF(Turma!A$2=1,IF(VLOOKUP("x",Turma!$B$4:$G$53,3,0)="Menina",tblMLS!P155,tblMLS!P323),"") -> 163.03 | F156: =IF(Turma!A$2=1,IF(VLOOKUP("x",Turma!$B$4:$G$53,3,0)="Menina",tblMLS!R155,tblMLS!R323),"") -> 169.894 | G156: =IF(Turma!A$2=1,IF(VLOOKUP("x",Turma!$B$4:$G$53,3,0)="Menina",tblMLS!U155,tblMLS!U323),"") -> 175.485
A157: 215 | C157: =IF(Turma!A$2=1,IF(VLOOKUP("x",Turma!$B$4:$G$53,3,0)="Menina",tblMLS!K156,tblMLS!K324),"") -> 150.601 | D157: =IF(Turma!A$2=1,IF(VLOOKUP("x",Turma!$B$4:$G$53,3,0)="Menina",tblMLS!N156,tblMLS!N324),"") -> 156.188 | E157: =IF(Turma!A$2=1,IF(VLOOKUP("x",Turma!$B$4:$G$53,3,0)="Menina",tblMLS!P156,tblMLS!P324),"") -> 163.045 | F157: =IF(Turma!A$2=1,IF(VLOOKUP("x",Turma!$B$4:$G$53,3,0)="Menina",tblMLS!R156,tblMLS!R324),"") -> 169.903 | G157: =IF(Turma!A$2=1,IF(VLOOKUP("x",Turma!$B$4:$G$53,3,0)="Menina",tblMLS!U156,tblMLS!U324),"") -> 175.489
A158: 216 | B158: 18 | C158: =IF(Turma!A$2=1,IF(VLOOKUP("x",Turma!$B$4:$G$53,3,0)="Menina",tblMLS!K157,tblMLS!K325),"") -> 150.63 | D158: =IF(Turma!A$2=1,IF(VLOOKUP("x",Turma!$B$4:$G$53,3,0)="Menina",tblMLS!N157,tblMLS!N325),"") -> 156.21 | E158: =IF(Turma!A$2=1,IF(VLOOKUP("x",Turma!$B$4:$G$53,3,0)="Menina",tblMLS!P157,tblMLS!P325),"") -> 163.06 | F158: =IF(Turma!A$2=1,IF(VLOOKUP("x",Turma!$B$4:$G$53,3,0)="Menina",tblMLS!R157,tblMLS!R325),"") -> 169.909 | G158: =IF(Turma!A$2=1,IF(VLOOKUP("x",Turma!$B$4:$G$53,3,0)="Menina",tblMLS!U157,tblMLS!U325),"") -> 175.489
A159: 217 | C159: =IF(Turma!A$2=1,IF(VLOOKUP("x",Turma!$B$4:$G$53,3,0)="Menina",tblMLS!K158,tblMLS!K326),"") -> 150.655 | D159: =IF(Turma!A$2=1,IF(VLOOKUP("x",Turma!$B$4:$G$53,3,0)="Menina",tblMLS!N158,tblMLS!N326),"") -> 156.23 | E159: =IF(Turma!A$2=1,IF(VLOOKUP("x",Turma!$B$4:$G$53,3,0)="Menina",tblMLS!P158,tblMLS!P326),"") -> 163.073 | F159: =IF(Turma!A$2=1,IF(VLOOKUP("x",Turma!$B$4:$G$53,3,0)="Menina",tblMLS!R158,tblMLS!R326),"") -> 169.917 | G159: =IF(Turma!A$2=1,IF(VLOOKUP("x",Turma!$B$4:$G$53,3,0)="Menina",tblMLS!U158,tblMLS!U326),"") -> 175.492
A160: 218 | C160: =IF(Turma!A$2=1,IF(VLOOKUP("x",Turma!$B$4:$G$53,3,0)="Menina",tblMLS!K159,tblMLS!K327),"") -> 150.679 | D160: =IF(Turma!A$2=1,IF(VLOOKUP("x",Turma!$B$4:$G$53,3,0)="Menina",tblMLS!N159,tblMLS!N327),"") -> 156.249 | E160: =IF(Turma!A$2=1,IF(VLOOKUP("x",Turma!$B$4:$G$53,3,0)="Menina",tblMLS!P159,tblMLS!P327),"") -> 163.086 | F160: =IF(Turma!A$2=1,IF(VLOOKUP("x",Turma!$B$4:$G$53,3,0)="Menina",tblMLS!R159,tblMLS!R327),"") -> 169.923 | G160: =IF(Turma!A$2=1,IF(VLOOKUP("x",Turma!$B$4:$G$53,3,0)="Menina",tblMLS!U159,tblMLS!U327),"") -> 175.493
A161: 219 | C161: =IF(Turma!A$2=1,IF(VLOOKUP("x",Turma!$B$4:$G$53,3,0)="Menina",tblMLS!K160,tblMLS!K328),"") -> 150.702 | D161: =IF(Turma!A$2=1,IF(VLOOKUP("x",Turma!$B$4:$G$53,3,0)="Menina",tblMLS!N160,tblMLS!N328),"") -> 156.267 | E161: =IF(Turma!A$2=1,IF(VLOOKUP("x",Turma!$B$4:$G$53,3,0)="Menina",tblMLS!P160,tblMLS!P328),"") -> 163.098 | F161: =IF(Turma!A$2=1,IF(VLOOKUP("x",Turma!$B$4:$G$53,3,0)="Menina",tblMLS!R160,tblMLS!R328),"") -> 169.929 | G161: =IF(Turma!A$2=1,IF(VLOOKUP("x",Turma!$B$4:$G$53,3,0)="Menina",tblMLS!U160,tblMLS!U328),"") -> 175.494
A162: 220 | C162: =IF(Turma!A$2=1,IF(VLOOKUP("x",Turma!$B$4:$G$53,3,0)="Menina",tblMLS!K161,tblMLS!K329),"") -> 150.725 | D162: =IF(Turma!A$2=1,IF(VLOOKUP("x",Turma!$B$4:$G$53,3,0)="Menina",tblMLS!N161,tblMLS!N329),"") -> 156.285 | E162: =IF(Turma!A$2=1,IF(VLOOKUP("x",Turma!$B$4:$G$53,3,0)="Menina",tblMLS!P161,tblMLS!P329),"") -> 163.109 | F162: =IF(Turma!A$2=1,IF(VLOOKUP("x",Turma!$B$4:$G$53,3,0)="Menina",tblMLS!R161,tblMLS!R329),"") -> 169.934 | G162: =IF(Turma!A$2=1,IF(VLOOKUP("x",Turma!$B$4:$G$53,3,0)="Menina",tblMLS!U161,tblMLS!U329),"") -> 175.494
A163: 221 | C163: =IF(Turma!A$2=1,IF(VLOOKUP("x",Turma!$B$4:$G$53,3,0)="Menina",tblMLS!K162,tblMLS!K330),"") -> 150.743 | D163: =IF(Turma!A$2=1,IF(VLOOKUP("x",Turma!$B$4:$G$53,3,0)="Menina",tblMLS!N162,tblMLS!N330),"") -> 156.299 | E163: =IF(Turma!A$2=1,IF(VLOOKUP("x",Turma!$B$4:$G$53,3,0)="Menina",tblMLS!P162,tblMLS!P330),"") -> 163.119 | F163: =IF(Turma!A$2=1,IF(VLOOKUP("x",Turma!$B$4:$G$53,3,0)="Menina",tblMLS!R162,tblMLS!R330),"") -> 169.939 | G163: =IF(Turma!A$2=1,IF(VLOOKUP("x",Turma!$B$4:$G$53,3,0)="Menina",tblMLS!U162,tblMLS!U330),"") -> 175.495
A164: 222 | C164: =IF(Turma!A$2=1,IF(VLOOKUP("x",Turma!$B$4:$G$53,3,0)="Menina",tblMLS!K163,tblMLS!K331),"") -> 150.763 | D164: =IF(Turma!A$2=1,IF(VLOOKUP("x",Turma!$B$4:$G$53,3,0)="Menina",tblMLS!N163,tblMLS!N331),"") -> 156.314 | E164: =IF(Turma!A$2=1,IF(VLOOKUP("x",Turma!$B$4:$G$53,3,0)="Menina",tblMLS!P163,tblMLS!P331),"") -> 163.128 | F164: =IF(Turma!A$2=1,IF(VLOOKUP("x",Turma!$B$4:$G$53,3,0)="Menina",tblMLS!R163,tblMLS!R331),"") -> 169.941 | G164: =IF(Turma!A$2=1,IF(VLOOKUP("x",Turma!$B$4:$G$53,3,0)="Menina",tblMLS!U163,tblMLS!U331),"") -> 175.492
A165: 223 | C165: =IF(Turma!A$2=1,IF(VLOOKUP("x",Turma!$B$4:$G$53,3,0)="Menina",tblMLS!K164,tblMLS!K332),"") -> 150.783 | D165: =IF(Turma!A$2=1,IF(VLOOKUP("x",Turma!$B$4:$G$53,3,0)="Menina",tblMLS!N164,tblMLS!N332),"") -> 156.328 | E165: =IF(Turma!A$2=1,IF(VLOOKUP("x",Turma!$B$4:$G$53,3,0)="Menina",tblMLS!P164,tblMLS!P332),"") -> 163.136 | F165: =IF(Turma!A$2=1,IF(VLOOKUP("x",Turma!$B$4:$G$53,3,0)="Menina",tblMLS!R164,tblMLS!R332),"") -> 169.943 | G165: =IF(Turma!A$2=1,IF(VLOOKUP("x",Turma!$B$4:$G$53,3,0)="Menina",tblMLS!U164,tblMLS!U332),"") -> 175.488
A166: 224 | C166: =IF(Turma!A$2=1,IF(VLOOKUP("x",Turma!$B$4:$G$53,3,0)="Menina",tblMLS!K165,tblMLS!K333),"") -> 150.798 | D166: =IF(Turma!A$2=1,IF(VLOOKUP("x",Turma!$B$4:$G$53,3,0)="Menina",tblMLS!N165,tblMLS!N333),"") -> 156.339 | E166: =IF(Turma!A$2=1,IF(VLOOKUP("x",Turma!$B$4:$G$53,3,0)="Menina",tblMLS!P165,tblMLS!P333),"") -> 163.142 | F166: =IF(Turma!A$2=1,IF(VLOOKUP("x",Turma!$B$4:$G$53,3,0)="Menina",tblMLS!R165,tblMLS!R333),"") -> 169.944 | G166: =IF(Turma!A$2=1,IF(VLOOKUP("x",Turma!$B$4:$G$53,3,0)="Menina",tblMLS!U165,tblMLS!U333),"") -> 175.486
A167: 225 | C167: =IF(Turma!A$2=1,IF(VLOOKUP("x",Turma!$B$4:$G$53,3,0)="Menina",tblMLS!K166,tblMLS!K334),"") -> 150.815 | D167: =IF(Turma!A$2=1,IF(VLOOKUP("x",Turma!$B$4:$G$53,3,0)="Menina",tblMLS!N166,tblMLS!N334),"") -> 156.351 | E167: =IF(Turma!A$2=1,IF(VLOOKUP("x",Turma!$B$4:$G$53,3,0)="Menina",tblMLS!P166,tblMLS!P334),"") -> 163.147 | F167: =IF(Turma!A$2=1,IF(VLOOKUP("x",Turma!$B$4:$G$53,3,0)="Menina",tblMLS!R166,tblMLS!R334),"") -> 169.943 | G167: =IF(Turma!A$2=1,IF(VLOOKUP("x",Turma!$B$4:$G$53,3,0)="Menina",tblMLS!U166,tblMLS!U334),"") -> 175.479
A168: 226 | C168: =IF(Turma!A$2=1,IF(VLOOKUP("x",Turma!$B$4:$G$53,3,0)="Menina",tblMLS!K167,tblMLS!K335),"") -> 150.828 | D168: =IF(Turma!A$2=1,IF(VLOOKUP("x",Turma!$B$4:$G$53,3,0)="Menina",tblMLS!N167,tblMLS!N335),"") -> 156.36 | E168: =IF(Turma!A$2=1,IF(VLOOKUP("x",Turma!$B$4:$G$53,3,0)="Menina",tblMLS!P167,tblMLS!P335),"") -> 163.151 | F168: =IF(Turma!A$2=1,IF(VLOOKUP("x",Turma!$B$4:$G$53,3,0)="Menina",tblMLS!R167,tblMLS!R335),"") -> 169.942 | G168: =IF(Turma!A$2=1,IF(VLOOKUP("x",Turma!$B$4:$G$53,3,0)="Menina",tblMLS!U167,tblMLS!U335),"") -> 175.474
A169: 227 | C169: =IF(Turma!A$2=1,IF(VLOOKUP("x",Turma!$B$4:$G$53,3,0)="Menina",tblMLS!K168,tblMLS!K336),"") -> 150.842 | D169: =IF(Turma!A$2=1,IF(VLOOKUP("x",Turma!$B$4:$G$53,3,0)="Menina",tblMLS!N168,tblMLS!N336),"") -> 156.369 | E169: =IF(Turma!A$2=1,IF(VLOOKUP("x",Turma!$B$4:$G$53,3,0)="Menina",tblMLS!P168,tblMLS!P336),"") -> 163.153 | F169: =IF(Turma!A$2=1,IF(VLOOKUP("x",Turma!$B$4:$G$53,3,0)="Menina",tblMLS!R168,tblMLS!R336),"") -> 169.938 | G169: =IF(Turma!A$2=1,IF(VLOOKUP("x",Turma!$B$4:$G$53,3,0)="Menina",tblMLS!U168,tblMLS!U336),"") -> 175.465
A170: 228 | B170: 19 | C170: =IF(Turma!A$2=1,IF(VLOOKUP("x",Turma!$B$4:$G$53,3,0)="Menina",tblMLS!K169,tblMLS!K337),"") -> 150.853 | D170: =IF(Turma!A$2=1,IF(VLOOKUP("x",Turma!$B$4:$G$53,3,0)="Menina",tblMLS!N169,tblMLS!N337),"") -> 156.376 | E170: =IF(Turma!A$2=1,IF(VLOOKUP("x",Turma!$B$4:$G$53,3,0)="Menina",tblMLS!P169,tblMLS!P337),"") -> 163.155 | F170: =IF(Turma!A$2=1,IF(VLOOKUP("x",Turma!$B$4:$G$53,3,0)="Menina",tblMLS!R169,tblMLS!R337),"") -> 169.934 | G170: =IF(Turma!A$2=1,IF(VLOOKUP("x",Turma!$B$4:$G$53,3,0)="Menina",tblMLS!U169,tblMLS!U337),"") -> 175.457

Sheet dadosZScore (hidden)
A1: meses | B1: anos | C1: -3 | D1: -2 | E1: -1 | F1: 0 | G1: 1 | H1: 2 | I1: 3 | J1: Género | K1: Meses | L1: Altura
A2: 60 | B2: =IF(A2/12=INT(A2/12),A2/12,"") -> 5 | J2: =IF(Turma!A2=1,VLOOKUP("x",Turma!B4:G53,3,0),"") -> Menina | K2: =IF(Turma!A2=1,VLOOKUP("x",Turma!B4:H53,7,0),"") -> 105 | L2: =IF(Turma!A2=1,VLOOKUP("x",Turma!B4:I53,6,0),"") -> 140
A3: 61 | B3: =IF(A3/12=INT(A3/12),A3/12,"") ->  | C3: =IF(Turma!$A$2=1,IF(VLOOKUP("x",Turma!$B$4:$G$53,3,0)="Menina",tblMLS!AD2,tblMLS!AD170),"") -> 95.282 | D3: =IF(Turma!$A$2=1,IF(VLOOKUP("x",Turma!$B$4:$G$53,3,0)="Menina",tblMLS!AE2,tblMLS!AE170),"") -> 100.055 | E3: =IF(Turma!$A$2=1,IF(VLOOKUP("x",Turma!$B$4:$G$53,3,0)="Menina",tblMLS!AF2,tblMLS!AF170),"") -> 104.828 | F3: =IF(Turma!$A$2=1,IF(VLOOKUP("x",Turma!$B$4:$G$53,3,0)="Menina",tblMLS!AG2,tblMLS!AG170),"") -> 109.602 | G3: =IF(Turma!$A$2=1,IF(VLOOKUP("x",Turma!$B$4:$G$53,3,0)="Menina",tblMLS!AH2,tblMLS!AH170),"") -> 114.375 | H3: =IF(Turma!$A$2=1,IF(VLOOKUP("x",Turma!$B$4:$G$53,3,0)="Menina",tblMLS!AI2,tblMLS!AI170),"") -> 119.148 | I3: =IF(Turma!$A$2=1,IF(VLOOKUP("x",Turma!$B$4:$G$53,3,0)="Menina",tblMLS!AJ2,tblMLS!AJ170),"") -> 123.921
A4: 62 | C4: =IF(Turma!$A$2=1,IF(VLOOKUP("x",Turma!$B$4:$G$53,3,0)="Menina",tblMLS!AD3,tblMLS!AD171),"") -> 95.708 | D4: =IF(Turma!$A$2=1,IF(VLOOKUP("x",Turma!$B$4:$G$53,3,0)="Menina",tblMLS!AE3,tblMLS!AE171),"") -> 100.514 | E4: =IF(Turma!$A$2=1,IF(VLOOKUP("x",Turma!$B$4:$G$53,3,0)="Menina",tblMLS!AF3,tblMLS!AF171),"") -> 105.32 | F4: =IF(Turma!$A$2=1,IF(VLOOKUP("x",Turma!$B$4:$G$53,3,0)="Menina",tblMLS!AG3,tblMLS!AG171),"") -> 110.126 | G4: =IF(Turma!$A$2=1,IF(VLOOKUP("x",Turma!$B$4:$G$53,3,0)="Menina",tblMLS!AH3,tblMLS!AH171),"") -> 114.932 | H4: =IF(Turma!$A$2=1,IF(VLOOKUP("x",Turma!$B$4:$G$53,3,0)="Menina",tblMLS!AI3,tblMLS!AI171),"") -> 119.738 | I4: =IF(Turma!$A$2=1,IF(VLOOKUP("x",Turma!$B$4:$G$53,3,0)="Menina",tblMLS!AJ3,tblMLS!AJ171),"") -> 124.543
A5: 63 | C5: =IF(Turma!$A$2=1,IF(VLOOKUP("x",Turma!$B$4:$G$53,3,0)="Menina",tblMLS!AD4,tblMLS!AD172),"") -> 96.13 | D5: =IF(Turma!$A$2=1,IF(VLOOKUP("x",Turma!$B$4:$G$53,3,0)="Menina",tblMLS!AE4,tblMLS!AE172),"") -> 100.968 | E5: =IF(Turma!$A$2=1,IF(VLOOKUP("x",Turma!$B$4:$G$53,3,0)="Menina",tblMLS!AF4,tblMLS!AF172),"") -> 105.807 | F5: =IF(Turma!$A$2=1,IF(VLOOKUP("x",Turma!$B$4:$G$53,3,0)="Menina",tblMLS!AG4,tblMLS!AG172),"") -> 110.645 | G5: =IF(Turma!$A$2=1,IF(VLOOKUP("x",Turma!$B$4:$G$53,3,0)="Menina",tblMLS!AH4,tblMLS!AH172),"") -> 115.484 | H5: =IF(Turma!$A$2=1,IF(VLOOKUP("x",Turma!$B$4:$G$53,3,0)="Menina",tblMLS!AI4,tblMLS!AI172),"") -> 120.322 | I5: =IF(Turma!$A$2=1,IF(VLOOKUP("x",Turma!$B$4:$G$53,3,0)="Menina",tblMLS!AJ4,tblMLS!AJ172),"") -> 125.161
A6: 64 | C6: =IF(Turma!$A$2=1,IF(VLOOKUP("x",Turma!$B$4:$G$53,3,0)="Menina",tblMLS!AD5,tblMLS!AD173),"") -> 96.547 | D6: =IF(Turma!$A$2=1,IF(VLOOKUP("x",Turma!$B$4:$G$53,3,0)="Menina",tblMLS!AE5,tblMLS!AE173),"") -> 101.418 | E6: =IF(Turma!$A$2=1,IF(VLOOKUP("x",Turma!$B$4:$G$53,3,0)="Menina",tblMLS!AF5,tblMLS!AF173),"") -> 106.289 | F6: =IF(Turma!$A$2=1,IF(VLOOKUP("x",Turma!$B$4:$G$53,3,0)="Menina",tblMLS!AG5,tblMLS!AG173),"") -> 111.16 | G6: =IF(Turma!$A$2=1,IF(VLOOKUP("x",Turma!$B$4:$G$53,3,0)="Menina",tblMLS!AH5,tblMLS!AH173),"") -> 116.031 | H6: =IF(Turma!$A$2=1,IF(VLOOKUP("x",Turma!$B$4:$G$53,3,0)="Menina",tblMLS!AI5,tblMLS!AI173),"") -> 120.902 | I6: =IF(Turma!$A$2=1,IF(VLOOKUP("x",Turma!$B$4:$G$53,3,0)="Menina",tblMLS!AJ5,tblMLS!AJ173),"") -> 125.773
A7: 65 | C7: =IF(Turma!$A$2=1,IF(VLOOKUP("x",Turma!$B$4:$G$53,3,0)="Menina",tblMLS!AD6,tblMLS!AD174),"") -> 96.963 | D7: =IF(Turma!$A$2=1,IF(VLOOKUP("x",Turma!$B$4:$G$53,3,0)="Menina",tblMLS!AE6,tblMLS!AE174),"") -> 101.865 | E7: =IF(Turma!$A$2=1,IF(VLOOKUP("x",Turma!$B$4:$G$53,3,0)="Menina",tblMLS!AF6,tblMLS!AF174),"") -> 106.767 | F7: =IF(Turma!$A$2=1,IF(VLOOKUP("x",Turma!$B$4:$G$53,3,0)="Menina",tblMLS!AG6,tblMLS!AG174),"") -> 111.67 | G7: =IF(Turma!$A$2=1,IF(VLOOKUP("x",Turma!$B$4:$G$53,3,0)="Menina",tblMLS!AH6,tblMLS!AH174),"") -> 116.572 | H7: =IF(Turma!$A$2=1,IF(VLOOKUP("x",Turma!$B$4:$G$53,3,0)="Menina",tblMLS!AI6,tblMLS!AI174),"") -> 121.474 | I7: =IF(Turma!$A$2=1,IF(VLOOKUP("x",Turma!$B$4:$G$53,3,0)="Menina",tblMLS!AJ6,tblMLS!AJ174),"") -> 126.376
A8: 66 | C8: =IF(Turma!$A$2=1,IF(VLOOKUP("x",Turma!$B$4:$G$53,3,0)="Menina",tblMLS!AD7,tblMLS!AD175),"") -> 97.372 | D8: =IF(Turma!$A$2=1,IF(VLOOKUP("x",Turma!$B$4:$G$53,3,0)="Menina",tblMLS!AE7,tblMLS!AE175),"") -> 102.306 | E8: =IF(Turma!$A$2=1,IF(VLOOKUP("x",Turma!$B$4:$G$53,3,0)="Menina",tblMLS!AF7,tblMLS!AF175),"") -> 107.241 | F8: =IF(Turma!$A$2=1,IF(VLOOKUP("x",Turma!$B$4:$G$53,3,0)="Menina",tblMLS!AG7,tblMLS!AG175),"") -> 112.175 | G8: =IF(Turma!$A$2=1,IF(VLOOKUP("x",Turma!$B$4:$G$53,3,0)="Menina",tblMLS!AH7,tblMLS!AH175),"") -> 117.11 | H8: =IF(Turma!$A$2=1,IF(VLOOKUP("x",Turma!$B$4:$G$53,3,0)="Menina",tblMLS!AI7,tblMLS!AI175),"") -> 122.044 | I8: =IF(Turma!$A$2=1,IF(VLOOKUP("x",Turma!$B$4:$G$53,3,0)="Menina",tblMLS!AJ7,tblMLS!AJ175),"") -> 126.979
A9: 67 | C9: =IF(Turma!$A$2=1,IF(VLOOKUP("x",Turma!$B$4:$G$53,3,0)="Menina",tblMLS!AD8,tblMLS!AD176),"") -> 97.78 | D9: =IF(Turma!$A$2=1,IF(VLOOKUP("x",Turma!$B$4:$G$53,3,0)="Menina",tblMLS!AE8,tblMLS!AE176),"") -> 102.745 | E9: =IF(Turma!$A$2=1,IF(VLOOKUP("x",Turma!$B$4:$G$53,3,0)="Menina",tblMLS!AF8,tblMLS!AF176),"") -> 107.711 | F9: =IF(Turma!$A$2=1,IF(VLOOKUP("x",Turma!$B$4:$G$53,3,0)="Menina",tblMLS!AG8,tblMLS!AG176),"") -> 112.677 | G9: =IF(Turma!$A$2=1,IF(VLOOKUP("x",Turma!$B$4:$G$53,3,0)="Menina",tblMLS!AH8,tblMLS!AH176),"") -> 117.642 | H9: =IF(Turma!$A$2=1,IF(VLOOKUP("x",Turma!$B$4:$G$53,3,0)="Menina",tblMLS!AI8,tblMLS!AI176),"") -> 122.608 | I9: =IF(Turma!$A$2=1,IF(VLOOKUP("x",Turma!$B$4:$G$53,3,0)="Menina",tblMLS!AJ8,tblMLS!AJ176),"") -> 127.574
A10: 68 | C10: =IF(Turma!$A$2=1,IF(VLOOKUP("x",Turma!$B$4:$G$53,3,0)="Menina",tblMLS!AD9,tblMLS!AD177),"") -> 98.184 | D10: =IF(Turma!$A$2=1,IF(VLOOKUP("x",Turma!$B$4:$G$53,3,0)="Menina",tblMLS!AE9,tblMLS!AE177),"") -> 103.181 | E10: =IF(Turma!$A$2=1,IF(VLOOKUP("x",Turma!$B$4:$G$53,3,0)="Menina",tblMLS!AF9,tblMLS!AF177),"") -> 108.177 | F10: =IF(Turma!$A$2=1,IF(VLOOKUP("x",Turma!$B$4:$G$53,3,0)="Menina",tblMLS!AG9,tblMLS!AG177),"") -> 113.174 | G10: =IF(Turma!$A$2=1,IF(VLOOKUP("x",Turma!$B$4:$G$53,3,0)="Menina",tblMLS!AH9,tblMLS!AH177),"") -> 118.171 | H10: =IF(Turma!$A$2=1,IF(VLOOKUP("x",Turma!$B$4:$G$53,3,0)="Menina",tblMLS!AI9,tblMLS!AI177),"") -> 123.167 | I10: =IF(Turma!$A$2=1,IF(VLOOKUP("x",Turma!$B$4:$G$53,3,0)="Menina",tblMLS!AJ9,tblMLS!AJ177),"") -> 128.164
A11: 69 | C11: =IF(Turma!$A$2=1,IF(VLOOKUP("x",Turma!$B$4:$G$53,3,0)="Menina",tblMLS!AD10,tblMLS!AD178),"") -> 98.585 | D11: =IF(Turma!$A$2=1,IF(VLOOKUP("x",Turma!$B$4:$G$53,3,0)="Menina",tblMLS!AE10,tblMLS!AE178),"") -> 103.612 | E11: =IF(Turma!$A$2=1,IF(VLOOKUP("x",Turma!$B$4:$G$53,3,0)="Menina",tblMLS!AF10,tblMLS!AF178),"") -> 108.64 | F11: =IF(Turma!$A$2=1,IF(VLOOKUP("x",Turma!$B$4:$G$53,3,0)="Menina",tblMLS!AG10,tblMLS!AG178),"") -> 113.667 | G11: =IF(Turma!$A$2=1,IF(VLOOKUP("x",Turma!$B$4:$G$53,3,0)="Menina",tblMLS!AH10,tblMLS!AH178),"") -> 118.695 | H11: =IF(Turma!$A$2=1,IF(VLOOKUP("x",Turma!$B$4:$G$53,3,0)="Menina",tblMLS!AI10,tblMLS!AI178),"") -> 123.722 | I11: =IF(Turma!$A$2=1,IF(VLOOKUP("x",Turma!$B$4:$G$53,3,0)="Menina",tblMLS!AJ10,tblMLS!AJ178),"") -> 128.75
A12: 70 | C12: =IF(Turma!$A$2=1,IF(VLOOKUP("x",Turma!$B$4:$G$53,3,0)="Menina",tblMLS!AD11,tblMLS!AD179),"") -> 98.982 | D12: =IF(Turma!$A$2=1,IF(VLOOKUP("x",Turma!$B$4:$G$53,3,0)="Menina",tblMLS!AE11,tblMLS!AE179),"") -> 104.04 | E12: =IF(Turma!$A$2=1,IF(VLOOKUP("x",Turma!$B$4:$G$53,3,0)="Menina",tblMLS!AF11,tblMLS!AF179),"") -> 109.098 | F12: =IF(Turma!$A$2=1,IF(VLOOKUP("x",Turma!$B$4:$G$53,3,0)="Menina",tblMLS!AG11,tblMLS!AG179),"") -> 114.156 | G12: =IF(Turma!$A$2=1,IF(VLOOKUP("x",Turma!$B$4:$G$53,3,0)="Menina",tblMLS!AH11,tblMLS!AH179),"") -> 119.215 | H12: =IF(Turma!$A$2=1,IF(VLOOKUP("x",Turma!$B$4:$G$53,3,0)="Menina",tblMLS!AI11,tblMLS!AI179),"") -> 124.273 | I12: =IF(Turma!$A$2=1,IF(VLOOKUP("x",Turma!$B$4:$G$53,3,0)="Menina",tblMLS!AJ11,tblMLS!AJ179),"") -> 129.331
A13: 71 | C13: =IF(Turma!$A$2=1,IF(VLOOKUP("x",Turma!$B$4:$G$53,3,0)="Menina",tblMLS!AD12,tblMLS!AD180),"") -> 99.375 | D13: =IF(Turma!$A$2=1,IF(VLOOKUP("x",Turma!$B$4:$G$53,3,0)="Menina",tblMLS!AE12,tblMLS!AE180),"") -> 104.464 | E13: =IF(Turma!$A$2=1,IF(VLOOKUP("x",Turma!$B$4:$G$53,3,0)="Menina",tblMLS!AF12,tblMLS!AF180),"") -> 109.553 | F13: =IF(Turma!$A$2=1,IF(VLOOKUP("x",Turma!$B$4:$G$53,3,0)="Menina",tblMLS!AG12,tblMLS!AG180),"") -> 114.642 | G13: =IF(Turma!$A$2=1,IF(VLOOKUP("x",Turma!$B$4:$G$53,3,0)="Menina",tblMLS!AH12,tblMLS!AH180),"") -> 119.731 | H13: =IF(Turma!$A$2=1,IF(VLOOKUP("x",Turma!$B$4:$G$53,3,0)="Menina",tblMLS!AI12,tblMLS!AI180),"") -> 124.82 | I13: =IF(Turma!$A$2=1,IF(VLOOKUP("x",Turma!$B$4:$G$53,3,0)="Menina",tblMLS!AJ12,tblMLS!AJ180),"") -> 129.909
A14: 72 | B14: 6 | C14: =IF(Turma!$A$2=1,IF(VLOOKUP("x",Turma!$B$4:$G$53,3,0)="Menina",tblMLS!AD13,tblMLS!AD181),"") -> 99.766 | D14: =IF(Turma!$A$2=1,IF(VLOOKUP("x",Turma!$B$4:$G$53,3,0)="Menina",tblMLS!AE13,tblMLS!AE181),"") -> 104.885 | E14: =IF(Turma!$A$2=1,IF(VLOOKUP("x",Turma!$B$4:$G$53,3,0)="Menina",tblMLS!AF13,tblMLS!AF181),"") -> 110.005 | F14: =IF(Turma!$A$2=1,IF(VLOOKUP("x",Turma!$B$4:$G$53,3,0)="Menina",tblMLS!AG13,tblMLS!AG181),"") -> 115.124 | G14: =IF(Turma!$A$2=1,IF(VLOOKUP("x",Turma!$B$4:$G$53,3,0)="Menina",tblMLS!AH13,tblMLS!AH181),"") -> 120.244 | H14: =IF(Turma!$A$2=1,IF(VLOOKUP("x",Turma!$B$4:$G$53,3,0)="Menina",tblMLS!AI13,tblMLS!AI181),"") -> 125.364 | I14: =IF(Turma!$A$2=1,IF(VLOOKUP("x",Turma!$B$4:$G$53,3,0)="Menina",tblMLS!AJ13,tblMLS!AJ181),"") -> 130.483
A15: 73 | C15: =IF(Turma!$A$2=1,IF(VLOOKUP("x",Turma!$B$4:$G$53,3,0)="Menina",tblMLS!AD14,tblMLS!AD182),"") -> 100.157 | D15: =IF(Turma!$A$2=1,IF(VLOOKUP("x",Turma!$B$4:$G$53,3,0)="Menina",tblMLS!AE14,tblMLS!AE182),"") -> 105.306 | E15: =IF(Turma!$A$2=1,IF(VLOOKUP("x",Turma!$B$4:$G$53,3,0)="Menina",tblMLS!AF14,tblMLS!AF182),"") -> 110.455 | F15: =IF(Turma!$A$2=1,IF(VLOOKUP("x",Turma!$B$4:$G$53,3,0)="Menina",tblMLS!AG14,tblMLS!AG182),"") -> 115.604 | G15: =IF(Turma!$A$2=1,IF(VLOOKUP("x",Turma!$B$4:$G$53,3,0)="Menina",tblMLS!AH14,tblMLS!AH182),"") -> 120.753 | H15: =IF(Turma!$A$2=1,IF(VLOOKUP("x",Turma!$B$4:$G$53,3,0)="Menina",tblMLS!AI14,tblMLS!AI182),"") -> 125.902 | I15: =IF(Turma!$A$2=1,IF(VLOOKUP("x",Turma!$B$4:$G$53,3,0)="Menina",tblMLS!AJ14,tblMLS!AJ182),"") -> 131.051
A16: 74 | C16: =IF(Turma!$A$2=1,IF(VLOOKUP("x",Turma!$B$4:$G$53,3,0)="Menina",tblMLS!AD15,tblMLS!AD183),"") -> 100.546 | D16: =IF(Turma!$A$2=1,IF(VLOOKUP("x",Turma!$B$4:$G$53,3,0)="Menina",tblMLS!AE15,tblMLS!AE183),"") -> 105.724 | E16: =IF(Turma!$A$2=1,IF(VLOOKUP("x",Turma!$B$4:$G$53,3,0)="Menina",tblMLS!AF15,tblMLS!AF183),"") -> 110.903 | F16: =IF(Turma!$A$2=1,IF(VLOOKUP("x",Turma!$B$4:$G$53,3,0)="Menina",tblMLS!AG15,tblMLS!AG183),"") -> 116.081 | G16: =IF(Turma!$A$2=1,IF(VLOOKUP("x",Turma!$B$4:$G$53,3,0)="Menina",tblMLS!AH15,tblMLS!AH183),"") -> 121.26 | H16: =IF(Turma!$A$2=1,IF(VLOOKUP("x",Turma!$B$4:$G$53,3,0)="Menina",tblMLS!AI15,tblMLS!AI183),"") -> 126.438 | I16: =IF(Turma!$A$2=1,IF(VLOOKUP("x",Turma!$B$4:$G$53,3,0)="Menina",tblMLS!AJ15,tblMLS!AJ183),"") -> 131.616
A17: 75 | C17: =IF(Turma!$A$2=1,IF(VLOOKUP("x",Turma!$B$4:$G$53,3,0)="Menina",tblMLS!AD16,tblMLS!AD184),"") -> 100.93 | D17: =IF(Turma!$A$2=1,IF(VLOOKUP("x",Turma!$B$4:$G$53,3,0)="Menina",tblMLS!AE16,tblMLS!AE184),"") -> 106.139 | E17: =IF(Turma!$A$2=1,IF(VLOOKUP("x",Turma!$B$4:$G$53,3,0)="Menina",tblMLS!AF16,tblMLS!AF184),"") -> 111.348 | F17: =IF(Turma!$A$2=1,IF(VLOOKUP("x",Turma!$B$4:$G$53,3,0)="Menina",tblMLS!AG16,tblMLS!AG184),"") -> 116.557 | G17: =IF(Turma!$A$2=1,IF(VLOOKUP("x",Turma!$B$4:$G$53,3,0)="Menina",tblMLS!AH16,tblMLS!AH184),"") -> 121.766 | H17: =IF(Turma!$A$2=1,IF(VLOOKUP("x",Turma!$B$4:$G$53,3,0)="Menina",tblMLS!AI16,tblMLS!AI184),"") -> 126.975 | I17: =IF(Turma!$A$2=1,IF(VLOOKUP("x",Turma!$B$4:$G$53,3,0)="Menina",tblMLS!AJ16,tblMLS!AJ184),"") -> 132.184
A18: 76 | C18: =IF(Turma!$A$2=1,IF(VLOOKUP("x",Turma!$B$4:$G$53,3,0)="Menina",tblMLS!AD17,tblMLS!AD185),"") -> 101.32 | D18: =IF(Turma!$A$2=1,IF(VLOOKUP("x",Turma!$B$4:$G$53,3,0)="Menina",tblMLS!AE17,tblMLS!AE185),"") -> 106.557 | E18: =IF(Turma!$A$2=1,IF(VLOOKUP("x",Turma!$B$4:$G$53,3,0)="Menina",tblMLS!AF17,tblMLS!AF185),"") -> 111.794 | F18: =IF(Turma!$A$2=1,IF(VLOOKUP("x",Turma!$B$4:$G$53,3,0)="Menina",tblMLS!AG17,tblMLS!AG185),"") -> 117.031 | G18: =IF(Turma!$A$2=1,IF(VLOOKUP("x",Turma!$B$4:$G$53,3,0)="Menina",tblMLS!AH17,tblMLS!AH185),"") -> 122.268 | H18: =IF(Turma!$A$2=1,IF(VLOOKUP("x",Turma!$B$4:$G$53,3,0)="Menina",tblMLS!AI17,tblMLS!AI185),"") -> 127.505 | I18: =IF(Turma!$A$2=1,IF(VLOOKUP("x",Turma!$B$4:$G$53,3,0)="Menina",tblMLS!AJ17,tblMLS!AJ185),"") -> 132.743
A19: 77 | C19: =IF(Turma!$A$2=1,IF(VLOOKUP("x",Turma!$B$4:$G$53,3,0)="Menina",tblMLS!AD18,tblMLS!AD186),"") -> 101.705 | D19: =IF(Turma!$A$2=1,IF(VLOOKUP("x",Turma!$B$4:$G$53,3,0)="Menina",tblMLS!AE18,tblMLS!AE186),"") -> 106.971 | E19: =IF(Turma!$A$2=1,IF(VLOOKUP("x",Turma!$B$4:$G$53,3,0)="Menina",tblMLS!AF18,tblMLS!AF186),"") -> 112.238 | F19: =IF(Turma!$A$2=1,IF(VLOOKUP("x",Turma!$B$4:$G$53,3,0)="Menina",tblMLS!AG18,tblMLS!AG186),"") -> 117.504 | G19: =IF(Turma!$A$2=1,IF(VLOOKUP("x",Turma!$B$4:$G$53,3,0)="Menina",tblMLS!AH18,tblMLS!AH186),"") -> 122.771 | H19: =IF(Turma!$A$2=1,IF(VLOOKUP("x",Turma!$B$4:$G$53,3,0)="Menina",tblMLS!AI18,tblMLS!AI186),"") -> 128.037 | I19: =IF(Turma!$A$2=1,IF(VLOOKUP("x",Turma!$B$4:$G$53,3,0)="Menina",tblMLS!AJ18,tblMLS!AJ186),"") -> 133.304
A20: 78 | C20: =IF(Turma!$A$2=1,IF(VLOOKUP("x",Turma!$B$4:$G$53,3,0)="Menina",tblMLS!AD19,tblMLS!AD187),"") -> 102.089 | D20: =IF(Turma!$A$2=1,IF(VLOOKUP("x",Turma!$B$4:$G$53,3,0)="Menina",tblMLS!AE19,tblMLS!AE187),"") -> 107.385 | E20: =IF(Turma!$A$2=1,IF(VLOOKUP("x",Turma!$B$4:$G$53,3,0)="Menina",tblMLS!AF19,tblMLS!AF187),"") -> 112.681 | F20: =IF(Turma!$A$2=1,IF(VLOOKUP("x",Turma!$B$4:$G$53,3,0)="Menina",tblMLS!AG19,tblMLS!AG187),"") -> 117.977 | G20: =IF(Turma!$A$2=1,IF(VLOOKUP("x",Turma!$B$4:$G$53,3,0)="Menina",tblMLS!AH19,tblMLS!AH187),"") -> 123.273 | H20: =IF(Turma!$A$2=1,IF(VLOOKUP("x",Turma!$B$4:$G$53,3,0)="Menina",tblMLS!AI19,tblMLS!AI187),"") -> 128.569 | I20: =IF(Turma!$A$2=1,IF(VLOOKUP("x",Turma!$B$4:$G$53,3,0)="Menina",tblMLS!AJ19,tblMLS!AJ187),"") -> 133.865
A21: 79 | C21: =IF(Turma!$A$2=1,IF(VLOOKUP("x",Turma!$B$4:$G$53,3,0)="Menina",tblMLS!AD20,tblMLS!AD188),"") -> 102.476 | D21: =IF(Turma!$A$2=1,IF(VLOOKUP("x",Turma!$B$4:$G$53,3,0)="Menina",tblMLS!AE20,tblMLS!AE188),"") -> 107.8 | E21: =IF(Turma!$A$2=1,IF(VLOOKUP("x",Turma!$B$4:$G$53,3,0)="Menina",tblMLS!AF20,tblMLS!AF188),"") -> 113.125 | F21: =IF(Turma!$A$2=1,IF(VLOOKUP("x",Turma!$B$4:$G$53,3,0)="Menina",tblMLS!AG20,tblMLS!AG188),"") -> 118.449 | G21: =IF(Turma!$A$2=1,IF(VLOOKUP("x",Turma!$B$4:$G$53,3,0)="Menina",tblMLS!AH20,tblMLS!AH188),"") -> 123.773 | H21: =IF(Turma!$A$2=1,IF(VLOOKUP("x",Turma!$B$4:$G$53,3,0)="Menina",tblMLS!AI20,tblMLS!AI188),"") -> 129.097 | I21: =IF(Turma!$A$2=1,IF(VLOOKUP("x",Turma!$B$4:$G$53,3,0)="Menina",tblMLS!AJ20,tblMLS!AJ188),"") -> 134.422
A22: 80 | C22: =IF(Turma!$A$2=1,IF(VLOOKUP("x",Turma!$B$4:$G$53,3,0)="Menina",tblMLS!AD21,tblMLS!AD189),"") -> 102.859 | D22: =IF(Turma!$A$2=1,IF(VLOOKUP("x",Turma!$B$4:$G$53,3,0)="Menina",tblMLS!AE21,tblMLS!AE189),"") -> 108.213 | E22: =IF(Turma!$A$2=1,IF(VLOOKUP("x",Turma!$B$4:$G$53,3,0)="Menina",tblMLS!AF21,tblMLS!AF189),"") -> 113.567 | F22: =IF(Turma!$A$2=1,IF(VLOOKUP("x",Turma!$B$4:$G$53,3,0)="Menina",tblMLS!AG21,tblMLS!AG189),"") -> 118.921 | G22: =IF(Turma!$A$2=1,IF(VLOOKUP("x",Turma!$B$4:$G$53,3,0)="Menina",tblMLS!AH21,tblMLS!AH189),"") -> 124.275 | H22: =IF(Turma!$A$2=1,IF(VLOOKUP("x",Turma!$B$4:$G$53,3,0)="Menina",tblMLS!AI21,tblMLS!AI189),"") -> 129.628 | I22: =IF(Turma!$A$2=1,IF(VLOOKUP("x",Turma!$B$4:$G$53,3,0)="Menina",tblMLS!AJ21,tblMLS!AJ189),"") -> 134.982
A23: 81 | C23: =IF(Turma!$A$2=1,IF(VLOOKUP("x",Turma!$B$4:$G$53,3,0)="Menina",tblMLS!AD22,tblMLS!AD190),"") -> 103.246 | D23: =IF(Turma!$A$2=1,IF(VLOOKUP("x",Turma!$B$4:$G$53,3,0)="Menina",tblMLS!AE22,tblMLS!AE190),"") -> 108.628 | E23: =IF(Turma!$A$2=1,IF(VLOOKUP("x",Turma!$B$4:$G$53,3,0)="Menina",tblMLS!AF22,tblMLS!AF190),"") -> 114.01 | F23: =IF(Turma!$A$2=1,IF(VLOOKUP("x",Turma!$B$4:$G$53,3,0)="Menina",tblMLS!AG22,tblMLS!AG190),"") -> 119.393 | G23: =IF(Turma!$A$2=1,IF(VLOOKUP("x",Turma!$B$4:$G$53,3,0)="Menina",tblMLS!AH22,tblMLS!AH190),"") -> 124.775 | H23: =IF(Turma!$A$2=1,IF(VLOOKUP("x",Turma!$B$4:$G$53,3,0)="Menina",tblMLS!AI22,tblMLS!AI190),"") -> 130.157 | I23: =IF(Turma!$A$2=1,IF(VLOOKUP("x",Turma!$B$4:$G$53,3,0)="Menina",tblMLS!AJ22,tblMLS!AJ190),"") -> 135.539
A24: 82 | C24: =IF(Turma!$A$2=1,IF(VLOOKUP("x",Turma!$B$4:$G$53,3,0)="Menina",tblMLS!AD23,tblMLS!AD191),"") -> 103.633 | D24: =IF(Turma!$A$2=1,IF(VLOOKUP("x",Turma!$B$4:$G$53,3,0)="Menina",tblMLS!AE23,tblMLS!AE191),"") -> 109.043 | E24: =IF(Turma!$A$2=1,IF(VLOOKUP("x",Turma!$B$4:$G$53,3,0)="Menina",tblMLS!AF23,tblMLS!AF191),"") -> 114.454 | F24: =IF(Turma!$A$2=1,IF(VLOOKUP("x",Turma!$B$4:$G$53,3,0)="Menina",tblMLS!AG23,tblMLS!AG191),"") -> 119.865 | G24: =IF(Turma!$A$2=1,IF(VLOOKUP("x",Turma!$B$4:$G$53,3,0)="Menina",tblMLS!AH23,tblMLS!AH191),"") -> 125.275 | H24: =IF(Turma!$A$2=1,IF(VLOOKUP("x",Turma!$B$4:$G$53,3,0)="Menina",tblMLS!AI23,tblMLS!AI191),"") -> 130.686 | I24: =IF(Turma!$A$2=1,IF(VLOOKUP("x",Turma!$B$4:$G$53,3,0)="Menina",tblMLS!AJ23,tblMLS!AJ191),"") -> 136.097
A25: 83 | C25: =IF(Turma!$A$2=1,IF(VLOOKUP("x",Turma!$B$4:$G$53,3,0)="Menina",tblMLS!AD24,tblMLS!AD192),"") -> 104.02 | D25: =IF(Turma!$A$2=1,IF(VLOOKUP("x",Turma!$B$4:$G$53,3,0)="Menina",tblMLS!AE24,tblMLS!AE192),"") -> 109.459 | E25: =IF(Turma!$A$2=1,IF(VLOOKUP("x",Turma!$B$4:$G$53,3,0)="Menina",tblMLS!AF24,tblMLS!AF192),"") -> 114.898 | F25: =IF(Turma!$A$2=1,IF(VLOOKUP("x",Turma!$B$4:$G$53,3,0)="Menina",tblMLS!AG24,tblMLS!AG192),"") -> 120.337 | G25: =IF(Turma!$A$2=1,IF(VLOOKUP("x",Turma!$B$4:$G$53,3,0)="Menina",tblMLS!AH24,tblMLS!AH192),"") -> 125.777 | H25: =IF(Turma!$A$2=1,IF(VLOOKUP("x",Turma!$B$4:$G$53,3,0)="Menina",tblMLS!AI24,tblMLS!AI192),"") -> 131.216 | I25: =IF(Turma!$A$2=1,IF(VLOOKUP("x",Turma!$B$4:$G$53,3,0)="Menina",tblMLS!AJ24,tblMLS!AJ192),"") -> 136.655
A26: 84 | B26: 7 | C26: =IF(Turma!$A$2=1,IF(VLOOKUP("x",Turma!$B$4:$G$53,3,0)="Menina",tblMLS!AD25,tblMLS!AD193),"") -> 104.41 | D26: =IF(Turma!$A$2=1,IF(VLOOKUP("x",Turma!$B$4:$G$53,3,0)="Menina",tblMLS!AE25,tblMLS!AE193),"") -> 109.877 | E26: =IF(Turma!$A$2=1,IF(VLOOKUP("x",Turma!$B$4:$G$53,3,0)="Menina",tblMLS!AF25,tblMLS!AF193),"") -> 115.344 | F26: =IF(Turma!$A$2=1,IF(VLOOKUP("x",Turma!$B$4:$G$53,3,0)="Menina",tblMLS!AG25,tblMLS!AG193),"") -> 120.81 | G26: =IF(Turma!$A$2=1,IF(VLOOKUP("x",Turma!$B$4:$G$53,3,0)="Menina",tblMLS!AH25,tblMLS!AH193),"") -> 126.277 | H26: =IF(Turma!$A$2=1,IF(VLOOKUP("x",Turma!$B$4:$G$53,3,0)="Menina",tblMLS!AI25,tblMLS!AI193),"") -> 131.744 | I26: =IF(Turma!$A$2=1,IF(VLOOKUP("x",Turma!$B$4:$G$53,3,0)="Menina",tblMLS!AJ25,tblMLS!AJ193),"") -> 137.211
A27: 85 | C27: =IF(Turma!$A$2=1,IF(VLOOKUP("x",Turma!$B$4:$G$53,3,0)="Menina",tblMLS!AD26,tblMLS!AD194),"") -> 104.798 | D27: =IF(Turma!$A$2=1,IF(VLOOKUP("x",Turma!$B$4:$G$53,3,0)="Menina",tblMLS!AE26,tblMLS!AE194),"") -> 110.294 | E27: =IF(Turma!$A$2=1,IF(VLOOKUP("x",Turma!$B$4:$G$53,3,0)="Menina",tblMLS!AF26,tblMLS!AF194),"") -> 115.789 | F27: =IF(Turma!$A$2=1,IF(VLOOKUP("x",Turma!$B$4:$G$53,3,0)="Menina",tblMLS!AG26,tblMLS!AG194),"") -> 121.284 | G27: =IF(Turma!$A$2=1,IF(VLOOKUP("x",Turma!$B$4:$G$53,3,0)="Menina",tblMLS!AH26,tblMLS!AH194),"") -> 126.78 | H27: =IF(Turma!$A$2=1,IF(VLOOKUP("x",Turma!$B$4:$G$53,3,0)="Menina",tblMLS!AI26,tblMLS!AI194),"") -> 132.275 | I27: =IF(Turma!$A$2=1,IF(VLOOKUP("x",Turma!$B$4:$G$53,3,0)="Menina",tblMLS!AJ26,tblMLS!AJ194),"") -> 137.77
A28: 86 | C28: =IF(Turma!$A$2=1,IF(VLOOKUP("x",Turma!$B$4:$G$53,3,0)="Menina",tblMLS!AD27,tblMLS!AD195),"") -> 105.19 | D28: =IF(Turma!$A$2=1,IF(VLOOKUP("x",Turma!$B$4:$G$53,3,0)="Menina",tblMLS!AE27,tblMLS!AE195),"") -> 110.713 | E28: =IF(Turma!$A$2=1,IF(VLOOKUP("x",Turma!$B$4:$G$53,3,0)="Menina",tblMLS!AF27,tblMLS!AF195),"") -> 116.236 | F28: =IF(Turma!$A$2=1,IF(VLOOKUP("x",Turma!$B$4:$G$53,3,0)="Menina",tblMLS!AG27,tblMLS!AG195),"") -> 121.759 | G28: =IF(Turma!$A$2=1,IF(VLOOKUP("x",Turma!$B$4:$G$53,3,0)="Menina",tblMLS!AH27,tblMLS!AH195),"") -> 127.282 | H28: =IF(Turma!$A$2=1,IF(VLOOKUP("x",Turma!$B$4:$G$53,3,0)="Menina",tblMLS!AI27,tblMLS!AI195),"") -> 132.805 | I28: =IF(Turma!$A$2=1,IF(VLOOKUP("x",Turma!$B$4:$G$53,3,0)="Menina",tblMLS!AJ27,tblMLS!AJ195),"") -> 138.328
A29: 87 | C29: =IF(Turma!$A$2=1,IF(VLOOKUP("x",Turma!$B$4:$G$53,3,0)="Menina",tblMLS!AD28,tblMLS!AD196),"") -> 105.578 | D29: =IF(Turma!$A$2=1,IF(VLOOKUP("x",Turma!$B$4:$G$53,3,0)="Menina",tblMLS!AE28,tblMLS!AE196),"") -> 111.13 | E29: =IF(Turma!$A$2=1,IF(VLOOKUP("x",Turma!$B$4:$G$53,3,0)="Menina",tblMLS!AF28,tblMLS!AF196),"") -> 116.682 | F29: =IF(Turma!$A$2=1,IF(VLOOKUP("x",Turma!$B$4:$G$53,3,0)="Menina",tblMLS!AG28,tblMLS!AG196),"") -> 122.234 | G29: =IF(Turma!$A$2=1,IF(VLOOKUP("x",Turma!$B$4:$G$53,3,0)="Menina",tblMLS!AH28,tblMLS!AH196),"") -> 127.786 | H29: =IF(Turma!$A$2=1,IF(VLOOKUP("x",Turma!$B$4:$G$53,3,0)="Menina",tblMLS!AI28,tblMLS!AI196),"") -> 133.338 | I29: =IF(Turma!$A$2=1,IF(VLOOKUP("x",Turma!$B$4:$G$53,3,0)="Menina",tblMLS!AJ28,tblMLS!AJ196),"") -> 138.889
A30: 88 | C30: =IF(Turma!$A$2=1,IF(VLOOKUP("x",Turma!$B$4:$G$53,3,0)="Menina",tblMLS!AD29,tblMLS!AD197),"") -> 105.971 | D30: =IF(Turma!$A$2=1,IF(VLOOKUP("x",Turma!$B$4:$G$53,3,0)="Menina",tblMLS!AE29,tblMLS!AE197),"") -> 111.551 | E30: =IF(Turma!$A$2=1,IF(VLOOKUP("x",Turma!$B$4:$G$53,3,0)="Menina",tblMLS!AF29,tblMLS!AF197),"") -> 117.13 | F30: =IF(Turma!$A$2=1,IF(VLOOKUP("x",Turma!$B$4:$G$53,3,0)="Menina",tblMLS!AG29,tblMLS!AG197),"") -> 122.71 | G30: =IF(Turma!$A$2=1,IF(VLOOKUP("x",Turma!$B$4:$G$53,3,0)="Menina",tblMLS!AH29,tblMLS!AH197),"") -> 128.289 | H30: =IF(Turma!$A$2=1,IF(VLOOKUP("x",Turma!$B$4:$G$53,3,0)="Menina",tblMLS!AI29,tblMLS!AI197),"") -> 133.869 | I30: =IF(Turma!$A$2=1,IF(VLOOKUP("x",Turma!$B$4:$G$53,3,0)="Menina",tblMLS!AJ29,tblMLS!AJ197),"") -> 139.449
A31: 89 | C31: =IF(Turma!$A$2=1,IF(VLOOKUP("x",Turma!$B$4:$G$53,3,0)="Menina",tblMLS!AD30,tblMLS!AD198),"") -> 106.368 | D31: =IF(Turma!$A$2=1,IF(VLOOKUP("x",Turma!$B$4:$G$53,3,0)="Menina",tblMLS!AE30,tblMLS!AE198),"") -> 111.974 | E31: =IF(Turma!$A$2=1,IF(VLOOKUP("x",Turma!$B$4:$G$53,3,0)="Menina",tblMLS!AF30,tblMLS!AF198),"") -> 117.581 | F31: =IF(Turma!$A$2=1,IF(VLOOKUP("x",Turma!$B$4:$G$53,3,0)="Menina",tblMLS!AG30,tblMLS!AG198),"") -> 123.187 | G31: =IF(Turma!$A$2=1,IF(VLOOKUP("x",Turma!$B$4:$G$53,3,0)="Menina",tblMLS!AH30,tblMLS!AH198),"") -> 128.793 | H31: =IF(Turma!$A$2=1,IF(VLOOKUP("x",Turma!$B$4:$G$53,3,0)="Menina",tblMLS!AI30,tblMLS!AI198),"") -> 134.399 | I31: =IF(Turma!$A$2=1,IF(VLOOKUP("x",Turma!$B$4:$G$53,3,0)="Menina",tblMLS!AJ30,tblMLS!AJ198),"") -> 140.005
A32: 90 | C32: =IF(Turma!$A$2=1,IF(VLOOKUP("x",Turma!$B$4:$G$53,3,0)="Menina",tblMLS!AD31,tblMLS!AD199),"") -> 106.762 | D32: =IF(Turma!$A$2=1,IF(VLOOKUP("x",Turma!$B$4:$G$53,3,0)="Menina",tblMLS!AE31,tblMLS!AE199),"") -> 112.396 | E32: =IF(Turma!$A$2=1,IF(VLOOKUP("x",Turma!$B$4:$G$53,3,0)="Menina",tblMLS!AF31,tblMLS!AF199),"") -> 118.03 | F32: =IF(Turma!$A$2=1,IF(VLOOKUP("x",Turma!$B$4:$G$53,3,0)="Menina",tblMLS!AG31,tblMLS!AG199),"") -> 123.665 | G32: =IF(Turma!$A$2=1,IF(VLOOKUP("x",Turma!$B$4:$G$53,3,0)="Menina",tblMLS!AH31,tblMLS!AH199),"") -> 129.299 | H32: =IF(Turma!$A$2=1,IF(VLOOKUP("x",Turma!$B$4:$G$53,3,0)="Menina",tblMLS!AI31,tblMLS!AI199),"") -> 134.933 | I32: =IF(Turma!$A$2=1,IF(VLOOKUP("x",Turma!$B$4:$G$53,3,0)="Menina",tblMLS!AJ31,tblMLS!AJ199),"") -> 140.567
A33: 91 | C33: =IF(Turma!$A$2=1,IF(VLOOKUP("x",Turma!$B$4:$G$53,3,0)="Menina",tblMLS!AD32,tblMLS!AD200),"") -> 107.157 | D33: =IF(Turma!$A$2=1,IF(VLOOKUP("x",Turma!$B$4:$G$53,3,0)="Menina",tblMLS!AE32,tblMLS!AE200),"") -> 112.819 | E33: =IF(Turma!$A$2=1,IF(VLOOKUP("x",Turma!$B$4:$G$53,3,0)="Menina",tblMLS!AF32,tblMLS!AF200),"") -> 118.481 | F33: =IF(Turma!$A$2=1,IF(VLOOKUP("x",Turma!$B$4:$G$53,3,0)="Menina",tblMLS!AG32,tblMLS!AG200),"") -> 124.144 | G33: =IF(Turma!$A$2=1,IF(VLOOKUP("x",Turma!$B$4:$G$53,3,0)="Menina",tblMLS!AH32,tblMLS!AH200),"") -> 129.806 | H33: =IF(Turma!$A$2=1,IF(VLOOKUP("x",Turma!$B$4:$G$53,3,0)="Menina",tblMLS!AI32,tblMLS!AI200),"") -> 135.468 | I33: =IF(Turma!$A$2=1,IF(VLOOKUP("x",Turma!$B$4:$G$53,3,0)="Menina",tblMLS!AJ32,tblMLS!AJ200),"") -> 141.13
A34: 92 | C34: =IF(Turma!$A$2=1,IF(VLOOKUP("x",Turma!$B$4:$G$53,3,0)="Menina",tblMLS!AD33,tblMLS!AD201),"") -> 107.556 | D34: =IF(Turma!$A$2=1,IF(VLOOKUP("x",Turma!$B$4:$G$53,3,0)="Menina",tblMLS!AE33,tblMLS!AE201),"") -> 113.245 | E34: =IF(Turma!$A$2=1,IF(VLOOKUP("x",Turma!$B$4:$G$53,3,0)="Menina",tblMLS!AF33,tblMLS!AF201),"") -> 118.934 | F34: =IF(Turma!$A$2=1,IF(VLOOKUP("x",Turma!$B$4:$G$53,3,0)="Menina",tblMLS!AG33,tblMLS!AG201),"") -> 124.623 | G34: =IF(Turma!$A$2=1,IF(VLOOKUP("x",Turma!$B$4:$G$53,3,0)="Menina",tblMLS!AH33,tblMLS!AH201),"") -> 130.312 | H34: =IF(Turma!$A$2=1,IF(VLOOKUP("x",Turma!$B$4:$G$53,3,0)="Menina",tblMLS!AI33,tblMLS!AI201),"") -> 136.002 | I34: =IF(Turma!$A$2=1,IF(VLOOKUP("x",Turma!$B$4:$G$53,3,0)="Menina",tblMLS!AJ33,tblMLS!AJ201),"") -> 141.691
A35: 93 | C35: =IF(Turma!$A$2=1,IF(VLOOKUP("x",Turma!$B$4:$G$53,3,0)="Menina",tblMLS!AD34,tblMLS!AD202),"") -> 107.956 | D35: =IF(Turma!$A$2=1,IF(VLOOKUP("x",Turma!$B$4:$G$53,3,0)="Menina",tblMLS!AE34,tblMLS!AE202),"") -> 113.672 | E35: =IF(Turma!$A$2=1,IF(VLOOKUP("x",Turma!$B$4:$G$53,3,0)="Menina",tblMLS!AF34,tblMLS!AF202),"") -> 119.388 | F35: =IF(Turma!$A$2=1,IF(VLOOKUP("x",Turma!$B$4:$G$53,3,0)="Menina",tblMLS!AG34,tblMLS!AG202),"") -> 125.104 | G35: =IF(Turma!$A$2=1,IF(VLOOKUP("x",Turma!$B$4:$G$53,3,0)="Menina",tblMLS!AH34,tblMLS!AH202),"") -> 130.821 | H35: =IF(Turma!$A$2=1,IF(VLOOKUP("x",Turma!$B$4:$G$53,3,0)="Menina",tblMLS!AI34,tblMLS!AI202),"") -> 136.537 | I35: =IF(Turma!$A$2=1,IF(VLOOKUP("x",Turma!$B$4:$G$53,3,0)="Menina",tblMLS!AJ34,tblMLS!AJ202),"") -> 142.253
A36: 94 | C36: =IF(Turma!$A$2=1,IF(VLOOKUP("x",Turma!$B$4:$G$53,3,0)="Menina",tblMLS!AD35,tblMLS!AD203),"") -> 108.358 | D36: =IF(Turma!$A$2=1,IF(VLOOKUP("x",Turma!$B$4:$G$53,3,0)="Menina",tblMLS!AE35,tblMLS!AE203),"") -> 114.101 | E36: =IF(Turma!$A$2=1,IF(VLOOKUP("x",Turma!$B$4:$G$53,3,0)="Menina",tblMLS!AF35,tblMLS!AF203),"") -> 119.844 | F36: =IF(Turma!$A$2=1,IF(VLOOKUP("x",Turma!$B$4:$G$53,3,0)="Menina",tblMLS!AG35,tblMLS!AG203),"") -> 125.587 | G36: =IF(Turma!$A$2=1,IF(VLOOKUP("x",Turma!$B$4:$G$53,3,0)="Menina",tblMLS!AH35,tblMLS!AH203),"") -> 131.33 | H36: =IF(Turma!$A$2=1,IF(VLOOKUP("x",Turma!$B$4:$G$53,3,0)="Menina",tblMLS!AI35,tblMLS!AI203),"") -> 137.073 | I36: =IF(Turma!$A$2=1,IF(VLOOKUP("x",Turma!$B$4:$G$53,3,0)="Menina",tblMLS!AJ35,tblMLS!AJ203),"") -> 142.816
A37: 95 | C37: =IF(Turma!$A$2=1,IF(VLOOKUP("x",Turma!$B$4:$G$53,3,0)="Menina",tblMLS!AD36,tblMLS!AD204),"") -> 108.76 | D37: =IF(Turma!$A$2=1,IF(VLOOKUP("x",Turma!$B$4:$G$53,3,0)="Menina",tblMLS!AE36,tblMLS!AE204),"") -> 114.53 | E37: =IF(Turma!$A$2=1,IF(VLOOKUP("x",Turma!$B$4:$G$53,3,0)="Menina",tblMLS!AF36,tblMLS!AF204),"") -> 120.3 | F37: =IF(Turma!$A$2=1,IF(VLOOKUP("x",Turma!$B$4:$G$53,3,0)="Menina",tblMLS!AG36,tblMLS!AG204),"") -> 126.071 | G37: =IF(Turma!$A$2=1,IF(VLOOKUP("x",Turma!$B$4:$G$53,3,0)="Menina",tblMLS!AH36,tblMLS!AH204),"") -> 131.841 | H37: =IF(Turma!$A$2=1,IF(VLOOKUP("x",Turma!$B$4:$G$53,3,0)="Menina",tblMLS!AI36,tblMLS!AI204),"") -> 137.611 | I37: =IF(Turma!$A$2=1,IF(VLOOKUP("x",Turma!$B$4:$G$53,3,0)="Menina",tblMLS!AJ36,tblMLS!AJ204),"") -> 143.381
A38: 96 | B38: 8 | C38: =IF(Turma!$A$2=1,IF(VLOOKUP("x",Turma!$B$4:$G$53,3,0)="Menina",tblMLS!AD37,tblMLS!AD205),"") -> 109.163 | D38: =IF(Turma!$A$2=1,IF(VLOOKUP("x",Turma!$B$4:$G$53,3,0)="Menina",tblMLS!AE37,tblMLS!AE205),"") -> 114.961 | E38: =IF(Turma!$A$2=1,IF(VLOOKUP("x",Turma!$B$4:$G$53,3,0)="Menina",tblMLS!AF37,tblMLS!AF205),"") -> 120.758 | F38: =IF(Turma!$A$2=1,IF(VLOOKUP("x",Turma!$B$4:$G$53,3,0)="Menina",tblMLS!AG37,tblMLS!AG205),"") -> 126.556 | G38: =IF(Turma!$A$2=1,IF(VLOOKUP("x",Turma!$B$4:$G$53,3,0)="Menina",tblMLS!AH37,tblMLS!AH205),"") -> 132.353 | H38: =IF(Turma!$A$2=1,IF(VLOOKUP("x",Turma!$B$4:$G$53,3,0)="Menina",tblMLS!AI37,tblMLS!AI205),"") -> 138.151 | I38: =IF(Turma!$A$2=1,IF(VLOOKUP("x",Turma!$B$4:$G$53,3,0)="Menina",tblMLS!AJ37,tblMLS!AJ205),"") -> 143.948
A39: 97 | C39: =IF(Turma!$A$2=1,IF(VLOOKUP("x",Turma!$B$4:$G$53,3,0)="Menina",tblMLS!AD38,tblMLS!AD206),"") -> 109.568 | D39: =IF(Turma!$A$2=1,IF(VLOOKUP("x",Turma!$B$4:$G$53,3,0)="Menina",tblMLS!AE38,tblMLS!AE206),"") -> 115.393 | E39: =IF(Turma!$A$2=1,IF(VLOOKUP("x",Turma!$B$4:$G$53,3,0)="Menina",tblMLS!AF38,tblMLS!AF206),"") -> 121.218 | F39: =IF(Turma!$A$2=1,IF(VLOOKUP("x",Turma!$B$4:$G$53,3,0)="Menina",tblMLS!AG38,tblMLS!AG206),"") -> 127.042 | G39: =IF(Turma!$A$2=1,IF(VLOOKUP("x",Turma!$B$4:$G$53,3,0)="Menina",tblMLS!AH38,tblMLS!AH206),"") -> 132.867 | H39: =IF(Turma!$A$2=1,IF(VLOOKUP("x",Turma!$B$4:$G$53,3,0)="Menina",tblMLS!AI38,tblMLS!AI206),"") -> 138.692 | I39: =IF(Turma!$A$2=1,IF(VLOOKUP("x",Turma!$B$4:$G$53,3,0)="Menina",tblMLS!AJ38,tblMLS!AJ206),"") -> 144.517
A40: 98 | C40: =IF(Turma!$A$2=1,IF(VLOOKUP("x",Turma!$B$4:$G$53,3,0)="Menina",tblMLS!AD39,tblMLS!AD207),"") -> 109.977 | D40: =IF(Turma!$A$2=1,IF(VLOOKUP("x",Turma!$B$4:$G$53,3,0)="Menina",tblMLS!AE39,tblMLS!AE207),"") -> 115.828 | E40: =IF(Turma!$A$2=1,IF(VLOOKUP("x",Turma!$B$4:$G$53,3,0)="Menina",tblMLS!AF39,tblMLS!AF207),"") -> 121.679 | F40: =IF(Turma!$A$2=1,IF(VLOOKUP("x",Turma!$B$4:$G$53,3,0)="Menina",tblMLS!AG39,tblMLS!AG207),"") -> 127.53 | G40: =IF(Turma!$A$2=1,IF(VLOOKUP("x",Turma!$B$4:$G$53,3,0)="Menina",tblMLS!AH39,tblMLS!AH207),"") -> 133.381 | H40: =IF(Turma!$A$2=1,IF(VLOOKUP("x",Turma!$B$4:$G$53,3,0)="Menina",tblMLS!AI39,tblMLS!AI207),"") -> 139.233 | I40: =IF(Turma!$A$2=1,IF(VLOOKUP("x",Turma!$B$4:$G$53,3,0)="Menina",tblMLS!AJ39,tblMLS!AJ207),"") -> 145.084
A41: 99 | C41: =IF(Turma!$A$2=1,IF(VLOOKUP("x",Turma!$B$4:$G$53,3,0)="Menina",tblMLS!AD40,tblMLS!AD208),"") -> 110.388 | D41: =IF(Turma!$A$2=1,IF(VLOOKUP("x",Turma!$B$4:$G$53,3,0)="Menina",tblMLS!AE40,tblMLS!AE208),"") -> 116.265 | E41: =IF(Turma!$A$2=1,IF(VLOOKUP("x",Turma!$B$4:$G$53,3,0)="Menina",tblMLS!AF40,tblMLS!AF208),"") -> 122.143 | F41: =IF(Turma!$A$2=1,IF(VLOOKUP("x",Turma!$B$4:$G$53,3,0)="Menina",tblMLS!AG40,tblMLS!AG208),"") -> 128.02 | G41: =IF(Turma!$A$2=1,IF(VLOOKUP("x",Turma!$B$4:$G$53,3,0)="Menina",tblMLS!AH40,tblMLS!AH208),"") -> 133.897 | H41: =IF(Turma!$A$2=1,IF(VLOOKUP("x",Turma!$B$4:$G$53,3,0)="Menina",tblMLS!AI40,tblMLS!AI208),"") -> 139.775 | I41: =IF(Turma!$A$2=1,IF(VLOOKUP("x",Turma!$B$4:$G$53,3,0)="Menina",tblMLS!AJ40,tblMLS!AJ208),"") -> 145.652
A42: 100 | C42: =IF(Turma!$A$2=1,IF(VLOOKUP("x",Turma!$B$4:$G$53,3,0)="Menina",tblMLS!AD41,tblMLS!AD209),"") -> 110.8 | D42: =IF(Turma!$A$2=1,IF(VLOOKUP("x",Turma!$B$4:$G$53,3,0)="Menina",tblMLS!AE41,tblMLS!AE209),"") -> 116.703 | E42: =IF(Turma!$A$2=1,IF(VLOOKUP("x",Turma!$B$4:$G$53,3,0)="Menina",tblMLS!AF41,tblMLS!AF209),"") -> 122.607 | F42: =IF(Turma!$A$2=1,IF(VLOOKUP("x",Turma!$B$4:$G$53,3,0)="Menina",tblMLS!AG41,tblMLS!AG209),"") -> 128.511 | G42: =IF(Turma!$A$2=1,IF(VLOOKUP("x",Turma!$B$4:$G$53,3,0)="Menina",tblMLS!AH41,tblMLS!AH209),"") -> 134.415 | H42: =IF(Turma!$A$2=1,IF(VLOOKUP("x",Turma!$B$4:$G$53,3,0)="Menina",tblMLS!AI41,tblMLS!AI209),"") -> 140.318 | I42: =IF(Turma!$A$2=1,IF(VLOOKUP("x",Turma!$B$4:$G$53,3,0)="Menina",tblMLS!AJ41,tblMLS!AJ209),"") -> 146.222
A43: 101 | C43: =IF(Turma!$A$2=1,IF(VLOOKUP("x",Turma!$B$4:$G$53,3,0)="Menina",tblMLS!AD42,tblMLS!AD210),"") -> 111.213 | D43: =IF(Turma!$A$2=1,IF(VLOOKUP("x",Turma!$B$4:$G$53,3,0)="Menina",tblMLS!AE42,tblMLS!AE210),"") -> 117.143 | E43: =IF(Turma!$A$2=1,IF(VLOOKUP("x",Turma!$B$4:$G$53,3,0)="Menina",tblMLS!AF42,tblMLS!AF210),"") -> 123.073 | F43: =IF(Turma!$A$2=1,IF(VLOOKUP("x",Turma!$B$4:$G$53,3,0)="Menina",tblMLS!AG42,tblMLS!AG210),"") -> 129.004 | G43: =IF(Turma!$A$2=1,IF(VLOOKUP("x",Turma!$B$4:$G$53,3,0)="Menina",tblMLS!AH42,tblMLS!AH210),"") -> 134.934 | H43: =IF(Turma!$A$2=1,IF(VLOOKUP("x",Turma!$B$4:$G$53,3,0)="Menina",tblMLS!AI42,tblMLS!AI210),"") -> 140.864 | I43: =IF(Turma!$A$2=1,IF(VLOOKUP("x",Turma!$B$4:$G$53,3,0)="Menina",tblMLS!AJ42,tblMLS!AJ210),"") -> 146.794
A44: 102 | C44: =IF(Turma!$A$2=1,IF(VLOOKUP("x",Turma!$B$4:$G$53,3,0)="Menina",tblMLS!AD43,tblMLS!AD211),"") -> 111.627 | D44: =IF(Turma!$A$2=1,IF(VLOOKUP("x",Turma!$B$4:$G$53,3,0)="Menina",tblMLS!AE43,tblMLS!AE211),"") -> 117.584 | E44: =IF(Turma!$A$2=1,IF(VLOOKUP("x",Turma!$B$4:$G$53,3,0)="Menina",tblMLS!AF43,tblMLS!AF211),"") -> 123.541 | F44: =IF(Turma!$A$2=1,IF(VLOOKUP("x",Turma!$B$4:$G$53,3,0)="Menina",tblMLS!AG43,tblMLS!AG211),"") -> 129.498 | G44: =IF(Turma!$A$2=1,IF(VLOOKUP("x",Turma!$B$4:$G$53,3,0)="Menina",tblMLS!AH43,tblMLS!AH211),"") -> 135.454 | H44: =IF(Turma!$A$2=1,IF(VLOOKUP("x",Turma!$B$4:$G$53,3,0)="Menina",tblMLS!AI43,tblMLS!AI211),"") -> 141.411 | I44: =IF(Turma!$A$2=1,IF(VLOOKUP("x",Turma!$B$4:$G$53,3,0)="Menina",tblMLS!AJ43,tblMLS!AJ211),"") -> 147.368
A45: 103 | C45: =IF(Turma!$A$2=1,IF(VLOOKUP("x",Turma!$B$4:$G$53,3,0)="Menina",tblMLS!AD44,tblMLS!AD212),"") -> 112.046 | D45: =IF(Turma!$A$2=1,IF(VLOOKUP("x",Turma!$B$4:$G$53,3,0)="Menina",tblMLS!AE44,tblMLS!AE212),"") -> 118.029 | E45: =IF(Turma!$A$2=1,IF(VLOOKUP("x",Turma!$B$4:$G$53,3,0)="Menina",tblMLS!AF44,tblMLS!AF212),"") -> 124.011 | F45: =IF(Turma!$A$2=1,IF(VLOOKUP("x",Turma!$B$4:$G$53,3,0)="Menina",tblMLS!AG44,tblMLS!AG212),"") -> 129.993 | G45: =IF(Turma!$A$2=1,IF(VLOOKUP("x",Turma!$B$4:$G$53,3,0)="Menina",tblMLS!AH44,tblMLS!AH212),"") -> 135.975 | H45: =IF(Turma!$A$2=1,IF(VLOOKUP("x",Turma!$B$4:$G$53,3,0)="Menina",tblMLS!AI44,tblMLS!AI212),"") -> 141.958 | I45: =IF(Turma!$A$2=1,IF(VLOOKUP("x",Turma!$B$4:$G$53,3,0)="Menina",tblMLS!AJ44,tblMLS!AJ212),"") -> 147.94
A46: 104 | C46: =IF(Turma!$A$2=1,IF(VLOOKUP("x",Turma!$B$4:$G$53,3,0)="Menina",tblMLS!AD45,tblMLS!AD213),"") -> 112.467 | D46: =IF(Turma!$A$2=1,IF(VLOOKUP("x",Turma!$B$4:$G$53,3,0)="Menina",tblMLS!AE45,tblMLS!AE213),"") -> 118.475 | E46: =IF(Turma!$A$2=1,IF(VLOOKUP("x",Turma!$B$4:$G$53,3,0)="Menina",tblMLS!AF45,tblMLS!AF213),"") -> 124.483 | F46: =IF(Turma!$A$2=1,IF(VLOOKUP("x",Turma!$B$4:$G$53,3,0)="Menina",tblMLS!AG45,tblMLS!AG213),"") -> 130.49 | G46: =IF(Turma!$A$2=1,IF(VLOOKUP("x",Turma!$B$4:$G$53,3,0)="Menina",tblMLS!AH45,tblMLS!AH213),"") -> 136.498 | H46: =IF(Turma!$A$2=1,IF(VLOOKUP("x",Turma!$B$4:$G$53,3,0)="Menina",tblMLS!AI45,tblMLS!AI213),"") -> 142.506 | I46: =IF(Turma!$A$2=1,IF(VLOOKUP("x",Turma!$B$4:$G$53,3,0)="Menina",tblMLS!AJ45,tblMLS!AJ213),"") -> 148.514
A47: 105 | C47: =IF(Turma!$A$2=1,IF(VLOOKUP("x",Turma!$B$4:$G$53,3,0)="Menina",tblMLS!AD46,tblMLS!AD214),"") -> 112.885 | D47: =IF(Turma!$A$2=1,IF(VLOOKUP("x",Turma!$B$4:$G$53,3,0)="Menina",tblMLS!AE46,tblMLS!AE214),"") -> 118.92 | E47: =IF(Turma!$A$2=1,IF(VLOOKUP("x",Turma!$B$4:$G$53,3,0)="Menina",tblMLS!AF46,tblMLS!AF214),"") -> 124.954 | F47: =IF(Turma!$A$2=1,IF(VLOOKUP("x",Turma!$B$4:$G$53,3,0)="Menina",tblMLS!AG46,tblMLS!AG214),"") -> 130.989 | G47: =IF(Turma!$A$2=1,IF(VLOOKUP("x",Turma!$B$4:$G$53,3,0)="Menina",tblMLS!AH46,tblMLS!AH214),"") -> 137.024 | H47: =IF(Turma!$A$2=1,IF(VLOOKUP("x",Turma!$B$4:$G$53,3,0)="Menina",tblMLS!AI46,tblMLS!AI214),"") -> 143.058 | I47: =IF(Turma!$A$2=1,IF(VLOOKUP("x",Turma!$B$4:$G$53,3,0)="Menina",tblMLS!AJ46,tblMLS!AJ214),"") -> 149.093
A48: 106 | C48: =IF(Turma!$A$2=1,IF(VLOOKUP("x",Turma!$B$4:$G$53,3,0)="Menina",tblMLS!AD47,tblMLS!AD215),"") -> 113.312 | D48: =IF(Turma!$A$2=1,IF(VLOOKUP("x",Turma!$B$4:$G$53,3,0)="Menina",tblMLS!AE47,tblMLS!AE215),"") -> 119.371 | E48: =IF(Turma!$A$2=1,IF(VLOOKUP("x",Turma!$B$4:$G$53,3,0)="Menina",tblMLS!AF47,tblMLS!AF215),"") -> 125.43 | F48: =IF(Turma!$A$2=1,IF(VLOOKUP("x",Turma!$B$4:$G$53,3,0)="Menina",tblMLS!AG47,tblMLS!AG215),"") -> 131.49 | G48: =IF(Turma!$A$2=1,IF(VLOOKUP("x",Turma!$B$4:$G$53,3,0)="Menina",tblMLS!AH47,tblMLS!AH215),"") -> 137.549 | H48: =IF(Turma!$A$2=1,IF(VLOOKUP("x",Turma!$B$4:$G$53,3,0)="Menina",tblMLS!AI47,tblMLS!AI215),"") -> 143.608 | I48: =IF(Turma!$A$2=1,IF(VLOOKUP("x",Turma!$B$4:$G$53,3,0)="Menina",tblMLS!AJ47,tblMLS!AJ215),"") -> 149.667
A49: 107 | C49: =IF(Turma!$A$2=1,IF(VLOOKUP("x",Turma!$B$4:$G$53,3,0)="Menina",tblMLS!AD48,tblMLS!AD216),"") -> 113.737 | D49: =IF(Turma!$A$2=1,IF(VLOOKUP("x",Turma!$B$4:$G$53,3,0)="Menina",tblMLS!AE48,tblMLS!AE216),"") -> 119.822 | E49: =IF(Turma!$A$2=1,IF(VLOOKUP("x",Turma!$B$4:$G$53,3,0)="Menina",tblMLS!AF48,tblMLS!AF216),"") -> 125.906 | F49: =IF(Turma!$A$2=1,IF(VLOOKUP("x",Turma!$B$4:$G$53,3,0)="Menina",tblMLS!AG48,tblMLS!AG216),"") -> 131.991 | G49: =IF(Turma!$A$2=1,IF(VLOOKUP("x",Turma!$B$4:$G$53,3,0)="Menina",tblMLS!AH48,tblMLS!AH216),"") -> 138.076 | H49: =IF(Turma!$A$2=1,IF(VLOOKUP("x",Turma!$B$4:$G$53,3,0)="Menina",tblMLS!AI48,tblMLS!AI216),"") -> 144.161 | I49: =IF(Turma!$A$2=1,IF(VLOOKUP("x",Turma!$B$4:$G$53,3,0)="Menina",tblMLS!AJ48,tblMLS!AJ216),"") -> 150.246
A50: 108 | B50: 9 | C50: =IF(Turma!$A$2=1,IF(VLOOKUP("x",Turma!$B$4:$G$53,3,0)="Menina",tblMLS!AD49,tblMLS!AD217),"") -> 114.162 | D50: =IF(Turma!$A$2=1,IF(VLOOKUP("x",Turma!$B$4:$G$53,3,0)="Menina",tblMLS!AE49,tblMLS!AE217),"") -> 120.273 | E50: =IF(Turma!$A$2=1,IF(VLOOKUP("x",Turma!$B$4:$G$53,3,0)="Menina",tblMLS!AF49,tblMLS!AF217),"") -> 126.384 | F50: =IF(Turma!$A$2=1,IF(VLOOKUP("x",Turma!$B$4:$G$53,3,0)="Menina",tblMLS!AG49,tblMLS!AG217),"") -> 132.494 | G50: =IF(Turma!$A$2=1,IF(VLOOKUP("x",Turma!$B$4:$G$53,3,0)="Menina",tblMLS!AH49,tblMLS!AH217),"") -> 138.605 | H50: =IF(Turma!$A$2=1,IF(VLOOKUP("x",Turma!$B$4:$G$53,3,0)="Menina",tblMLS!AI49,tblMLS!AI217),"") -> 144.716 | I50: =IF(Turma!$A$2=1,IF(VLOOKUP("x",Turma!$B$4:$G$53,3,0)="Menina",tblMLS!AJ49,tblMLS!AJ217),"") -> 150.826
A51: 109 | C51: =IF(Turma!$A$2=1,IF(VLOOKUP("x",Turma!$B$4:$G$53,3,0)="Menina",tblMLS!AD50,tblMLS!AD218),"") -> 114.593 | D51: =IF(Turma!$A$2=1,IF(VLOOKUP("x",Turma!$B$4:$G$53,3,0)="Menina",tblMLS!AE50,tblMLS!AE218),"") -> 120.728 | E51: =IF(Turma!$A$2=1,IF(VLOOKUP("x",Turma!$B$4:$G$53,3,0)="Menina",tblMLS!AF50,tblMLS!AF218),"") -> 126.864 | F51: =IF(Turma!$A$2=1,IF(VLOOKUP("x",Turma!$B$4:$G$53,3,0)="Menina",tblMLS!AG50,tblMLS!AG218),"") -> 132.999 | G51: =IF(Turma!$A$2=1,IF(VLOOKUP("x",Turma!$B$4:$G$53,3,0)="Menina",tblMLS!AH50,tblMLS!AH218),"") -> 139.134 | H51: =IF(Turma!$A$2=1,IF(VLOOKUP("x",Turma!$B$4:$G$53,3,0)="Menina",tblMLS!AI50,tblMLS!AI218),"") -> 145.269 | I51: =IF(Turma!$A$2=1,IF(VLOOKUP("x",Turma!$B$4:$G$53,3,0)="Menina",tblMLS!AJ50,tblMLS!AJ218),"") -> 151.405
A52: 110 | C52: =IF(Turma!$A$2=1,IF(VLOOKUP("x",Turma!$B$4:$G$53,3,0)="Menina",tblMLS!AD51,tblMLS!AD219),"") -> 115.025 | D52: =IF(Turma!$A$2=1,IF(VLOOKUP("x",Turma!$B$4:$G$53,3,0)="Menina",tblMLS!AE51,tblMLS!AE219),"") -> 121.185 | E52: =IF(Turma!$A$2=1,IF(VLOOKUP("x",Turma!$B$4:$G$53,3,0)="Menina",tblMLS!AF51,tblMLS!AF219),"") -> 127.345 | F52: =IF(Turma!$A$2=1,IF(VLOOKUP("x",Turma!$B$4:$G$53,3,0)="Menina",tblMLS!AG51,tblMLS!AG219),"") -> 133.505 | G52: =IF(Turma!$A$2=1,IF(VLOOKUP("x",Turma!$B$4:$G$53,3,0)="Menina",tblMLS!AH51,tblMLS!AH219),"") -> 139.665 | H52: =IF(Turma!$A$2=1,IF(VLOOKUP("x",Turma!$B$4:$G$53,3,0)="Menina",tblMLS!AI51,tblMLS!AI219),"") -> 145.824 | I52: =IF(Turma!$A$2=1,IF(VLOOKUP("x",Turma!$B$4:$G$53,3,0)="Menina",tblMLS!AJ51,tblMLS!AJ219),"") -> 151.984
A53: 111 | C53: =IF(Turma!$A$2=1,IF(VLOOKUP("x",Turma!$B$4:$G$53,3,0)="Menina",tblMLS!AD52,tblMLS!AD220),"") -> 115.458 | D53: =IF(Turma!$A$2=1,IF(VLOOKUP("x",Turma!$B$4:$G$53,3,0)="Menina",tblMLS!AE52,tblMLS!AE220),"") -> 121.643 | E53: =IF(Turma!$A$2=1,IF(VLOOKUP("x",Turma!$B$4:$G$53,3,0)="Menina",tblMLS!AF52,tblMLS!AF220),"") -> 127.827 | F53: =IF(Turma!$A$2=1,IF(VLOOKUP("x",Turma!$B$4:$G$53,3,0)="Menina",tblMLS!AG52,tblMLS!AG220),"") -> 134.012 | G53: =IF(Turma!$A$2=1,IF(VLOOKUP("x",Turma!$B$4:$G$53,3,0)="Menina",tblMLS!AH52,tblMLS!AH220),"") -> 140.196 | H53: =IF(Turma!$A$2=1,IF(VLOOKUP("x",Turma!$B$4:$G$53,3,0)="Menina",tblMLS!AI52,tblMLS!AI220),"") -> 146.381 | I53: =IF(Turma!$A$2=1,IF(VLOOKUP("x",Turma!$B$4:$G$53,3,0)="Menina",tblMLS!AJ52,tblMLS!AJ220),"") -> 152.566
A54: 112 | C54: =IF(Turma!$A$2=1,IF(VLOOKUP("x",Turma!$B$4:$G$53,3,0)="Menina",tblMLS!AD53,tblMLS!AD221),"") -> 115.892 | D54: =IF(Turma!$A$2=1,IF(VLOOKUP("x",Turma!$B$4:$G$53,3,0)="Menina",tblMLS!AE53,tblMLS!AE221),"") -> 122.101 | E54: =IF(Turma!$A$2=1,IF(VLOOKUP("x",Turma!$B$4:$G$53,3,0)="Menina",tblMLS!AF53,tblMLS!AF221),"") -> 128.311 | F54: =IF(Turma!$A$2=1,IF(VLOOKUP("x",Turma!$B$4:$G$53,3,0)="Menina",tblMLS!AG53,tblMLS!AG221),"") -> 134.52 | G54: =IF(Turma!$A$2=1,IF(VLOOKUP("x",Turma!$B$4:$G$53,3,0)="Menina",tblMLS!AH53,tblMLS!AH221),"") -> 140.73 | H54: =IF(Turma!$A$2=1,IF(VLOOKUP("x",Turma!$B$4:$G$53,3,0)="Menina",tblMLS!AI53,tblMLS!AI221),"") -> 146.939 | I54: =IF(Turma!$A$2=1,IF(VLOOKUP("x",Turma!$B$4:$G$53,3,0)="Menina",tblMLS!AJ53,tblMLS!AJ221),"") -> 153.149
A55: 113 | C55: =IF(Turma!$A$2=1,IF(VLOOKUP("x",Turma!$B$4:$G$53,3,0)="Menina",tblMLS!AD54,tblMLS!AD222),"") -> 116.331 | D55: =IF(Turma!$A$2=1,IF(VLOOKUP("x",Turma!$B$4:$G$53,3,0)="Menina",tblMLS!AE54,tblMLS!AE222),"") -> 122.564 | E55: =IF(Turma!$A$2=1,IF(VLOOKUP("x",Turma!$B$4:$G$53,3,0)="Menina",tblMLS!AF54,tblMLS!AF222),"") -> 128.797 | F55: =IF(Turma!$A$2=1,IF(VLOOKUP("x",Turma!$B$4:$G$53,3,0)="Menina",tblMLS!AG54,tblMLS!AG222),"") -> 135.03 | G55: =IF(Turma!$A$2=1,IF(VLOOKUP("x",Turma!$B$4:$G$53,3,0)="Menina",tblMLS!AH54,tblMLS!AH222),"") -> 141.263 | H55: =IF(Turma!$A$2=1,IF(VLOOKUP("x",Turma!$B$4:$G$53,3,0)="Menina",tblMLS!AI54,tblMLS!AI222),"") -> 147.496 | I55: =IF(Turma!$A$2=1,IF(VLOOKUP("x",Turma!$B$4:$G$53,3,0)="Menina",tblMLS!AJ54,tblMLS!AJ222),"") -> 153.729
A56: 114 | C56: =IF(Turma!$A$2=1,IF(VLOOKUP("x",Turma!$B$4:$G$53,3,0)="Menina",tblMLS!AD55,tblMLS!AD223),"") -> 116.767 | D56: =IF(Turma!$A$2=1,IF(VLOOKUP("x",Turma!$B$4:$G$53,3,0)="Menina",tblMLS!AE55,tblMLS!AE223),"") -> 123.025 | E56: =IF(Turma!$A$2=1,IF(VLOOKUP("x",Turma!$B$4:$G$53,3,0)="Menina",tblMLS!AF55,tblMLS!AF223),"") -> 129.283 | F56: =IF(Turma!$A$2=1,IF(VLOOKUP("x",Turma!$B$4:$G$53,3,0)="Menina",tblMLS!AG55,tblMLS!AG223),"") -> 135.541 | G56: =IF(Turma!$A$2=1,IF(VLOOKUP("x",Turma!$B$4:$G$53,3,0)="Menina",tblMLS!AH55,tblMLS!AH223),"") -> 141.799 | H56: =IF(Turma!$A$2=1,IF(VLOOKUP("x",Turma!$B$4:$G$53,3,0)="Menina",tblMLS!AI55,tblMLS!AI223),"") -> 148.057 | I56: =IF(Turma!$A$2=1,IF(VLOOKUP("x",Turma!$B$4:$G$53,3,0)="Menina",tblMLS!AJ55,tblMLS!AJ223),"") -> 154.315
A57: 115 | C57: =IF(Turma!$A$2=1,IF(VLOOKUP("x",Turma!$B$4:$G$53,3,0)="Menina",tblMLS!AD56,tblMLS!AD224),"") -> 117.209 | D57: =IF(Turma!$A$2=1,IF(VLOOKUP("x",Turma!$B$4:$G$53,3,0)="Menina",tblMLS!AE56,tblMLS!AE224),"") -> 123.49 | E57: =IF(Turma!$A$2=1,IF(VLOOKUP("x",Turma!$B$4:$G$53,3,0)="Menina",tblMLS!AF56,tblMLS!AF224),"") -> 129.772 | F57: =IF(Turma!$A$2=1,IF(VLOOKUP("x",Turma!$B$4:$G$53,3,0)="Menina",tblMLS!AG56,tblMLS!AG224),"") -> 136.053 | G57: =IF(Turma!$A$2=1,IF(VLOOKUP("x",Turma!$B$4:$G$53,3,0)="Menina",tblMLS!AH56,tblMLS!AH224),"") -> 142.335 | H57: =IF(Turma!$A$2=1,IF(VLOOKUP("x",Turma!$B$4:$G$53,3,0)="Menina",tblMLS!AI56,tblMLS!AI224),"") -> 148.616 | I57: =IF(Turma!$A$2=1,IF(VLOOKUP("x",Turma!$B$4:$G$53,3,0)="Menina",tblMLS!AJ56,tblMLS!AJ224),"") -> 154.898
A58: 116 | C58: =IF(Turma!$A$2=1,IF(VLOOKUP("x",Turma!$B$4:$G$53,3,0)="Menina",tblMLS!AD57,tblMLS!AD225),"") -> 117.655 | D58: =IF(Turma!$A$2=1,IF(VLOOKUP("x",Turma!$B$4:$G$53,3,0)="Menina",tblMLS!AE57,tblMLS!AE225),"") -> 123.959 | E58: =IF(Turma!$A$2=1,IF(VLOOKUP("x",Turma!$B$4:$G$53,3,0)="Menina",tblMLS!AF57,tblMLS!AF225),"") -> 130.263 | F58: =IF(Turma!$A$2=1,IF(VLOOKUP("x",Turma!$B$4:$G$53,3,0)="Menina",tblMLS!AG57,tblMLS!AG225),"") -> 136.567 | G58: =IF(Turma!$A$2=1,IF(VLOOKUP("x",Turma!$B$4:$G$53,3,0)="Menina",tblMLS!AH57,tblMLS!AH225),"") -> 142.871 | H58: =IF(Turma!$A$2=1,IF(VLOOKUP("x",Turma!$B$4:$G$53,3,0)="Menina",tblMLS!AI57,tblMLS!AI225),"") -> 149.175 | I58: =IF(Turma!$A$2=1,IF(VLOOKUP("x",Turma!$B$4:$G$53,3,0)="Menina",tblMLS!AJ57,tblMLS!AJ225),"") -> 155.479
A59: 117 | C59: =IF(Turma!$A$2=1,IF(VLOOKUP("x",Turma!$B$4:$G$53,3,0)="Menina",tblMLS!AD58,tblMLS!AD226),"") -> 118.099 | D59: =IF(Turma!$A$2=1,IF(VLOOKUP("x",Turma!$B$4:$G$53,3,0)="Menina",tblMLS!AE58,tblMLS!AE226),"") -> 124.427 | E59: =IF(Turma!$A$2=1,IF(VLOOKUP("x",Turma!$B$4:$G$53,3,0)="Menina",tblMLS!AF58,tblMLS!AF226),"") -> 130.754 | F59: =IF(Turma!$A$2=1,IF(VLOOKUP("x",Turma!$B$4:$G$53,3,0)="Menina",tblMLS!AG58,tblMLS!AG226),"") -> 137.082 | G59: =IF(Turma!$A$2=1,IF(VLOOKUP("x",Turma!$B$4:$G$53,3,0)="Menina",tblMLS!AH58,tblMLS!AH226),"") -> 143.41 | H59: =IF(Turma!$A$2=1,IF(VLOOKUP("x",Turma!$B$4:$G$53,3,0)="Menina",tblMLS!AI58,tblMLS!AI226),"") -> 149.738 | I59: =IF(Turma!$A$2=1,IF(VLOOKUP("x",Turma!$B$4:$G$53,3,0)="Menina",tblMLS!AJ58,tblMLS!AJ226),"") -> 156.065
A60: 118 | C60: =IF(Turma!$A$2=1,IF(VLOOKUP("x",Turma!$B$4:$G$53,3,0)="Menina",tblMLS!AD59,tblMLS!AD227),"") -> 118.544 | D60: =IF(Turma!$A$2=1,IF(VLOOKUP("x",Turma!$B$4:$G$53,3,0)="Menina",tblMLS!AE59,tblMLS!AE227),"") -> 124.896 | E60: =IF(Turma!$A$2=1,IF(VLOOKUP("x",Turma!$B$4:$G$53,3,0)="Menina",tblMLS!AF59,tblMLS!AF227),"") -> 131.247 | F60: =IF(Turma!$A$2=1,IF(VLOOKUP("x",Turma!$B$4:$G$53,3,0)="Menina",tblMLS!AG59,tblMLS!AG227),"") -> 137.599 | G60: =IF(Turma!$A$2=1,IF(VLOOKUP("x",Turma!$B$4:$G$53,3,0)="Menina",tblMLS!AH59,tblMLS!AH227),"") -> 143.95 | H60: =IF(Turma!$A$2=1,IF(VLOOKUP("x",Turma!$B$4:$G$53,3,0)="Menina",tblMLS!AI59,tblMLS!AI227),"") -> 150.302 | I60: =IF(Turma!$A$2=1,IF(VLOOKUP("x",Turma!$B$4:$G$53,3,0)="Menina",tblMLS!AJ59,tblMLS!AJ227),"") -> 156.653
A61: 119 | C61: =IF(Turma!$A$2=1,IF(VLOOKUP("x",Turma!$B$4:$G$53,3,0)="Menina",tblMLS!AD60,tblMLS!AD228),"") -> 118.994 | D61: =IF(Turma!$A$2=1,IF(VLOOKUP("x",Turma!$B$4:$G$53,3,0)="Menina",tblMLS!AE60,tblMLS!AE228),"") -> 125.369 | E61: =IF(Turma!$A$2=1,IF(VLOOKUP("x",Turma!$B$4:$G$53,3,0)="Menina",tblMLS!AF60,tblMLS!AF228),"") -> 131.743 | F61: =IF(Turma!$A$2=1,IF(VLOOKUP("x",Turma!$B$4:$G$53,3,0)="Menina",tblMLS!AG60,tblMLS!AG228),"") -> 138.117 | G61: =IF(Turma!$A$2=1,IF(VLOOKUP("x",Turma!$B$4:$G$53,3,0)="Menina",tblMLS!AH60,tblMLS!AH228),"") -> 144.491 | H61: =IF(Turma!$A$2=1,IF(VLOOKUP("x",Turma!$B$4:$G$53,3,0)="Menina",tblMLS!AI60,tblMLS!AI228),"") -> 150.865 | I61: =IF(Turma!$A$2=1,IF(VLOOKUP("x",Turma!$B$4:$G$53,3,0)="Menina",tblMLS!AJ60,tblMLS!AJ228),"") -> 157.239
A62: 120 | B62: 10 | C62: =IF(Turma!$A$2=1,IF(VLOOKUP("x",Turma!$B$4:$G$53,3,0)="Menina",tblMLS!AD61,tblMLS!AD229),"") -> 119.446 | D62: =IF(Turma!$A$2=1,IF(VLOOKUP("x",Turma!$B$4:$G$53,3,0)="Menina",tblMLS!AE61,tblMLS!AE229),"") -> 125.843 | E62: =IF(Turma!$A$2=1,IF(VLOOKUP("x",Turma!$B$4:$G$53,3,0)="Menina",tblMLS!AF61,tblMLS!AF229),"") -> 132.24 | F62: =IF(Turma!$A$2=1,IF(VLOOKUP("x",Turma!$B$4:$G$53,3,0)="Menina",tblMLS!AG61,tblMLS!AG229),"") -> 138.636 | G62: =IF(Turma!$A$2=1,IF(VLOOKUP("x",Turma!$B$4:$G$53,3,0)="Menina",tblMLS!AH61,tblMLS!AH229),"") -> 145.033 | H62: =IF(Turma!$A$2=1,IF(VLOOKUP("x",Turma!$B$4:$G$53,3,0)="Menina",tblMLS!AI61,tblMLS!AI229),"") -> 151.43 | I62: =IF(Turma!$A$2=1,IF(VLOOKUP("x",Turma!$B$4:$G$53,3,0)="Menina",tblMLS!AJ61,tblMLS!AJ229),"") -> 157.826
A63: 121 | C63: =IF(Turma!$A$2=1,IF(VLOOKUP("x",Turma!$B$4:$G$53,3,0)="Menina",tblMLS!AD62,tblMLS!AD230),"") -> 119.904 | D63: =IF(Turma!$A$2=1,IF(VLOOKUP("x",Turma!$B$4:$G$53,3,0)="Menina",tblMLS!AE62,tblMLS!AE230),"") -> 126.322 | E63: =IF(Turma!$A$2=1,IF(VLOOKUP("x",Turma!$B$4:$G$53,3,0)="Menina",tblMLS!AF62,tblMLS!AF230),"") -> 132.74 | F63: =IF(Turma!$A$2=1,IF(VLOOKUP("x",Turma!$B$4:$G$53,3,0)="Menina",tblMLS!AG62,tblMLS!AG230),"") -> 139.158 | G63: =IF(Turma!$A$2=1,IF(VLOOKUP("x",Turma!$B$4:$G$53,3,0)="Menina",tblMLS!AH62,tblMLS!AH230),"") -> 145.575 | H63: =IF(Turma!$A$2=1,IF(VLOOKUP("x",Turma!$B$4:$G$53,3,0)="Menina",tblMLS!AI62,tblMLS!AI230),"") -> 151.993 | I63: =IF(Turma!$A$2=1,IF(VLOOKUP("x",Turma!$B$4:$G$53,3,0)="Menina",tblMLS!AJ62,tblMLS!AJ230),"") -> 158.411
A64: 122 | C64: =IF(Turma!$A$2=1,IF(VLOOKUP("x",Turma!$B$4:$G$53,3,0)="Menina",tblMLS!AD63,tblMLS!AD231),"") -> 120.358 | D64: =IF(Turma!$A$2=1,IF(VLOOKUP("x",Turma!$B$4:$G$53,3,0)="Menina",tblMLS!AE63,tblMLS!AE231),"") -> 126.799 | E64: =IF(Turma!$A$2=1,IF(VLOOKUP("x",Turma!$B$4:$G$53,3,0)="Menina",tblMLS!AF63,tblMLS!AF231),"") -> 133.24 | F64: =IF(Turma!$A$2=1,IF(VLOOKUP("x",Turma!$B$4:$G$53,3,0)="Menina",tblMLS!AG63,tblMLS!AG231),"") -> 139.68 | G64: =IF(Turma!$A$2=1,IF(VLOOKUP("x",Turma!$B$4:$G$53,3,0)="Menina",tblMLS!AH63,tblMLS!AH231),"") -> 146.121 | H64: =IF(Turma!$A$2=1,IF(VLOOKUP("x",Turma!$B$4:$G$53,3,0)="Menina",tblMLS!AI63,tblMLS!AI231),"") -> 152.562 | I64: =IF(Turma!$A$2=1,IF(VLOOKUP("x",Turma!$B$4:$G$53,3,0)="Menina",tblMLS!AJ63,tblMLS!AJ231),"") -> 159.002
A65: 123 | C65: =IF(Turma!$A$2=1,IF(VLOOKUP("x",Turma!$B$4:$G$53,3,0)="Menina",tblMLS!AD64,tblMLS!AD232),"") -> 120.819 | D65: =IF(Turma!$A$2=1,IF(VLOOKUP("x",Turma!$B$4:$G$53,3,0)="Menina",tblMLS!AE64,tblMLS!AE232),"") -> 127.281 | E65: =IF(Turma!$A$2=1,IF(VLOOKUP("x",Turma!$B$4:$G$53,3,0)="Menina",tblMLS!AF64,tblMLS!AF232),"") -> 133.743 | F65: =IF(Turma!$A$2=1,IF(VLOOKUP("x",Turma!$B$4:$G$53,3,0)="Menina",tblMLS!AG64,tblMLS!AG232),"") -> 140.205 | G65: =IF(Turma!$A$2=1,IF(VLOOKUP("x",Turma!$B$4:$G$53,3,0)="Menina",tblMLS!AH64,tblMLS!AH232),"") -> 146.667 | H65: =IF(Turma!$A$2=1,IF(VLOOKUP("x",Turma!$B$4:$G$53,3,0)="Menina",tblMLS!AI64,tblMLS!AI232),"") -> 153.129 | I65: =IF(Turma!$A$2=1,IF(VLOOKUP("x",Turma!$B$4:$G$53,3,0)="Menina",tblMLS!AJ64,tblMLS!AJ232),"") -> 159.591
A66: 124 | C66: =IF(Turma!$A$2=1,IF(VLOOKUP("x",Turma!$B$4:$G$53,3,0)="Menina",tblMLS!AD65,tblMLS!AD233),"") -> 121.281 | D66: =IF(Turma!$A$2=1,IF(VLOOKUP("x",Turma!$B$4:$G$53,3,0)="Menina",tblMLS!AE65,tblMLS!AE233),"") -> 127.764 | E66: =IF(Turma!$A$2=1,IF(VLOOKUP("x",Turma!$B$4:$G$53,3,0)="Menina",tblMLS!AF65,tblMLS!AF233),"") -> 134.248 | F66: =IF(Turma!$A$2=1,IF(VLOOKUP("x",Turma!$B$4:$G$53,3,0)="Menina",tblMLS!AG65,tblMLS!AG233),"") -> 140.731 | G66: =IF(Turma!$A$2=1,IF(VLOOKUP("x",Turma!$B$4:$G$53,3,0)="Menina",tblMLS!AH65,tblMLS!AH233),"") -> 147.215 | H66: =IF(Turma!$A$2=1,IF(VLOOKUP("x",Turma!$B$4:$G$53,3,0)="Menina",tblMLS!AI65,tblMLS!AI233),"") -> 153.698 | I66: =IF(Turma!$A$2=1,IF(VLOOKUP("x",Turma!$B$4:$G$53,3,0)="Menina",tblMLS!AJ65,tblMLS!AJ233),"") -> 160.182
A67: 125 | B67: =IF(A67/12=INT(A67/12),A67/12,"") ->  | C67: =IF(Turma!$A$2=1,IF(VLOOKUP("x",Turma!$B$4:$G$53,3,0)="Menina",tblMLS!AD66,tblMLS!AD234),"") -> 121.744 | D67: =IF(Turma!$A$2=1,IF(VLOOKUP("x",Turma!$B$4:$G$53,3,0)="Menina",tblMLS!AE66,tblMLS!AE234),"") -> 128.249 | E67: =IF(Turma!$A$2=1,IF(VLOOKUP("x",Turma!$B$4:$G$53,3,0)="Menina",tblMLS!AF66,tblMLS!AF234),"") -> 134.754 | F67: =IF(Turma!$A$2=1,IF(VLOOKUP("x",Turma!$B$4:$G$53,3,0)="Menina",tblMLS!AG66,tblMLS!AG234),"") -> 141.259 | G67: =IF(Turma!$A$2=1,IF(VLOOKUP("x",Turma!$B$4:$G$53,3,0)="Menina",tblMLS!AH66,tblMLS!AH234),"") -> 147.764 | H67: =IF(Turma!$A$2=1,IF(VLOOKUP("x",Turma!$B$4:$G$53,3,0)="Menina",tblMLS!AI66,tblMLS!AI234),"") -> 154.269 | I67: =IF(Turma!$A$2=1,IF(VLOOKUP("x",Turma!$B$4:$G$53,3,0)="Menina",tblMLS!AJ66,tblMLS!AJ234),"") -> 160.774
A68: 126 | C68: =IF(Turma!$A$2=1,IF(VLOOKUP("x",Turma!$B$4:$G$53,3,0)="Menina",tblMLS!AD67,tblMLS!AD235),"") -> 122.21 | D68: =IF(Turma!$A$2=1,IF(VLOOKUP("x",Turma!$B$4:$G$53,3,0)="Menina",tblMLS!AE67,tblMLS!AE235),"") -> 128.736 | E68: =IF(Turma!$A$2=1,IF(VLOOKUP("x",Turma!$B$4:$G$53,3,0)="Menina",tblMLS!AF67,tblMLS!AF235),"") -> 135.263 | F68: =IF(Turma!$A$2=1,IF(VLOOKUP("x",Turma!$B$4:$G$53,3,0)="Menina",tblMLS!AG67,tblMLS!AG235),"") -> 141.789 | G68: =IF(Turma!$A$2=1,IF(VLOOKUP("x",Turma!$B$4:$G$53,3,0)="Menina",tblMLS!AH67,tblMLS!AH235),"") -> 148.316 | H68: =IF(Turma!$A$2=1,IF(VLOOKUP("x",Turma!$B$4:$G$53,3,0)="Menina",tblMLS!AI67,tblMLS!AI235),"") -> 154.842 | I68: =IF(Turma!$A$2=1,IF(VLOOKUP("x",Turma!$B$4:$G$53,3,0)="Menina",tblMLS!AJ67,tblMLS!AJ235),"") -> 161.369
A69: 127 | C69: =IF(Turma!$A$2=1,IF(VLOOKUP("x",Turma!$B$4:$G$53,3,0)="Menina",tblMLS!AD68,tblMLS!AD236),"") -> 122.68 | D69: =IF(Turma!$A$2=1,IF(VLOOKUP("x",Turma!$B$4:$G$53,3,0)="Menina",tblMLS!AE68,tblMLS!AE236),"") -> 129.227 | E69: =IF(Turma!$A$2=1,IF(VLOOKUP("x",Turma!$B$4:$G$53,3,0)="Menina",tblMLS!AF68,tblMLS!AF236),"") -> 135.774 | F69: =IF(Turma!$A$2=1,IF(VLOOKUP("x",Turma!$B$4:$G$53,3,0)="Menina",tblMLS!AG68,tblMLS!AG236),"") -> 142.321 | G69: =IF(Turma!$A$2=1,IF(VLOOKUP("x",Turma!$B$4:$G$53,3,0)="Menina",tblMLS!AH68,tblMLS!AH236),"") -> 148.867 | H69: =IF(Turma!$A$2=1,IF(VLOOKUP("x",Turma!$B$4:$G$53,3,0)="Menina",tblMLS!AI68,tblMLS!AI236),"") -> 155.414 | I69: =IF(Turma!$A$2=1,IF(VLOOKUP("x",Turma!$B$4:$G$53,3,0)="Menina",tblMLS!AJ68,tblMLS!AJ236),"") -> 161.961
A70: 128 | C70: =IF(Turma!$A$2=1,IF(VLOOKUP("x",Turma!$B$4:$G$53,3,0)="Menina",tblMLS!AD69,tblMLS!AD237),"") -> 123.152 | D70: =IF(Turma!$A$2=1,IF(VLOOKUP("x",Turma!$B$4:$G$53,3,0)="Menina",tblMLS!AE69,tblMLS!AE237),"") -> 129.719 | E70: =IF(Turma!$A$2=1,IF(VLOOKUP("x",Turma!$B$4:$G$53,3,0)="Menina",tblMLS!AF69,tblMLS!AF237),"") -> 136.286 | F70: =IF(Turma!$A$2=1,IF(VLOOKUP("x",Turma!$B$4:$G$53,3,0)="Menina",tblMLS!AG69,tblMLS!AG237),"") -> 142.853 | G70: =IF(Turma!$A$2=1,IF(VLOOKUP("x",Turma!$B$4:$G$53,3,0)="Menina",tblMLS!AH69,tblMLS!AH237),"") -> 149.42 | H70: =IF(Turma!$A$2=1,IF(VLOOKUP("x",Turma!$B$4:$G$53,3,0)="Menina",tblMLS!AI69,tblMLS!AI237),"") -> 155.987 | I70: =IF(Turma!$A$2=1,IF(VLOOKUP("x",Turma!$B$4:$G$53,3,0)="Menina",tblMLS!AJ69,tblMLS!AJ237),"") -> 162.554
A71: 129 | C71: =IF(Turma!$A$2=1,IF(VLOOKUP("x",Turma!$B$4:$G$53,3,0)="Menina",tblMLS!AD70,tblMLS!AD238),"") -> 123.626 | D71: =IF(Turma!$A$2=1,IF(VLOOKUP("x",Turma!$B$4:$G$53,3,0)="Menina",tblMLS!AE70,tblMLS!AE238),"") -> 130.213 | E71: =IF(Turma!$A$2=1,IF(VLOOKUP("x",Turma!$B$4:$G$53,3,0)="Menina",tblMLS!AF70,tblMLS!AF238),"") -> 136.8 | F71: =IF(Turma!$A$2=1,IF(VLOOKUP("x",Turma!$B$4:$G$53,3,0)="Menina",tblMLS!AG70,tblMLS!AG238),"") -> 143.387 | G71: =IF(Turma!$A$2=1,IF(VLOOKUP("x",Turma!$B$4:$G$53,3,0)="Menina",tblMLS!AH70,tblMLS!AH238),"") -> 149.975 | H71: =IF(Turma!$A$2=1,IF(VLOOKUP("x",Turma!$B$4:$G$53,3,0)="Menina",tblMLS!AI70,tblMLS!AI238),"") -> 156.562 | I71: =IF(Turma!$A$2=1,IF(VLOOKUP("x",Turma!$B$4:$G$53,3,0)="Menina",tblMLS!AJ70,tblMLS!AJ238),"") -> 163.149
A72: 130 | C72: =IF(Turma!$A$2=1,IF(VLOOKUP("x",Turma!$B$4:$G$53,3,0)="Menina",tblMLS!AD71,tblMLS!AD239),"") -> 124.1 | D72: =IF(Turma!$A$2=1,IF(VLOOKUP("x",Turma!$B$4:$G$53,3,0)="Menina",tblMLS!AE71,tblMLS!AE239),"") -> 130.707 | E72: =IF(Turma!$A$2=1,IF(VLOOKUP("x",Turma!$B$4:$G$53,3,0)="Menina",tblMLS!AF71,tblMLS!AF239),"") -> 137.315 | F72: =IF(Turma!$A$2=1,IF(VLOOKUP("x",Turma!$B$4:$G$53,3,0)="Menina",tblMLS!AG71,tblMLS!AG239),"") -> 143.922 | G72: =IF(Turma!$A$2=1,IF(VLOOKUP("x",Turma!$B$4:$G$53,3,0)="Menina",tblMLS!AH71,tblMLS!AH239),"") -> 150.53 | H72: =IF(Turma!$A$2=1,IF(VLOOKUP("x",Turma!$B$4:$G$53,3,0)="Menina",tblMLS!AI71,tblMLS!AI239),"") -> 157.137 | I72: =IF(Turma!$A$2=1,IF(VLOOKUP("x",Turma!$B$4:$G$53,3,0)="Menina",tblMLS!AJ71,tblMLS!AJ239),"") -> 163.745
A73: 131 | C73: =IF(Turma!$A$2=1,IF(VLOOKUP("x",Turma!$B$4:$G$53,3,0)="Menina",tblMLS!AD72,tblMLS!AD240),"") -> 124.574 | D73: =IF(Turma!$A$2=1,IF(VLOOKUP("x",Turma!$B$4:$G$53,3,0)="Menina",tblMLS!AE72,tblMLS!AE240),"") -> 131.202 | E73: =IF(Turma!$A$2=1,IF(VLOOKUP("x",Turma!$B$4:$G$53,3,0)="Menina",tblMLS!AF72,tblMLS!AF240),"") -> 137.83 | F73: =IF(Turma!$A$2=1,IF(VLOOKUP("x",Turma!$B$4:$G$53,3,0)="Menina",tblMLS!AG72,tblMLS!AG240),"") -> 144.458 | G73: =IF(Turma!$A$2=1,IF(VLOOKUP("x",Turma!$B$4:$G$53,3,0)="Menina",tblMLS!AH72,tblMLS!AH240),"") -> 151.085 | H73: =IF(Turma!$A$2=1,IF(VLOOKUP("x",Turma!$B$4:$G$53,3,0)="Menina",tblMLS!AI72,tblMLS!AI240),"") -> 157.713 | I73: =IF(Turma!$A$2=1,IF(VLOOKUP("x",Turma!$B$4:$G$53,3,0)="Menina",tblMLS!AJ72,tblMLS!AJ240),"") -> 164.341
A74: 132 | B74: 11 | C74: =IF(Turma!$A$2=1,IF(VLOOKUP("x",Turma!$B$4:$G$53,3,0)="Menina",tblMLS!AD73,tblMLS!AD241),"") -> 125.053 | D74: =IF(Turma!$A$2=1,IF(VLOOKUP("x",Turma!$B$4:$G$53,3,0)="Menina",tblMLS!AE73,tblMLS!AE241),"") -> 131.7 | E74: =IF(Turma!$A$2=1,IF(VLOOKUP("x",Turma!$B$4:$G$53,3,0)="Menina",tblMLS!AF73,tblMLS!AF241),"") -> 138.346 | F74: =IF(Turma!$A$2=1,IF(VLOOKUP("x",Turma!$B$4:$G$53,3,0)="Menina",tblMLS!AG73,tblMLS!AG241),"") -> 144.993 | G74: =IF(Turma!$A$2=1,IF(VLOOKUP("x",Turma!$B$4:$G$53,3,0)="Menina",tblMLS!AH73,tblMLS!AH241),"") -> 151.639 | H74: =IF(Turma!$A$2=1,IF(VLOOKUP("x",Turma!$B$4:$G$53,3,0)="Menina",tblMLS!AI73,tblMLS!AI241),"") -> 158.286 | I74: =IF(Turma!$A$2=1,IF(VLOOKUP("x",Turma!$B$4:$G$53,3,0)="Menina",tblMLS!AJ73,tblMLS!AJ241),"") -> 164.932
A75: 133 | C75: =IF(Turma!$A$2=1,IF(VLOOKUP("x",Turma!$B$4:$G$53,3,0)="Menina",tblMLS!AD74,tblMLS!AD242),"") -> 125.532 | D75: =IF(Turma!$A$2=1,IF(VLOOKUP("x",Turma!$B$4:$G$53,3,0)="Menina",tblMLS!AE74,tblMLS!AE242),"") -> 132.198 | E75: =IF(Turma!$A$2=1,IF(VLOOKUP("x",Turma!$B$4:$G$53,3,0)="Menina",tblMLS!AF74,tblMLS!AF242),"") -> 138.863 | F75: =IF(Turma!$A$2=1,IF(VLOOKUP("x",Turma!$B$4:$G$53,3,0)="Menina",tblMLS!AG74,tblMLS!AG242),"") -> 145.528 | G75: =IF(Turma!$A$2=1,IF(VLOOKUP("x",Turma!$B$4:$G$53,3,0)="Menina",tblMLS!AH74,tblMLS!AH242),"") -> 152.193 | H75: =IF(Turma!$A$2=1,IF(VLOOKUP("x",Turma!$B$4:$G$53,3,0)="Menina",tblMLS!AI74,tblMLS!AI242),"") -> 158.858 | I75: =IF(Turma!$A$2=1,IF(VLOOKUP("x",Turma!$B$4:$G$53,3,0)="Menina",tblMLS!AJ74,tblMLS!AJ242),"") -> 165.524
A76: 134 | C76: =IF(Turma!$A$2=1,IF(VLOOKUP("x",Turma!$B$4:$G$53,3,0)="Menina",tblMLS!AD75,tblMLS!AD243),"") -> 126.011 | D76: =IF(Turma!$A$2=1,IF(VLOOKUP("x",Turma!$B$4:$G$53,3,0)="Menina",tblMLS!AE75,tblMLS!AE243),"") -> 132.695 | E76: =IF(Turma!$A$2=1,IF(VLOOKUP("x",Turma!$B$4:$G$53,3,0)="Menina",tblMLS!AF75,tblMLS!AF243),"") -> 139.378 | F76: =IF(Turma!$A$2=1,IF(VLOOKUP("x",Turma!$B$4:$G$53,3,0)="Menina",tblMLS!AG75,tblMLS!AG243),"") -> 146.062 | G76: =IF(Turma!$A$2=1,IF(VLOOKUP("x",Turma!$B$4:$G$53,3,0)="Menina",tblMLS!AH75,tblMLS!AH243),"") -> 152.746 | H76: =IF(Turma!$A$2=1,IF(VLOOKUP("x",Turma!$B$4:$G$53,3,0)="Menina",tblMLS!AI75,tblMLS!AI243),"") -> 159.43 | I76: =IF(Turma!$A$2=1,IF(VLOOKUP("x",Turma!$B$4:$G$53,3,0)="Menina",tblMLS!AJ75,tblMLS!AJ243),"") -> 166.114
A77: 135 | C77: =IF(Turma!$A$2=1,IF(VLOOKUP("x",Turma!$B$4:$G$53,3,0)="Menina",tblMLS!AD76,tblMLS!AD244),"") -> 126.493 | D77: =IF(Turma!$A$2=1,IF(VLOOKUP("x",Turma!$B$4:$G$53,3,0)="Menina",tblMLS!AE76,tblMLS!AE244),"") -> 133.193 | E77: =IF(Turma!$A$2=1,IF(VLOOKUP("x",Turma!$B$4:$G$53,3,0)="Menina",tblMLS!AF76,tblMLS!AF244),"") -> 139.894 | F77: =IF(Turma!$A$2=1,IF(VLOOKUP("x",Turma!$B$4:$G$53,3,0)="Menina",tblMLS!AG76,tblMLS!AG244),"") -> 146.595 | G77: =IF(Turma!$A$2=1,IF(VLOOKUP("x",Turma!$B$4:$G$53,3,0)="Menina",tblMLS!AH76,tblMLS!AH244),"") -> 153.296 | H77: =IF(Turma!$A$2=1,IF(VLOOKUP("x",Turma!$B$4:$G$53,3,0)="Menina",tblMLS!AI76,tblMLS!AI244),"") -> 159.997 | I77: =IF(Turma!$A$2=1,IF(VLOOKUP("x",Turma!$B$4:$G$53,3,0)="Menina",tblMLS!AJ76,tblMLS!AJ244),"") -> 166.698
A78: 136 | C78: =IF(Turma!$A$2=1,IF(VLOOKUP("x",Turma!$B$4:$G$53,3,0)="Menina",tblMLS!AD77,tblMLS!AD245),"") -> 126.968 | D78: =IF(Turma!$A$2=1,IF(VLOOKUP("x",Turma!$B$4:$G$53,3,0)="Menina",tblMLS!AE77,tblMLS!AE245),"") -> 133.688 | E78: =IF(Turma!$A$2=1,IF(VLOOKUP("x",Turma!$B$4:$G$53,3,0)="Menina",tblMLS!AF77,tblMLS!AF245),"") -> 140.407 | F78: =IF(Turma!$A$2=1,IF(VLOOKUP("x",Turma!$B$4:$G$53,3,0)="Menina",tblMLS!AG77,tblMLS!AG245),"") -> 147.126 | G78: =IF(Turma!$A$2=1,IF(VLOOKUP("x",Turma!$B$4:$G$53,3,0)="Menina",tblMLS!AH77,tblMLS!AH245),"") -> 153.845 | H78: =IF(Turma!$A$2=1,IF(VLOOKUP("x",Turma!$B$4:$G$53,3,0)="Menina",tblMLS!AI77,tblMLS!AI245),"") -> 160.565 | I78: =IF(Turma!$A$2=1,IF(VLOOKUP("x",Turma!$B$4:$G$53,3,0)="Menina",tblMLS!AJ77,tblMLS!AJ245),"") -> 167.284
A79: 137 | C79: =IF(Turma!$A$2=1,IF(VLOOKUP("x",Turma!$B$4:$G$53,3,0)="Menina",tblMLS!AD78,tblMLS!AD246),"") -> 127.447 | D79: =IF(Turma!$A$2=1,IF(VLOOKUP("x",Turma!$B$4:$G$53,3,0)="Menina",tblMLS!AE78,tblMLS!AE246),"") -> 134.183 | E79: =IF(Turma!$A$2=1,IF(VLOOKUP("x",Turma!$B$4:$G$53,3,0)="Menina",tblMLS!AF78,tblMLS!AF246),"") -> 140.919 | F79: =IF(Turma!$A$2=1,IF(VLOOKUP("x",Turma!$B$4:$G$53,3,0)="Menina",tblMLS!AG78,tblMLS!AG246),"") -> 147.655 | G79: =IF(Turma!$A$2=1,IF(VLOOKUP("x",Turma!$B$4:$G$53,3,0)="Menina",tblMLS!AH78,tblMLS!AH246),"") -> 154.391 | H79: =IF(Turma!$A$2=1,IF(VLOOKUP("x",Turma!$B$4:$G$53,3,0)="Menina",tblMLS!AI78,tblMLS!AI246),"") -> 161.127 | I79: =IF(Turma!$A$2=1,IF(VLOOKUP("x",Turma!$B$4:$G$53,3,0)="Menina",tblMLS!AJ78,tblMLS!AJ246),"") -> 167.863
A80: 138 | C80: =IF(Turma!$A$2=1,IF(VLOOKUP("x",Turma!$B$4:$G$53,3,0)="Menina",tblMLS!AD79,tblMLS!AD247),"") -> 127.923 | D80: =IF(Turma!$A$2=1,IF(VLOOKUP("x",Turma!$B$4:$G$53,3,0)="Menina",tblMLS!AE79,tblMLS!AE247),"") -> 134.675 | E80: =IF(Turma!$A$2=1,IF(VLOOKUP("x",Turma!$B$4:$G$53,3,0)="Menina",tblMLS!AF79,tblMLS!AF247),"") -> 141.428 | F80: =IF(Turma!$A$2=1,IF(VLOOKUP("x",Turma!$B$4:$G$53,3,0)="Menina",tblMLS!AG79,tblMLS!AG247),"") -> 148.18 | G80: =IF(Turma!$A$2=1,IF(VLOOKUP("x",Turma!$B$4:$G$53,3,0)="Menina",tblMLS!AH79,tblMLS!AH247),"") -> 154.933 | H80: =IF(Turma!$A$2=1,IF(VLOOKUP("x",Turma!$B$4:$G$53,3,0)="Menina",tblMLS!AI79,tblMLS!AI247),"") -> 161.686 | I80: =IF(Turma!$A$2=1,IF(VLOOKUP("x",Turma!$B$4:$G$53,3,0)="Menina",tblMLS!AJ79,tblMLS!AJ247),"") -> 168.438
A81: 139 | C81: =IF(Turma!$A$2=1,IF(VLOOKUP("x",Turma!$B$4:$G$53,3,0)="Menina",tblMLS!AD80,tblMLS!AD248),"") -> 128.396 | D81: =IF(Turma!$A$2=1,IF(VLOOKUP("x",Turma!$B$4:$G$53,3,0)="Menina",tblMLS!AE80,tblMLS!AE248),"") -> 135.164 | E81: =IF(Turma!$A$2=1,IF(VLOOKUP("x",Turma!$B$4:$G$53,3,0)="Menina",tblMLS!AF80,tblMLS!AF248),"") -> 141.933 | F81: =IF(Turma!$A$2=1,IF(VLOOKUP("x",Turma!$B$4:$G$53,3,0)="Menina",tblMLS!AG80,tblMLS!AG248),"") -> 148.702 | G81: =IF(Turma!$A$2=1,IF(VLOOKUP("x",Turma!$B$4:$G$53,3,0)="Menina",tblMLS!AH80,tblMLS!AH248),"") -> 155.471 | H81: =IF(Turma!$A$2=1,IF(VLOOKUP("x",Turma!$B$4:$G$53,3,0)="Menina",tblMLS!AI80,tblMLS!AI248),"") -> 162.24 | I81: =IF(Turma!$A$2=1,IF(VLOOKUP("x",Turma!$B$4:$G$53,3,0)="Menina",tblMLS!AJ80,tblMLS!AJ248),"") -> 169.009
A82: 140 | C82: =IF(Turma!$A$2=1,IF(VLOOKUP("x",Turma!$B$4:$G$53,3,0)="Menina",tblMLS!AD81,tblMLS!AD249),"") -> 128.869 | D82: =IF(Turma!$A$2=1,IF(VLOOKUP("x",Turma!$B$4:$G$53,3,0)="Menina",tblMLS!AE81,tblMLS!AE249),"") -> 135.653 | E82: =IF(Turma!$A$2=1,IF(VLOOKUP("x",Turma!$B$4:$G$53,3,0)="Menina",tblMLS!AF81,tblMLS!AF249),"") -> 142.436 | F82: =IF(Turma!$A$2=1,IF(VLOOKUP("x",Turma!$B$4:$G$53,3,0)="Menina",tblMLS!AG81,tblMLS!AG249),"") -> 149.22 | G82: =IF(Turma!$A$2=1,IF(VLOOKUP("x",Turma!$B$4:$G$53,3,0)="Menina",tblMLS!AH81,tblMLS!AH249),"") -> 156.003 | H82: =IF(Turma!$A$2=1,IF(VLOOKUP("x",Turma!$B$4:$G$53,3,0)="Menina",tblMLS!AI81,tblMLS!AI249),"") -> 162.787 | I82: =IF(Turma!$A$2=1,IF(VLOOKUP("x",Turma!$B$4:$G$53,3,0)="Menina",tblMLS!AJ81,tblMLS!AJ249),"") -> 169.57
A83: 141 | C83: =IF(Turma!$A$2=1,IF(VLOOKUP("x",Turma!$B$4:$G$53,3,0)="Menina",tblMLS!AD82,tblMLS!AD250),"") -> 129.334 | D83: =IF(Turma!$A$2=1,IF(VLOOKUP("x",Turma!$B$4:$G$53,3,0)="Menina",tblMLS!AE82,tblMLS!AE250),"") -> 136.134 | E83: =IF(Turma!$A$2=1,IF(VLOOKUP("x",Turma!$B$4:$G$53,3,0)="Menina",tblMLS!AF82,tblMLS!AF250),"") -> 142.933 | F83: =IF(Turma!$A$2=1,IF(VLOOKUP("x",Turma!$B$4:$G$53,3,0)="Menina",tblMLS!AG82,tblMLS!AG250),"") -> 149.732 | G83: =IF(Turma!$A$2=1,IF(VLOOKUP("x",Turma!$B$4:$G$53,3,0)="Menina",tblMLS!AH82,tblMLS!AH250),"") -> 156.532 | H83: =IF(Turma!$A$2=1,IF(VLOOKUP("x",Turma!$B$4:$G$53,3,0)="Menina",tblMLS!AI82,tblMLS!AI250),"") -> 163.331 | I83: =IF(Turma!$A$2=1,IF(VLOOKUP("x",Turma!$B$4:$G$53,3,0)="Menina",tblMLS!AJ82,tblMLS!AJ250),"") -> 170.13
A84: 142 | C84: =IF(Turma!$A$2=1,IF(VLOOKUP("x",Turma!$B$4:$G$53,3,0)="Menina",tblMLS!AD83,tblMLS!AD251),"") -> 129.799 | D84: =IF(Turma!$A$2=1,IF(VLOOKUP("x",Turma!$B$4:$G$53,3,0)="Menina",tblMLS!AE83,tblMLS!AE251),"") -> 136.612 | E84: =IF(Turma!$A$2=1,IF(VLOOKUP("x",Turma!$B$4:$G$53,3,0)="Menina",tblMLS!AF83,tblMLS!AF251),"") -> 143.426 | F84: =IF(Turma!$A$2=1,IF(VLOOKUP("x",Turma!$B$4:$G$53,3,0)="Menina",tblMLS!AG83,tblMLS!AG251),"") -> 150.239 | G84: =IF(Turma!$A$2=1,IF(VLOOKUP("x",Turma!$B$4:$G$53,3,0)="Menina",tblMLS!AH83,tblMLS!AH251),"") -> 157.052 | H84: =IF(Turma!$A$2=1,IF(VLOOKUP("x",Turma!$B$4:$G$53,3,0)="Menina",tblMLS!AI83,tblMLS!AI251),"") -> 163.866 | I84: =IF(Turma!$A$2=1,IF(VLOOKUP("x",Turma!$B$4:$G$53,3,0)="Menina",tblMLS!AJ83,tblMLS!AJ251),"") -> 170.679
A85: 143 | C85: =IF(Turma!$A$2=1,IF(VLOOKUP("x",Turma!$B$4:$G$53,3,0)="Menina",tblMLS!AD84,tblMLS!AD252),"") -> 130.258 | D85: =IF(Turma!$A$2=1,IF(VLOOKUP("x",Turma!$B$4:$G$53,3,0)="Menina",tblMLS!AE84,tblMLS!AE252),"") -> 137.085 | E85: =IF(Turma!$A$2=1,IF(VLOOKUP("x",Turma!$B$4:$G$53,3,0)="Menina",tblMLS!AF84,tblMLS!AF252),"") -> 143.912 | F85: =IF(Turma!$A$2=1,IF(VLOOKUP("x",Turma!$B$4:$G$53,3,0)="Menina",tblMLS!AG84,tblMLS!AG252),"") -> 150.739 | G85: =IF(Turma!$A$2=1,IF(VLOOKUP("x",Turma!$B$4:$G$53,3,0)="Menina",tblMLS!AH84,tblMLS!AH252),"") -> 157.566 | H85: =IF(Turma!$A$2=1,IF(VLOOKUP("x",Turma!$B$4:$G$53,3,0)="Menina",tblMLS!AI84,tblMLS!AI252),"") -> 164.393 | I85: =IF(Turma!$A$2=1,IF(VLOOKUP("x",Turma!$B$4:$G$53,3,0)="Menina",tblMLS!AJ84,tblMLS!AJ252),"") -> 171.22
A86: 144 | B86: 12 | C86: =IF(Turma!$A$2=1,IF(VLOOKUP("x",Turma!$B$4:$G$53,3,0)="Menina",tblMLS!AD85,tblMLS!AD253),"") -> 130.712 | D86: =IF(Turma!$A$2=1,IF(VLOOKUP("x",Turma!$B$4:$G$53,3,0)="Menina",tblMLS!AE85,tblMLS!AE253),"") -> 137.552 | E86: =IF(Turma!$A$2=1,IF(VLOOKUP("x",Turma!$B$4:$G$53,3,0)="Menina",tblMLS!AF85,tblMLS!AF253),"") -> 144.392 | F86: =IF(Turma!$A$2=1,IF(VLOOKUP("x",Turma!$B$4:$G$53,3,0)="Menina",tblMLS!AG85,tblMLS!AG253),"") -> 151.233 | G86: =IF(Turma!$A$2=1,IF(VLOOKUP("x",Turma!$B$4:$G$53,3,0)="Menina",tblMLS!AH85,tblMLS!AH253),"") -> 158.073 | H86: =IF(Turma!$A$2=1,IF(VLOOKUP("x",Turma!$B$4:$G$53,3,0)="Menina",tblMLS!AI85,tblMLS!AI253),"") -> 164.913 | I86: =IF(Turma!$A$2=1,IF(VLOOKUP("x",Turma!$B$4:$G$53,3,0)="Menina",tblMLS!AJ85,tblMLS!AJ253),"") -> 171.753
A87: 145 | C87: =IF(Turma!$A$2=1,IF(VLOOKUP("x",Turma!$B$4:$G$53,3,0)="Menina",tblMLS!AD86,tblMLS!AD254),"") -> 131.163 | D87: =IF(Turma!$A$2=1,IF(VLOOKUP("x",Turma!$B$4:$G$53,3,0)="Menina",tblMLS!AE86,tblMLS!AE254),"") -> 138.015 | E87: =IF(Turma!$A$2=1,IF(VLOOKUP("x",Turma!$B$4:$G$53,3,0)="Menina",tblMLS!AF86,tblMLS!AF254),"") -> 144.867 | F87: =IF(Turma!$A$2=1,IF(VLOOKUP("x",Turma!$B$4:$G$53,3,0)="Menina",tblMLS!AG86,tblMLS!AG254),"") -> 151.718 | G87: =IF(Turma!$A$2=1,IF(VLOOKUP("x",Turma!$B$4:$G$53,3,0)="Menina",tblMLS!AH86,tblMLS!AH254),"") -> 158.57 | H87: =IF(Turma!$A$2=1,IF(VLOOKUP("x",Turma!$B$4:$G$53,3,0)="Menina",tblMLS!AI86,tblMLS!AI254),"") -> 165.421 | I87: =IF(Turma!$A$2=1,IF(VLOOKUP("x",Turma!$B$4:$G$53,3,0)="Menina",tblMLS!AJ86,tblMLS!AJ254),"") -> 172.273
A88: 146 | C88: =IF(Turma!$A$2=1,IF(VLOOKUP("x",Turma!$B$4:$G$53,3,0)="Menina",tblMLS!AD87,tblMLS!AD255),"") -> 131.603 | D88: =IF(Turma!$A$2=1,IF(VLOOKUP("x",Turma!$B$4:$G$53,3,0)="Menina",tblMLS!AE87,tblMLS!AE255),"") -> 138.467 | E88: =IF(Turma!$A$2=1,IF(VLOOKUP("x",Turma!$B$4:$G$53,3,0)="Menina",tblMLS!AF87,tblMLS!AF255),"") -> 145.331 | F88: =IF(Turma!$A$2=1,IF(VLOOKUP("x",Turma!$B$4:$G$53,3,0)="Menina",tblMLS!AG87,tblMLS!AG255),"") -> 152.195 | G88: =IF(Turma!$A$2=1,IF(VLOOKUP("x",Turma!$B$4:$G$53,3,0)="Menina",tblMLS!AH87,tblMLS!AH255),"") -> 159.059 | H88: =IF(Turma!$A$2=1,IF(VLOOKUP("x",Turma!$B$4:$G$53,3,0)="Menina",tblMLS!AI87,tblMLS!AI255),"") -> 165.923 | I88: =IF(Turma!$A$2=1,IF(VLOOKUP("x",Turma!$B$4:$G$53,3,0)="Menina",tblMLS!AJ87,tblMLS!AJ255),"") -> 172.787
A89: 147 | C89: =IF(Turma!$A$2=1,IF(VLOOKUP("x",Turma!$B$4:$G$53,3,0)="Menina",tblMLS!AD88,tblMLS!AD256),"") -> 132.04 | D89: =IF(Turma!$A$2=1,IF(VLOOKUP("x",Turma!$B$4:$G$53,3,0)="Menina",tblMLS!AE88,tblMLS!AE256),"") -> 138.914 | E89: =IF(Turma!$A$2=1,IF(VLOOKUP("x",Turma!$B$4:$G$53,3,0)="Menina",tblMLS!AF88,tblMLS!AF256),"") -> 145.788 | F89: =IF(Turma!$A$2=1,IF(VLOOKUP("x",Turma!$B$4:$G$53,3,0)="Menina",tblMLS!AG88,tblMLS!AG256),"") -> 152.663 | G89: =IF(Turma!$A$2=1,IF(VLOOKUP("x",Turma!$B$4:$G$53,3,0)="Menina",tblMLS!AH88,tblMLS!AH256),"") -> 159.537 | H89: =IF(Turma!$A$2=1,IF(VLOOKUP("x",Turma!$B$4:$G$53,3,0)="Menina",tblMLS!AI88,tblMLS!AI256),"") -> 166.412 | I89: =IF(Turma!$A$2=1,IF(VLOOKUP("x",Turma!$B$4:$G$53,3,0)="Menina",tblMLS!AJ88,tblMLS!AJ256),"") -> 173.286
A90: 148 | C90: =IF(Turma!$A$2=1,IF(VLOOKUP("x",Turma!$B$4:$G$53,3,0)="Menina",tblMLS!AD89,tblMLS!AD257),"") -> 132.463 | D90: =IF(Turma!$A$2=1,IF(VLOOKUP("x",Turma!$B$4:$G$53,3,0)="Menina",tblMLS!AE89,tblMLS!AE257),"") -> 139.349 | E90: =IF(Turma!$A$2=1,IF(VLOOKUP("x",Turma!$B$4:$G$53,3,0)="Menina",tblMLS!AF89,tblMLS!AF257),"") -> 146.235 | F90: =IF(Turma!$A$2=1,IF(VLOOKUP("x",Turma!$B$4:$G$53,3,0)="Menina",tblMLS!AG89,tblMLS!AG257),"") -> 153.121 | G90: =IF(Turma!$A$2=1,IF(VLOOKUP("x",Turma!$B$4:$G$53,3,0)="Menina",tblMLS!AH89,tblMLS!AH257),"") -> 160.006 | H90: =IF(Turma!$A$2=1,IF(VLOOKUP("x",Turma!$B$4:$G$53,3,0)="Menina",tblMLS!AI89,tblMLS!AI257),"") -> 166.892 | I90: =IF(Turma!$A$2=1,IF(VLOOKUP("x",Turma!$B$4:$G$53,3,0)="Menina",tblMLS!AJ89,tblMLS!AJ257),"") -> 173.778
A91: 149 | C91: =IF(Turma!$A$2=1,IF(VLOOKUP("x",Turma!$B$4:$G$53,3,0)="Menina",tblMLS!AD90,tblMLS!AD258),"") -> 132.882 | D91: =IF(Turma!$A$2=1,IF(VLOOKUP("x",Turma!$B$4:$G$53,3,0)="Menina",tblMLS!AE90,tblMLS!AE258),"") -> 139.777 | E91: =IF(Turma!$A$2=1,IF(VLOOKUP("x",Turma!$B$4:$G$53,3,0)="Menina",tblMLS!AF90,tblMLS!AF258),"") -> 146.673 | F91: =IF(Turma!$A$2=1,IF(VLOOKUP("x",Turma!$B$4:$G$53,3,0)="Menina",tblMLS!AG90,tblMLS!AG258),"") -> 153.568 | G91: =IF(Turma!$A$2=1,IF(VLOOKUP("x",Turma!$B$4:$G$53,3,0)="Menina",tblMLS!AH90,tblMLS!AH258),"") -> 160.463 | H91: =IF(Turma!$A$2=1,IF(VLOOKUP("x",Turma!$B$4:$G$53,3,0)="Menina",tblMLS!AI90,tblMLS!AI258),"") -> 167.358 | I91: =IF(Turma!$A$2=1,IF(VLOOKUP("x",Turma!$B$4:$G$53,3,0)="Menina",tblMLS!AJ90,tblMLS!AJ258),"") -> 174.253
A92: 150 | C92: =IF(Turma!$A$2=1,IF(VLOOKUP("x",Turma!$B$4:$G$53,3,0)="Menina",tblMLS!AD91,tblMLS!AD259),"") -> 133.292 | D92: =IF(Turma!$A$2=1,IF(VLOOKUP("x",Turma!$B$4:$G$53,3,0)="Menina",tblMLS!AE91,tblMLS!AE259),"") -> 140.196 | E92: =IF(Turma!$A$2=1,IF(VLOOKUP("x",Turma!$B$4:$G$53,3,0)="Menina",tblMLS!AF91,tblMLS!AF259),"") -> 147.1 | F92: =IF(Turma!$A$2=1,IF(VLOOKUP("x",Turma!$B$4:$G$53,3,0)="Menina",tblMLS!AG91,tblMLS!AG259),"") -> 154.004 | G92: =IF(Turma!$A$2=1,IF(VLOOKUP("x",Turma!$B$4:$G$53,3,0)="Menina",tblMLS!AH91,tblMLS!AH259),"") -> 160.908 | H92: =IF(Turma!$A$2=1,IF(VLOOKUP("x",Turma!$B$4:$G$53,3,0)="Menina",tblMLS!AI91,tblMLS!AI259),"") -> 167.812 | I92: =IF(Turma!$A$2=1,IF(VLOOKUP("x",Turma!$B$4:$G$53,3,0)="Menina",tblMLS!AJ91,tblMLS!AJ259),"") -> 174.716
A93: 151 | C93: =IF(Turma!$A$2=1,IF(VLOOKUP("x",Turma!$B$4:$G$53,3,0)="Menina",tblMLS!AD92,tblMLS!AD260),"") -> 133.692 | D93: =IF(Turma!$A$2=1,IF(VLOOKUP("x",Turma!$B$4:$G$53,3,0)="Menina",tblMLS!AE92,tblMLS!AE260),"") -> 140.605 | E93: =IF(Turma!$A$2=1,IF(VLOOKUP("x",Turma!$B$4:$G$53,3,0)="Menina",tblMLS!AF92,tblMLS!AF260),"") -> 147.517 | F93: =IF(Turma!$A$2=1,IF(VLOOKUP("x",Turma!$B$4:$G$53,3,0)="Menina",tblMLS!AG92,tblMLS!AG260),"") -> 154.429 | G93: =IF(Turma!$A$2=1,IF(VLOOKUP("x",Turma!$B$4:$G$53,3,0)="Menina",tblMLS!AH92,tblMLS!AH260),"") -> 161.341 | H93: =IF(Turma!$A$2=1,IF(VLOOKUP("x",Turma!$B$4:$G$53,3,0)="Menina",tblMLS!AI92,tblMLS!AI260),"") -> 168.253 | I93: =IF(Turma!$A$2=1,IF(VLOOKUP("x",Turma!$B$4:$G$53,3,0)="Menina",tblMLS!AJ92,tblMLS!AJ260),"") -> 175.166
A94: 152 | C94: =IF(Turma!$A$2=1,IF(VLOOKUP("x",Turma!$B$4:$G$53,3,0)="Menina",tblMLS!AD93,tblMLS!AD261),"") -> 134.087 | D94: =IF(Turma!$A$2=1,IF(VLOOKUP("x",Turma!$B$4:$G$53,3,0)="Menina",tblMLS!AE93,tblMLS!AE261),"") -> 141.006 | E94: =IF(Turma!$A$2=1,IF(VLOOKUP("x",Turma!$B$4:$G$53,3,0)="Menina",tblMLS!AF93,tblMLS!AF261),"") -> 147.924 | F94: =IF(Turma!$A$2=1,IF(VLOOKUP("x",Turma!$B$4:$G$53,3,0)="Menina",tblMLS!AG93,tblMLS!AG261),"") -> 154.842 | G94: =IF(Turma!$A$2=1,IF(VLOOKUP("x",Turma!$B$4:$G$53,3,0)="Menina",tblMLS!AH93,tblMLS!AH261),"") -> 161.761 | H94: =IF(Turma!$A$2=1,IF(VLOOKUP("x",Turma!$B$4:$G$53,3,0)="Menina",tblMLS!AI93,tblMLS!AI261),"") -> 168.679 | I94: =IF(Turma!$A$2=1,IF(VLOOKUP("x",Turma!$B$4:$G$53,3,0)="Menina",tblMLS!AJ93,tblMLS!AJ261),"") -> 175.597
A95: 153 | C95: =IF(Turma!$A$2=1,IF(VLOOKUP("x",Turma!$B$4:$G$53,3,0)="Menina",tblMLS!AD94,tblMLS!AD262),"") -> 134.467 | D95: =IF(Turma!$A$2=1,IF(VLOOKUP("x",Turma!$B$4:$G$53,3,0)="Menina",tblMLS!AE94,tblMLS!AE262),"") -> 141.393 | E95: =IF(Turma!$A$2=1,IF(VLOOKUP("x",Turma!$B$4:$G$53,3,0)="Menina",tblMLS!AF94,tblMLS!AF262),"") -> 148.318 | F95: =IF(Turma!$A$2=1,IF(VLOOKUP("x",Turma!$B$4:$G$53,3,0)="Menina",tblMLS!AG94,tblMLS!AG262),"") -> 155.244 | G95: =IF(Turma!$A$2=1,IF(VLOOKUP("x",Turma!$B$4:$G$53,3,0)="Menina",tblMLS!AH94,tblMLS!AH262),"") -> 162.169 | H95: =IF(Turma!$A$2=1,IF(VLOOKUP("x",Turma!$B$4:$G$53,3,0)="Menina",tblMLS!AI94,tblMLS!AI262),"") -> 169.095 | I95: =IF(Turma!$A$2=1,IF(VLOOKUP("x",Turma!$B$4:$G$53,3,0)="Menina",tblMLS!AJ94,tblMLS!AJ262),"") -> 176.02
A96: 154 | C96: =IF(Turma!$A$2=1,IF(VLOOKUP("x",Turma!$B$4:$G$53,3,0)="Menina",tblMLS!AD95,tblMLS!AD263),"") -> 134.837 | D96: =IF(Turma!$A$2=1,IF(VLOOKUP("x",Turma!$B$4:$G$53,3,0)="Menina",tblMLS!AE95,tblMLS!AE263),"") -> 141.769 | E96: =IF(Turma!$A$2=1,IF(VLOOKUP("x",Turma!$B$4:$G$53,3,0)="Menina",tblMLS!AF95,tblMLS!AF263),"") -> 148.701 | F96: =IF(Turma!$A$2=1,IF(VLOOKUP("x",Turma!$B$4:$G$53,3,0)="Menina",tblMLS!AG95,tblMLS!AG263),"") -> 155.633 | G96: =IF(Turma!$A$2=1,IF(VLOOKUP("x",Turma!$B$4:$G$53,3,0)="Menina",tblMLS!AH95,tblMLS!AH263),"") -> 162.565 | H96: =IF(Turma!$A$2=1,IF(VLOOKUP("x",Turma!$B$4:$G$53,3,0)="Menina",tblMLS!AI95,tblMLS!AI263),"") -> 169.497 | I96: =IF(Turma!$A$2=1,IF(VLOOKUP("x",Turma!$B$4:$G$53,3,0)="Menina",tblMLS!AJ95,tblMLS!AJ263),"") -> 176.429
A97: 155 | C97: =IF(Turma!$A$2=1,IF(VLOOKUP("x",Turma!$B$4:$G$53,3,0)="Menina",tblMLS!AD96,tblMLS!AD264),"") -> 135.201 | D97: =IF(Turma!$A$2=1,IF(VLOOKUP("x",Turma!$B$4:$G$53,3,0)="Menina",tblMLS!AE96,tblMLS!AE264),"") -> 142.138 | E97: =IF(Turma!$A$2=1,IF(VLOOKUP("x",Turma!$B$4:$G$53,3,0)="Menina",tblMLS!AF96,tblMLS!AF264),"") -> 149.074 | F97: =IF(Turma!$A$2=1,IF(VLOOKUP("x",Turma!$B$4:$G$53,3,0)="Menina",tblMLS!AG96,tblMLS!AG264),"") -> 156.01 | G97: =IF(Turma!$A$2=1,IF(VLOOKUP("x",Turma!$B$4:$G$53,3,0)="Menina",tblMLS!AH96,tblMLS!AH264),"") -> 162.946 | H97: =IF(Turma!$A$2=1,IF(VLOOKUP("x",Turma!$B$4:$G$53,3,0)="Menina",tblMLS!AI96,tblMLS!AI264),"") -> 169.883 | I97: =IF(Turma!$A$2=1,IF(VLOOKUP("x",Turma!$B$4:$G$53,3,0)="Menina",tblMLS!AJ96,tblMLS!AJ264),"") -> 176.819
A98: 156 | B98: 13 | C98: =IF(Turma!$A$2=1,IF(VLOOKUP("x",Turma!$B$4:$G$53,3,0)="Menina",tblMLS!AD97,tblMLS!AD265),"") -> 135.55 | D98: =IF(Turma!$A$2=1,IF(VLOOKUP("x",Turma!$B$4:$G$53,3,0)="Menina",tblMLS!AE97,tblMLS!AE265),"") -> 142.492 | E98: =IF(Turma!$A$2=1,IF(VLOOKUP("x",Turma!$B$4:$G$53,3,0)="Menina",tblMLS!AF97,tblMLS!AF265),"") -> 149.433 | F98: =IF(Turma!$A$2=1,IF(VLOOKUP("x",Turma!$B$4:$G$53,3,0)="Menina",tblMLS!AG97,tblMLS!AG265),"") -> 156.375 | G98: =IF(Turma!$A$2=1,IF(VLOOKUP("x",Turma!$B$4:$G$53,3,0)="Menina",tblMLS!AH97,tblMLS!AH265),"") -> 163.316 | H98: =IF(Turma!$A$2=1,IF(VLOOKUP("x",Turma!$B$4:$G$53,3,0)="Menina",tblMLS!AI97,tblMLS!AI265),"") -> 170.258 | I98: =IF(Turma!$A$2=1,IF(VLOOKUP("x",Turma!$B$4:$G$53,3,0)="Menina",tblMLS!AJ97,tblMLS!AJ265),"") -> 177.199
A99: 157 | C99: =IF(Turma!$A$2=1,IF(VLOOKUP("x",Turma!$B$4:$G$53,3,0)="Menina",tblMLS!AD98,tblMLS!AD266),"") -> 135.893 | D99: =IF(Turma!$A$2=1,IF(VLOOKUP("x",Turma!$B$4:$G$53,3,0)="Menina",tblMLS!AE98,tblMLS!AE266),"") -> 142.838 | E99: =IF(Turma!$A$2=1,IF(VLOOKUP("x",Turma!$B$4:$G$53,3,0)="Menina",tblMLS!AF98,tblMLS!AF266),"") -> 149.782 | F99: =IF(Turma!$A$2=1,IF(VLOOKUP("x",Turma!$B$4:$G$53,3,0)="Menina",tblMLS!AG98,tblMLS!AG266),"") -> 156.727 | G99: =IF(Turma!$A$2=1,IF(VLOOKUP("x",Turma!$B$4:$G$53,3,0)="Menina",tblMLS!AH98,tblMLS!AH266),"") -> 163.671 | H99: =IF(Turma!$A$2=1,IF(VLOOKUP("x",Turma!$B$4:$G$53,3,0)="Menina",tblMLS!AI98,tblMLS!AI266),"") -> 170.616 | I99: =IF(Turma!$A$2=1,IF(VLOOKUP("x",Turma!$B$4:$G$53,3,0)="Menina",tblMLS!AJ98,tblMLS!AJ266),"") -> 177.561
A100: 158 | C100: =IF(Turma!$A$2=1,IF(VLOOKUP("x",Turma!$B$4:$G$53,3,0)="Menina",tblMLS!AD99,tblMLS!AD267),"") -> 136.225 | D100: =IF(Turma!$A$2=1,IF(VLOOKUP("x",Turma!$B$4:$G$53,3,0)="Menina",tblMLS!AE99,tblMLS!AE267),"") -> 143.172 | E100: =IF(Turma!$A$2=1,IF(VLOOKUP("x",Turma!$B$4:$G$53,3,0)="Menina",tblMLS!AF99,tblMLS!AF267),"") -> 150.12 | F100: =IF(Turma!$A$2=1,IF(VLOOKUP("x",Turma!$B$4:$G$53,3,0)="Menina",tblMLS!AG99,tblMLS!AG267),"") -> 157.067 | G100: =IF(Turma!$A$2=1,IF(VLOOKUP("x",Turma!$B$4:$G$53,3,0)="Menina",tblMLS!AH99,tblMLS!AH267),"") -> 164.014 | H100: =IF(Turma!$A$2=1,IF(VLOOKUP("x",Turma!$B$4:$G$53,3,0)="Menina",tblMLS!AI99,tblMLS!AI267),"") -> 170.961 | I100: =IF(Turma!$A$2=1,IF(VLOOKUP("x",Turma!$B$4:$G$53,3,0)="Menina",tblMLS!AJ99,tblMLS!AJ267),"") -> 177.908
A101: 159 | C101: =IF(Turma!$A$2=1,IF(VLOOKUP("x",Turma!$B$4:$G$53,3,0)="Menina",tblMLS!AD100,tblMLS!AD268),"") -> 136.547 | D101: =IF(Turma!$A$2=1,IF(VLOOKUP("x",Turma!$B$4:$G$53,3,0)="Menina",tblMLS!AE100,tblMLS!AE268),"") -> 143.496 | E101: =IF(Turma!$A$2=1,IF(VLOOKUP("x",Turma!$B$4:$G$53,3,0)="Menina",tblMLS!AF100,tblMLS!AF268),"") -> 150.445 | F101: =IF(Turma!$A$2=1,IF(VLOOKUP("x",Turma!$B$4:$G$53,3,0)="Menina",tblMLS!AG100,tblMLS!AG268),"") -> 157.394 | G101: =IF(Turma!$A$2=1,IF(VLOOKUP("x",Turma!$B$4:$G$53,3,0)="Menina",tblMLS!AH100,tblMLS!AH268),"") -> 164.343 | H101: =IF(Turma!$A$2=1,IF(VLOOKUP("x",Turma!$B$4:$G$53,3,0)="Menina",tblMLS!AI100,tblMLS!AI268),"") -> 171.291 | I101: =IF(Turma!$A$2=1,IF(VLOOKUP("x",Turma!$B$4:$G$53,3,0)="Menina",tblMLS!AJ100,tblMLS!AJ268),"") -> 178.24
A102: 160 | C102: =IF(Turma!$A$2=1,IF(VLOOKUP("x",Turma!$B$4:$G$53,3,0)="Menina",tblMLS!AD101,tblMLS!AD269),"") -> 136.853 | D102: =IF(Turma!$A$2=1,IF(VLOOKUP("x",Turma!$B$4:$G$53,3,0)="Menina",tblMLS!AE101,tblMLS!AE269),"") -> 143.805 | E102: =IF(Turma!$A$2=1,IF(VLOOKUP("x",Turma!$B$4:$G$53,3,0)="Menina",tblMLS!AF101,tblMLS!AF269),"") -> 150.756 | F102: =IF(Turma!$A$2=1,IF(VLOOKUP("x",Turma!$B$4:$G$53,3,0)="Menina",tblMLS!AG101,tblMLS!AG269),"") -> 157.708 | G102: =IF(Turma!$A$2=1,IF(VLOOKUP("x",Turma!$B$4:$G$53,3,0)="Menina",tblMLS!AH101,tblMLS!AH269),"") -> 164.66 | H102: =IF(Turma!$A$2=1,IF(VLOOKUP("x",Turma!$B$4:$G$53,3,0)="Menina",tblMLS!AI101,tblMLS!AI269),"") -> 171.612 | I102: =IF(Turma!$A$2=1,IF(VLOOKUP("x",Turma!$B$4:$G$53,3,0)="Menina",tblMLS!AJ101,tblMLS!AJ269),"") -> 178.564
A103: 161 | C103: =IF(Turma!$A$2=1,IF(VLOOKUP("x",Turma!$B$4:$G$53,3,0)="Menina",tblMLS!AD102,tblMLS!AD270),"") -> 137.153 | D103: =IF(Turma!$A$2=1,IF(VLOOKUP("x",Turma!$B$4:$G$53,3,0)="Menina",tblMLS!AE102,tblMLS!AE270),"") -> 144.105 | E103: =IF(Turma!$A$2=1,IF(VLOOKUP("x",Turma!$B$4:$G$53,3,0)="Menina",tblMLS!AF102,tblMLS!AF270),"") -> 151.058 | F103: =IF(Turma!$A$2=1,IF(VLOOKUP("x",Turma!$B$4:$G$53,3,0)="Menina",tblMLS!AG102,tblMLS!AG270),"") -> 158.01 | G103: =IF(Turma!$A$2=1,IF(VLOOKUP("x",Turma!$B$4:$G$53,3,0)="Menina",tblMLS!AH102,tblMLS!AH270),"") -> 164.963 | H103: =IF(Turma!$A$2=1,IF(VLOOKUP("x",Turma!$B$4:$G$53,3,0)="Menina",tblMLS!AI102,tblMLS!AI270),"") -> 171.915 | I103: =IF(Turma!$A$2=1,IF(VLOOKUP("x",Turma!$B$4:$G$53,3,0)="Menina",tblMLS!AJ102,tblMLS!AJ270),"") -> 178.868
A104: 162 | C104: =IF(Turma!$A$2=1,IF(VLOOKUP("x",Turma!$B$4:$G$53,3,0)="Menina",tblMLS!AD103,tblMLS!AD271),"") -> 137.442 | D104: =IF(Turma!$A$2=1,IF(VLOOKUP("x",Turma!$B$4:$G$53,3,0)="Menina",tblMLS!AE103,tblMLS!AE271),"") -> 144.395 | E104: =IF(Turma!$A$2=1,IF(VLOOKUP("x",Turma!$B$4:$G$53,3,0)="Menina",tblMLS!AF103,tblMLS!AF271),"") -> 151.347 | F104: =IF(Turma!$A$2=1,IF(VLOOKUP("x",Turma!$B$4:$G$53,3,0)="Menina",tblMLS!AG103,tblMLS!AG271),"") -> 158.3 | G104: =IF(Turma!$A$2=1,IF(VLOOKUP("x",Turma!$B$4:$G$53,3,0)="Menina",tblMLS!AH103,tblMLS!AH271),"") -> 165.252 | H104: =IF(Turma!$A$2=1,IF(VLOOKUP("x",Turma!$B$4:$G$53,3,0)="Menina",tblMLS!AI103,tblMLS!AI271),"") -> 172.205 | I104: =IF(Turma!$A$2=1,IF(VLOOKUP("x",Turma!$B$4:$G$53,3,0)="Menina",tblMLS!AJ103,tblMLS!AJ271),"") -> 179.157
A105: 163 | C105: =IF(Turma!$A$2=1,IF(VLOOKUP("x",Turma!$B$4:$G$53,3,0)="Menina",tblMLS!AD104,tblMLS!AD272),"") -> 137.721 | D105: =IF(Turma!$A$2=1,IF(VLOOKUP("x",Turma!$B$4:$G$53,3,0)="Menina",tblMLS!AE104,tblMLS!AE272),"") -> 144.673 | E105: =IF(Turma!$A$2=1,IF(VLOOKUP("x",Turma!$B$4:$G$53,3,0)="Menina",tblMLS!AF104,tblMLS!AF272),"") -> 151.625 | F105: =IF(Turma!$A$2=1,IF(VLOOKUP("x",Turma!$B$4:$G$53,3,0)="Menina",tblMLS!AG104,tblMLS!AG272),"") -> 158.577 | G105: =IF(Turma!$A$2=1,IF(VLOOKUP("x",Turma!$B$4:$G$53,3,0)="Menina",tblMLS!AH104,tblMLS!AH272),"") -> 165.529 | H105: =IF(Turma!$A$2=1,IF(VLOOKUP("x",Turma!$B$4:$G$53,3,0)="Menina",tblMLS!AI104,tblMLS!AI272),"") -> 172.481 | I105: =IF(Turma!$A$2=1,IF(VLOOKUP("x",Turma!$B$4:$G$53,3,0)="Menina",tblMLS!AJ104,tblMLS!AJ272),"") -> 179.433
A106: 164 | C106: =IF(Turma!$A$2=1,IF(VLOOKUP("x",Turma!$B$4:$G$53,3,0)="Menina",tblMLS!AD105,tblMLS!AD273),"") -> 137.99 | D106: =IF(Turma!$A$2=1,IF(VLOOKUP("x",Turma!$B$4:$G$53,3,0)="Menina",tblMLS!AE105,tblMLS!AE273),"") -> 144.941 | E106: =IF(Turma!$A$2=1,IF(VLOOKUP("x",Turma!$B$4:$G$53,3,0)="Menina",tblMLS!AF105,tblMLS!AF273),"") -> 151.892 | F106: =IF(Turma!$A$2=1,IF(VLOOKUP("x",Turma!$B$4:$G$53,3,0)="Menina",tblMLS!AG105,tblMLS!AG273),"") -> 158.842 | G106: =IF(Turma!$A$2=1,IF(VLOOKUP("x",Turma!$B$4:$G$53,3,0)="Menina",tblMLS!AH105,tblMLS!AH273),"") -> 165.793 | H106: =IF(Turma!$A$2=1,IF(VLOOKUP("x",Turma!$B$4:$G$53,3,0)="Menina",tblMLS!AI105,tblMLS!AI273),"") -> 172.744 | I106: =IF(Turma!$A$2=1,IF(VLOOKUP("x",Turma!$B$4:$G$53,3,0)="Menina",tblMLS!AJ105,tblMLS!AJ273),"") -> 179.695
A107: 165 | C107: =IF(Turma!$A$2=1,IF(VLOOKUP("x",Turma!$B$4:$G$53,3,0)="Menina",tblMLS!AD106,tblMLS!AD274),"") -> 138.243 | D107: =IF(Turma!$A$2=1,IF(VLOOKUP("x",Turma!$B$4:$G$53,3,0)="Menina",tblMLS!AE106,tblMLS!AE274),"") -> 145.194 | E107: =IF(Turma!$A$2=1,IF(VLOOKUP("x",Turma!$B$4:$G$53,3,0)="Menina",tblMLS!AF106,tblMLS!AF274),"") -> 152.145 | F107: =IF(Turma!$A$2=1,IF(VLOOKUP("x",Turma!$B$4:$G$53,3,0)="Menina",tblMLS!AG106,tblMLS!AG274),"") -> 159.096 | G107: =IF(Turma!$A$2=1,IF(VLOOKUP("x",Turma!$B$4:$G$53,3,0)="Menina",tblMLS!AH106,tblMLS!AH274),"") -> 166.047 | H107: =IF(Turma!$A$2=1,IF(VLOOKUP("x",Turma!$B$4:$G$53,3,0)="Menina",tblMLS!AI106,tblMLS!AI274),"") -> 172.998 | I107: =IF(Turma!$A$2=1,IF(VLOOKUP("x",Turma!$B$4:$G$53,3,0)="Menina",tblMLS!AJ106,tblMLS!AJ274),"") -> 179.949
A108: 166 | C108: =IF(Turma!$A$2=1,IF(VLOOKUP("x",Turma!$B$4:$G$53,3,0)="Menina",tblMLS!AD107,tblMLS!AD275),"") -> 138.492 | D108: =IF(Turma!$A$2=1,IF(VLOOKUP("x",Turma!$B$4:$G$53,3,0)="Menina",tblMLS!AE107,tblMLS!AE275),"") -> 145.441 | E108: =IF(Turma!$A$2=1,IF(VLOOKUP("x",Turma!$B$4:$G$53,3,0)="Menina",tblMLS!AF107,tblMLS!AF275),"") -> 152.389 | F108: =IF(Turma!$A$2=1,IF(VLOOKUP("x",Turma!$B$4:$G$53,3,0)="Menina",tblMLS!AG107,tblMLS!AG275),"") -> 159.338 | G108: =IF(Turma!$A$2=1,IF(VLOOKUP("x",Turma!$B$4:$G$53,3,0)="Menina",tblMLS!AH107,tblMLS!AH275),"") -> 166.287 | H108: =IF(Turma!$A$2=1,IF(VLOOKUP("x",Turma!$B$4:$G$53,3,0)="Menina",tblMLS!AI107,tblMLS!AI275),"") -> 173.236 | I108: =IF(Turma!$A$2=1,IF(VLOOKUP("x",Turma!$B$4:$G$53,3,0)="Menina",tblMLS!AJ107,tblMLS!AJ275),"") -> 180.184
A109: 167 | C109: =IF(Turma!$A$2=1,IF(VLOOKUP("x",Turma!$B$4:$G$53,3,0)="Menina",tblMLS!AD108,tblMLS!AD276),"") -> 138.731 | D109: =IF(Turma!$A$2=1,IF(VLOOKUP("x",Turma!$B$4:$G$53,3,0)="Menina",tblMLS!AE108,tblMLS!AE276),"") -> 145.677 | E109: =IF(Turma!$A$2=1,IF(VLOOKUP("x",Turma!$B$4:$G$53,3,0)="Menina",tblMLS!AF108,tblMLS!AF276),"") -> 152.623 | F109: =IF(Turma!$A$2=1,IF(VLOOKUP("x",Turma!$B$4:$G$53,3,0)="Menina",tblMLS!AG108,tblMLS!AG276),"") -> 159.569 | G109: =IF(Turma!$A$2=1,IF(VLOOKUP("x",Turma!$B$4:$G$53,3,0)="Menina",tblMLS!AH108,tblMLS!AH276),"") -> 166.515 | H109: =IF(Turma!$A$2=1,IF(VLOOKUP("x",Turma!$B$4:$G$53,3,0)="Menina",tblMLS!AI108,tblMLS!AI276),"") -> 173.461 | I109: =IF(Turma!$A$2=1,IF(VLOOKUP("x",Turma!$B$4:$G$53,3,0)="Menina",tblMLS!AJ108,tblMLS!AJ276),"") -> 180.407
A110: 168 | B110: 14 | C110: =IF(Turma!$A$2=1,IF(VLOOKUP("x",Turma!$B$4:$G$53,3,0)="Menina",tblMLS!AD109,tblMLS!AD277),"") -> 138.961 | D110: =IF(Turma!$A$2=1,IF(VLOOKUP("x",Turma!$B$4:$G$53,3,0)="Menina",tblMLS!AE109,tblMLS!AE277),"") -> 145.903 | E110: =IF(Turma!$A$2=1,IF(VLOOKUP("x",Turma!$B$4:$G$53,3,0)="Menina",tblMLS!AF109,tblMLS!AF277),"") -> 152.846 | F110: =IF(Turma!$A$2=1,IF(VLOOKUP("x",Turma!$B$4:$G$53,3,0)="Menina",tblMLS!AG109,tblMLS!AG277),"") -> 159.789 | G110: =IF(Turma!$A$2=1,IF(VLOOKUP("x",Turma!$B$4:$G$53,3,0)="Menina",tblMLS!AH109,tblMLS!AH277),"") -> 166.732 | H110: =IF(Turma!$A$2=1,IF(VLOOKUP("x",Turma!$B$4:$G$53,3,0)="Menina",tblMLS!AI109,tblMLS!AI277),"") -> 173.675 | I110: =IF(Turma!$A$2=1,IF(VLOOKUP("x",Turma!$B$4:$G$53,3,0)="Menina",tblMLS!AJ109,tblMLS!AJ277),"") -> 180.617
A111: 169 | C111: =IF(Turma!$A$2=1,IF(VLOOKUP("x",Turma!$B$4:$G$53,3,0)="Menina",tblMLS!AD110,tblMLS!AD278),"") -> 139.181 | D111: =IF(Turma!$A$2=1,IF(VLOOKUP("x",Turma!$B$4:$G$53,3,0)="Menina",tblMLS!AE110,tblMLS!AE278),"") -> 146.12 | E111: =IF(Turma!$A$2=1,IF(VLOOKUP("x",Turma!$B$4:$G$53,3,0)="Menina",tblMLS!AF110,tblMLS!AF278),"") -> 153.059 | F111: =IF(Turma!$A$2=1,IF(VLOOKUP("x",Turma!$B$4:$G$53,3,0)="Menina",tblMLS!AG110,tblMLS!AG278),"") -> 159.998 | G111: =IF(Turma!$A$2=1,IF(VLOOKUP("x",Turma!$B$4:$G$53,3,0)="Menina",tblMLS!AH110,tblMLS!AH278),"") -> 166.937 | H111: =IF(Turma!$A$2=1,IF(VLOOKUP("x",Turma!$B$4:$G$53,3,0)="Menina",tblMLS!AI110,tblMLS!AI278),"") -> 173.877 | I111: =IF(Turma!$A$2=1,IF(VLOOKUP("x",Turma!$B$4:$G$53,3,0)="Menina",tblMLS!AJ110,tblMLS!AJ278),"") -> 180.816
A112: 170 | C112: =IF(Turma!$A$2=1,IF(VLOOKUP("x",Turma!$B$4:$G$53,3,0)="Menina",tblMLS!AD111,tblMLS!AD279),"") -> 139.387 | D112: =IF(Turma!$A$2=1,IF(VLOOKUP("x",Turma!$B$4:$G$53,3,0)="Menina",tblMLS!AE111,tblMLS!AE279),"") -> 146.324 | E112: =IF(Turma!$A$2=1,IF(VLOOKUP("x",Turma!$B$4:$G$53,3,0)="Menina",tblMLS!AF111,tblMLS!AF279),"") -> 153.261 | F112: =IF(Turma!$A$2=1,IF(VLOOKUP("x",Turma!$B$4:$G$53,3,0)="Menina",tblMLS!AG111,tblMLS!AG279),"") -> 160.197 | G112: =IF(Turma!$A$2=1,IF(VLOOKUP("x",Turma!$B$4:$G$53,3,0)="Menina",tblMLS!AH111,tblMLS!AH279),"") -> 167.134 | H112: =IF(Turma!$A$2=1,IF(VLOOKUP("x",Turma!$B$4:$G$53,3,0)="Menina",tblMLS!AI111,tblMLS!AI279),"") -> 174.07 | I112: =IF(Turma!$A$2=1,IF(VLOOKUP("x",Turma!$B$4:$G$53,3,0)="Menina",tblMLS!AJ111,tblMLS!AJ279),"") -> 181.007
A113: 171 | C113: =IF(Turma!$A$2=1,IF(VLOOKUP("x",Turma!$B$4:$G$53,3,0)="Menina",tblMLS!AD112,tblMLS!AD280),"") -> 139.59 | D113: =IF(Turma!$A$2=1,IF(VLOOKUP("x",Turma!$B$4:$G$53,3,0)="Menina",tblMLS!AE112,tblMLS!AE280),"") -> 146.522 | E113: =IF(Turma!$A$2=1,IF(VLOOKUP("x",Turma!$B$4:$G$53,3,0)="Menina",tblMLS!AF112,tblMLS!AF280),"") -> 153.454 | F113: =IF(Turma!$A$2=1,IF(VLOOKUP("x",Turma!$B$4:$G$53,3,0)="Menina",tblMLS!AG112,tblMLS!AG280),"") -> 160.386 | G113: =IF(Turma!$A$2=1,IF(VLOOKUP("x",Turma!$B$4:$G$53,3,0)="Menina",tblMLS!AH112,tblMLS!AH280),"") -> 167.318 | H113: =IF(Turma!$A$2=1,IF(VLOOKUP("x",Turma!$B$4:$G$53,3,0)="Menina",tblMLS!AI112,tblMLS!AI280),"") -> 174.249 | I113: =IF(Turma!$A$2=1,IF(VLOOKUP("x",Turma!$B$4:$G$53,3,0)="Menina",tblMLS!AJ112,tblMLS!AJ280),"") -> 181.181
A114: 172 | C114: =IF(Turma!$A$2=1,IF(VLOOKUP("x",Turma!$B$4:$G$53,3,0)="Menina",tblMLS!AD113,tblMLS!AD281),"") -> 139.784 | D114: =IF(Turma!$A$2=1,IF(VLOOKUP("x",Turma!$B$4:$G$53,3,0)="Menina",tblMLS!AE113,tblMLS!AE281),"") -> 146.711 | E114: =IF(Turma!$A$2=1,IF(VLOOKUP("x",Turma!$B$4:$G$53,3,0)="Menina",tblMLS!AF113,tblMLS!AF281),"") -> 153.638 | F114: =IF(Turma!$A$2=1,IF(VLOOKUP("x",Turma!$B$4:$G$53,3,0)="Menina",tblMLS!AG113,tblMLS!AG281),"") -> 160.564 | G114: =IF(Turma!$A$2=1,IF(VLOOKUP("x",Turma!$B$4:$G$53,3,0)="Menina",tblMLS!AH113,tblMLS!AH281),"") -> 167.491 | H114: =IF(Turma!$A$2=1,IF(VLOOKUP("x",Turma!$B$4:$G$53,3,0)="Menina",tblMLS!AI113,tblMLS!AI281),"") -> 174.418 | I114: =IF(Turma!$A$2=1,IF(VLOOKUP("x",Turma!$B$4:$G$53,3,0)="Menina",tblMLS!AJ113,tblMLS!AJ281),"") -> 181.345
A115: 173 | C115: =IF(Turma!$A$2=1,IF(VLOOKUP("x",Turma!$B$4:$G$53,3,0)="Menina",tblMLS!AD114,tblMLS!AD282),"") -> 139.965 | D115: =IF(Turma!$A$2=1,IF(VLOOKUP("x",Turma!$B$4:$G$53,3,0)="Menina",tblMLS!AE114,tblMLS!AE282),"") -> 146.888 | E115: =IF(Turma!$A$2=1,IF(VLOOKUP("x",Turma!$B$4:$G$53,3,0)="Menina",tblMLS!AF114,tblMLS!AF282),"") -> 153.81 | F115: =IF(Turma!$A$2=1,IF(VLOOKUP("x",Turma!$B$4:$G$53,3,0)="Menina",tblMLS!AG114,tblMLS!AG282),"") -> 160.733 | G115: =IF(Turma!$A$2=1,IF(VLOOKUP("x",Turma!$B$4:$G$53,3,0)="Menina",tblMLS!AH114,tblMLS!AH282),"") -> 167.656 | H115: =IF(Turma!$A$2=1,IF(VLOOKUP("x",Turma!$B$4:$G$53,3,0)="Menina",tblMLS!AI114,tblMLS!AI282),"") -> 174.579 | I115: =IF(Turma!$A$2=1,IF(VLOOKUP("x",Turma!$B$4:$G$53,3,0)="Menina",tblMLS!AJ114,tblMLS!AJ282),"") -> 181.502
A116: 174 | C116: =IF(Turma!$A$2=1,IF(VLOOKUP("x",Turma!$B$4:$G$53,3,0)="Menina",tblMLS!AD115,tblMLS!AD283),"") -> 140.142 | D116: =IF(Turma!$A$2=1,IF(VLOOKUP("x",Turma!$B$4:$G$53,3,0)="Menina",tblMLS!AE115,tblMLS!AE283),"") -> 147.059 | E116: =IF(Turma!$A$2=1,IF(VLOOKUP("x",Turma!$B$4:$G$53,3,0)="Menina",tblMLS!AF115,tblMLS!AF283),"") -> 153.976 | F116: =IF(Turma!$A$2=1,IF(VLOOKUP("x",Turma!$B$4:$G$53,3,0)="Menina",tblMLS!AG115,tblMLS!AG283),"") -> 160.893 | G116: =IF(Turma!$A$2=1,IF(VLOOKUP("x",Turma!$B$4:$G$53,3,0)="Menina",tblMLS!AH115,tblMLS!AH283),"") -> 167.809 | H116: =IF(Turma!$A$2=1,IF(VLOOKUP("x",Turma!$B$4:$G$53,3,0)="Menina",tblMLS!AI115,tblMLS!AI283),"") -> 174.726 | I116: =IF(Turma!$A$2=1,IF(VLOOKUP("x",Turma!$B$4:$G$53,3,0)="Menina",tblMLS!AJ115,tblMLS!AJ283),"") -> 181.643
A117: 175 | C117: =IF(Turma!$A$2=1,IF(VLOOKUP("x",Turma!$B$4:$G$53,3,0)="Menina",tblMLS!AD116,tblMLS!AD284),"") -> 140.307 | D117: =IF(Turma!$A$2=1,IF(VLOOKUP("x",Turma!$B$4:$G$53,3,0)="Menina",tblMLS!AE116,tblMLS!AE284),"") -> 147.219 | E117: =IF(Turma!$A$2=1,IF(VLOOKUP("x",Turma!$B$4:$G$53,3,0)="Menina",tblMLS!AF116,tblMLS!AF284),"") -> 154.131 | F117: =IF(Turma!$A$2=1,IF(VLOOKUP("x",Turma!$B$4:$G$53,3,0)="Menina",tblMLS!AG116,tblMLS!AG284),"") -> 161.043 | G117: =IF(Turma!$A$2=1,IF(VLOOKUP("x",Turma!$B$4:$G$53,3,0)="Menina",tblMLS!AH116,tblMLS!AH284),"") -> 167.955 | H117: =IF(Turma!$A$2=1,IF(VLOOKUP("x",Turma!$B$4:$G$53,3,0)="Menina",tblMLS!AI116,tblMLS!AI284),"") -> 174.867 | I117: =IF(Turma!$A$2=1,IF(VLOOKUP("x",Turma!$B$4:$G$53,3,0)="Menina",tblMLS!AJ116,tblMLS!AJ284),"") -> 181.779
A118: 176 | C118: =IF(Turma!$A$2=1,IF(VLOOKUP("x",Turma!$B$4:$G$53,3,0)="Menina",tblMLS!AD117,tblMLS!AD285),"") -> 140.469 | D118: =IF(Turma!$A$2=1,IF(VLOOKUP("x",Turma!$B$4:$G$53,3,0)="Menina",tblMLS!AE117,tblMLS!AE285),"") -> 147.374 | E118: =IF(Turma!$A$2=1,IF(VLOOKUP("x",Turma!$B$4:$G$53,3,0)="Menina",tblMLS!AF117,tblMLS!AF285),"") -> 154.279 | F118: =IF(Turma!$A$2=1,IF(VLOOKUP("x",Turma!$B$4:$G$53,3,0)="Menina",tblMLS!AG117,tblMLS!AG285),"") -> 161.184 | G118: =IF(Turma!$A$2=1,IF(VLOOKUP("x",Turma!$B$4:$G$53,3,0)="Menina",tblMLS!AH117,tblMLS!AH285),"") -> 168.09 | H118: =IF(Turma!$A$2=1,IF(VLOOKUP("x",Turma!$B$4:$G$53,3,0)="Menina",tblMLS!AI117,tblMLS!AI285),"") -> 174.995 | I118: =IF(Turma!$A$2=1,IF(VLOOKUP("x",Turma!$B$4:$G$53,3,0)="Menina",tblMLS!AJ117,tblMLS!AJ285),"") -> 181.9
A119: 177 | C119: =IF(Turma!$A$2=1,IF(VLOOKUP("x",Turma!$B$4:$G$53,3,0)="Menina",tblMLS!AD118,tblMLS!AD286),"") -> 140.619 | D119: =IF(Turma!$A$2=1,IF(VLOOKUP("x",Turma!$B$4:$G$53,3,0)="Menina",tblMLS!AE118,tblMLS!AE286),"") -> 147.518 | E119: =IF(Turma!$A$2=1,IF(VLOOKUP("x",Turma!$B$4:$G$53,3,0)="Menina",tblMLS!AF118,tblMLS!AF286),"") -> 154.418 | F119: =IF(Turma!$A$2=1,IF(VLOOKUP("x",Turma!$B$4:$G$53,3,0)="Menina",tblMLS!AG118,tblMLS!AG286),"") -> 161.318 | G119: =IF(Turma!$A$2=1,IF(VLOOKUP("x",Turma!$B$4:$G$53,3,0)="Menina",tblMLS!AH118,tblMLS!AH286),"") -> 168.217 | H119: =IF(Turma!$A$2=1,IF(VLOOKUP("x",Turma!$B$4:$G$53,3,0)="Menina",tblMLS!AI118,tblMLS!AI286),"") -> 175.117 | I119: =IF(Turma!$A$2=1,IF(VLOOKUP("x",Turma!$B$4:$G$53,3,0)="Menina",tblMLS!AJ118,tblMLS!AJ286),"") -> 182.016
A120: 178 | C120: =IF(Turma!$A$2=1,IF(VLOOKUP("x",Turma!$B$4:$G$53,3,0)="Menina",tblMLS!AD119,tblMLS!AD287),"") -> 140.762 | D120: =IF(Turma!$A$2=1,IF(VLOOKUP("x",Turma!$B$4:$G$53,3,0)="Menina",tblMLS!AE119,tblMLS!AE287),"") -> 147.655 | E120: =IF(Turma!$A$2=1,IF(VLOOKUP("x",Turma!$B$4:$G$53,3,0)="Menina",tblMLS!AF119,tblMLS!AF287),"") -> 154.549 | F120: =IF(Turma!$A$2=1,IF(VLOOKUP("x",Turma!$B$4:$G$53,3,0)="Menina",tblMLS!AG119,tblMLS!AG287),"") -> 161.442 | G120: =IF(Turma!$A$2=1,IF(VLOOKUP("x",Turma!$B$4:$G$53,3,0)="Menina",tblMLS!AH119,tblMLS!AH287),"") -> 168.336 | H120: =IF(Turma!$A$2=1,IF(VLOOKUP("x",Turma!$B$4:$G$53,3,0)="Menina",tblMLS!AI119,tblMLS!AI287),"") -> 175.23 | I120: =IF(Turma!$A$2=1,IF(VLOOKUP("x",Turma!$B$4:$G$53,3,0)="Menina",tblMLS!AJ119,tblMLS!AJ287),"") -> 182.123
A121: 179 | C121: =IF(Turma!$A$2=1,IF(VLOOKUP("x",Turma!$B$4:$G$53,3,0)="Menina",tblMLS!AD120,tblMLS!AD288),"") -> 140.898 | D121: =IF(Turma!$A$2=1,IF(VLOOKUP("x",Turma!$B$4:$G$53,3,0)="Menina",tblMLS!AE120,tblMLS!AE288),"") -> 147.785 | E121: =IF(Turma!$A$2=1,IF(VLOOKUP("x",Turma!$B$4:$G$53,3,0)="Menina",tblMLS!AF120,tblMLS!AF288),"") -> 154.672 | F121: =IF(Turma!$A$2=1,IF(VLOOKUP("x",Turma!$B$4:$G$53,3,0)="Menina",tblMLS!AG120,tblMLS!AG288),"") -> 161.56 | G121: =IF(Turma!$A$2=1,IF(VLOOKUP("x",Turma!$B$4:$G$53,3,0)="Menina",tblMLS!AH120,tblMLS!AH288),"") -> 168.447 | H121: =IF(Turma!$A$2=1,IF(VLOOKUP("x",Turma!$B$4:$G$53,3,0)="Menina",tblMLS!AI120,tblMLS!AI288),"") -> 175.334 | I121: =IF(Turma!$A$2=1,IF(VLOOKUP("x",Turma!$B$4:$G$53,3,0)="Menina",tblMLS!AJ120,tblMLS!AJ288),"") -> 182.221
A122: 180 | B122: 15 | C122: =IF(Turma!$A$2=1,IF(VLOOKUP("x",Turma!$B$4:$G$53,3,0)="Menina",tblMLS!AD121,tblMLS!AD289),"") -> 141.032 | D122: =IF(Turma!$A$2=1,IF(VLOOKUP("x",Turma!$B$4:$G$53,3,0)="Menina",tblMLS!AE121,tblMLS!AE289),"") -> 147.911 | E122: =IF(Turma!$A$2=1,IF(VLOOKUP("x",Turma!$B$4:$G$53,3,0)="Menina",tblMLS!AF121,tblMLS!AF289),"") -> 154.79 | F122: =IF(Turma!$A$2=1,IF(VLOOKUP("x",Turma!$B$4:$G$53,3,0)="Menina",tblMLS!AG121,tblMLS!AG289),"") -> 161.669 | G122: =IF(Turma!$A$2=1,IF(VLOOKUP("x",Turma!$B$4:$G$53,3,0)="Menina",tblMLS!AH121,tblMLS!AH289),"") -> 168.548 | H122: =IF(Turma!$A$2=1,IF(VLOOKUP("x",Turma!$B$4:$G$53,3,0)="Menina",tblMLS!AI121,tblMLS!AI289),"") -> 175.427 | I122: =IF(Turma!$A$2=1,IF(VLOOKUP("x",Turma!$B$4:$G$53,3,0)="Menina",tblMLS!AJ121,tblMLS!AJ289),"") -> 182.306
A123: 181 | C123: =IF(Turma!$A$2=1,IF(VLOOKUP("x",Turma!$B$4:$G$53,3,0)="Menina",tblMLS!AD122,tblMLS!AD290),"") -> 141.156 | D123: =IF(Turma!$A$2=1,IF(VLOOKUP("x",Turma!$B$4:$G$53,3,0)="Menina",tblMLS!AE122,tblMLS!AE290),"") -> 148.028 | E123: =IF(Turma!$A$2=1,IF(VLOOKUP("x",Turma!$B$4:$G$53,3,0)="Menina",tblMLS!AF122,tblMLS!AF290),"") -> 154.9 | F123: =IF(Turma!$A$2=1,IF(VLOOKUP("x",Turma!$B$4:$G$53,3,0)="Menina",tblMLS!AG122,tblMLS!AG290),"") -> 161.772 | G123: =IF(Turma!$A$2=1,IF(VLOOKUP("x",Turma!$B$4:$G$53,3,0)="Menina",tblMLS!AH122,tblMLS!AH290),"") -> 168.644 | H123: =IF(Turma!$A$2=1,IF(VLOOKUP("x",Turma!$B$4:$G$53,3,0)="Menina",tblMLS!AI122,tblMLS!AI290),"") -> 175.516 | I123: =IF(Turma!$A$2=1,IF(VLOOKUP("x",Turma!$B$4:$G$53,3,0)="Menina",tblMLS!AJ122,tblMLS!AJ290),"") -> 182.388
A124: 182 | C124: =IF(Turma!$A$2=1,IF(VLOOKUP("x",Turma!$B$4:$G$53,3,0)="Menina",tblMLS!AD123,tblMLS!AD291),"") -> 141.273 | D124: =IF(Turma!$A$2=1,IF(VLOOKUP("x",Turma!$B$4:$G$53,3,0)="Menina",tblMLS!AE123,tblMLS!AE291),"") -> 148.138 | E124: =IF(Turma!$A$2=1,IF(VLOOKUP("x",Turma!$B$4:$G$53,3,0)="Menina",tblMLS!AF123,tblMLS!AF291),"") -> 155.003 | F124: =IF(Turma!$A$2=1,IF(VLOOKUP("x",Turma!$B$4:$G$53,3,0)="Menina",tblMLS!AG123,tblMLS!AG291),"") -> 161.867 | G124: =IF(Turma!$A$2=1,IF(VLOOKUP("x",Turma!$B$4:$G$53,3,0)="Menina",tblMLS!AH123,tblMLS!AH291),"") -> 168.732 | H124: =IF(Turma!$A$2=1,IF(VLOOKUP("x",Turma!$B$4:$G$53,3,0)="Menina",tblMLS!AI123,tblMLS!AI291),"") -> 175.597 | I124: =IF(Turma!$A$2=1,IF(VLOOKUP("x",Turma!$B$4:$G$53,3,0)="Menina",tblMLS!AJ123,tblMLS!AJ291),"") -> 182.462
A125: 183 | C125: =IF(Turma!$A$2=1,IF(VLOOKUP("x",Turma!$B$4:$G$53,3,0)="Menina",tblMLS!AD124,tblMLS!AD292),"") -> 141.38 | D125: =IF(Turma!$A$2=1,IF(VLOOKUP("x",Turma!$B$4:$G$53,3,0)="Menina",tblMLS!AE124,tblMLS!AE292),"") -> 148.239 | E125: =IF(Turma!$A$2=1,IF(VLOOKUP("x",Turma!$B$4:$G$53,3,0)="Menina",tblMLS!AF124,tblMLS!AF292),"") -> 155.098 | F125: =IF(Turma!$A$2=1,IF(VLOOKUP("x",Turma!$B$4:$G$53,3,0)="Menina",tblMLS!AG124,tblMLS!AG292),"") -> 161.956 | G125: =IF(Turma!$A$2=1,IF(VLOOKUP("x",Turma!$B$4:$G$53,3,0)="Menina",tblMLS!AH124,tblMLS!AH292),"") -> 168.815 | H125: =IF(Turma!$A$2=1,IF(VLOOKUP("x",Turma!$B$4:$G$53,3,0)="Menina",tblMLS!AI124,tblMLS!AI292),"") -> 175.674 | I125: =IF(Turma!$A$2=1,IF(VLOOKUP("x",Turma!$B$4:$G$53,3,0)="Menina",tblMLS!AJ124,tblMLS!AJ292),"") -> 182.533
A126: 184 | C126: =IF(Turma!$A$2=1,IF(VLOOKUP("x",Turma!$B$4:$G$53,3,0)="Menina",tblMLS!AD125,tblMLS!AD293),"") -> 141.486 | D126: =IF(Turma!$A$2=1,IF(VLOOKUP("x",Turma!$B$4:$G$53,3,0)="Menina",tblMLS!AE125,tblMLS!AE293),"") -> 148.337 | E126: =IF(Turma!$A$2=1,IF(VLOOKUP("x",Turma!$B$4:$G$53,3,0)="Menina",tblMLS!AF125,tblMLS!AF293),"") -> 155.188 | F126: =IF(Turma!$A$2=1,IF(VLOOKUP("x",Turma!$B$4:$G$53,3,0)="Menina",tblMLS!AG125,tblMLS!AG293),"") -> 162.039 | G126: =IF(Turma!$A$2=1,IF(VLOOKUP("x",Turma!$B$4:$G$53,3,0)="Menina",tblMLS!AH125,tblMLS!AH293),"") -> 168.89 | H126: =IF(Turma!$A$2=1,IF(VLOOKUP("x",Turma!$B$4:$G$53,3,0)="Menina",tblMLS!AI125,tblMLS!AI293),"") -> 175.741 | I126: =IF(Turma!$A$2=1,IF(VLOOKUP("x",Turma!$B$4:$G$53,3,0)="Menina",tblMLS!AJ125,tblMLS!AJ293),"") -> 182.592
A127: 185 | C127: =IF(Turma!$A$2=1,IF(VLOOKUP("x",Turma!$B$4:$G$53,3,0)="Menina",tblMLS!AD126,tblMLS!AD294),"") -> 141.588 | D127: =IF(Turma!$A$2=1,IF(VLOOKUP("x",Turma!$B$4:$G$53,3,0)="Menina",tblMLS!AE126,tblMLS!AE294),"") -> 148.431 | E127: =IF(Turma!$A$2=1,IF(VLOOKUP("x",Turma!$B$4:$G$53,3,0)="Menina",tblMLS!AF126,tblMLS!AF294),"") -> 155.273 | F127: =IF(Turma!$A$2=1,IF(VLOOKUP("x",Turma!$B$4:$G$53,3,0)="Menina",tblMLS!AG126,tblMLS!AG294),"") -> 162.116 | G127: =IF(Turma!$A$2=1,IF(VLOOKUP("x",Turma!$B$4:$G$53,3,0)="Menina",tblMLS!AH126,tblMLS!AH294),"") -> 168.959 | H127: =IF(Turma!$A$2=1,IF(VLOOKUP("x",Turma!$B$4:$G$53,3,0)="Menina",tblMLS!AI126,tblMLS!AI294),"") -> 175.802 | I127: =IF(Turma!$A$2=1,IF(VLOOKUP("x",Turma!$B$4:$G$53,3,0)="Menina",tblMLS!AJ126,tblMLS!AJ294),"") -> 182.645
A128: 186 | C128: =IF(Turma!$A$2=1,IF(VLOOKUP("x",Turma!$B$4:$G$53,3,0)="Menina",tblMLS!AD127,tblMLS!AD295),"") -> 141.684 | D128: =IF(Turma!$A$2=1,IF(VLOOKUP("x",Turma!$B$4:$G$53,3,0)="Menina",tblMLS!AE127,tblMLS!AE295),"") -> 148.519 | E128: =IF(Turma!$A$2=1,IF(VLOOKUP("x",Turma!$B$4:$G$53,3,0)="Menina",tblMLS!AF127,tblMLS!AF295),"") -> 155.353 | F128: =IF(Turma!$A$2=1,IF(VLOOKUP("x",Turma!$B$4:$G$53,3,0)="Menina",tblMLS!AG127,tblMLS!AG295),"") -> 162.188 | G128: =IF(Turma!$A$2=1,IF(VLOOKUP("x",Turma!$B$4:$G$53,3,0)="Menina",tblMLS!AH127,tblMLS!AH295),"") -> 169.023 | H128: =IF(Turma!$A$2=1,IF(VLOOKUP("x",Turma!$B$4:$G$53,3,0)="Menina",tblMLS!AI127,tblMLS!AI295),"") -> 175.857 | I128: =IF(Turma!$A$2=1,IF(VLOOKUP("x",Turma!$B$4:$G$53,3,0)="Menina",tblMLS!AJ127,tblMLS!AJ295),"") -> 182.692
A129: 187 | C129: =IF(Turma!$A$2=1,IF(VLOOKUP("x",Turma!$B$4:$G$53,3,0)="Menina",tblMLS!AD128,tblMLS!AD296),"") -> 141.771 | D129: =IF(Turma!$A$2=1,IF(VLOOKUP("x",Turma!$B$4:$G$53,3,0)="Menina",tblMLS!AE128,tblMLS!AE296),"") -> 148.599 | E129: =IF(Turma!$A$2=1,IF(VLOOKUP("x",Turma!$B$4:$G$53,3,0)="Menina",tblMLS!AF128,tblMLS!AF296),"") -> 155.427 | F129: =IF(Turma!$A$2=1,IF(VLOOKUP("x",Turma!$B$4:$G$53,3,0)="Menina",tblMLS!AG128,tblMLS!AG296),"") -> 162.254 | G129: =IF(Turma!$A$2=1,IF(VLOOKUP("x",Turma!$B$4:$G$53,3,0)="Menina",tblMLS!AH128,tblMLS!AH296),"") -> 169.082 | H129: =IF(Turma!$A$2=1,IF(VLOOKUP("x",Turma!$B$4:$G$53,3,0)="Menina",tblMLS!AI128,tblMLS!AI296),"") -> 175.91 | I129: =IF(Turma!$A$2=1,IF(VLOOKUP("x",Turma!$B$4:$G$53,3,0)="Menina",tblMLS!AJ128,tblMLS!AJ296),"") -> 182.737
A130: 188 | C130: =IF(Turma!$A$2=1,IF(VLOOKUP("x",Turma!$B$4:$G$53,3,0)="Menina",tblMLS!AD129,tblMLS!AD297),"") -> 141.859 | D130: =IF(Turma!$A$2=1,IF(VLOOKUP("x",Turma!$B$4:$G$53,3,0)="Menina",tblMLS!AE129,tblMLS!AE297),"") -> 148.678 | E130: =IF(Turma!$A$2=1,IF(VLOOKUP("x",Turma!$B$4:$G$53,3,0)="Menina",tblMLS!AF129,tblMLS!AF297),"") -> 155.497 | F130: =IF(Turma!$A$2=1,IF(VLOOKUP("x",Turma!$B$4:$G$53,3,0)="Menina",tblMLS!AG129,tblMLS!AG297),"") -> 162.315 | G130: =IF(Turma!$A$2=1,IF(VLOOKUP("x",Turma!$B$4:$G$53,3,0)="Menina",tblMLS!AH129,tblMLS!AH297),"") -> 169.134 | H130: =IF(Turma!$A$2=1,IF(VLOOKUP("x",Turma!$B$4:$G$53,3,0)="Menina",tblMLS!AI129,tblMLS!AI297),"") -> 175.953 | I130: =IF(Turma!$A$2=1,IF(VLOOKUP("x",Turma!$B$4:$G$53,3,0)="Menina",tblMLS!AJ129,tblMLS!AJ297),"") -> 182.772
A131: 189 | B131: =IF(A131/12=INT(A131/12),A131/12,"") ->  | C131: =IF(Turma!$A$2=1,IF(VLOOKUP("x",Turma!$B$4:$G$53,3,0)="Menina",tblMLS!AD130,tblMLS!AD298),"") -> 141.937 | D131: =IF(Turma!$A$2=1,IF(VLOOKUP("x",Turma!$B$4:$G$53,3,0)="Menina",tblMLS!AE130,tblMLS!AE298),"") -> 148.749 | E131: =IF(Turma!$A$2=1,IF(VLOOKUP("x",Turma!$B$4:$G$53,3,0)="Menina",tblMLS!AF130,tblMLS!AF298),"") -> 155.56 | F131: =IF(Turma!$A$2=1,IF(VLOOKUP("x",Turma!$B$4:$G$53,3,0)="Menina",tblMLS!AG130,tblMLS!AG298),"") -> 162.372 | G131: =IF(Turma!$A$2=1,IF(VLOOKUP("x",Turma!$B$4:$G$53,3,0)="Menina",tblMLS!AH130,tblMLS!AH298),"") -> 169.183 | H131: =IF(Turma!$A$2=1,IF(VLOOKUP("x",Turma!$B$4:$G$53,3,0)="Menina",tblMLS!AI130,tblMLS!AI298),"") -> 175.995 | I131: =IF(Turma!$A$2=1,IF(VLOOKUP("x",Turma!$B$4:$G$53,3,0)="Menina",tblMLS!AJ130,tblMLS!AJ298),"") -> 182.806
A132: 190 | C132: =IF(Turma!$A$2=1,IF(VLOOKUP("x",Turma!$B$4:$G$53,3,0)="Menina",tblMLS!AD131,tblMLS!AD299),"") -> 142.012 | D132: =IF(Turma!$A$2=1,IF(VLOOKUP("x",Turma!$B$4:$G$53,3,0)="Menina",tblMLS!AE131,tblMLS!AE299),"") -> 148.816 | E132: =IF(Turma!$A$2=1,IF(VLOOKUP("x",Turma!$B$4:$G$53,3,0)="Menina",tblMLS!AF131,tblMLS!AF299),"") -> 155.62 | F132: =IF(Turma!$A$2=1,IF(VLOOKUP("x",Turma!$B$4:$G$53,3,0)="Menina",tblMLS!AG131,tblMLS!AG299),"") -> 162.424 | G132: =IF(Turma!$A$2=1,IF(VLOOKUP("x",Turma!$B$4:$G$53,3,0)="Menina",tblMLS!AH131,tblMLS!AH299),"") -> 169.228 | H132: =IF(Turma!$A$2=1,IF(VLOOKUP("x",Turma!$B$4:$G$53,3,0)="Menina",tblMLS!AI131,tblMLS!AI299),"") -> 176.032 | I132: =IF(Turma!$A$2=1,IF(VLOOKUP("x",Turma!$B$4:$G$53,3,0)="Menina",tblMLS!AJ131,tblMLS!AJ299),"") -> 182.836
A133: 191 | C133: =IF(Turma!$A$2=1,IF(VLOOKUP("x",Turma!$B$4:$G$53,3,0)="Menina",tblMLS!AD132,tblMLS!AD300),"") -> 142.088 | D133: =IF(Turma!$A$2=1,IF(VLOOKUP("x",Turma!$B$4:$G$53,3,0)="Menina",tblMLS!AE132,tblMLS!AE300),"") -> 148.883 | E133: =IF(Turma!$A$2=1,IF(VLOOKUP("x",Turma!$B$4:$G$53,3,0)="Menina",tblMLS!AF132,tblMLS!AF300),"") -> 155.677 | F133: =IF(Turma!$A$2=1,IF(VLOOKUP("x",Turma!$B$4:$G$53,3,0)="Menina",tblMLS!AG132,tblMLS!AG300),"") -> 162.472 | G133: =IF(Turma!$A$2=1,IF(VLOOKUP("x",Turma!$B$4:$G$53,3,0)="Menina",tblMLS!AH132,tblMLS!AH300),"") -> 169.266 | H133: =IF(Turma!$A$2=1,IF(VLOOKUP("x",Turma!$B$4:$G$53,3,0)="Menina",tblMLS!AI132,tblMLS!AI300),"") -> 176.061 | I133: =IF(Turma!$A$2=1,IF(VLOOKUP("x",Turma!$B$4:$G$53,3,0)="Menina",tblMLS!AJ132,tblMLS!AJ300),"") -> 182.855
A134: 192 | B134: 16 | C134: =IF(Turma!$A$2=1,IF(VLOOKUP("x",Turma!$B$4:$G$53,3,0)="Menina",tblMLS!AD133,tblMLS!AD301),"") -> 142.156 | D134: =IF(Turma!$A$2=1,IF(VLOOKUP("x",Turma!$B$4:$G$53,3,0)="Menina",tblMLS!AE133,tblMLS!AE301),"") -> 148.942 | E134: =IF(Turma!$A$2=1,IF(VLOOKUP("x",Turma!$B$4:$G$53,3,0)="Menina",tblMLS!AF133,tblMLS!AF301),"") -> 155.729 | F134: =IF(Turma!$A$2=1,IF(VLOOKUP("x",Turma!$B$4:$G$53,3,0)="Menina",tblMLS!AG133,tblMLS!AG301),"") -> 162.516 | G134: =IF(Turma!$A$2=1,IF(VLOOKUP("x",Turma!$B$4:$G$53,3,0)="Menina",tblMLS!AH133,tblMLS!AH301),"") -> 169.302 | H134: =IF(Turma!$A$2=1,IF(VLOOKUP("x",Turma!$B$4:$G$53,3,0)="Menina",tblMLS!AI133,tblMLS!AI301),"") -> 176.089 | I134: =IF(Turma!$A$2=1,IF(VLOOKUP("x",Turma!$B$4:$G$53,3,0)="Menina",tblMLS!AJ133,tblMLS!AJ301),"") -> 182.876
A135: 193 | C135: =IF(Turma!$A$2=1,IF(VLOOKUP("x",Turma!$B$4:$G$53,3,0)="Menina",tblMLS!AD134,tblMLS!AD302),"") -> 142.22 | D135: =IF(Turma!$A$2=1,IF(VLOOKUP("x",Turma!$B$4:$G$53,3,0)="Menina",tblMLS!AE134,tblMLS!AE302),"") -> 148.999 | E135: =IF(Turma!$A$2=1,IF(VLOOKUP("x",Turma!$B$4:$G$53,3,0)="Menina",tblMLS!AF134,tblMLS!AF302),"") -> 155.777 | F135: =IF(Turma!$A$2=1,IF(VLOOKUP("x",Turma!$B$4:$G$53,3,0)="Menina",tblMLS!AG134,tblMLS!AG302),"") -> 162.556 | G135: =IF(Turma!$A$2=1,IF(VLOOKUP("x",Turma!$B$4:$G$53,3,0)="Menina",tblMLS!AH134,tblMLS!AH302),"") -> 169.335 | H135: =IF(Turma!$A$2=1,IF(VLOOKUP("x",Turma!$B$4:$G$53,3,0)="Menina",tblMLS!AI134,tblMLS!AI302),"") -> 176.113 | I135: =IF(Turma!$A$2=1,IF(VLOOKUP("x",Turma!$B$4:$G$53,3,0)="Menina",tblMLS!AJ134,tblMLS!AJ302),"") -> 182.892
A136: 194 | C136: =IF(Turma!$A$2=1,IF(VLOOKUP("x",Turma!$B$4:$G$53,3,0)="Menina",tblMLS!AD135,tblMLS!AD303),"") -> 142.282 | D136: =IF(Turma!$A$2=1,IF(VLOOKUP("x",Turma!$B$4:$G$53,3,0)="Menina",tblMLS!AE135,tblMLS!AE303),"") -> 149.053 | E136: =IF(Turma!$A$2=1,IF(VLOOKUP("x",Turma!$B$4:$G$53,3,0)="Menina",tblMLS!AF135,tblMLS!AF303),"") -> 155.823 | F136: =IF(Turma!$A$2=1,IF(VLOOKUP("x",Turma!$B$4:$G$53,3,0)="Menina",tblMLS!AG135,tblMLS!AG303),"") -> 162.593 | G136: =IF(Turma!$A$2=1,IF(VLOOKUP("x",Turma!$B$4:$G$53,3,0)="Menina",tblMLS!AH135,tblMLS!AH303),"") -> 169.364 | H136: =IF(Turma!$A$2=1,IF(VLOOKUP("x",Turma!$B$4:$G$53,3,0)="Menina",tblMLS!AI135,tblMLS!AI303),"") -> 176.134 | I136: =IF(Turma!$A$2=1,IF(VLOOKUP("x",Turma!$B$4:$G$53,3,0)="Menina",tblMLS!AJ135,tblMLS!AJ303),"") -> 182.904
A137: 195 | C137: =IF(Turma!$A$2=1,IF(VLOOKUP("x",Turma!$B$4:$G$53,3,0)="Menina",tblMLS!AD136,tblMLS!AD304),"") -> 142.341 | D137: =IF(Turma!$A$2=1,IF(VLOOKUP("x",Turma!$B$4:$G$53,3,0)="Menina",tblMLS!AE136,tblMLS!AE304),"") -> 149.103 | E137: =IF(Turma!$A$2=1,IF(VLOOKUP("x",Turma!$B$4:$G$53,3,0)="Menina",tblMLS!AF136,tblMLS!AF304),"") -> 155.866 | F137: =IF(Turma!$A$2=1,IF(VLOOKUP("x",Turma!$B$4:$G$53,3,0)="Menina",tblMLS!AG136,tblMLS!AG304),"") -> 162.628 | G137: =IF(Turma!$A$2=1,IF(VLOOKUP("x",Turma!$B$4:$G$53,3,0)="Menina",tblMLS!AH136,tblMLS!AH304),"") -> 169.39 | H137: =IF(Turma!$A$2=1,IF(VLOOKUP("x",Turma!$B$4:$G$53,3,0)="Menina",tblMLS!AI136,tblMLS!AI304),"") -> 176.152 | I137: =IF(Turma!$A$2=1,IF(VLOOKUP("x",Turma!$B$4:$G$53,3,0)="Menina",tblMLS!AJ136,tblMLS!AJ304),"") -> 182.914
A138: 196 | C138: =IF(Turma!$A$2=1,IF(VLOOKUP("x",Turma!$B$4:$G$53,3,0)="Menina",tblMLS!AD137,tblMLS!AD305),"") -> 142.399 | D138: =IF(Turma!$A$2=1,IF(VLOOKUP("x",Turma!$B$4:$G$53,3,0)="Menina",tblMLS!AE137,tblMLS!AE305),"") -> 149.152 | E138: =IF(Turma!$A$2=1,IF(VLOOKUP("x",Turma!$B$4:$G$53,3,0)="Menina",tblMLS!AF137,tblMLS!AF305),"") -> 155.906 | F138: =IF(Turma!$A$2=1,IF(VLOOKUP("x",Turma!$B$4:$G$53,3,0)="Menina",tblMLS!AG137,tblMLS!AG305),"") -> 162.659 | G138: =IF(Turma!$A$2=1,IF(VLOOKUP("x",Turma!$B$4:$G$53,3,0)="Menina",tblMLS!AH137,tblMLS!AH305),"") -> 169.413 | H138: =IF(Turma!$A$2=1,IF(VLOOKUP("x",Turma!$B$4:$G$53,3,0)="Menina",tblMLS!AI137,tblMLS!AI305),"") -> 176.167 | I138: =IF(Turma!$A$2=1,IF(VLOOKUP("x",Turma!$B$4:$G$53,3,0)="Menina",tblMLS!AJ137,tblMLS!AJ305),"") -> 182.92
A139: 197 | C139: =IF(Turma!$A$2=1,IF(VLOOKUP("x",Turma!$B$4:$G$53,3,0)="Menina",tblMLS!AD138,tblMLS!AD306),"") -> 142.449 | D139: =IF(Turma!$A$2=1,IF(VLOOKUP("x",Turma!$B$4:$G$53,3,0)="Menina",tblMLS!AE138,tblMLS!AE306),"") -> 149.196 | E139: =IF(Turma!$A$2=1,IF(VLOOKUP("x",Turma!$B$4:$G$53,3,0)="Menina",tblMLS!AF138,tblMLS!AF306),"") -> 155.942 | F139: =IF(Turma!$A$2=1,IF(VLOOKUP("x",Turma!$B$4:$G$53,3,0)="Menina",tblMLS!AG138,tblMLS!AG306),"") -> 162.689 | G139: =IF(Turma!$A$2=1,IF(VLOOKUP("x",Turma!$B$4:$G$53,3,0)="Menina",tblMLS!AH138,tblMLS!AH306),"") -> 169.436 | H139: =IF(Turma!$A$2=1,IF(VLOOKUP("x",Turma!$B$4:$G$53,3,0)="Menina",tblMLS!AI138,tblMLS!AI306),"") -> 176.182 | I139: =IF(Turma!$A$2=1,IF(VLOOKUP("x",Turma!$B$4:$G$53,3,0)="Menina",tblMLS!AJ138,tblMLS!AJ306),"") -> 182.929
A140: 198 | C140: =IF(Turma!$A$2=1,IF(VLOOKUP("x",Turma!$B$4:$G$53,3,0)="Menina",tblMLS!AD139,tblMLS!AD307),"") -> 142.502 | D140: =IF(Turma!$A$2=1,IF(VLOOKUP("x",Turma!$B$4:$G$53,3,0)="Menina",tblMLS!AE139,tblMLS!AE307),"") -> 149.24 | E140: =IF(Turma!$A$2=1,IF(VLOOKUP("x",Turma!$B$4:$G$53,3,0)="Menina",tblMLS!AF139,tblMLS!AF307),"") -> 155.978 | F140: =IF(Turma!$A$2=1,IF(VLOOKUP("x",Turma!$B$4:$G$53,3,0)="Menina",tblMLS!AG139,tblMLS!AG307),"") -> 162.716 | G140: =IF(Turma!$A$2=1,IF(VLOOKUP("x",Turma!$B$4:$G$53,3,0)="Menina",tblMLS!AH139,tblMLS!AH307),"") -> 169.455 | H140: =IF(Turma!$A$2=1,IF(VLOOKUP("x",Turma!$B$4:$G$53,3,0)="Menina",tblMLS!AI139,tblMLS!AI307),"") -> 176.193 | I140: =IF(Turma!$A$2=1,IF(VLOOKUP("x",Turma!$B$4:$G$53,3,0)="Menina",tblMLS!AJ139,tblMLS!AJ307),"") -> 182.931
A141: 199 | C141: =IF(Turma!$A$2=1,IF(VLOOKUP("x",Turma!$B$4:$G$53,3,0)="Menina",tblMLS!AD140,tblMLS!AD308),"") -> 142.549 | D141: =IF(Turma!$A$2=1,IF(VLOOKUP("x",Turma!$B$4:$G$53,3,0)="Menina",tblMLS!AE140,tblMLS!AE308),"") -> 149.28 | E141: =IF(Turma!$A$2=1,IF(VLOOKUP("x",Turma!$B$4:$G$53,3,0)="Menina",tblMLS!AF140,tblMLS!AF308),"") -> 156.011 | F141: =IF(Turma!$A$2=1,IF(VLOOKUP("x",Turma!$B$4:$G$53,3,0)="Menina",tblMLS!AG140,tblMLS!AG308),"") -> 162.742 | G141: =IF(Turma!$A$2=1,IF(VLOOKUP("x",Turma!$B$4:$G$53,3,0)="Menina",tblMLS!AH140,tblMLS!AH308),"") -> 169.474 | H141: =IF(Turma!$A$2=1,IF(VLOOKUP("x",Turma!$B$4:$G$53,3,0)="Menina",tblMLS!AI140,tblMLS!AI308),"") -> 176.205 | I141: =IF(Turma!$A$2=1,IF(VLOOKUP("x",Turma!$B$4:$G$53,3,0)="Menina",tblMLS!AJ140,tblMLS!AJ308),"") -> 182.936
A142: 200 | C142: =IF(Turma!$A$2=1,IF(VLOOKUP("x",Turma!$B$4:$G$53,3,0)="Menina",tblMLS!AD141,tblMLS!AD309),"") -> 142.6 | D142: =IF(Turma!$A$2=1,IF(VLOOKUP("x",Turma!$B$4:$G$53,3,0)="Menina",tblMLS!AE141,tblMLS!AE309),"") -> 149.322 | E142: =IF(Turma!$A$2=1,IF(VLOOKUP("x",Turma!$B$4:$G$53,3,0)="Menina",tblMLS!AF141,tblMLS!AF309),"") -> 156.045 | F142: =IF(Turma!$A$2=1,IF(VLOOKUP("x",Turma!$B$4:$G$53,3,0)="Menina",tblMLS!AG141,tblMLS!AG309),"") -> 162.767 | G142: =IF(Turma!$A$2=1,IF(VLOOKUP("x",Turma!$B$4:$G$53,3,0)="Menina",tblMLS!AH141,tblMLS!AH309),"") -> 169.489 | H142: =IF(Turma!$A$2=1,IF(VLOOKUP("x",Turma!$B$4:$G$53,3,0)="Menina",tblMLS!AI141,tblMLS!AI309),"") -> 176.212 | I142: =IF(Turma!$A$2=1,IF(VLOOKUP("x",Turma!$B$4:$G$53,3,0)="Menina",tblMLS!AJ141,tblMLS!AJ309),"") -> 182.934
A143: 201 | C143: =IF(Turma!$A$2=1,IF(VLOOKUP("x",Turma!$B$4:$G$53,3,0)="Menina",tblMLS!AD142,tblMLS!AD310),"") -> 142.645 | D143: =IF(Turma!$A$2=1,IF(VLOOKUP("x",Turma!$B$4:$G$53,3,0)="Menina",tblMLS!AE142,tblMLS!AE310),"") -> 149.36 | E143: =IF(Turma!$A$2=1,IF(VLOOKUP("x",Turma!$B$4:$G$53,3,0)="Menina",tblMLS!AF142,tblMLS!AF310),"") -> 156.075 | F143: =IF(Turma!$A$2=1,IF(VLOOKUP("x",Turma!$B$4:$G$53,3,0)="Menina",tblMLS!AG142,tblMLS!AG310),"") -> 162.79 | G143: =IF(Turma!$A$2=1,IF(VLOOKUP("x",Turma!$B$4:$G$53,3,0)="Menina",tblMLS!AH142,tblMLS!AH310),"") -> 169.506 | H143: =IF(Turma!$A$2=1,IF(VLOOKUP("x",Turma!$B$4:$G$53,3,0)="Menina",tblMLS!AI142,tblMLS!AI310),"") -> 176.221 | I143: =IF(Turma!$A$2=1,IF(VLOOKUP("x",Turma!$B$4:$G$53,3,0)="Menina",tblMLS!AJ142,tblMLS!AJ310),"") -> 182.936
A144: 202 | C144: =IF(Turma!$A$2=1,IF(VLOOKUP("x",Turma!$B$4:$G$53,3,0)="Menina",tblMLS!AD143,tblMLS!AD311),"") -> 142.694 | D144: =IF(Turma!$A$2=1,IF(VLOOKUP("x",Turma!$B$4:$G$53,3,0)="Menina",tblMLS!AE143,tblMLS!AE311),"") -> 149.4 | E144: =IF(Turma!$A$2=1,IF(VLOOKUP("x",Turma!$B$4:$G$53,3,0)="Menina",tblMLS!AF143,tblMLS!AF311),"") -> 156.106 | F144: =IF(Turma!$A$2=1,IF(VLOOKUP("x",Turma!$B$4:$G$53,3,0)="Menina",tblMLS!AG143,tblMLS!AG311),"") -> 162.813 | G144: =IF(Turma!$A$2=1,IF(VLOOKUP("x",Turma!$B$4:$G$53,3,0)="Menina",tblMLS!AH143,tblMLS!AH311),"") -> 169.519 | H144: =IF(Turma!$A$2=1,IF(VLOOKUP("x",Turma!$B$4:$G$53,3,0)="Menina",tblMLS!AI143,tblMLS!AI311),"") -> 176.225 | I144: =IF(Turma!$A$2=1,IF(VLOOKUP("x",Turma!$B$4:$G$53,3,0)="Menina",tblMLS!AJ143,tblMLS!AJ311),"") -> 182.931
A145: 203 | C145: =IF(Turma!$A$2=1,IF(VLOOKUP("x",Turma!$B$4:$G$53,3,0)="Menina",tblMLS!AD144,tblMLS!AD312),"") -> 142.737 | D145: =IF(Turma!$A$2=1,IF(VLOOKUP("x",Turma!$B$4:$G$53,3,0)="Menina",tblMLS!AE144,tblMLS!AE312),"") -> 149.436 | E145: =IF(Turma!$A$2=1,IF(VLOOKUP("x",Turma!$B$4:$G$53,3,0)="Menina",tblMLS!AF144,tblMLS!AF312),"") -> 156.135 | F145: =IF(Turma!$A$2=1,IF(VLOOKUP("x",Turma!$B$4:$G$53,3,0)="Menina",tblMLS!AG144,tblMLS!AG312),"") -> 162.834 | G145: =IF(Turma!$A$2=1,IF(VLOOKUP("x",Turma!$B$4:$G$53,3,0)="Menina",tblMLS!AH144,tblMLS!AH312),"") -> 169.533 | H145: =IF(Turma!$A$2=1,IF(VLOOKUP("x",Turma!$B$4:$G$53,3,0)="Menina",tblMLS!AI144,tblMLS!AI312),"") -> 176.232 | I145: =IF(Turma!$A$2=1,IF(VLOOKUP("x",Turma!$B$4:$G$53,3,0)="Menina",tblMLS!AJ144,tblMLS!AJ312),"") -> 182.931
A146: 204 | B146: 17 | C146: =IF(Turma!$A$2=1,IF(VLOOKUP("x",Turma!$B$4:$G$53,3,0)="Menina",tblMLS!AD145,tblMLS!AD313),"") -> 142.779 | D146: =IF(Turma!$A$2=1,IF(VLOOKUP("x",Turma!$B$4:$G$53,3,0)="Menina",tblMLS!AE145,tblMLS!AE313),"") -> 149.471 | E146: =IF(Turma!$A$2=1,IF(VLOOKUP("x",Turma!$B$4:$G$53,3,0)="Menina",tblMLS!AF145,tblMLS!AF313),"") -> 156.163 | F146: =IF(Turma!$A$2=1,IF(VLOOKUP("x",Turma!$B$4:$G$53,3,0)="Menina",tblMLS!AG145,tblMLS!AG313),"") -> 162.854 | G146: =IF(Turma!$A$2=1,IF(VLOOKUP("x",Turma!$B$4:$G$53,3,0)="Menina",tblMLS!AH145,tblMLS!AH313),"") -> 169.546 | H146: =IF(Turma!$A$2=1,IF(VLOOKUP("x",Turma!$B$4:$G$53,3,0)="Menina",tblMLS!AI145,tblMLS!AI313),"") -> 176.238 | I146: =IF(Turma!$A$2=1,IF(VLOOKUP("x",Turma!$B$4:$G$53,3,0)="Menina",tblMLS!AJ145,tblMLS!AJ313),"") -> 182.93
A147: 205 | C147: =IF(Turma!$A$2=1,IF(VLOOKUP("x",Turma!$B$4:$G$53,3,0)="Menina",tblMLS!AD146,tblMLS!AD314),"") -> 142.821 | D147: =IF(Turma!$A$2=1,IF(VLOOKUP("x",Turma!$B$4:$G$53,3,0)="Menina",tblMLS!AE146,tblMLS!AE314),"") -> 149.506 | E147: =IF(Turma!$A$2=1,IF(VLOOKUP("x",Turma!$B$4:$G$53,3,0)="Menina",tblMLS!AF146,tblMLS!AF314),"") -> 156.19 | F147: =IF(Turma!$A$2=1,IF(VLOOKUP("x",Turma!$B$4:$G$53,3,0)="Menina",tblMLS!AG146,tblMLS!AG314),"") -> 162.874 | G147: =IF(Turma!$A$2=1,IF(VLOOKUP("x",Turma!$B$4:$G$53,3,0)="Menina",tblMLS!AH146,tblMLS!AH314),"") -> 169.559 | H147: =IF(Turma!$A$2=1,IF(VLOOKUP("x",Turma!$B$4:$G$53,3,0)="Menina",tblMLS!AI146,tblMLS!AI314),"") -> 176.243 | I147: =IF(Turma!$A$2=1,IF(VLOOKUP("x",Turma!$B$4:$G$53,3,0)="Menina",tblMLS!AJ146,tblMLS!AJ314),"") -> 182.927
A148: 206 | C148: =IF(Turma!$A$2=1,IF(VLOOKUP("x",Turma!$B$4:$G$53,3,0)="Menina",tblMLS!AD147,tblMLS!AD315),"") -> 142.862 | D148: =IF(Turma!$A$2=1,IF(VLOOKUP("x",Turma!$B$4:$G$53,3,0)="Menina",tblMLS!AE147,tblMLS!AE315),"") -> 149.539 | E148: =IF(Turma!$A$2=1,IF(VLOOKUP("x",Turma!$B$4:$G$53,3,0)="Menina",tblMLS!AF147,tblMLS!AF315),"") -> 156.216 | F148: =IF(Turma!$A$2=1,IF(VLOOKUP("x",Turma!$B$4:$G$53,3,0)="Menina",tblMLS!AG147,tblMLS!AG315),"") -> 162.894 | G148: =IF(Turma!$A$2=1,IF(VLOOKUP("x",Turma!$B$4:$G$53,3,0)="Menina",tblMLS!AH147,tblMLS!AH315),"") -> 169.571 | H148: =IF(Turma!$A$2=1,IF(VLOOKUP("x",Turma!$B$4:$G$53,3,0)="Menina",tblMLS!AI147,tblMLS!AI315),"") -> 176.248 | I148: =IF(Turma!$A$2=1,IF(VLOOKUP("x",Turma!$B$4:$G$53,3,0)="Menina",tblMLS!AJ147,tblMLS!AJ315),"") -> 182.925
A149: 207 | C149: =IF(Turma!$A$2=1,IF(VLOOKUP("x",Turma!$B$4:$G$53,3,0)="Menina",tblMLS!AD148,tblMLS!AD316),"") -> 142.903 | D149: =IF(Turma!$A$2=1,IF(VLOOKUP("x",Turma!$B$4:$G$53,3,0)="Menina",tblMLS!AE148,tblMLS!AE316),"") -> 149.573 | E149: =IF(Turma!$A$2=1,IF(VLOOKUP("x",Turma!$B$4:$G$53,3,0)="Menina",tblMLS!AF148,tblMLS!AF316),"") -> 156.242 | F149: =IF(Turma!$A$2=1,IF(VLOOKUP("x",Turma!$B$4:$G$53,3,0)="Menina",tblMLS!AG148,tblMLS!AG316),"") -> 162.912 | G149: =IF(Turma!$A$2=1,IF(VLOOKUP("x",Turma!$B$4:$G$53,3,0)="Menina",tblMLS!AH148,tblMLS!AH316),"") -> 169.582 | H149: =IF(Turma!$A$2=1,IF(VLOOKUP("x",Turma!$B$4:$G$53,3,0)="Menina",tblMLS!AI148,tblMLS!AI316),"") -> 176.251 | I149: =IF(Turma!$A$2=1,IF(VLOOKUP("x",Turma!$B$4:$G$53,3,0)="Menina",tblMLS!AJ148,tblMLS!AJ316),"") -> 182.921
A150: 208 | C150: =IF(Turma!$A$2=1,IF(VLOOKUP("x",Turma!$B$4:$G$53,3,0)="Menina",tblMLS!AD149,tblMLS!AD317),"") -> 142.943 | D150: =IF(Turma!$A$2=1,IF(VLOOKUP("x",Turma!$B$4:$G$53,3,0)="Menina",tblMLS!AE149,tblMLS!AE317),"") -> 149.606 | E150: =IF(Turma!$A$2=1,IF(VLOOKUP("x",Turma!$B$4:$G$53,3,0)="Menina",tblMLS!AF149,tblMLS!AF317),"") -> 156.268 | F150: =IF(Turma!$A$2=1,IF(VLOOKUP("x",Turma!$B$4:$G$53,3,0)="Menina",tblMLS!AG149,tblMLS!AG317),"") -> 162.93 | G150: =IF(Turma!$A$2=1,IF(VLOOKUP("x",Turma!$B$4:$G$53,3,0)="Menina",tblMLS!AH149,tblMLS!AH317),"") -> 169.592 | H150: =IF(Turma!$A$2=1,IF(VLOOKUP("x",Turma!$B$4:$G$53,3,0)="Menina",tblMLS!AI149,tblMLS!AI317),"") -> 176.254 | I150: =IF(Turma!$A$2=1,IF(VLOOKUP("x",Turma!$B$4:$G$53,3,0)="Menina",tblMLS!AJ149,tblMLS!AJ317),"") -> 182.917
A151: 209 | C151: =IF(Turma!$A$2=1,IF(VLOOKUP("x",Turma!$B$4:$G$53,3,0)="Menina",tblMLS!AD150,tblMLS!AD318),"") -> 142.983 | D151: =IF(Turma!$A$2=1,IF(VLOOKUP("x",Turma!$B$4:$G$53,3,0)="Menina",tblMLS!AE150,tblMLS!AE318),"") -> 149.638 | E151: =IF(Turma!$A$2=1,IF(VLOOKUP("x",Turma!$B$4:$G$53,3,0)="Menina",tblMLS!AF150,tblMLS!AF318),"") -> 156.293 | F151: =IF(Turma!$A$2=1,IF(VLOOKUP("x",Turma!$B$4:$G$53,3,0)="Menina",tblMLS!AG150,tblMLS!AG318),"") -> 162.948 | G151: =IF(Turma!$A$2=1,IF(VLOOKUP("x",Turma!$B$4:$G$53,3,0)="Menina",tblMLS!AH150,tblMLS!AH318),"") -> 169.602 | H151: =IF(Turma!$A$2=1,IF(VLOOKUP("x",Turma!$B$4:$G$53,3,0)="Menina",tblMLS!AI150,tblMLS!AI318),"") -> 176.257 | I151: =IF(Turma!$A$2=1,IF(VLOOKUP("x",Turma!$B$4:$G$53,3,0)="Menina",tblMLS!AJ150,tblMLS!AJ318),"") -> 182.912
A152: 210 | C152: =IF(Turma!$A$2=1,IF(VLOOKUP("x",Turma!$B$4:$G$53,3,0)="Menina",tblMLS!AD151,tblMLS!AD319),"") -> 143.018 | D152: =IF(Turma!$A$2=1,IF(VLOOKUP("x",Turma!$B$4:$G$53,3,0)="Menina",tblMLS!AE151,tblMLS!AE319),"") -> 149.667 | E152: =IF(Turma!$A$2=1,IF(VLOOKUP("x",Turma!$B$4:$G$53,3,0)="Menina",tblMLS!AF151,tblMLS!AF319),"") -> 156.316 | F152: =IF(Turma!$A$2=1,IF(VLOOKUP("x",Turma!$B$4:$G$53,3,0)="Menina",tblMLS!AG151,tblMLS!AG319),"") -> 162.965 | G152: =IF(Turma!$A$2=1,IF(VLOOKUP("x",Turma!$B$4:$G$53,3,0)="Menina",tblMLS!AH151,tblMLS!AH319),"") -> 169.614 | H152: =IF(Turma!$A$2=1,IF(VLOOKUP("x",Turma!$B$4:$G$53,3,0)="Menina",tblMLS!AI151,tblMLS!AI319),"") -> 176.263 | I152: =IF(Turma!$A$2=1,IF(VLOOKUP("x",Turma!$B$4:$G$53,3,0)="Menina",tblMLS!AJ151,tblMLS!AJ319),"") -> 182.912
A153: 211 | C153: =IF(Turma!$A$2=1,IF(VLOOKUP("x",Turma!$B$4:$G$53,3,0)="Menina",tblMLS!AD152,tblMLS!AD320),"") -> 143.057 | D153: =IF(Turma!$A$2=1,IF(VLOOKUP("x",Turma!$B$4:$G$53,3,0)="Menina",tblMLS!AE152,tblMLS!AE320),"") -> 149.699 | E153: =IF(Turma!$A$2=1,IF(VLOOKUP("x",Turma!$B$4:$G$53,3,0)="Menina",tblMLS!AF152,tblMLS!AF320),"") -> 156.34 | F153: =IF(Turma!$A$2=1,IF(VLOOKUP("x",Turma!$B$4:$G$53,3,0)="Menina",tblMLS!AG152,tblMLS!AG320),"") -> 162.982 | G153: =IF(Turma!$A$2=1,IF(VLOOKUP("x",Turma!$B$4:$G$53,3,0)="Menina",tblMLS!AH152,tblMLS!AH320),"") -> 169.623 | H153: =IF(Turma!$A$2=1,IF(VLOOKUP("x",Turma!$B$4:$G$53,3,0)="Menina",tblMLS!AI152,tblMLS!AI320),"") -> 176.265 | I153: =IF(Turma!$A$2=1,IF(VLOOKUP("x",Turma!$B$4:$G$53,3,0)="Menina",tblMLS!AJ152,tblMLS!AJ320),"") -> 182.906
A154: 212 | C154: =IF(Turma!$A$2=1,IF(VLOOKUP("x",Turma!$B$4:$G$53,3,0)="Menina",tblMLS!AD153,tblMLS!AD321),"") -> 143.091 | D154: =IF(Turma!$A$2=1,IF(VLOOKUP("x",Turma!$B$4:$G$53,3,0)="Menina",tblMLS!AE153,tblMLS!AE321),"") -> 149.727 | E154: =IF(Turma!$A$2=1,IF(VLOOKUP("x",Turma!$B$4:$G$53,3,0)="Menina",tblMLS!AF153,tblMLS!AF321),"") -> 156.363 | F154: =IF(Turma!$A$2=1,IF(VLOOKUP("x",Turma!$B$4:$G$53,3,0)="Menina",tblMLS!AG153,tblMLS!AG321),"") -> 162.998 | G154: =IF(Turma!$A$2=1,IF(VLOOKUP("x",Turma!$B$4:$G$53,3,0)="Menina",tblMLS!AH153,tblMLS!AH321),"") -> 169.634 | H154: =IF(Turma!$A$2=1,IF(VLOOKUP("x",Turma!$B$4:$G$53,3,0)="Menina",tblMLS!AI153,tblMLS!AI321),"") -> 176.27 | I154: =IF(Turma!$A$2=1,IF(VLOOKUP("x",Turma!$B$4:$G$53,3,0)="Menina",tblMLS!AJ153,tblMLS!AJ321),"") -> 182.905
A155: 213 | C155: =IF(Turma!$A$2=1,IF(VLOOKUP("x",Turma!$B$4:$G$53,3,0)="Menina",tblMLS!AD154,tblMLS!AD322),"") -> 143.13 | D155: =IF(Turma!$A$2=1,IF(VLOOKUP("x",Turma!$B$4:$G$53,3,0)="Menina",tblMLS!AE154,tblMLS!AE322),"") -> 149.758 | E155: =IF(Turma!$A$2=1,IF(VLOOKUP("x",Turma!$B$4:$G$53,3,0)="Menina",tblMLS!AF154,tblMLS!AF322),"") -> 156.386 | F155: =IF(Turma!$A$2=1,IF(VLOOKUP("x",Turma!$B$4:$G$53,3,0)="Menina",tblMLS!AG154,tblMLS!AG322),"") -> 163.014 | G155: =IF(Turma!$A$2=1,IF(VLOOKUP("x",Turma!$B$4:$G$53,3,0)="Menina",tblMLS!AH154,tblMLS!AH322),"") -> 169.643 | H155: =IF(Turma!$A$2=1,IF(VLOOKUP("x",Turma!$B$4:$G$53,3,0)="Menina",tblMLS!AI154,tblMLS!AI322),"") -> 176.271 | I155: =IF(Turma!$A$2=1,IF(VLOOKUP("x",Turma!$B$4:$G$53,3,0)="Menina",tblMLS!AJ154,tblMLS!AJ322),"") -> 182.899
A156: 214 | C156: =IF(Turma!$A$2=1,IF(VLOOKUP("x",Turma!$B$4:$G$53,3,0)="Menina",tblMLS!AD155,tblMLS!AD323),"") -> 143.163 | D156: =IF(Turma!$A$2=1,IF(VLOOKUP("x",Turma!$B$4:$G$53,3,0)="Menina",tblMLS!AE155,tblMLS!AE323),"") -> 149.785 | E156: =IF(Turma!$A$2=1,IF(VLOOKUP("x",Turma!$B$4:$G$53,3,0)="Menina",tblMLS!AF155,tblMLS!AF323),"") -> 156.408 | F156: =IF(Turma!$A$2=1,IF(VLOOKUP("x",Turma!$B$4:$G$53,3,0)="Menina",tblMLS!AG155,tblMLS!AG323),"") -> 163.03 | G156: =IF(Turma!$A$2=1,IF(VLOOKUP("x",Turma!$B$4:$G$53,3,0)="Menina",tblMLS!AH155,tblMLS!AH323),"") -> 169.652 | H156: =IF(Turma!$A$2=1,IF(VLOOKUP("x",Turma!$B$4:$G$53,3,0)="Menina",tblMLS!AI155,tblMLS!AI323),"") -> 176.275 | I156: =IF(Turma!$A$2=1,IF(VLOOKUP("x",Turma!$B$4:$G$53,3,0)="Menina",tblMLS!AJ155,tblMLS!AJ323),"") -> 182.897
A157: 215 | C157: =IF(Turma!$A$2=1,IF(VLOOKUP("x",Turma!$B$4:$G$53,3,0)="Menina",tblMLS!AD156,tblMLS!AD324),"") -> 143.196 | D157: =IF(Turma!$A$2=1,IF(VLOOKUP("x",Turma!$B$4:$G$53,3,0)="Menina",tblMLS!AE156,tblMLS!AE324),"") -> 149.812 | E157: =IF(Turma!$A$2=1,IF(VLOOKUP("x",Turma!$B$4:$G$53,3,0)="Menina",tblMLS!AF156,tblMLS!AF324),"") -> 156.429 | F157: =IF(Turma!$A$2=1,IF(VLOOKUP("x",Turma!$B$4:$G$53,3,0)="Menina",tblMLS!AG156,tblMLS!AG324),"") -> 163.045 | G157: =IF(Turma!$A$2=1,IF(VLOOKUP("x",Turma!$B$4:$G$53,3,0)="Menina",tblMLS!AH156,tblMLS!AH324),"") -> 169.661 | H157: =IF(Turma!$A$2=1,IF(VLOOKUP("x",Turma!$B$4:$G$53,3,0)="Menina",tblMLS!AI156,tblMLS!AI324),"") -> 176.278 | I157: =IF(Turma!$A$2=1,IF(VLOOKUP("x",Turma!$B$4:$G$53,3,0)="Menina",tblMLS!AJ156,tblMLS!AJ324),"") -> 182.894
A158: 216 | B158: 18 | C158: =IF(Turma!$A$2=1,IF(VLOOKUP("x",Turma!$B$4:$G$53,3,0)="Menina",tblMLS!AD157,tblMLS!AD325),"") -> 143.233 | D158: =IF(Turma!$A$2=1,IF(VLOOKUP("x",Turma!$B$4:$G$53,3,0)="Menina",tblMLS!AE157,tblMLS!AE325),"") -> 149.842 | E158: =IF(Turma!$A$2=1,IF(VLOOKUP("x",Turma!$B$4:$G$53,3,0)="Menina",tblMLS!AF157,tblMLS!AF325),"") -> 156.451 | F158: =IF(Turma!$A$2=1,IF(VLOOKUP("x",Turma!$B$4:$G$53,3,0)="Menina",tblMLS!AG157,tblMLS!AG325),"") -> 163.06 | G158: =IF(Turma!$A$2=1,IF(VLOOKUP("x",Turma!$B$4:$G$53,3,0)="Menina",tblMLS!AH157,tblMLS!AH325),"") -> 169.668 | H158: =IF(Turma!$A$2=1,IF(VLOOKUP("x",Turma!$B$4:$G$53,3,0)="Menina",tblMLS!AI157,tblMLS!AI325),"") -> 176.277 | I158: =IF(Turma!$A$2=1,IF(VLOOKUP("x",Turma!$B$4:$G$53,3,0)="Menina",tblMLS!AJ157,tblMLS!AJ325),"") -> 182.886
A159: 217 | C159: =IF(Turma!$A$2=1,IF(VLOOKUP("x",Turma!$B$4:$G$53,3,0)="Menina",tblMLS!AD158,tblMLS!AD326),"") -> 143.265 | D159: =IF(Turma!$A$2=1,IF(VLOOKUP("x",Turma!$B$4:$G$53,3,0)="Menina",tblMLS!AE158,tblMLS!AE326),"") -> 149.868 | E159: =IF(Turma!$A$2=1,IF(VLOOKUP("x",Turma!$B$4:$G$53,3,0)="Menina",tblMLS!AF158,tblMLS!AF326),"") -> 156.47 | F159: =IF(Turma!$A$2=1,IF(VLOOKUP("x",Turma!$B$4:$G$53,3,0)="Menina",tblMLS!AG158,tblMLS!AG326),"") -> 163.073 | G159: =IF(Turma!$A$2=1,IF(VLOOKUP("x",Turma!$B$4:$G$53,3,0)="Menina",tblMLS!AH158,tblMLS!AH326),"") -> 169.676 | H159: =IF(Turma!$A$2=1,IF(VLOOKUP("x",Turma!$B$4:$G$53,3,0)="Menina",tblMLS!AI158,tblMLS!AI326),"") -> 176.279 | I159: =IF(Turma!$A$2=1,IF(VLOOKUP("x",Turma!$B$4:$G$53,3,0)="Menina",tblMLS!AJ158,tblMLS!AJ326),"") -> 182.882
A160: 218 | C160: =IF(Turma!$A$2=1,IF(VLOOKUP("x",Turma!$B$4:$G$53,3,0)="Menina",tblMLS!AD159,tblMLS!AD327),"") -> 143.296 | D160: =IF(Turma!$A$2=1,IF(VLOOKUP("x",Turma!$B$4:$G$53,3,0)="Menina",tblMLS!AE159,tblMLS!AE327),"") -> 149.893 | E160: =IF(Turma!$A$2=1,IF(VLOOKUP("x",Turma!$B$4:$G$53,3,0)="Menina",tblMLS!AF159,tblMLS!AF327),"") -> 156.489 | F160: =IF(Turma!$A$2=1,IF(VLOOKUP("x",Turma!$B$4:$G$53,3,0)="Menina",tblMLS!AG159,tblMLS!AG327),"") -> 163.086 | G160: =IF(Turma!$A$2=1,IF(VLOOKUP("x",Turma!$B$4:$G$53,3,0)="Menina",tblMLS!AH159,tblMLS!AH327),"") -> 169.683 | H160: =IF(Turma!$A$2=1,IF(VLOOKUP("x",Turma!$B$4:$G$53,3,0)="Menina",tblMLS!AI159,tblMLS!AI327),"") -> 176.28 | I160: =IF(Turma!$A$2=1,IF(VLOOKUP("x",Turma!$B$4:$G$53,3,0)="Menina",tblMLS!AJ159,tblMLS!AJ327),"") -> 182.877
A161: 219 | C161: =IF(Turma!$A$2=1,IF(VLOOKUP("x",Turma!$B$4:$G$53,3,0)="Menina",tblMLS!AD160,tblMLS!AD328),"") -> 143.326 | D161: =IF(Turma!$A$2=1,IF(VLOOKUP("x",Turma!$B$4:$G$53,3,0)="Menina",tblMLS!AE160,tblMLS!AE328),"") -> 149.917 | E161: =IF(Turma!$A$2=1,IF(VLOOKUP("x",Turma!$B$4:$G$53,3,0)="Menina",tblMLS!AF160,tblMLS!AF328),"") -> 156.507 | F161: =IF(Turma!$A$2=1,IF(VLOOKUP("x",Turma!$B$4:$G$53,3,0)="Menina",tblMLS!AG160,tblMLS!AG328),"") -> 163.098 | G161: =IF(Turma!$A$2=1,IF(VLOOKUP("x",Turma!$B$4:$G$53,3,0)="Menina",tblMLS!AH160,tblMLS!AH328),"") -> 169.689 | H161: =IF(Turma!$A$2=1,IF(VLOOKUP("x",Turma!$B$4:$G$53,3,0)="Menina",tblMLS!AI160,tblMLS!AI328),"") -> 176.28 | I161: =IF(Turma!$A$2=1,IF(VLOOKUP("x",Turma!$B$4:$G$53,3,0)="Menina",tblMLS!AJ160,tblMLS!AJ328),"") -> 182.871
A162: 220 | C162: =IF(Turma!$A$2=1,IF(VLOOKUP("x",Turma!$B$4:$G$53,3,0)="Menina",tblMLS!AD161,tblMLS!AD329),"") -> 143.355 | D162: =IF(Turma!$A$2=1,IF(VLOOKUP("x",Turma!$B$4:$G$53,3,0)="Menina",tblMLS!AE161,tblMLS!AE329),"") -> 149.94 | E162: =IF(Turma!$A$2=1,IF(VLOOKUP("x",Turma!$B$4:$G$53,3,0)="Menina",tblMLS!AF161,tblMLS!AF329),"") -> 156.524 | F162: =IF(Turma!$A$2=1,IF(VLOOKUP("x",Turma!$B$4:$G$53,3,0)="Menina",tblMLS!AG161,tblMLS!AG329),"") -> 163.109 | G162: =IF(Turma!$A$2=1,IF(VLOOKUP("x",Turma!$B$4:$G$53,3,0)="Menina",tblMLS!AH161,tblMLS!AH329),"") -> 169.694 | H162: =IF(Turma!$A$2=1,IF(VLOOKUP("x",Turma!$B$4:$G$53,3,0)="Menina",tblMLS!AI161,tblMLS!AI329),"") -> 176.279 | I162: =IF(Turma!$A$2=1,IF(VLOOKUP("x",Turma!$B$4:$G$53,3,0)="Menina",tblMLS!AJ161,tblMLS!AJ329),"") -> 182.863
A163: 221 | C163: =IF(Turma!$A$2=1,IF(VLOOKUP("x",Turma!$B$4:$G$53,3,0)="Menina",tblMLS!AD162,tblMLS!AD330),"") -> 143.379 | D163: =IF(Turma!$A$2=1,IF(VLOOKUP("x",Turma!$B$4:$G$53,3,0)="Menina",tblMLS!AE162,tblMLS!AE330),"") -> 149.959 | E163: =IF(Turma!$A$2=1,IF(VLOOKUP("x",Turma!$B$4:$G$53,3,0)="Menina",tblMLS!AF162,tblMLS!AF330),"") -> 156.539 | F163: =IF(Turma!$A$2=1,IF(VLOOKUP("x",Turma!$B$4:$G$53,3,0)="Menina",tblMLS!AG162,tblMLS!AG330),"") -> 163.119 | G163: =IF(Turma!$A$2=1,IF(VLOOKUP("x",Turma!$B$4:$G$53,3,0)="Menina",tblMLS!AH162,tblMLS!AH330),"") -> 169.699 | H163: =IF(Turma!$A$2=1,IF(VLOOKUP("x",Turma!$B$4:$G$53,3,0)="Menina",tblMLS!AI162,tblMLS!AI330),"") -> 176.28 | I163: =IF(Turma!$A$2=1,IF(VLOOKUP("x",Turma!$B$4:$G$53,3,0)="Menina",tblMLS!AJ162,tblMLS!AJ330),"") -> 182.86
A164: 222 | C164: =IF(Turma!$A$2=1,IF(VLOOKUP("x",Turma!$B$4:$G$53,3,0)="Menina",tblMLS!AD163,tblMLS!AD331),"") -> 143.406 | D164: =IF(Turma!$A$2=1,IF(VLOOKUP("x",Turma!$B$4:$G$53,3,0)="Menina",tblMLS!AE163,tblMLS!AE331),"") -> 149.98 | E164: =IF(Turma!$A$2=1,IF(VLOOKUP("x",Turma!$B$4:$G$53,3,0)="Menina",tblMLS!AF163,tblMLS!AF331),"") -> 156.554 | F164: =IF(Turma!$A$2=1,IF(VLOOKUP("x",Turma!$B$4:$G$53,3,0)="Menina",tblMLS!AG163,tblMLS!AG331),"") -> 163.128 | G164: =IF(Turma!$A$2=1,IF(VLOOKUP("x",Turma!$B$4:$G$53,3,0)="Menina",tblMLS!AH163,tblMLS!AH331),"") -> 169.702 | H164: =IF(Turma!$A$2=1,IF(VLOOKUP("x",Turma!$B$4:$G$53,3,0)="Menina",tblMLS!AI163,tblMLS!AI331),"") -> 176.276 | I164: =IF(Turma!$A$2=1,IF(VLOOKUP("x",Turma!$B$4:$G$53,3,0)="Menina",tblMLS!AJ163,tblMLS!AJ331),"") -> 182.85
A165: 223 | C165: =IF(Turma!$A$2=1,IF(VLOOKUP("x",Turma!$B$4:$G$53,3,0)="Menina",tblMLS!AD164,tblMLS!AD332),"") -> 143.432 | D165: =IF(Turma!$A$2=1,IF(VLOOKUP("x",Turma!$B$4:$G$53,3,0)="Menina",tblMLS!AE164,tblMLS!AE332),"") -> 150 | E165: =IF(Turma!$A$2=1,IF(VLOOKUP("x",Turma!$B$4:$G$53,3,0)="Menina",tblMLS!AF164,tblMLS!AF332),"") -> 156.568 | F165: =IF(Turma!$A$2=1,IF(VLOOKUP("x",Turma!$B$4:$G$53,3,0)="Menina",tblMLS!AG164,tblMLS!AG332),"") -> 163.136 | G165: =IF(Turma!$A$2=1,IF(VLOOKUP("x",Turma!$B$4:$G$53,3,0)="Menina",tblMLS!AH164,tblMLS!AH332),"") -> 169.703 | H165: =IF(Turma!$A$2=1,IF(VLOOKUP("x",Turma!$B$4:$G$53,3,0)="Menina",tblMLS!AI164,tblMLS!AI332),"") -> 176.271 | I165: =IF(Turma!$A$2=1,IF(VLOOKUP("x",Turma!$B$4:$G$53,3,0)="Menina",tblMLS!AJ164,tblMLS!AJ332),"") -> 182.839
A166: 224 | C166: =IF(Turma!$A$2=1,IF(VLOOKUP("x",Turma!$B$4:$G$53,3,0)="Menina",tblMLS!AD165,tblMLS!AD333),"") -> 143.452 | D166: =IF(Turma!$A$2=1,IF(VLOOKUP("x",Turma!$B$4:$G$53,3,0)="Menina",tblMLS!AE165,tblMLS!AE333),"") -> 150.015 | E166: =IF(Turma!$A$2=1,IF(VLOOKUP("x",Turma!$B$4:$G$53,3,0)="Menina",tblMLS!AF165,tblMLS!AF333),"") -> 156.579 | F166: =IF(Turma!$A$2=1,IF(VLOOKUP("x",Turma!$B$4:$G$53,3,0)="Menina",tblMLS!AG165,tblMLS!AG333),"") -> 163.142 | G166: =IF(Turma!$A$2=1,IF(VLOOKUP("x",Turma!$B$4:$G$53,3,0)="Menina",tblMLS!AH165,tblMLS!AH333),"") -> 169.705 | H166: =IF(Turma!$A$2=1,IF(VLOOKUP("x",Turma!$B$4:$G$53,3,0)="Menina",tblMLS!AI165,tblMLS!AI333),"") -> 176.268 | I166: =IF(Turma!$A$2=1,IF(VLOOKUP("x",Turma!$B$4:$G$53,3,0)="Menina",tblMLS!AJ165,tblMLS!AJ333),"") -> 182.831
A167: 225 | C167: =IF(Turma!$A$2=1,IF(VLOOKUP("x",Turma!$B$4:$G$53,3,0)="Menina",tblMLS!AD166,tblMLS!AD334),"") -> 143.476 | D167: =IF(Turma!$A$2=1,IF(VLOOKUP("x",Turma!$B$4:$G$53,3,0)="Menina",tblMLS!AE166,tblMLS!AE334),"") -> 150.033 | E167: =IF(Turma!$A$2=1,IF(VLOOKUP("x",Turma!$B$4:$G$53,3,0)="Menina",tblMLS!AF166,tblMLS!AF334),"") -> 156.59 | F167: =IF(Turma!$A$2=1,IF(VLOOKUP("x",Turma!$B$4:$G$53,3,0)="Menina",tblMLS!AG166,tblMLS!AG334),"") -> 163.147 | G167: =IF(Turma!$A$2=1,IF(VLOOKUP("x",Turma!$B$4:$G$53,3,0)="Menina",tblMLS!AH166,tblMLS!AH334),"") -> 169.704 | H167: =IF(Turma!$A$2=1,IF(VLOOKUP("x",Turma!$B$4:$G$53,3,0)="Menina",tblMLS!AI166,tblMLS!AI334),"") -> 176.261 | I167: =IF(Turma!$A$2=1,IF(VLOOKUP("x",Turma!$B$4:$G$53,3,0)="Menina",tblMLS!AJ166,tblMLS!AJ334),"") -> 182.818
A168: 226 | C168: =IF(Turma!$A$2=1,IF(VLOOKUP("x",Turma!$B$4:$G$53,3,0)="Menina",tblMLS!AD167,tblMLS!AD335),"") -> 143.494 | D168: =IF(Turma!$A$2=1,IF(VLOOKUP("x",Turma!$B$4:$G$53,3,0)="Menina",tblMLS!AE167,tblMLS!AE335),"") -> 150.047 | E168: =IF(Turma!$A$2=1,IF(VLOOKUP("x",Turma!$B$4:$G$53,3,0)="Menina",tblMLS!AF167,tblMLS!AF335),"") -> 156.599 | F168: =IF(Turma!$A$2=1,IF(VLOOKUP("x",Turma!$B$4:$G$53,3,0)="Menina",tblMLS!AG167,tblMLS!AG335),"") -> 163.151 | G168: =IF(Turma!$A$2=1,IF(VLOOKUP("x",Turma!$B$4:$G$53,3,0)="Menina",tblMLS!AH167,tblMLS!AH335),"") -> 169.703 | H168: =IF(Turma!$A$2=1,IF(VLOOKUP("x",Turma!$B$4:$G$53,3,0)="Menina",tblMLS!AI167,tblMLS!AI335),"") -> 176.255 | I168: =IF(Turma!$A$2=1,IF(VLOOKUP("x",Turma!$B$4:$G$53,3,0)="Menina",tblMLS!AJ167,tblMLS!AJ335),"") -> 182.807
A169: 227 | C169: =IF(Turma!$A$2=1,IF(VLOOKUP("x",Turma!$B$4:$G$53,3,0)="Menina",tblMLS!AD168,tblMLS!AD336),"") -> 143.516 | D169: =IF(Turma!$A$2=1,IF(VLOOKUP("x",Turma!$B$4:$G$53,3,0)="Menina",tblMLS!AE168,tblMLS!AE336),"") -> 150.062 | E169: =IF(Turma!$A$2=1,IF(VLOOKUP("x",Turma!$B$4:$G$53,3,0)="Menina",tblMLS!AF168,tblMLS!AF336),"") -> 156.608 | F169: =IF(Turma!$A$2=1,IF(VLOOKUP("x",Turma!$B$4:$G$53,3,0)="Menina",tblMLS!AG168,tblMLS!AG336),"") -> 163.153 | G169: =IF(Turma!$A$2=1,IF(VLOOKUP("x",Turma!$B$4:$G$53,3,0)="Menina",tblMLS!AH168,tblMLS!AH336),"") -> 169.699 | H169: =IF(Turma!$A$2=1,IF(VLOOKUP("x",Turma!$B$4:$G$53,3,0)="Menina",tblMLS!AI168,tblMLS!AI336),"") -> 176.245 | I169: =IF(Turma!$A$2=1,IF(VLOOKUP("x",Turma!$B$4:$G$53,3,0)="Menina",tblMLS!AJ168,tblMLS!AJ336),"") -> 182.791
A170: 228 | B170: 19 | C170: =IF(Turma!$A$2=1,IF(VLOOKUP("x",Turma!$B$4:$G$53,3,0)="Menina",tblMLS!AD169,tblMLS!AD337),"") -> 143.532 | D170: =IF(Turma!$A$2=1,IF(VLOOKUP("x",Turma!$B$4:$G$53,3,0)="Menina",tblMLS!AE169,tblMLS!AE337),"") -> 150.073 | E170: =IF(Turma!$A$2=1,IF(VLOOKUP("x",Turma!$B$4:$G$53,3,0)="Menina",tblMLS!AF169,tblMLS!AF337),"") -> 156.614 | F170: =IF(Turma!$A$2=1,IF(VLOOKUP("x",Turma!$B$4:$G$53,3,0)="Menina",tblMLS!AG169,tblMLS!AG337),"") -> 163.155 | G170: =IF(Turma!$A$2=1,IF(VLOOKUP("x",Turma!$B$4:$G$53,3,0)="Menina",tblMLS!AH169,tblMLS!AH337),"") -> 169.696 | H170: =IF(Turma!$A$2=1,IF(VLOOKUP("x",Turma!$B$4:$G$53,3,0)="Menina",tblMLS!AI169,tblMLS!AI337),"") -> 176.237 | I170: =IF(Turma!$A$2=1,IF(VLOOKUP("x",Turma!$B$4:$G$53,3,0)="Menina",tblMLS!AJ169,tblMLS!AJ337),"") -> 182.777

Sheet tblMLS (hidden)
A1: idLMS | B1: variavel | C1: genero | D1: meses | E1: L | F1: M | G1: S | H1: StDev | I1: P01 | J1: P1 | K1: P3 | L1: P5 | M1: P10 | N1: P15 | O1: P25 | P1: P50 | Q1: P75 | R1: P85 | S1: P90 | T1: P95 | U1: P97 | V1: P99 | W1: P999 | X1: L | Y1: M | Z1: S | AA1: StDev | AB1: SD5neg | AC1: SD4neg | AD1: SD3neg | AE1: SD2neg | AF1: SD1neg | AG1: SD0 | AH1: SD1 | AI1: SD2 | AJ1: SD3 | AK1: SD4
A2: 1 | B2: altura | C2: menina | D2: 61 | E2: 1 | F2: 109.602 | G2: 0.04355 | H2: 4.7731 | I2: 94.851 | J2: 98.498 | K2: 100.624 | L2: 101.75 | M2: 103.485 | N2: 104.655 | O2: 106.382 | P2: 109.602 | Q2: 112.821 | R2: 114.549 | S2: 115.719 | T2: 117.453 | U2: 118.579 | V2: 120.706 | W2: 124.352 | X2: 1 | Y2: 109.6016 | Z2: 0.04355 | AA2: 4.7731 | AB2: 85.736 | AC2: 90.509 | AD2: 95.282 | AE2: 100.055 | AF2: 104.828 | AG2: 109.602 | AH2: 114.375 | AI2: 119.148 | AJ2: 123.921 | AK2: 128.694
A3: 2 | B3: altura | C3: menina | D3: 62 | E3: 1 | F3: 110.126 | G3: 0.04364 | H3: 4.8059 | I3: 95.274 | J3: 98.946 | K3: 101.087 | L3: 102.221 | M3: 103.967 | N3: 105.145 | O3: 106.884 | P3: 110.126 | Q3: 113.367 | R3: 115.107 | S3: 116.285 | T3: 118.031 | U3: 119.165 | V3: 121.306 | W3: 124.977 | X3: 1 | Y3: 110.1258 | Z3: 0.04364 | AA3: 4.8059 | AB3: 86.096 | AC3: 90.902 | AD3: 95.708 | AE3: 100.514 | AF3: 105.32 | AG3: 110.126 | AH3: 114.932 | AI3: 119.738 | AJ3: 124.543 | AK3: 129.349
A4: 3 | B4: altura | C4: menina | D4: 63 | E4: 1 | F4: 110.645 | G4: 0.04373 | H4: 4.8385 | I4: 95.693 | J4: 99.389 | K4: 101.545 | L4: 102.686 | M4: 104.444 | N4: 105.63 | O4: 107.382 | P4: 110.645 | Q4: 113.909 | R4: 115.66 | S4: 116.846 | T4: 118.604 | U4: 119.745 | V4: 121.901 | W4: 125.597 | X4: 1 | Y4: 110.6451 | Z4: 0.04373 | AA4: 4.8385 | AB4: 86.453 | AC4: 91.291 | AD4: 96.13 | AE4: 100.968 | AF4: 105.807 | AG4: 110.645 | AH4: 115.484 | AI4: 120.322 | AJ4: 125.161 | AK4: 129.999
A5: 4 | B5: altura | C5: menina | D5: 64 | E5: 1 | F5: 111.16 | G5: 0.04382 | H5: 4.871 | I5: 96.107 | J5: 99.828 | K5: 101.998 | L5: 103.147 | M5: 104.917 | N5: 106.111 | O5: 107.874 | P5: 111.16 | Q5: 114.445 | R5: 116.208 | S5: 117.402 | T5: 119.172 | U5: 120.321 | V5: 122.491 | W5: 126.212 | X5: 1 | Y5: 111.1596 | Z5: 0.04382 | AA5: 4.871 | AB5: 86.805 | AC5: 91.676 | AD5: 96.547 | AE5: 101.418 | AF5: 106.289 | AG5: 111.16 | AH5: 116.031 | AI5: 120.902 | AJ5: 125.773 | AK5: 130.644
A6: 5 | B6: altura | C6: menina | D6: 65 | E6: 1 | F6: 111.67 | G6: 0.0439 | H6: 4.9023 | I6: 96.52 | J6: 100.265 | K6: 102.449 | L6: 103.606 | M6: 105.387 | N6: 106.589 | O6: 108.363 | P6: 111.67 | Q6: 114.976 | R6: 116.751 | S6: 117.952 | T6: 119.733 | U6: 120.89 | V6: 123.074 | W6: 126.819 | X6: 1 | Y6: 111.6696 | Z6: 0.0439 | AA6: 4.9023 | AB6: 87.158 | AC6: 92.06 | AD6: 96.963 | AE6: 101.865 | AF6: 106.767 | AG6: 111.67 | AH6: 116.572 | AI6: 121.474 | AJ6: 126.376 | AK6: 131.279
A7: 6 | B7: altura | C7: menina | D7: 66 | E7: 1 | F7: 112.175 | G7: 0.04399 | H7: 4.9346 | I7: 96.926 | J7: 100.696 | K7: 102.894 | L7: 104.059 | M7: 105.851 | N7: 107.061 | O7: 108.847 | P7: 112.175 | Q7: 115.504 | R7: 117.29 | S7: 118.499 | T7: 120.292 | U7: 121.456 | V7: 123.655 | W7: 127.424 | X7: 1 | Y7: 112.1753 | Z7: 0.04399 | AA7: 4.9346 | AB7: 87.502 | AC7: 92.437 | AD7: 97.372 | AE7: 102.306 | AF7: 107.241 | AG7: 112.175 | AH7: 117.11 | AI7: 122.044 | AJ7: 126.979 | AK7: 131.914
A8: 7 | B8: altura | C8: menina | D8: 67 | E8: 1 | F8: 112.677 | G8: 0.04407 | H8: 4.9657 | I8: 97.332 | J8: 101.125 | K8: 103.337 | L8: 104.509 | M8: 106.313 | N8: 107.53 | O8: 109.327 | P8: 112.677 | Q8: 116.026 | R8: 117.823 | S8: 119.04 | T8: 120.844 | U8: 122.016 | V8: 124.229 | W8: 128.022 | X8: 1 | Y8: 112.6767 | Z8: 0.04407 | AA8: 4.9657 | AB8: 87.848 | AC8: 92.814 | AD8: 97.78 | AE8: 102.745 | AF8: 107.711 | AG8: 112.677 | AH8: 117.642 | AI8: 122.608 | AJ8: 127.574 | AK8: 132.539
A9: 8 | B9: altura | C9: menina | D9: 68 | E9: 1 | F9: 113.174 | G9: 0.04415 | H9: 4.9966 | I9: 97.733 | J9: 101.55 | K9: 103.776 | L9: 104.955 | M9: 106.771 | N9: 107.995 | O9: 109.804 | P9: 113.174 | Q9: 116.544 | R9: 118.353 | S9: 119.577 | T9: 121.393 | U9: 122.572 | V9: 124.798 | W9: 128.615 | X9: 1 | Y9: 113.174 | Z9: 0.04415 | AA9: 4.9966 | AB9: 88.191 | AC9: 93.187 | AD9: 98.184 | AE9: 103.181 | AF9: 108.177 | AG9: 113.174 | AH9: 118.171 | AI9: 123.167 | AJ9: 128.164 | AK9: 133.161
A10: 9 | B10: altura | C10: menina | D10: 69 | E10: 1 | F10: 113.667 | G10: 0.04423 | H10: 5.0275 | I10: 98.131 | J10: 101.971 | K10: 104.212 | L10: 105.398 | M10: 107.224 | N10: 108.457 | O10: 110.276 | P10: 113.667 | Q10: 117.058 | R10: 118.878 | S10: 120.11 | T10: 121.937 | U10: 123.123 | V10: 125.363 | W10: 129.203 | X10: 1 | Y10: 113.6672 | Z10: 0.04423 | AA10: 5.0275 | AB10: 88.53 | AC10: 93.557 | AD10: 98.585 | AE10: 103.612 | AF10: 108.64 | AG10: 113.667 | AH10: 118.695 | AI10: 123.722 | AJ10: 128.75 | AK10: 133.777
A11: 10 | B11: altura | C11: menina | D11: 70 | E11: 1 | F11: 114.157 | G11: 0.04431 | H11: 5.0583 | I11: 98.525 | J11: 102.389 | K11: 104.643 | L11: 105.836 | M11: 107.674 | N11: 108.914 | O11: 110.745 | P11: 114.156 | Q11: 117.568 | R11: 119.399 | S11: 120.639 | T11: 122.477 | U11: 123.67 | V11: 125.924 | W11: 129.788 | X11: 1 | Y11: 114.1565 | Z11: 0.04431 | AA11: 5.0583 | AB11: 88.865 | AC11: 93.923 | AD11: 98.982 | AE11: 104.04 | AF11: 109.098 | AG11: 114.156 | AH11: 119.215 | AI11: 124.273 | AJ11: 129.331 | AK11: 134.39
A12: 11 | B12: altura | C12: menina | D12: 71 | E12: 1 | F12: 114.642 | G12: 0.04439 | H12: 5.089 | I12: 98.916 | J12: 102.803 | K12: 105.071 | L12: 106.272 | M12: 108.12 | N12: 109.368 | O12: 111.21 | P12: 114.642 | Q12: 118.075 | R12: 119.916 | S12: 121.164 | T12: 123.013 | U12: 124.213 | V12: 126.481 | W12: 130.368 | X12: 1 | Y12: 114.6421 | Z12: 0.04439 | AA12: 5.089 | AB12: 89.197 | AC12: 94.286 | AD12: 99.375 | AE12: 104.464 | AF12: 109.553 | AG12: 114.642 | AH12: 119.731 | AI12: 124.82 | AJ12: 129.909 | AK12: 134.998
A13: 12 | B13: altura | C13: menina | D13: 72 | E13: 1 | F13: 115.124 | G13: 0.04447 | H13: 5.1196 | I13: 99.304 | J13: 103.214 | K13: 105.496 | L13: 106.703 | M13: 108.563 | N13: 109.818 | O13: 111.671 | P13: 115.124 | Q13: 118.578 | R13: 120.431 | S13: 121.685 | T13: 123.545 | U13: 124.753 | V13: 127.034 | W13: 130.945 | X13: 1 | Y13: 115.1244 | Z13: 0.04447 | AA13: 5.1196 | AB13: 89.526 | AC13: 94.646 | AD13: 99.766 | AE13: 104.885 | AF13: 110.005 | AG13: 115.124 | AH13: 120.244 | AI13: 125.364 | AJ13: 130.483 | AK13: 135.603
A14: 13 | B14: altura | C14: menina | D14: 73 | E14: 1 | F14: 115.604 | G14: 0.04454 | H14: 5.149 | I14: 99.692 | J14: 103.626 | K14: 105.92 | L14: 107.135 | M14: 109.005 | N14: 110.267 | O14: 112.131 | P14: 115.604 | Q14: 119.077 | R14: 120.94 | S14: 122.203 | T14: 124.073 | U14: 125.288 | V14: 127.582 | W14: 131.515 | X14: 1 | Y14: 115.6039 | Z14: 0.04454 | AA14: 5.149 | AB14: 89.859 | AC14: 95.008 | AD14: 100.157 | AE14: 105.306 | AF14: 110.455 | AG14: 115.604 | AH14: 120.753 | AI14: 125.902 | AJ14: 131.051 | AK14: 136.2
A15: 14 | B15: altura | C15: menina | D15: 74 | E15: 1 | F15: 116.081 | G15: 0.04461 | H15: 5.1784 | I15: 100.079 | J15: 104.034 | K15: 106.342 | L15: 107.564 | M15: 109.445 | N15: 110.714 | O15: 112.588 | P15: 116.081 | Q15: 119.574 | R15: 121.448 | S15: 122.718 | T15: 124.599 | U15: 125.821 | V15: 128.128 | W15: 132.084 | X15: 1 | Y15: 116.0812 | Z15: 0.04461 | AA15: 5.1784 | AB15: 90.189 | AC15: 95.368 | AD15: 100.546 | AE15: 105.724 | AF15: 110.903 | AG15: 116.081 | AH15: 121.26 | AI15: 126.438 | AJ15: 131.616 | AK15: 136.795
A16: 15 | B16: altura | C16: menina | D16: 75 | E16: 1 | F16: 116.557 | G16: 0.04469 | H16: 5.2089 | I16: 100.46 | J16: 104.439 | K16: 106.76 | L16: 107.989 | M16: 109.881 | N16: 111.158 | O16: 113.043 | P16: 116.557 | Q16: 120.07 | R16: 121.956 | S16: 123.232 | T16: 125.125 | U16: 126.354 | V16: 128.675 | W16: 132.654 | X16: 1 | Y16: 116.5568 | Z16: 0.04469 | AA16: 5.2089 | AB16: 90.512 | AC16: 95.721 | AD16: 100.93 | AE16: 106.139 | AF16: 111.348 | AG16: 116.557 | AH16: 121.766 | AI16: 126.975 | AJ16: 132.184 | AK16: 137.392
A17: 16 | B17: altura | C17: menina | D17: 76 | E17: 1 | F17: 117.031 | G17: 0.04475 | H17: 5.2371 | I17: 100.847 | J17: 104.848 | K17: 107.181 | L17: 108.417 | M17: 110.319 | N17: 111.603 | O17: 113.499 | P17: 117.031 | Q17: 120.563 | R17: 122.459 | S17: 123.743 | T17: 125.645 | U17: 126.881 | V17: 129.215 | W17: 133.215 | X17: 1 | Y17: 117.0311 | Z17: 0.04475 | AA17: 5.2371 | AB17: 90.845 | AC17: 96.083 | AD17: 101.32 | AE17: 106.557 | AF17: 111.794 | AG17: 117.031 | AH17: 122.268 | AI17: 127.505 | AJ17: 132.743 | AK17: 137.98
A18: 17 | B18: altura | C18: menina | D18: 77 | E18: 1 | F18: 117.504 | G18: 0.04482 | H18: 5.2665 | I18: 101.23 | J18: 105.253 | K18: 107.599 | L18: 108.842 | M18: 110.755 | N18: 112.046 | O18: 113.952 | P18: 117.504 | Q18: 121.057 | R18: 122.963 | S18: 124.254 | T18: 126.167 | U18: 127.41 | V18: 129.756 | W18: 133.779 | X18: 1 | Y18: 117.5044 | Z18: 0.04482 | AA18: 5.2665 | AB18: 91.172 | AC18: 96.438 | AD18: 101.705 | AE18: 106.971 | AF18: 112.238 | AG18: 117.504 | AH18: 122.771 | AI18: 128.037 | AJ18: 133.304 | AK18: 138.571
A19: 18 | B19: altura | C19: menina | D19: 78 | E19: 1 | F19: 117.977 | G19: 0.04489 | H19: 5.296 | I19: 101.611 | J19: 105.657 | K19: 108.016 | L19: 109.266 | M19: 111.19 | N19: 112.488 | O19: 114.405 | P19: 117.977 | Q19: 121.549 | R19: 123.466 | S19: 124.764 | T19: 126.688 | U19: 127.938 | V19: 130.297 | W19: 134.343 | X19: 1 | Y19: 117.9769 | Z19: 0.04489 | AA19: 5.296 | AB19: 91.497 | AC19: 96.793 | AD19: 102.089 | AE19: 107.385 | AF19: 112.681 | AG19: 117.977 | AH19: 123.273 | AI19: 128.569 | AJ19: 133.865 | AK19: 139.161
A20: 19 | B20: altura | C20: menina | D20: 79 | E20: 1 | F20: 118.449 | G20: 0.04495 | H20: 5.3243 | I20: 101.996 | J20: 106.063 | K20: 108.435 | L20: 109.691 | M20: 111.626 | N20: 112.931 | O20: 114.858 | P20: 118.449 | Q20: 122.04 | R20: 123.967 | S20: 125.272 | T20: 127.207 | U20: 128.463 | V20: 130.835 | W20: 134.902 | X20: 1 | Y20: 118.4489 | Z20: 0.04495 | AA20: 5.3243 | AB20: 91.828 | AC20: 97.152 | AD20: 102.476 | AE20: 107.8 | AF20: 113.125 | AG20: 118.449 | AH20: 123.773 | AI20: 129.097 | AJ20: 134.422 | AK20: 139.746
A21: 20 | B21: altura | C21: menina | D21: 80 | E21: 1 | F21: 118.921 | G21: 0.04502 | H21: 5.3538 | I21: 102.376 | J21: 106.466 | K21: 108.851 | L21: 110.115 | M21: 112.06 | N21: 113.372 | O21: 115.31 | P21: 118.921 | Q21: 122.532 | R21: 124.47 | S21: 125.782 | T21: 127.727 | U21: 128.99 | V21: 131.376 | W21: 135.465 | X21: 1 | Y21: 118.9208 | Z21: 0.04502 | AA21: 5.3538 | AB21: 92.152 | AC21: 97.506 | AD21: 102.859 | AE21: 108.213 | AF21: 113.567 | AG21: 118.921 | AH21: 124.275 | AI21: 129.628 | AJ21: 134.982 | AK21: 140.336
A22: 21 | B22: altura | C22: menina | D22: 81 | E22: 1 | F22: 119.393 | G22: 0.04508 | H22: 5.3822 | I22: 102.76 | J22: 106.872 | K22: 109.27 | L22: 110.54 | M22: 112.495 | N22: 113.814 | O22: 115.762 | P22: 119.393 | Q22: 123.023 | R22: 124.971 | S22: 126.29 | T22: 128.246 | U22: 129.515 | V22: 131.914 | W22: 136.025 | X22: 1 | Y22: 119.3926 | Z22: 0.04508 | AA22: 5.3822 | AB22: 92.482 | AC22: 97.864 | AD22: 103.246 | AE22: 108.628 | AF22: 114.01 | AG22: 119.393 | AH22: 124.775 | AI22: 130.157 | AJ22: 135.539 | AK22: 140.921
A23: 22 | B23: altura | C23: menina | D23: 82 | E23: 1 | F23: 119.865 | G23: 0.04514 | H23: 5.4107 | I23: 103.144 | J23: 107.278 | K23: 109.688 | L23: 110.965 | M23: 112.931 | N23: 114.257 | O23: 116.215 | P23: 119.865 | Q23: 123.514 | R23: 125.473 | S23: 126.799 | T23: 128.765 | U23: 130.041 | V23: 132.452 | W23: 136.585 | X23: 1 | Y23: 119.8648 | Z23: 0.04514 | AA23: 5.4107 | AB23: 92.811 | AC23: 98.222 | AD23: 103.633 | AE23: 109.043 | AF23: 114.454 | AG23: 119.865 | AH23: 125.275 | AI23: 130.686 | AJ23: 136.097 | AK23: 141.508
A24: 23 | B24: altura | C24: menina | D24: 83 | E24: 1 | F24: 120.337 | G24: 0.0452 | H24: 5.4393 | I24: 103.529 | J24: 107.684 | K24: 110.107 | L24: 111.391 | M24: 113.367 | N24: 114.7 | O24: 116.669 | P24: 120.337 | Q24: 124.006 | R24: 125.975 | S24: 127.308 | T24: 129.284 | U24: 130.568 | V24: 132.991 | W24: 137.146 | X24: 1 | Y24: 120.3374 | Z24: 0.0452 | AA24: 5.4393 | AB24: 93.141 | AC24: 98.58 | AD24: 104.02 | AE24: 109.459 | AF24: 114.898 | AG24: 120.337 | AH24: 125.777 | AI24: 131.216 | AJ24: 136.655 | AK24: 142.094
A25: 24 | B25: altura | C25: menina | D25: 84 | E25: 1 | F25: 120.811 | G25: 0.04525 | H25: 5.4667 | I25: 103.917 | J25: 108.093 | K25: 110.529 | L25: 111.819 | M25: 113.805 | N25: 115.145 | O25: 117.123 | P25: 120.81 | Q25: 124.498 | R25: 126.476 | S25: 127.816 | T25: 129.802 | U25: 131.092 | V25: 133.528 | W25: 137.704 | X25: 1 | Y25: 120.8105 | Z25: 0.04525 | AA25: 5.4667 | AB25: 93.477 | AC25: 98.944 | AD25: 104.41 | AE25: 109.877 | AF25: 115.344 | AG25: 120.81 | AH25: 126.277 | AI25: 131.744 | AJ25: 137.211 | AK25: 142.677
A26: 25 | B26: altura | C26: menina | D26: 85 | E26: 1 | F26: 121.284 | G26: 0.04531 | H26: 5.4954 | I26: 104.302 | J26: 108.5 | K26: 110.949 | L26: 112.245 | M26: 114.242 | N26: 115.589 | O26: 117.578 | P26: 121.284 | Q26: 124.991 | R26: 126.98 | S26: 128.327 | T26: 130.323 | U26: 131.62 | V26: 134.068 | W26: 138.266 | X26: 1 | Y26: 121.2843 | Z26: 0.04531 | AA26: 5.4954 | AB26: 93.807 | AC26: 99.303 | AD26: 104.798 | AE26: 110.294 | AF26: 115.789 | AG26: 121.284 | AH26: 126.78 | AI26: 132.275 | AJ26: 137.77 | AK26: 143.266
A27: 26 | B27: altura | C27: menina | D27: 86 | E27: 1 | F27: 121.759 | G27: 0.04536 | H27: 5.523 | I27: 104.691 | J27: 108.91 | K27: 111.371 | L27: 112.674 | M27: 114.681 | N27: 116.035 | O27: 118.034 | P27: 121.759 | Q27: 125.484 | R27: 127.483 | S27: 128.837 | T27: 130.843 | U27: 132.146 | V27: 134.607 | W27: 138.826 | X27: 1 | Y27: 121.7587 | Z27: 0.04536 | AA27: 5.523 | AB27: 94.144 | AC27: 99.667 | AD27: 105.19 | AE27: 110.713 | AF27: 116.236 | AG27: 121.759 | AH27: 127.282 | AI27: 132.805 | AJ27: 138.328 | AK27: 143.851
A28: 27 | B28: altura | C28: menina | D28: 87 | E28: 1 | F28: 122.234 | G28: 0.04542 | H28: 5.5519 | I28: 105.077 | J28: 109.318 | K28: 111.792 | L28: 113.102 | M28: 115.119 | N28: 116.48 | O28: 118.489 | P28: 122.234 | Q28: 125.978 | R28: 127.988 | S28: 129.349 | T28: 131.366 | U28: 132.676 | V28: 135.149 | W28: 139.39 | X28: 1 | Y28: 122.2338 | Z28: 0.04542 | AA28: 5.5519 | AB28: 94.475 | AC28: 100.026 | AD28: 105.578 | AE28: 111.13 | AF28: 116.682 | AG28: 122.234 | AH28: 127.786 | AI28: 133.338 | AJ28: 138.889 | AK28: 144.441
A29: 28 | B29: altura | C29: menina | D29: 88 | E29: 1 | F29: 122.71 | G29: 0.04547 | H29: 5.5796 | I29: 105.467 | J29: 109.73 | K29: 112.216 | L29: 113.532 | M29: 115.559 | N29: 116.927 | O29: 118.946 | P29: 122.71 | Q29: 126.473 | R29: 128.493 | S29: 129.86 | T29: 131.887 | U29: 133.204 | V29: 135.69 | W29: 139.952 | X29: 1 | Y29: 122.7098 | Z29: 0.04547 | AA29: 5.5796 | AB29: 94.812 | AC29: 100.391 | AD29: 105.971 | AE29: 111.551 | AF29: 117.13 | AG29: 122.71 | AH29: 128.289 | AI29: 133.869 | AJ29: 139.449 | AK29: 145.028
A30: 29 | B30: altura | C30: menina | D30: 89 | E30: 1 | F30: 123.187 | G30: 0.04551 | H30: 5.6062 | I30: 105.862 | J30: 110.145 | K30: 112.643 | L30: 113.965 | M30: 116.002 | N30: 117.376 | O30: 119.405 | P30: 123.187 | Q30: 126.968 | R30: 128.997 | S30: 130.371 | T30: 132.408 | U30: 133.731 | V30: 136.229 | W30: 140.511 | X30: 1 | Y30: 123.1868 | Z30: 0.04551 | AA30: 5.6062 | AB30: 95.156 | AC30: 100.762 | AD30: 106.368 | AE30: 111.974 | AF30: 117.581 | AG30: 123.187 | AH30: 128.793 | AI30: 134.399 | AJ30: 140.005 | AK30: 145.612
A31: 30 | B31: altura | C31: menina | D31: 90 | E31: 1 | F31: 123.665 | G31: 0.04556 | H31: 5.6342 | I31: 106.254 | J31: 110.558 | K31: 113.068 | L31: 114.397 | M31: 116.444 | N31: 117.825 | O31: 119.864 | P31: 123.665 | Q31: 127.465 | R31: 129.504 | S31: 130.885 | T31: 132.932 | U31: 134.261 | V31: 136.772 | W31: 141.075 | X31: 1 | Y31: 123.6646 | Z31: 0.04556 | AA31: 5.6342 | AB31: 95.494 | AC31: 101.128 | AD31: 106.762 | AE31: 112.396 | AF31: 118.03 | AG31: 123.665 | AH31: 129.299 | AI31: 134.933 | AJ31: 140.567 | AK31: 146.201
A32: 31 | B32: altura | C32: menina | D32: 91 | E32: 1 | F32: 124.144 | G32: 0.04561 | H32: 5.6622 | I32: 106.646 | J32: 110.971 | K32: 113.494 | L32: 114.83 | M32: 116.887 | N32: 118.275 | O32: 120.324 | P32: 124.144 | Q32: 127.963 | R32: 130.012 | S32: 131.4 | T32: 133.457 | U32: 134.793 | V32: 137.316 | W32: 141.641 | X32: 1 | Y32: 124.1435 | Z32: 0.04561 | AA32: 5.6622 | AB32: 95.833 | AC32: 101.495 | AD32: 107.157 | AE32: 112.819 | AF32: 118.481 | AG32: 124.144 | AH32: 129.806 | AI32: 135.468 | AJ32: 141.13 | AK32: 146.792
A33: 32 | B33: altura | C33: menina | D33: 92 | E33: 1 | F33: 124.623 | G33: 0.04565 | H33: 5.6891 | I33: 107.043 | J33: 111.389 | K33: 113.923 | L33: 115.266 | M33: 117.333 | N33: 118.727 | O33: 120.786 | P33: 124.623 | Q33: 128.461 | R33: 130.52 | S33: 131.914 | T33: 133.981 | U33: 135.323 | V33: 137.858 | W33: 142.204 | X33: 1 | Y33: 124.6234 | Z33: 0.04565 | AA33: 5.6891 | AB33: 96.178 | AC33: 101.867 | AD33: 107.556 | AE33: 113.245 | AF33: 118.934 | AG33: 124.623 | AH33: 130.312 | AI33: 136.002 | AJ33: 141.691 | AK33: 147.38
A34: 33 | B34: altura | C34: menina | D34: 93 | E34: 1 | F34: 125.104 | G34: 0.04569 | H34: 5.716 | I34: 107.441 | J34: 111.807 | K34: 114.354 | L34: 115.702 | M34: 117.779 | N34: 119.18 | O34: 121.249 | P34: 125.104 | Q34: 128.96 | R34: 131.029 | S34: 132.43 | T34: 134.507 | U34: 135.855 | V34: 138.402 | W34: 142.768 | X34: 1 | Y34: 125.1045 | Z34: 0.04569 | AA34: 5.716 | AB34: 96.524 | AC34: 102.24 | AD34: 107.956 | AE34: 113.672 | AF34: 119.388 | AG34: 125.104 | AH34: 130.821 | AI34: 136.537 | AJ34: 142.253 | AK34: 147.969
A35: 34 | B35: altura | C35: menina | D35: 94 | E35: 1 | F35: 125.587 | G35: 0.04573 | H35: 5.7431 | I35: 107.839 | J35: 112.226 | K35: 114.785 | L35: 116.14 | M35: 118.227 | N35: 119.635 | O35: 121.713 | P35: 125.587 | Q35: 129.461 | R35: 131.539 | S35: 132.947 | T35: 135.033 | U35: 136.388 | V35: 138.947 | W35: 143.334 | X35: 1 | Y35: 125.5869 | Z35: 0.04573 | AA35: 5.7431 | AB35: 96.871 | AC35: 102.615 | AD35: 108.358 | AE35: 114.101 | AF35: 119.844 | AG35: 125.587 | AH35: 131.33 | AI35: 137.073 | AJ35: 142.816 | AK35: 148.559
A36: 35 | B36: altura | C36: menina | D36: 95 | E36: 1 | F36: 126.071 | G36: 0.04577 | H36: 5.7703 | I36: 108.239 | J36: 112.647 | K36: 115.218 | L36: 116.579 | M36: 118.676 | N36: 120.09 | O36: 122.179 | P36: 126.071 | Q36: 129.963 | R36: 132.051 | S36: 133.465 | T36: 135.562 | U36: 136.923 | V36: 139.494 | W36: 143.902 | X36: 1 | Y36: 126.0706 | Z36: 0.04577 | AA36: 5.7703 | AB36: 97.219 | AC36: 102.99 | AD36: 108.76 | AE36: 114.53 | AF36: 120.3 | AG36: 126.071 | AH36: 131.841 | AI36: 137.611 | AJ36: 143.381 | AK36: 149.152
A37: 36 | B37: altura | C37: menina | D37: 96 | E37: 1 | F37: 126.556 | G37: 0.04581 | H37: 5.7975 | I37: 108.64 | J37: 113.069 | K37: 115.652 | L37: 117.02 | M37: 119.126 | N37: 120.547 | O37: 122.645 | P37: 126.556 | Q37: 130.466 | R37: 132.565 | S37: 133.986 | T37: 136.092 | U37: 137.46 | V37: 140.043 | W37: 144.471 | X37: 1 | Y37: 126.5558 | Z37: 0.04581 | AA37: 5.7975 | AB37: 97.568 | AC37: 103.366 | AD37: 109.163 | AE37: 114.961 | AF37: 120.758 | AG37: 126.556 | AH37: 132.353 | AI37: 138.151 | AJ37: 143.948 | AK37: 149.746
A38: 37 | B38: altura | C38: menina | D38: 97 | E38: 1 | F38: 127.042 | G38: 0.04585 | H38: 5.8249 | I38: 109.042 | J38: 113.492 | K38: 116.087 | L38: 117.461 | M38: 119.577 | N38: 121.005 | O38: 123.114 | P38: 127.042 | Q38: 130.971 | R38: 133.08 | S38: 134.507 | T38: 136.623 | U38: 137.998 | V38: 140.593 | W38: 145.043 | X38: 1 | Y38: 127.0424 | Z38: 0.04585 | AA38: 5.8249 | AB38: 97.918 | AC38: 103.743 | AD38: 109.568 | AE38: 115.393 | AF38: 121.218 | AG38: 127.042 | AH38: 132.867 | AI38: 138.692 | AJ38: 144.517 | AK38: 150.342
A39: 38 | B39: altura | C39: menina | D39: 98 | E39: 1 | F39: 127.53 | G39: 0.04588 | H39: 5.8511 | I39: 109.449 | J39: 113.919 | K39: 116.526 | L39: 117.906 | M39: 120.032 | N39: 121.466 | O39: 123.584 | P39: 127.53 | Q39: 131.477 | R39: 133.595 | S39: 135.029 | T39: 137.155 | U39: 138.535 | V39: 141.142 | W39: 145.612 | X39: 1 | Y39: 127.5304 | Z39: 0.04588 | AA39: 5.8511 | AB39: 98.275 | AC39: 104.126 | AD39: 109.977 | AE39: 115.828 | AF39: 121.679 | AG39: 127.53 | AH39: 133.381 | AI39: 139.233 | AJ39: 145.084 | AK39: 150.935
A40: 39 | B40: altura | C40: menina | D40: 99 | E40: 1 | F40: 128.02 | G40: 0.04591 | H40: 5.8774 | I40: 109.857 | J40: 114.347 | K40: 116.966 | L40: 118.352 | M40: 120.488 | N40: 121.928 | O40: 124.056 | P40: 128.02 | Q40: 131.984 | R40: 134.111 | S40: 135.552 | T40: 137.687 | U40: 139.074 | V40: 141.693 | W40: 146.182 | X40: 1 | Y40: 128.0199 | Z40: 0.04591 | AA40: 5.8774 | AB40: 98.633 | AC40: 104.51 | AD40: 110.388 | AE40: 116.265 | AF40: 122.143 | AG40: 128.02 | AH40: 133.897 | AI40: 139.775 | AJ40: 145.652 | AK40: 151.529
A41: 40 | B41: altura | C41: menina | D41: 100 | E41: 1 | F41: 128.511 | G41: 0.04594 | H41: 5.9038 | I41: 110.267 | J41: 114.777 | K41: 117.407 | L41: 118.8 | M41: 120.945 | N41: 122.392 | O41: 124.529 | P41: 128.511 | Q41: 132.493 | R41: 134.63 | S41: 136.077 | T41: 138.222 | U41: 139.615 | V41: 142.245 | W41: 146.755 | X41: 1 | Y41: 128.5109 | Z41: 0.04594 | AA41: 5.9038 | AB41: 98.992 | AC41: 104.896 | AD41: 110.8 | AE41: 116.703 | AF41: 122.607 | AG41: 128.511 | AH41: 134.415 | AI41: 140.318 | AJ41: 146.222 | AK41: 152.126
A42: 41 | B42: altura | C42: menina | D42: 101 | E42: 1 | F42: 129.003 | G42: 0.04597 | H42: 5.9303 | I42: 110.678 | J42: 115.208 | K42: 117.85 | L42: 119.249 | M42: 121.404 | N42: 122.857 | O42: 125.004 | P42: 129.004 | Q42: 133.003 | R42: 135.15 | S42: 136.603 | T42: 138.758 | U42: 140.157 | V42: 142.799 | W42: 147.329 | X42: 1 | Y42: 129.0035 | Z42: 0.04597 | AA42: 5.9303 | AB42: 99.352 | AC42: 105.282 | AD42: 111.213 | AE42: 117.143 | AF42: 123.073 | AG42: 129.004 | AH42: 134.934 | AI42: 140.864 | AJ42: 146.794 | AK42: 152.725
A43: 42 | B43: altura | C43: menina | D43: 102 | E43: 1 | F43: 129.497 | G43: 0.046 | H43: 5.9569 | I43: 111.089 | J43: 115.64 | K43: 118.294 | L43: 119.699 | M43: 121.863 | N43: 123.324 | O43: 125.48 | P43: 129.498 | Q43: 133.515 | R43: 135.671 | S43: 137.132 | T43: 139.296 | U43: 140.701 | V43: 143.355 | W43: 147.906 | X43: 1 | Y43: 129.4975 | Z43: 0.046 | AA43: 5.9569 | AB43: 99.713 | AC43: 105.67 | AD43: 111.627 | AE43: 117.584 | AF43: 123.541 | AG43: 129.498 | AH43: 135.454 | AI43: 141.411 | AJ43: 147.368 | AK43: 153.325
A44: 43 | B44: altura | C44: menina | D44: 103 | E44: 1 | F44: 129.993 | G44: 0.04602 | H44: 5.9823 | I44: 111.507 | J44: 116.076 | K44: 118.742 | L44: 120.153 | M44: 122.327 | N44: 123.793 | O44: 125.958 | P44: 129.993 | Q44: 134.028 | R44: 136.193 | S44: 137.66 | T44: 139.833 | U44: 141.245 | V44: 143.91 | W44: 148.48 | X44: 1 | Y44: 129.9932 | Z44: 0.04602 | AA44: 5.9823 | AB44: 100.082 | AC44: 106.064 | AD44: 112.046 | AE44: 118.029 | AF44: 124.011 | AG44: 129.993 | AH44: 135.975 | AI44: 141.958 | AJ44: 147.94 | AK44: 153.922
A45: 44 | B45: altura | C45: menina | D45: 104 | E45: 1 | F45: 130.49 | G45: 0.04604 | H45: 6.0078 | I45: 111.925 | J45: 116.514 | K45: 119.191 | L45: 120.608 | M45: 122.791 | N45: 124.264 | O45: 126.438 | P45: 130.49 | Q45: 134.543 | R45: 136.717 | S45: 138.19 | T45: 140.372 | U45: 141.79 | V45: 144.467 | W45: 149.056 | X45: 1 | Y45: 130.4904 | Z45: 0.04604 | AA45: 6.0078 | AB45: 100.452 | AC45: 106.459 | AD45: 112.467 | AE45: 118.475 | AF45: 124.483 | AG45: 130.49 | AH45: 136.498 | AI45: 142.506 | AJ45: 148.514 | AK45: 154.522
A46: 45 | B46: altura | C46: menina | D46: 105 | E46: 1 | F46: 130.989 | G46: 0.04607 | H46: 6.0347 | I46: 112.341 | J46: 116.95 | K46: 119.639 | L46: 121.063 | M46: 123.255 | N46: 124.735 | O46: 126.919 | P46: 130.989 | Q46: 135.059 | R46: 137.244 | S46: 138.723 | T46: 140.915 | U46: 142.339 | V46: 145.028 | W46: 149.638 | X46: 1 | Y46: 130.9891 | Z46: 0.04607 | AA46: 6.0347 | AB46: 100.816 | AC46: 106.85 | AD46: 112.885 | AE46: 118.92 | AF46: 124.954 | AG46: 130.989 | AH46: 137.024 | AI46: 143.058 | AJ46: 149.093 | AK46: 155.128
A47: 46 | B47: altura | C47: menina | D47: 106 | E47: 1 | F47: 131.49 | G47: 0.04608 | H47: 6.059 | I47: 112.766 | J47: 117.394 | K47: 120.094 | L47: 121.523 | M47: 123.725 | N47: 125.21 | O47: 127.403 | P47: 131.49 | Q47: 135.576 | R47: 137.769 | S47: 139.254 | T47: 141.456 | U47: 142.885 | V47: 145.585 | W47: 150.213 | X47: 1 | Y47: 131.4895 | Z47: 0.04608 | AA47: 6.059 | AB47: 101.194 | AC47: 107.253 | AD47: 113.312 | AE47: 119.371 | AF47: 125.43 | AG47: 131.49 | AH47: 137.549 | AI47: 143.608 | AJ47: 149.667 | AK47: 155.726
A48: 47 | B48: altura | C48: menina | D48: 107 | E48: 1 | F48: 131.991 | G48: 0.0461 | H48: 6.0848 | I48: 113.188 | J48: 117.836 | K48: 120.547 | L48: 121.983 | M48: 124.193 | N48: 125.685 | O48: 127.887 | P48: 131.991 | Q48: 136.095 | R48: 138.298 | S48: 139.789 | T48: 142 | U48: 143.435 | V48: 146.147 | W48: 150.795 | X48: 1 | Y48: 131.9912 | Z48: 0.0461 | AA48: 6.0848 | AB48: 101.567 | AC48: 107.652 | AD48: 113.737 | AE48: 119.822 | AF48: 125.906 | AG48: 131.991 | AH48: 138.076 | AI48: 144.161 | AJ48: 150.246 | AK48: 156.33
A49: 48 | B49: altura | C49: menina | D49: 108 | E49: 1 | F49: 132.494 | G49: 0.04612 | H49: 6.1106 | I49: 113.611 | J49: 118.279 | K49: 121.002 | L49: 122.443 | M49: 124.663 | N49: 126.161 | O49: 128.373 | P49: 132.494 | Q49: 136.616 | R49: 138.828 | S49: 140.326 | T49: 142.546 | U49: 143.987 | V49: 146.71 | W49: 151.378 | X49: 1 | Y49: 132.4944 | Z49: 0.04612 | AA49: 6.1106 | AB49: 101.941 | AC49: 108.052 | AD49: 114.162 | AE49: 120.273 | AF49: 126.384 | AG49: 132.494 | AH49: 138.605 | AI49: 144.716 | AJ49: 150.826 | AK49: 156.937
A50: 49 | B50: altura | C50: menina | D50: 109 | E50: 1 | F50: 132.999 | G50: 0.04613 | H50: 6.1352 | I50: 114.04 | J50: 118.726 | K50: 121.46 | L50: 122.907 | M50: 125.136 | N50: 126.64 | O50: 128.861 | P50: 132.999 | Q50: 137.137 | R50: 139.358 | S50: 140.862 | T50: 143.09 | U50: 144.538 | V50: 147.272 | W50: 151.958 | X50: 1 | Y50: 132.9989 | Z50: 0.04613 | AA50: 6.1352 | AB50: 102.323 | AC50: 108.458 | AD50: 114.593 | AE50: 120.728 | AF50: 126.864 | AG50: 132.999 | AH50: 139.134 | AI50: 145.269 | AJ50: 151.405 | AK50: 157.54
A51: 50 | B51: altura | C51: menina | D51: 110 | E51: 1 | F51: 133.505 | G51: 0.04614 | H51: 6.1599 | I51: 114.469 | J51: 119.175 | K51: 121.919 | L51: 123.372 | M51: 125.61 | N51: 127.12 | O51: 129.35 | P51: 133.505 | Q51: 137.659 | R51: 139.889 | S51: 141.399 | T51: 143.637 | U51: 145.09 | V51: 147.835 | W51: 152.54 | X51: 1 | Y51: 133.5046 | Z51: 0.04614 | AA51: 6.1599 | AB51: 102.705 | AC51: 108.865 | AD51: 115.025 | AE51: 121.185 | AF51: 127.345 | AG51: 133.505 | AH51: 139.665 | AI51: 145.824 | AJ51: 151.984 | AK51: 158.144
A52: 51 | B52: altura | C52: menina | D52: 111 | E52: 1 | F52: 134.012 | G52: 0.04615 | H52: 6.1846 | I52: 114.9 | J52: 119.624 | K52: 122.38 | L52: 123.839 | M52: 126.086 | N52: 127.602 | O52: 129.84 | P52: 134.012 | Q52: 138.183 | R52: 140.422 | S52: 141.938 | T52: 144.185 | U52: 145.644 | V52: 148.399 | W52: 153.124 | X52: 1 | Y52: 134.0118 | Z52: 0.04615 | AA52: 6.1846 | AB52: 103.089 | AC52: 109.273 | AD52: 115.458 | AE52: 121.643 | AF52: 127.827 | AG52: 134.012 | AH52: 140.196 | AI52: 146.381 | AJ52: 152.566 | AK52: 158.75
A53: 52 | B53: altura | C53: menina | D53: 112 | E53: 1 | F53: 134.52 | G53: 0.04616 | H53: 6.2095 | I53: 115.332 | J53: 120.075 | K53: 122.842 | L53: 124.307 | M53: 126.562 | N53: 128.085 | O53: 130.332 | P53: 134.52 | Q53: 138.708 | R53: 140.956 | S53: 142.478 | T53: 144.734 | U53: 146.199 | V53: 148.966 | W53: 153.709 | X53: 1 | Y53: 134.5202 | Z53: 0.04616 | AA53: 6.2095 | AB53: 103.473 | AC53: 109.682 | AD53: 115.892 | AE53: 122.101 | AF53: 128.311 | AG53: 134.52 | AH53: 140.73 | AI53: 146.939 | AJ53: 153.149 | AK53: 159.358
A54: 53 | B54: altura | C54: menina | D54: 113 | E54: 1 | F54: 135.03 | G54: 0.04616 | H54: 6.233 | I54: 115.769 | J54: 120.53 | K54: 123.307 | L54: 124.778 | M54: 127.042 | N54: 128.57 | O54: 130.826 | P54: 135.03 | Q54: 139.234 | R54: 141.49 | S54: 143.018 | T54: 145.282 | U54: 146.753 | V54: 149.53 | W54: 154.291 | X54: 1 | Y54: 135.0299 | Z54: 0.04616 | AA54: 6.233 | AB54: 103.865 | AC54: 110.098 | AD54: 116.331 | AE54: 122.564 | AF54: 128.797 | AG54: 135.03 | AH54: 141.263 | AI54: 147.496 | AJ54: 153.729 | AK54: 159.962
A55: 54 | B55: altura | C55: menina | D55: 114 | E55: 1 | F55: 135.541 | G55: 0.04617 | H55: 6.2579 | I55: 116.203 | J55: 120.983 | K55: 123.771 | L55: 125.248 | M55: 127.521 | N55: 129.055 | O55: 131.32 | P55: 135.541 | Q55: 139.762 | R55: 142.027 | S55: 143.561 | T55: 145.834 | U55: 147.311 | V55: 150.099 | W55: 154.879 | X55: 1 | Y55: 135.541 | Z55: 0.04617 | AA55: 6.2579 | AB55: 104.251 | AC55: 110.509 | AD55: 116.767 | AE55: 123.025 | AF55: 129.283 | AG55: 135.541 | AH55: 141.799 | AI55: 148.057 | AJ55: 154.315 | AK55: 160.573
A56: 55 | B56: altura | C56: menina | D56: 115 | E56: 1 | F56: 136.053 | G56: 0.04617 | H56: 6.2816 | I56: 116.642 | J56: 121.44 | K56: 124.239 | L56: 125.721 | M56: 128.003 | N56: 129.543 | O56: 131.816 | P56: 136.053 | Q56: 140.29 | R56: 142.564 | S56: 144.103 | T56: 146.386 | U56: 147.868 | V56: 150.666 | W56: 155.465 | X56: 1 | Y56: 136.0533 | Z56: 0.04617 | AA56: 6.2816 | AB56: 104.645 | AC56: 110.927 | AD56: 117.209 | AE56: 123.49 | AF56: 129.772 | AG56: 136.053 | AH56: 142.335 | AI56: 148.616 | AJ56: 154.898 | AK56: 161.18
A57: 56 | B57: altura | C57: menina | D57: 116 | E57: 1 | F57: 136.567 | G57: 0.04616 | H57: 6.3039 | I57: 117.086 | J57: 121.902 | K57: 124.711 | L57: 126.198 | M57: 128.488 | N57: 130.033 | O57: 132.315 | P57: 136.567 | Q57: 140.819 | R57: 143.101 | S57: 144.646 | T57: 146.936 | U57: 148.423 | V57: 151.232 | W57: 156.048 | X57: 1 | Y57: 136.567 | Z57: 0.04616 | AA57: 6.3039 | AB57: 105.047 | AC57: 111.351 | AD57: 117.655 | AE57: 123.959 | AF57: 130.263 | AG57: 136.567 | AH57: 142.871 | AI57: 149.175 | AJ57: 155.479 | AK57: 161.783
A58: 57 | B58: altura | C58: menina | D58: 117 | E58: 1 | F58: 137.082 | G58: 0.04616 | H58: 6.3277 | I58: 117.528 | J58: 122.362 | K58: 125.181 | L58: 126.674 | M58: 128.973 | N58: 130.524 | O58: 132.814 | P58: 137.082 | Q58: 141.35 | R58: 143.64 | S58: 145.191 | T58: 147.49 | U58: 148.983 | V58: 151.803 | W58: 156.636 | X58: 1 | Y58: 137.0821 | Z58: 0.04616 | AA58: 6.3277 | AB58: 105.444 | AC58: 111.771 | AD58: 118.099 | AE58: 124.427 | AF58: 130.754 | AG58: 137.082 | AH58: 143.41 | AI58: 149.738 | AJ58: 156.065 | AK58: 162.393
A59: 58 | B59: altura | C59: menina | D59: 118 | E59: 1 | F59: 137.599 | G59: 0.04616 | H59: 6.3516 | I59: 117.971 | J59: 122.823 | K59: 125.653 | L59: 127.151 | M59: 129.459 | N59: 131.016 | O59: 133.315 | P59: 137.599 | Q59: 141.883 | R59: 144.182 | S59: 145.739 | T59: 148.046 | U59: 149.545 | V59: 152.375 | W59: 157.226 | X59: 1 | Y59: 137.5987 | Z59: 0.04616 | AA59: 6.3516 | AB59: 105.841 | AC59: 112.192 | AD59: 118.544 | AE59: 124.896 | AF59: 131.247 | AG59: 137.599 | AH59: 143.95 | AI59: 150.302 | AJ59: 156.653 | AK59: 163.005
A60: 59 | B60: altura | C60: menina | D60: 119 | E60: 1 | F60: 138.117 | G60: 0.04615 | H60: 6.3741 | I60: 118.419 | J60: 123.288 | K60: 126.128 | L60: 127.632 | M60: 129.948 | N60: 131.51 | O60: 133.817 | P60: 138.117 | Q60: 142.416 | R60: 144.723 | S60: 146.285 | T60: 148.601 | U60: 150.105 | V60: 152.945 | W60: 157.814 | X60: 1 | Y60: 138.1167 | Z60: 0.04615 | AA60: 6.3741 | AB60: 106.246 | AC60: 112.62 | AD60: 118.994 | AE60: 125.369 | AF60: 131.743 | AG60: 138.117 | AH60: 144.491 | AI60: 150.865 | AJ60: 157.239 | AK60: 163.613
A61: 60 | B61: altura | C61: menina | D61: 120 | E61: 1 | F61: 138.636 | G61: 0.04614 | H61: 6.3967 | I61: 118.869 | J61: 123.755 | K61: 126.605 | L61: 128.115 | M61: 130.439 | N61: 132.007 | O61: 134.322 | P61: 138.636 | Q61: 142.951 | R61: 145.266 | S61: 146.834 | T61: 149.158 | U61: 150.667 | V61: 153.517 | W61: 158.404 | X61: 1 | Y61: 138.6363 | Z61: 0.04614 | AA61: 6.3967 | AB61: 106.653 | AC61: 113.05 | AD61: 119.446 | AE61: 125.843 | AF61: 132.24 | AG61: 138.636 | AH61: 145.033 | AI61: 151.43 | AJ61: 157.826 | AK61: 164.223
A62: 61 | B62: altura | C62: menina | D62: 121 | E62: 1 | F62: 139.158 | G62: 0.04612 | H62: 6.4179 | I62: 119.325 | J62: 124.227 | K62: 127.087 | L62: 128.601 | M62: 130.933 | N62: 132.506 | O62: 134.829 | P62: 139.158 | Q62: 143.486 | R62: 145.809 | S62: 147.382 | T62: 149.714 | U62: 151.228 | V62: 154.088 | W62: 158.99 | X62: 1 | Y62: 139.1575 | Z62: 0.04612 | AA62: 6.4179 | AB62: 107.068 | AC62: 113.486 | AD62: 119.904 | AE62: 126.322 | AF62: 132.74 | AG62: 139.158 | AH62: 145.575 | AI62: 151.993 | AJ62: 158.411 | AK62: 164.829
A63: 62 | B63: altura | C63: menina | D63: 122 | E63: 1 | F63: 139.68 | G63: 0.04611 | H63: 6.4407 | I63: 119.777 | J63: 124.697 | K63: 127.567 | L63: 129.086 | M63: 131.426 | N63: 133.005 | O63: 135.336 | P63: 139.68 | Q63: 144.024 | R63: 146.356 | S63: 147.934 | T63: 150.274 | U63: 151.794 | V63: 154.664 | W63: 159.583 | X63: 1 | Y63: 139.6803 | Z63: 0.04611 | AA63: 6.4407 | AB63: 107.477 | AC63: 113.918 | AD63: 120.358 | AE63: 126.799 | AF63: 133.24 | AG63: 139.68 | AH63: 146.121 | AI63: 152.562 | AJ63: 159.002 | AK63: 165.443
A64: 63 | B64: altura | C64: menina | D64: 123 | E64: 1 | F64: 140.205 | G64: 0.04609 | H64: 6.462 | I64: 120.236 | J64: 125.172 | K64: 128.051 | L64: 129.576 | M64: 131.923 | N64: 133.507 | O64: 135.846 | P64: 140.205 | Q64: 144.563 | R64: 146.902 | S64: 148.486 | T64: 150.834 | U64: 152.359 | V64: 155.238 | W64: 160.174 | X64: 1 | Y64: 140.2049 | Z64: 0.04609 | AA64: 6.462 | AB64: 107.895 | AC64: 114.357 | AD64: 120.819 | AE64: 127.281 | AF64: 133.743 | AG64: 140.205 | AH64: 146.667 | AI64: 153.129 | AJ64: 159.591 | AK64: 166.053
A65: 64 | B65: altura | C65: menina | D65: 124 | E65: 1 | F65: 140.731 | G65: 0.04607 | H65: 6.4835 | I65: 120.696 | J65: 125.648 | K65: 128.537 | L65: 130.067 | M65: 132.422 | N65: 134.012 | O65: 136.358 | P65: 140.731 | Q65: 145.104 | R65: 147.451 | S65: 149.04 | T65: 151.396 | U65: 152.925 | V65: 155.814 | W65: 160.767 | X65: 1 | Y65: 140.7313 | Z65: 0.04607 | AA65: 6.4835 | AB65: 108.314 | AC65: 114.797 | AD65: 121.281 | AE65: 127.764 | AF65: 134.248 | AG65: 140.731 | AH65: 147.215 | AI65: 153.698 | AJ65: 160.182 | AK65: 166.665
A66: 65 | B66: altura | C66: menina | D66: 125 | E66: 1 | F66: 141.259 | G66: 0.04605 | H66: 6.505 | I66: 121.157 | J66: 126.127 | K66: 129.025 | L66: 130.56 | M66: 132.923 | N66: 134.517 | O66: 136.872 | P66: 141.259 | Q66: 145.647 | R66: 148.001 | S66: 149.596 | T66: 151.959 | U66: 153.494 | V66: 156.392 | W66: 161.361 | X66: 1 | Y66: 141.2594 | Z66: 0.04605 | AA66: 6.505 | AB66: 108.734 | AC66: 115.239 | AD66: 121.744 | AE66: 128.249 | AF66: 134.754 | AG66: 141.259 | AH66: 147.764 | AI66: 154.269 | AJ66: 160.774 | AK66: 167.279
A67: 66 | B67: altura | C67: menina | D67: 126 | E67: 1 | F67: 141.789 | G67: 0.04603 | H67: 6.5266 | I67: 121.621 | J67: 126.606 | K67: 129.514 | L67: 131.054 | M67: 133.425 | N67: 135.025 | O67: 137.387 | P67: 141.789 | Q67: 146.191 | R67: 148.554 | S67: 150.153 | T67: 152.524 | U67: 154.064 | V67: 156.972 | W67: 161.958 | X67: 1 | Y67: 141.7892 | Z67: 0.04603 | AA67: 6.5266 | AB67: 109.156 | AC67: 115.683 | AD67: 122.21 | AE67: 128.736 | AF67: 135.263 | AG67: 141.789 | AH67: 148.316 | AI67: 154.842 | AJ67: 161.369 | AK67: 167.895
A68: 67 | B68: altura | C68: menina | D68: 127 | E68: 1 | F68: 142.321 | G68: 0.046 | H68: 6.5467 | I68: 122.09 | J68: 127.091 | K68: 130.008 | L68: 131.552 | M68: 133.931 | N68: 135.535 | O68: 137.905 | P68: 142.321 | Q68: 146.736 | R68: 149.106 | S68: 150.711 | T68: 153.089 | U68: 154.634 | V68: 157.551 | W68: 162.552 | X68: 1 | Y68: 142.3206 | Z68: 0.046 | AA68: 6.5467 | AB68: 109.587 | AC68: 116.134 | AD68: 122.68 | AE68: 129.227 | AF68: 135.774 | AG68: 142.321 | AH68: 148.867 | AI68: 155.414 | AJ68: 161.961 | AK68: 168.508
A69: 68 | B69: altura | C69: menina | D69: 128 | E69: 1 | F69: 142.853 | G69: 0.04597 | H69: 6.567 | I69: 122.56 | J69: 127.576 | K69: 130.502 | L69: 132.052 | M69: 134.437 | N69: 136.047 | O69: 138.424 | P69: 142.853 | Q69: 147.283 | R69: 149.66 | S69: 151.269 | T69: 153.655 | U69: 155.205 | V69: 158.13 | W69: 163.147 | X69: 1 | Y69: 142.8534 | Z69: 0.04597 | AA69: 6.567 | AB69: 110.019 | AC69: 116.586 | AD69: 123.152 | AE69: 129.719 | AF69: 136.286 | AG69: 142.853 | AH69: 149.42 | AI69: 155.987 | AJ69: 162.554 | AK69: 169.121
A70: 69 | B70: altura | C70: menina | D70: 129 | E70: 1 | F70: 143.387 | G70: 0.04594 | H70: 6.5872 | I70: 123.031 | J70: 128.063 | K70: 130.998 | L70: 132.552 | M70: 134.946 | N70: 136.56 | O70: 138.944 | P70: 143.387 | Q70: 147.83 | R70: 150.215 | S70: 151.829 | T70: 154.222 | U70: 155.777 | V70: 158.712 | W70: 163.743 | X70: 1 | Y70: 143.3874 | Z70: 0.04594 | AA70: 6.5872 | AB70: 110.451 | AC70: 117.039 | AD70: 123.626 | AE70: 130.213 | AF70: 136.8 | AG70: 143.387 | AH70: 149.975 | AI70: 156.562 | AJ70: 163.149 | AK70: 169.736
A71: 70 | B71: altura | C71: menina | D71: 130 | E71: 1 | F71: 143.922 | G71: 0.04591 | H71: 6.6075 | I71: 123.504 | J71: 128.551 | K71: 131.495 | L71: 133.054 | M71: 135.454 | N71: 137.074 | O71: 139.466 | P71: 143.922 | Q71: 148.379 | R71: 150.77 | S71: 152.39 | T71: 154.791 | U71: 156.349 | V71: 159.293 | W71: 164.341 | X71: 1 | Y71: 143.9222 | Z71: 0.04591 | AA71: 6.6075 | AB71: 110.885 | AC71: 117.492 | AD71: 124.1 | AE71: 130.707 | AF71: 137.315 | AG71: 143.922 | AH71: 150.53 | AI71: 157.137 | AJ71: 163.745 | AK71: 170.352
A72: 71 | B72: altura | C72: menina | D72: 131 | E72: 1 | F72: 144.458 | G72: 0.04588 | H72: 6.6277 | I72: 123.976 | J72: 129.039 | K72: 131.992 | L72: 133.556 | M72: 135.964 | N72: 137.588 | O72: 139.987 | P72: 144.458 | Q72: 148.928 | R72: 151.327 | S72: 152.951 | T72: 155.359 | U72: 156.923 | V72: 159.876 | W72: 164.939 | X72: 1 | Y72: 144.4575 | Z72: 0.04588 | AA72: 6.6277 | AB72: 111.319 | AC72: 117.947 | AD72: 124.574 | AE72: 131.202 | AF72: 137.83 | AG72: 144.458 | AH72: 151.085 | AI72: 157.713 | AJ72: 164.341 | AK72: 170.968
A73: 72 | B73: altura | C73: menina | D73: 132 | E73: 1 | F73: 144.993 | G73: 0.04584 | H73: 6.6465 | I73: 124.454 | J73: 129.531 | K73: 132.492 | L73: 134.06 | M73: 136.475 | N73: 138.104 | O73: 140.51 | P73: 144.993 | Q73: 149.476 | R73: 151.882 | S73: 153.511 | T73: 155.925 | U73: 157.494 | V73: 160.455 | W73: 165.532 | X73: 1 | Y73: 144.9929 | Z73: 0.04584 | AA73: 6.6465 | AB73: 111.761 | AC73: 118.407 | AD73: 125.053 | AE73: 131.7 | AF73: 138.346 | AG73: 144.993 | AH73: 151.639 | AI73: 158.286 | AJ73: 164.932 | AK73: 171.579
A74: 73 | B74: altura | C74: menina | D74: 133 | E74: 1 | F74: 145.528 | G74: 0.0458 | H74: 6.6652 | I74: 124.931 | J74: 130.022 | K74: 132.992 | L74: 134.565 | M74: 136.986 | N74: 138.62 | O74: 141.032 | P74: 145.528 | Q74: 150.024 | R74: 152.436 | S74: 154.07 | T74: 156.491 | U74: 158.064 | V74: 161.034 | W74: 166.125 | X74: 1 | Y74: 145.528 | Z74: 0.0458 | AA74: 6.6652 | AB74: 112.202 | AC74: 118.867 | AD74: 125.532 | AE74: 132.198 | AF74: 138.863 | AG74: 145.528 | AH74: 152.193 | AI74: 158.858 | AJ74: 165.524 | AK74: 172.189
A75: 74 | B75: altura | C75: menina | D75: 134 | E75: 1 | F75: 146.062 | G75: 0.04576 | H75: 6.6838 | I75: 125.408 | J75: 130.513 | K75: 133.491 | L75: 135.068 | M75: 137.497 | N75: 139.135 | O75: 141.554 | P75: 146.062 | Q75: 150.57 | R75: 152.99 | S75: 154.628 | T75: 157.056 | U75: 158.633 | V75: 161.611 | W75: 166.717 | X75: 1 | Y75: 146.0622 | Z75: 0.04576 | AA75: 6.6838 | AB75: 112.643 | AC75: 119.327 | AD75: 126.011 | AE75: 132.695 | AF75: 139.378 | AG75: 146.062 | AH75: 152.746 | AI75: 159.43 | AJ75: 166.114 | AK75: 172.797
A76: 75 | B76: altura | C76: menina | D76: 135 | E76: 1 | F76: 146.595 | G76: 0.04571 | H76: 6.7009 | I76: 125.888 | J76: 131.007 | K76: 133.992 | L76: 135.573 | M76: 138.008 | N76: 139.65 | O76: 142.075 | P76: 146.595 | Q76: 151.115 | R76: 153.54 | S76: 155.183 | T76: 157.617 | U76: 159.198 | V76: 162.184 | W76: 167.302 | X76: 1 | Y76: 146.5951 | Z76: 0.04571 | AA76: 6.7009 | AB76: 113.091 | AC76: 119.792 | AD76: 126.493 | AE76: 133.193 | AF76: 139.894 | AG76: 146.595 | AH76: 153.296 | AI76: 159.997 | AJ76: 166.698 | AK76: 173.399
A77: 76 | B77: altura | C77: menina | D77: 136 | E77: 1 | F77: 147.126 | G77: 0.04567 | H77: 6.7193 | I77: 126.362 | J77: 131.495 | K77: 134.489 | L77: 136.074 | M77: 138.515 | N77: 140.162 | O77: 142.594 | P77: 147.126 | Q77: 151.658 | R77: 154.09 | S77: 155.737 | T77: 158.178 | U77: 159.764 | V77: 162.758 | W77: 167.89 | X77: 1 | Y77: 147.1262 | Z77: 0.04567 | AA77: 6.7193 | AB77: 113.53 | AC77: 120.249 | AD77: 126.968 | AE77: 133.688 | AF77: 140.407 | AG77: 147.126 | AH77: 153.845 | AI77: 160.565 | AJ77: 167.284 | AK77: 174.003
A78: 77 | B78: altura | C78: menina | D78: 137 | E78: 1 | F78: 147.655 | G78: 0.04562 | H78: 6.736 | I78: 126.839 | J78: 131.984 | K78: 134.986 | L78: 136.575 | M78: 139.022 | N78: 140.673 | O78: 143.111 | P78: 147.655 | Q78: 152.198 | R78: 154.636 | S78: 156.287 | T78: 158.735 | U78: 160.324 | V78: 163.325 | W78: 168.471 | X78: 1 | Y78: 147.6548 | Z78: 0.04562 | AA78: 6.736 | AB78: 113.975 | AC78: 120.711 | AD78: 127.447 | AE78: 134.183 | AF78: 140.919 | AG78: 147.655 | AH78: 154.391 | AI78: 161.127 | AJ78: 167.863 | AK78: 174.599
A79: 78 | B79: altura | C79: menina | D79: 138 | E79: 1 | F79: 148.18 | G79: 0.04557 | H79: 6.7526 | I79: 127.313 | J79: 132.472 | K79: 135.48 | L79: 137.073 | M79: 139.527 | N79: 141.182 | O79: 143.626 | P79: 148.18 | Q79: 152.735 | R79: 155.179 | S79: 156.834 | T79: 159.287 | U79: 160.881 | V79: 163.889 | W79: 169.047 | X79: 1 | Y79: 148.1804 | Z79: 0.04557 | AA79: 6.7526 | AB79: 114.417 | AC79: 121.17 | AD79: 127.923 | AE79: 134.675 | AF79: 141.428 | AG79: 148.18 | AH79: 154.933 | AI79: 161.686 | AJ79: 168.438 | AK79: 175.191
A80: 79 | B80: altura | C80: menina | D80: 139 | E80: 1 | F80: 148.702 | G80: 0.04552 | H80: 6.7689 | I80: 127.785 | J80: 132.955 | K80: 135.971 | L80: 137.568 | M80: 140.028 | N80: 141.687 | O80: 144.137 | P80: 148.702 | Q80: 153.268 | R80: 155.718 | S80: 157.377 | T80: 159.836 | U80: 161.433 | V80: 164.449 | W80: 169.62 | X80: 1 | Y80: 148.7023 | Z80: 0.04552 | AA80: 6.7689 | AB80: 114.858 | AC80: 121.627 | AD80: 128.396 | AE80: 135.164 | AF80: 141.933 | AG80: 148.702 | AH80: 155.471 | AI80: 162.24 | AJ80: 169.009 | AK80: 175.778
A81: 80 | B81: altura | C81: menina | D81: 140 | E81: 1 | F81: 149.22 | G81: 0.04546 | H81: 6.7835 | I81: 128.257 | J81: 133.439 | K81: 136.461 | L81: 138.062 | M81: 140.526 | N81: 142.189 | O81: 144.644 | P81: 149.22 | Q81: 153.795 | R81: 156.25 | S81: 157.913 | T81: 160.378 | U81: 161.978 | V81: 165.001 | W81: 170.182 | X81: 1 | Y81: 149.2197 | Z81: 0.04546 | AA81: 6.7835 | AB81: 115.302 | AC81: 122.086 | AD81: 128.869 | AE81: 135.653 | AF81: 142.436 | AG81: 149.22 | AH81: 156.003 | AI81: 162.787 | AJ81: 169.57 | AK81: 176.354
A82: 81 | B82: altura | C82: menina | D82: 141 | E82: 1 | F82: 149.732 | G82: 0.04541 | H82: 6.7993 | I82: 128.721 | J82: 133.915 | K82: 136.944 | L82: 138.548 | M82: 141.018 | N82: 142.685 | O82: 145.146 | P82: 149.732 | Q82: 154.318 | R82: 156.779 | S82: 158.446 | T82: 160.916 | U82: 162.52 | V82: 165.55 | W82: 170.744 | X82: 1 | Y82: 149.7322 | Z82: 0.04541 | AA82: 6.7993 | AB82: 115.736 | AC82: 122.535 | AD82: 129.334 | AE82: 136.134 | AF82: 142.933 | AG82: 149.732 | AH82: 156.532 | AI82: 163.331 | AJ82: 170.13 | AK82: 176.93
A83: 82 | B83: altura | C83: menina | D83: 142 | E83: 1 | F83: 150.239 | G83: 0.04535 | H83: 6.8133 | I83: 129.184 | J83: 134.389 | K83: 137.425 | L83: 139.032 | M83: 141.507 | N83: 143.177 | O83: 145.643 | P83: 150.239 | Q83: 154.835 | R83: 157.301 | S83: 158.971 | T83: 161.446 | U83: 163.053 | V83: 166.089 | W83: 171.294 | X83: 1 | Y83: 150.239 | Z83: 0.04535 | AA83: 6.8133 | AB83: 116.172 | AC83: 122.986 | AD83: 129.799 | AE83: 136.612 | AF83: 143.426 | AG83: 150.239 | AH83: 157.052 | AI83: 163.866 | AJ83: 170.679 | AK83: 177.492
A84: 83 | B84: altura | C84: menina | D84: 143 | E84: 1 | F84: 150.739 | G84: 0.04529 | H84: 6.827 | I84: 129.642 | J84: 134.857 | K84: 137.899 | L84: 139.51 | M84: 141.99 | N84: 143.664 | O84: 146.135 | P84: 150.739 | Q84: 155.344 | R84: 157.815 | S84: 159.489 | T84: 161.969 | U84: 163.58 | V84: 166.621 | W84: 171.836 | X84: 1 | Y84: 150.7394 | Z84: 0.04529 | AA84: 6.827 | AB84: 116.604 | AC84: 123.431 | AD84: 130.258 | AE84: 137.085 | AF84: 143.912 | AG84: 150.739 | AH84: 157.566 | AI84: 164.393 | AJ84: 171.22 | AK84: 178.047
A85: 84 | B85: altura | C85: menina | D85: 144 | E85: 1 | F85: 151.233 | G85: 0.04523 | H85: 6.8403 | I85: 130.095 | J85: 135.32 | K85: 138.368 | L85: 139.981 | M85: 142.467 | N85: 144.143 | O85: 146.619 | P85: 151.233 | Q85: 155.846 | R85: 158.322 | S85: 159.999 | T85: 162.484 | U85: 164.098 | V85: 167.146 | W85: 172.371 | X85: 1 | Y85: 151.2327 | Z85: 0.04523 | AA85: 6.8403 | AB85: 117.031 | AC85: 123.872 | AD85: 130.712 | AE85: 137.552 | AF85: 144.392 | AG85: 151.233 | AH85: 158.073 | AI85: 164.913 | AJ85: 171.753 | AK85: 178.594
A86: 85 | B86: altura | C86: menina | D86: 145 | E86: 1 | F86: 151.718 | G86: 0.04516 | H86: 6.8516 | I86: 130.545 | J86: 135.779 | K86: 138.832 | L86: 140.448 | M86: 142.938 | N86: 144.617 | O86: 147.097 | P86: 151.718 | Q86: 156.34 | R86: 158.819 | S86: 160.499 | T86: 162.988 | U86: 164.605 | V86: 167.657 | W86: 172.891 | X86: 1 | Y86: 151.7182 | Z86: 0.04516 | AA86: 6.8516 | AB86: 117.46 | AC86: 124.312 | AD86: 131.163 | AE86: 138.015 | AF86: 144.867 | AG86: 151.718 | AH86: 158.57 | AI86: 165.421 | AJ86: 172.273 | AK86: 179.125
A87: 86 | B87: altura | C87: menina | D87: 146 | E87: 1 | F87: 152.195 | G87: 0.0451 | H87: 6.864 | I87: 130.984 | J87: 136.227 | K87: 139.285 | L87: 140.905 | M87: 143.399 | N87: 145.081 | O87: 147.565 | P87: 152.195 | Q87: 156.825 | R87: 159.309 | S87: 160.992 | T87: 163.485 | U87: 165.105 | V87: 168.163 | W87: 173.406 | X87: 1 | Y87: 152.1951 | Z87: 0.0451 | AA87: 6.864 | AB87: 117.875 | AC87: 124.739 | AD87: 131.603 | AE87: 138.467 | AF87: 145.331 | AG87: 152.195 | AH87: 159.059 | AI87: 165.923 | AJ87: 172.787 | AK87: 179.651
A88: 87 | B88: altura | C88: menina | D88: 147 | E88: 1 | F88: 152.663 | G88: 0.04503 | H88: 6.8744 | I88: 131.419 | J88: 136.671 | K88: 139.733 | L88: 141.355 | M88: 143.853 | N88: 145.538 | O88: 148.026 | P88: 152.663 | Q88: 157.3 | R88: 159.788 | S88: 161.473 | T88: 163.97 | U88: 165.592 | V88: 168.655 | W88: 173.906 | X88: 1 | Y88: 152.6628 | Z88: 0.04503 | AA88: 6.8744 | AB88: 118.291 | AC88: 125.165 | AD88: 132.04 | AE88: 138.914 | AF88: 145.788 | AG88: 152.663 | AH88: 159.537 | AI88: 166.412 | AJ88: 173.286 | AK88: 180.16
A89: 88 | B89: altura | C89: menina | D89: 148 | E89: 1 | F89: 153.121 | G89: 0.04497 | H89: 6.8858 | I89: 131.842 | J89: 137.102 | K89: 140.17 | L89: 141.794 | M89: 144.296 | N89: 145.984 | O89: 148.476 | P89: 153.121 | Q89: 157.765 | R89: 160.257 | S89: 161.945 | T89: 164.447 | U89: 166.071 | V89: 169.139 | W89: 174.399 | X89: 1 | Y89: 153.1206 | Z89: 0.04497 | AA89: 6.8858 | AB89: 118.691 | AC89: 125.577 | AD89: 132.463 | AE89: 139.349 | AF89: 146.235 | AG89: 153.121 | AH89: 160.006 | AI89: 166.892 | AJ89: 173.778 | AK89: 180.664
A90: 89 | B90: altura | C90: menina | D90: 149 | E90: 1 | F90: 153.568 | G90: 0.0449 | H90: 6.8952 | I90: 132.26 | J90: 137.527 | K90: 140.599 | L90: 142.226 | M90: 144.731 | N90: 146.421 | O90: 148.917 | P90: 153.568 | Q90: 158.219 | R90: 160.714 | S90: 162.404 | T90: 164.909 | U90: 166.536 | V90: 169.608 | W90: 174.876 | X90: 1 | Y90: 153.5678 | Z90: 0.0449 | AA90: 6.8952 | AB90: 119.092 | AC90: 125.987 | AD90: 132.882 | AE90: 139.777 | AF90: 146.673 | AG90: 153.568 | AH90: 160.463 | AI90: 167.358 | AJ90: 174.253 | AK90: 181.149
A91: 90 | B91: altura | C91: menina | D91: 150 | E91: 1 | F91: 154.004 | G91: 0.04483 | H91: 6.904 | I91: 132.669 | J91: 137.943 | K91: 141.019 | L91: 142.648 | M91: 145.156 | N91: 146.849 | O91: 149.347 | P91: 154.004 | Q91: 158.661 | R91: 161.16 | S91: 162.852 | T91: 165.36 | U91: 166.989 | V91: 170.065 | W91: 175.339 | X91: 1 | Y91: 154.0041 | Z91: 0.04483 | AA91: 6.904 | AB91: 119.484 | AC91: 126.388 | AD91: 133.292 | AE91: 140.196 | AF91: 147.1 | AG91: 154.004 | AH91: 160.908 | AI91: 167.812 | AJ91: 174.716 | AK91: 181.62
A92: 91 | B92: altura | C92: menina | D92: 151 | E92: 1 | F92: 154.429 | G92: 0.04476 | H92: 6.9122 | I92: 133.069 | J92: 138.349 | K92: 141.428 | L92: 143.059 | M92: 145.571 | N92: 147.265 | O92: 149.767 | P92: 154.429 | Q92: 159.091 | R92: 161.593 | S92: 163.287 | T92: 165.799 | U92: 167.43 | V92: 170.509 | W92: 175.789 | X92: 1 | Y92: 154.429 | Z92: 0.04476 | AA92: 6.9122 | AB92: 119.868 | AC92: 126.78 | AD92: 133.692 | AE92: 140.605 | AF92: 147.517 | AG92: 154.429 | AH92: 161.341 | AI92: 168.253 | AJ92: 175.166 | AK92: 182.078
A93: 92 | B93: altura | C93: menina | D93: 152 | E93: 1 | F93: 154.842 | G93: 0.04468 | H93: 6.9184 | I93: 133.463 | J93: 138.748 | K93: 141.83 | L93: 143.463 | M93: 145.976 | N93: 147.672 | O93: 150.176 | P93: 154.842 | Q93: 159.509 | R93: 162.013 | S93: 163.709 | T93: 166.222 | U93: 167.854 | V93: 170.937 | W93: 176.222 | X93: 1 | Y93: 154.8423 | Z93: 0.04468 | AA93: 6.9184 | AB93: 120.251 | AC93: 127.169 | AD93: 134.087 | AE93: 141.006 | AF93: 147.924 | AG93: 154.842 | AH93: 161.761 | AI93: 168.679 | AJ93: 175.597 | AK93: 182.516
A94: 93 | B94: altura | C94: menina | D94: 153 | E94: 1 | F94: 155.244 | G94: 0.04461 | H94: 6.9254 | I94: 133.843 | J94: 139.133 | K94: 142.218 | L94: 143.852 | M94: 146.368 | N94: 148.066 | O94: 150.573 | P94: 155.244 | Q94: 159.915 | R94: 162.421 | S94: 164.119 | T94: 166.635 | U94: 168.269 | V94: 171.355 | W94: 176.645 | X94: 1 | Y94: 155.2437 | Z94: 0.04461 | AA94: 6.9254 | AB94: 120.617 | AC94: 127.542 | AD94: 134.467 | AE94: 141.393 | AF94: 148.318 | AG94: 155.244 | AH94: 162.169 | AI94: 169.095 | AJ94: 176.02 | AK94: 182.945
A95: 94 | B95: altura | C95: menina | D95: 154 | E95: 1 | F95: 155.633 | G95: 0.04454 | H95: 6.9319 | I95: 134.212 | J95: 139.507 | K95: 142.596 | L95: 144.231 | M95: 146.749 | N95: 148.449 | O95: 150.958 | P95: 155.633 | Q95: 160.308 | R95: 162.817 | S95: 164.517 | T95: 167.035 | U95: 168.67 | V95: 171.759 | W95: 177.054 | X95: 1 | Y95: 155.633 | Z95: 0.04454 | AA95: 6.9319 | AB95: 120.974 | AC95: 127.905 | AD95: 134.837 | AE95: 141.769 | AF95: 148.701 | AG95: 155.633 | AH95: 162.565 | AI95: 169.497 | AJ95: 176.429 | AK95: 183.361
A96: 95 | B96: altura | C96: menina | D96: 155 | E96: 1 | F96: 156.01 | G96: 0.04446 | H96: 6.9362 | I96: 134.576 | J96: 139.874 | K96: 142.965 | L96: 144.601 | M96: 147.121 | N96: 148.821 | O96: 151.332 | P96: 156.01 | Q96: 160.689 | R96: 163.199 | S96: 164.899 | T96: 167.419 | U96: 169.056 | V96: 172.146 | W96: 177.445 | X96: 1 | Y96: 156.0101 | Z96: 0.04446 | AA96: 6.9362 | AB96: 121.329 | AC96: 128.265 | AD96: 135.201 | AE96: 142.138 | AF96: 149.074 | AG96: 156.01 | AH96: 162.946 | AI96: 169.883 | AJ96: 176.819 | AK96: 183.755
A97: 96 | B97: altura | C97: menina | D97: 156 | E97: 1 | F97: 156.375 | G97: 0.04439 | H97: 6.9415 | I97: 134.924 | J97: 140.227 | K97: 143.319 | L97: 144.957 | M97: 147.479 | N97: 149.18 | O97: 151.693 | P97: 156.375 | Q97: 161.057 | R97: 163.569 | S97: 165.271 | T97: 167.793 | U97: 169.43 | V97: 172.523 | W97: 177.826 | X97: 1 | Y97: 156.3748 | Z97: 0.04439 | AA97: 6.9415 | AB97: 121.667 | AC97: 128.609 | AD97: 135.55 | AE97: 142.492 | AF97: 149.433 | AG97: 156.375 | AH97: 163.316 | AI97: 170.258 | AJ97: 177.199 | AK97: 184.141
A98: 97 | B98: altura | C98: menina | D98: 157 | E98: 1 | F98: 156.727 | G98: 0.04431 | H98: 6.9446 | I98: 135.267 | J98: 140.571 | K98: 143.666 | L98: 145.304 | M98: 147.827 | N98: 149.529 | O98: 152.043 | P98: 156.727 | Q98: 161.411 | R98: 163.924 | S98: 165.627 | T98: 168.15 | U98: 169.788 | V98: 172.882 | W98: 178.187 | X98: 1 | Y98: 156.7269 | Z98: 0.04431 | AA98: 6.9446 | AB98: 122.004 | AC98: 128.949 | AD98: 135.893 | AE98: 142.838 | AF98: 149.782 | AG98: 156.727 | AH98: 163.671 | AI98: 170.616 | AJ98: 177.561 | AK98: 184.505
A99: 98 | B99: altura | C99: menina | D99: 158 | E99: 1 | F99: 157.067 | G99: 0.04423 | H99: 6.9471 | I99: 135.599 | J99: 140.905 | K99: 144.001 | L99: 145.64 | M99: 148.164 | N99: 149.866 | O99: 152.381 | P99: 157.067 | Q99: 161.752 | R99: 164.267 | S99: 165.97 | T99: 168.493 | U99: 170.133 | V99: 173.228 | W99: 178.535 | X99: 1 | Y99: 157.0666 | Z99: 0.04423 | AA99: 6.9471 | AB99: 122.331 | AC99: 129.278 | AD99: 136.225 | AE99: 143.172 | AF99: 150.12 | AG99: 157.067 | AH99: 164.014 | AI99: 170.961 | AJ99: 177.908 | AK99: 184.855
A100: 99 | B100: altura | C100: menina | D100: 159 | E100: 1 | F100: 157.394 | G100: 0.04415 | H100: 6.9489 | I100: 135.92 | J100: 141.228 | K100: 144.324 | L100: 145.964 | M100: 148.488 | N100: 150.191 | O100: 152.707 | P100: 157.394 | Q100: 162.081 | R100: 164.596 | S100: 166.299 | T100: 168.824 | U100: 170.463 | V100: 173.559 | W100: 178.867 | X100: 1 | Y100: 157.3936 | Z100: 0.04415 | AA100: 6.9489 | AB100: 122.649 | AC100: 129.598 | AD100: 136.547 | AE100: 143.496 | AF100: 150.445 | AG100: 157.394 | AH100: 164.343 | AI100: 171.291 | AJ100: 178.24 | AK100: 185.189
A101: 100 | B101: altura | C101: menina | D101: 160 | E101: 1 | F101: 157.708 | G101: 0.04408 | H101: 6.9518 | I101: 136.226 | J101: 141.536 | K101: 144.633 | L101: 146.274 | M101: 148.799 | N101: 150.503 | O101: 153.019 | P101: 157.708 | Q101: 162.397 | R101: 164.913 | S101: 166.617 | T101: 169.143 | U101: 170.783 | V101: 173.88 | W101: 179.191 | X101: 1 | Y101: 157.7082 | Z101: 0.04408 | AA101: 6.9518 | AB101: 122.949 | AC101: 129.901 | AD101: 136.853 | AE101: 143.805 | AF101: 150.756 | AG101: 157.708 | AH101: 164.66 | AI101: 171.612 | AJ101: 178.564 | AK101: 185.515
A102: 101 | B102: altura | C102: menina | D102: 161 | E102: 1 | F102: 158.01 | G102: 0.044 | H102: 6.9524 | I102: 136.526 | J102: 141.836 | K102: 144.934 | L102: 146.574 | M102: 149.1 | N102: 150.804 | O102: 153.321 | P102: 158.01 | Q102: 162.7 | R102: 165.216 | S102: 166.92 | T102: 169.446 | U102: 171.086 | V102: 174.184 | W102: 179.495 | X102: 1 | Y102: 158.0102 | Z102: 0.044 | AA102: 6.9524 | AB102: 123.248 | AC102: 130.2 | AD102: 137.153 | AE102: 144.105 | AF102: 151.058 | AG102: 158.01 | AH102: 164.963 | AI102: 171.915 | AJ102: 178.868 | AK102: 185.82
A103: 102 | B103: altura | C103: menina | D103: 162 | E103: 1 | F103: 158.3 | G103: 0.04392 | H103: 6.9525 | I103: 136.815 | J103: 142.126 | K103: 145.223 | L103: 146.864 | M103: 149.39 | N103: 151.094 | O103: 153.61 | P103: 158.3 | Q103: 162.989 | R103: 165.506 | S103: 167.21 | T103: 169.736 | U103: 171.376 | V103: 174.474 | W103: 179.785 | X103: 1 | Y103: 158.2997 | Z103: 0.04392 | AA103: 6.9525 | AB103: 123.537 | AC103: 130.49 | AD103: 137.442 | AE103: 144.395 | AF103: 151.347 | AG103: 158.3 | AH103: 165.252 | AI103: 172.205 | AJ103: 179.157 | AK103: 186.11
A104: 103 | B104: altura | C104: menina | D104: 163 | E104: 1 | F104: 158.577 | G104: 0.04384 | H104: 6.952 | I104: 137.094 | J104: 142.404 | K104: 145.502 | L104: 147.142 | M104: 149.668 | N104: 151.372 | O104: 153.888 | P104: 158.577 | Q104: 163.266 | R104: 165.782 | S104: 167.486 | T104: 170.012 | U104: 171.652 | V104: 174.75 | W104: 180.06 | X104: 1 | Y104: 158.5771 | Z104: 0.04384 | AA104: 6.952 | AB104: 123.817 | AC104: 130.769 | AD104: 137.721 | AE104: 144.673 | AF104: 151.625 | AG104: 158.577 | AH104: 165.529 | AI104: 172.481 | AJ104: 179.433 | AK104: 186.385
A105: 104 | B105: altura | C105: menina | D105: 164 | E105: 1 | F105: 158.842 | G105: 0.04376 | H105: 6.9509 | I105: 137.362 | J105: 142.672 | K105: 145.769 | L105: 147.409 | M105: 149.935 | N105: 151.638 | O105: 154.154 | P105: 158.842 | Q105: 163.531 | R105: 166.047 | S105: 167.75 | T105: 170.276 | U105: 171.916 | V105: 175.013 | W105: 180.323 | X105: 1 | Y105: 158.8425 | Z105: 0.04376 | AA105: 6.9509 | AB105: 124.088 | AC105: 131.039 | AD105: 137.99 | AE105: 144.941 | AF105: 151.892 | AG105: 158.842 | AH105: 165.793 | AI105: 172.744 | AJ105: 179.695 | AK105: 186.646
A106: 105 | B106: altura | C106: menina | D106: 165 | E106: 1 | F106: 159.096 | G106: 0.04369 | H106: 6.9509 | I106: 137.616 | J106: 142.926 | K106: 146.023 | L106: 147.663 | M106: 150.188 | N106: 151.892 | O106: 154.408 | P106: 159.096 | Q106: 163.784 | R106: 166.3 | S106: 168.004 | T106: 170.529 | U106: 172.169 | V106: 175.266 | W106: 180.576 | X106: 1 | Y106: 159.0961 | Z106: 0.04369 | AA106: 6.9509 | AB106: 124.342 | AC106: 131.292 | AD106: 138.243 | AE106: 145.194 | AF106: 152.145 | AG106: 159.096 | AH106: 166.047 | AI106: 172.998 | AJ106: 179.949 | AK106: 186.9
A107: 106 | B107: altura | C107: menina | D107: 166 | E107: 1 | F107: 159.338 | G107: 0.04361 | H107: 6.9487 | I107: 137.865 | J107: 143.173 | K107: 146.269 | L107: 147.909 | M107: 150.433 | N107: 152.136 | O107: 154.651 | P107: 159.338 | Q107: 164.025 | R107: 166.54 | S107: 168.243 | T107: 170.768 | U107: 172.407 | V107: 175.503 | W107: 180.811 | X107: 1 | Y107: 159.3382 | Z107: 0.04361 | AA107: 6.9487 | AB107: 124.595 | AC107: 131.543 | AD107: 138.492 | AE107: 145.441 | AF107: 152.389 | AG107: 159.338 | AH107: 166.287 | AI107: 173.236 | AJ107: 180.184 | AK107: 187.133
A108: 107 | B108: altura | C108: menina | D108: 167 | E108: 1 | F108: 159.569 | G108: 0.04353 | H108: 6.946 | I108: 138.104 | J108: 143.41 | K108: 146.505 | L108: 148.144 | M108: 150.667 | N108: 152.37 | O108: 154.884 | P108: 159.569 | Q108: 164.254 | R108: 166.768 | S108: 168.471 | T108: 170.994 | U108: 172.633 | V108: 175.728 | W108: 181.034 | X108: 1 | Y108: 159.5691 | Z108: 0.04353 | AA108: 6.946 | AB108: 124.839 | AC108: 131.785 | AD108: 138.731 | AE108: 145.677 | AF108: 152.623 | AG108: 159.569 | AH108: 166.515 | AI108: 173.461 | AJ108: 180.407 | AK108: 187.353
A109: 108 | B109: altura | C109: menina | D109: 168 | E109: 1 | F109: 159.789 | G109: 0.04345 | H109: 6.9428 | I109: 138.334 | J109: 143.638 | K109: 146.731 | L109: 148.369 | M109: 150.891 | N109: 152.593 | O109: 155.106 | P109: 159.789 | Q109: 164.472 | R109: 166.985 | S109: 168.687 | T109: 171.209 | U109: 172.847 | V109: 175.94 | W109: 181.244 | X109: 1 | Y109: 159.789 | Z109: 0.04345 | AA109: 6.9428 | AB109: 125.075 | AC109: 132.018 | AD109: 138.961 | AE109: 145.903 | AF109: 152.846 | AG109: 159.789 | AH109: 166.732 | AI109: 173.675 | AJ109: 180.617 | AK109: 187.56
A110: 109 | B110: altura | C110: menina | D110: 169 | E110: 1 | F110: 159.998 | G110: 0.04337 | H110: 6.9391 | I110: 138.555 | J110: 143.855 | K110: 146.947 | L110: 148.584 | M110: 151.105 | N110: 152.806 | O110: 155.318 | P110: 159.998 | Q110: 164.679 | R110: 167.19 | S110: 168.891 | T110: 171.412 | U110: 173.049 | V110: 176.141 | W110: 181.442 | X110: 1 | Y110: 159.9983 | Z110: 0.04337 | AA110: 6.9391 | AB110: 125.303 | AC110: 132.242 | AD110: 139.181 | AE110: 146.12 | AF110: 153.059 | AG110: 159.998 | AH110: 166.937 | AI110: 173.877 | AJ110: 180.816 | AK110: 187.755
A111: 110 | B111: altura | C111: menina | D111: 170 | E111: 1 | F111: 160.197 | G111: 0.0433 | H111: 6.9365 | I111: 138.762 | J111: 144.06 | K111: 147.151 | L111: 148.788 | M111: 151.308 | N111: 153.008 | O111: 155.518 | P111: 160.197 | Q111: 164.876 | R111: 167.386 | S111: 169.087 | T111: 171.607 | U111: 173.243 | V111: 176.334 | W111: 181.633 | X111: 1 | Y111: 160.1971 | Z111: 0.0433 | AA111: 6.9365 | AB111: 125.514 | AC111: 132.451 | AD111: 139.387 | AE111: 146.324 | AF111: 153.261 | AG111: 160.197 | AH111: 167.134 | AI111: 174.07 | AJ111: 181.007 | AK111: 187.943
A112: 111 | B112: altura | C112: menina | D112: 171 | E112: 1 | F112: 160.386 | G112: 0.04322 | H112: 6.9319 | I112: 138.965 | J112: 144.26 | K112: 147.348 | L112: 148.984 | M112: 151.502 | N112: 153.201 | O112: 155.71 | P112: 160.386 | Q112: 165.061 | R112: 167.57 | S112: 169.269 | T112: 171.788 | U112: 173.423 | V112: 176.512 | W112: 181.807 | X112: 1 | Y112: 160.3857 | Z112: 0.04322 | AA112: 6.9319 | AB112: 125.726 | AC112: 132.658 | AD112: 139.59 | AE112: 146.522 | AF112: 153.454 | AG112: 160.386 | AH112: 167.318 | AI112: 174.249 | AJ112: 181.181 | AK112: 188.113
A113: 112 | B113: altura | C113: menina | D113: 172 | E113: 1 | F113: 160.564 | G113: 0.04314 | H113: 6.9267 | I113: 139.159 | J113: 144.45 | K113: 147.537 | L113: 149.171 | M113: 151.687 | N113: 153.385 | O113: 155.892 | P113: 160.564 | Q113: 165.236 | R113: 167.743 | S113: 169.441 | T113: 171.958 | U113: 173.592 | V113: 176.678 | W113: 181.97 | X113: 1 | Y113: 160.5643 | Z113: 0.04314 | AA113: 6.9267 | AB113: 125.931 | AC113: 132.857 | AD113: 139.784 | AE113: 146.711 | AF113: 153.638 | AG113: 160.564 | AH113: 167.491 | AI113: 174.418 | AJ113: 181.345 | AK113: 188.271
A114: 113 | B114: altura | C114: menina | D114: 173 | E114: 1 | F114: 160.733 | G114: 0.04307 | H114: 6.9228 | I114: 139.34 | J114: 144.628 | K114: 147.713 | L114: 149.346 | M114: 151.861 | N114: 153.558 | O114: 156.064 | P114: 160.733 | Q114: 165.403 | R114: 167.908 | S114: 169.605 | T114: 172.12 | U114: 173.754 | V114: 176.838 | W114: 182.126 | X114: 1 | Y114: 160.7332 | Z114: 0.04307 | AA114: 6.9228 | AB114: 126.119 | AC114: 133.042 | AD114: 139.965 | AE114: 146.888 | AF114: 153.81 | AG114: 160.733 | AH114: 167.656 | AI114: 174.579 | AJ114: 181.502 | AK114: 188.424
A115: 114 | B115: altura | C115: menina | D115: 174 | E115: 1 | F115: 160.893 | G115: 0.04299 | H115: 6.9168 | I115: 139.518 | J115: 144.802 | K115: 147.884 | L115: 149.516 | M115: 152.028 | N115: 153.724 | O115: 156.227 | P115: 160.893 | Q115: 165.558 | R115: 168.061 | S115: 169.757 | T115: 172.27 | U115: 173.902 | V115: 176.984 | W115: 182.267 | X115: 1 | Y115: 160.8927 | Z115: 0.04299 | AA115: 6.9168 | AB115: 126.309 | AC115: 133.226 | AD115: 140.142 | AE115: 147.059 | AF115: 153.976 | AG115: 160.893 | AH115: 167.809 | AI115: 174.726 | AJ115: 181.643 | AK115: 188.56
A116: 115 | B116: altura | C116: menina | D116: 175 | E116: 1 | F116: 161.043 | G116: 0.04292 | H116: 6.912 | I116: 139.683 | J116: 144.963 | K116: 148.043 | L116: 149.674 | M116: 152.185 | N116: 153.879 | O116: 156.381 | P116: 161.043 | Q116: 165.705 | R116: 168.207 | S116: 169.901 | T116: 172.412 | U116: 174.043 | V116: 177.123 | W116: 182.403 | X116: 1 | Y116: 161.043 | Z116: 0.04292 | AA116: 6.912 | AB116: 126.483 | AC116: 133.395 | AD116: 140.307 | AE116: 147.219 | AF116: 154.131 | AG116: 161.043 | AH116: 167.955 | AI116: 174.867 | AJ116: 181.779 | AK116: 188.691
A117: 116 | B117: altura | C117: menina | D117: 176 | E117: 1 | F117: 161.184 | G117: 0.04284 | H117: 6.9051 | I117: 139.846 | J117: 145.121 | K117: 148.197 | L117: 149.827 | M117: 152.335 | N117: 154.028 | O117: 156.527 | P117: 161.184 | Q117: 165.842 | R117: 168.341 | S117: 170.034 | T117: 172.542 | U117: 174.172 | V117: 177.248 | W117: 182.523 | X117: 1 | Y117: 161.1845 | Z117: 0.04284 | AA117: 6.9051 | AB117: 126.659 | AC117: 133.564 | AD117: 140.469 | AE117: 147.374 | AF117: 154.279 | AG117: 161.184 | AH117: 168.09 | AI117: 174.995 | AJ117: 181.9 | AK117: 188.805
A118: 117 | B118: altura | C118: menina | D118: 177 | E118: 1 | F118: 161.318 | G118: 0.04277 | H118: 6.8996 | I118: 139.996 | J118: 145.267 | K118: 148.341 | L118: 149.969 | M118: 152.475 | N118: 154.167 | O118: 156.664 | P118: 161.318 | Q118: 165.971 | R118: 168.469 | S118: 170.16 | T118: 172.666 | U118: 174.294 | V118: 177.368 | W118: 182.639 | X118: 1 | Y118: 161.3176 | Z118: 0.04277 | AA118: 6.8996 | AB118: 126.82 | AC118: 133.719 | AD118: 140.619 | AE118: 147.518 | AF118: 154.418 | AG118: 161.318 | AH118: 168.217 | AI118: 175.117 | AJ118: 182.016 | AK118: 188.916
A119: 118 | B119: altura | C119: menina | D119: 178 | E119: 1 | F119: 161.443 | G119: 0.0427 | H119: 6.8936 | I119: 140.14 | J119: 145.406 | K119: 148.477 | L119: 150.104 | M119: 152.608 | N119: 154.298 | O119: 156.793 | P119: 161.442 | Q119: 166.092 | R119: 168.587 | S119: 170.277 | T119: 172.781 | U119: 174.408 | V119: 177.479 | W119: 182.745 | X119: 1 | Y119: 161.4425 | Z119: 0.0427 | AA119: 6.8936 | AB119: 126.975 | AC119: 133.868 | AD119: 140.762 | AE119: 147.655 | AF119: 154.549 | AG119: 161.442 | AH119: 168.336 | AI119: 175.23 | AJ119: 182.123 | AK119: 189.017
A120: 119 | B120: altura | C120: menina | D120: 179 | E120: 1 | F120: 161.56 | G120: 0.04263 | H120: 6.8873 | I120: 140.276 | J120: 145.537 | K120: 148.606 | L120: 150.231 | M120: 152.733 | N120: 154.421 | O120: 156.914 | P120: 161.56 | Q120: 166.205 | R120: 168.698 | S120: 170.386 | T120: 172.888 | U120: 174.513 | V120: 177.582 | W120: 182.843 | X120: 1 | Y120: 161.5596 | Z120: 0.04263 | AA120: 6.8873 | AB120: 127.123 | AC120: 134.01 | AD120: 140.898 | AE120: 147.785 | AF120: 154.672 | AG120: 161.56 | AH120: 168.447 | AI120: 175.334 | AJ120: 182.221 | AK120: 189.109
A121: 120 | B121: altura | C121: menina | D121: 180 | E121: 1 | F121: 161.669 | G121: 0.04255 | H121: 6.879 | I121: 140.411 | J121: 145.666 | K121: 148.731 | L121: 150.354 | M121: 152.853 | N121: 154.54 | O121: 157.029 | P121: 161.669 | Q121: 166.309 | R121: 168.799 | S121: 170.485 | T121: 172.984 | U121: 174.607 | V121: 177.672 | W121: 182.927 | X121: 1 | Y121: 161.6692 | Z121: 0.04255 | AA121: 6.879 | AB121: 127.274 | AC121: 134.153 | AD121: 141.032 | AE121: 147.911 | AF121: 154.79 | AG121: 161.669 | AH121: 168.548 | AI121: 175.427 | AJ121: 182.306 | AK121: 189.185
A122: 121 | B122: altura | C122: menina | D122: 181 | E122: 1 | F122: 161.772 | G122: 0.04248 | H122: 6.8721 | I122: 140.535 | J122: 145.785 | K122: 148.847 | L122: 150.468 | M122: 152.965 | N122: 154.649 | O122: 157.137 | P122: 161.772 | Q122: 166.407 | R122: 168.894 | S122: 170.579 | T122: 173.075 | U122: 174.697 | V122: 177.759 | W122: 183.008 | X122: 1 | Y122: 161.7717 | Z122: 0.04248 | AA122: 6.8721 | AB122: 127.411 | AC122: 134.283 | AD122: 141.156 | AE122: 148.028 | AF122: 154.9 | AG122: 161.772 | AH122: 168.644 | AI122: 175.516 | AJ122: 182.388 | AK122: 189.26
A123: 122 | B123: altura | C123: menina | D123: 182 | E123: 1 | F123: 161.867 | G123: 0.04241 | H123: 6.8648 | I123: 140.653 | J123: 145.897 | K123: 148.956 | L123: 150.576 | M123: 153.07 | N123: 154.752 | O123: 157.237 | P123: 161.867 | Q123: 166.498 | R123: 168.982 | S123: 170.665 | T123: 173.159 | U123: 174.779 | V123: 177.837 | W123: 183.081 | X123: 1 | Y123: 161.8673 | Z123: 0.04241 | AA123: 6.8648 | AB123: 127.543 | AC123: 134.408 | AD123: 141.273 | AE123: 148.138 | AF123: 155.003 | AG123: 161.867 | AH123: 168.732 | AI123: 175.597 | AJ123: 182.462 | AK123: 189.326
A124: 123 | B124: altura | C124: menina | D124: 183 | E124: 1 | F124: 161.956 | G124: 0.04235 | H124: 6.8589 | I124: 140.761 | J124: 146 | K124: 149.056 | L124: 150.675 | M124: 153.166 | N124: 154.848 | O124: 157.33 | P124: 161.956 | Q124: 166.583 | R124: 169.065 | S124: 170.746 | T124: 173.238 | U124: 174.856 | V124: 177.912 | W124: 183.152 | X124: 1 | Y124: 161.9564 | Z124: 0.04235 | AA124: 6.8589 | AB124: 127.662 | AC124: 134.521 | AD124: 141.38 | AE124: 148.239 | AF124: 155.098 | AG124: 161.956 | AH124: 168.815 | AI124: 175.674 | AJ124: 182.533 | AK124: 189.392
A125: 124 | B125: altura | C125: menina | D125: 184 | E125: 1 | F125: 162.039 | G125: 0.04228 | H125: 6.851 | I125: 140.868 | J125: 146.101 | K125: 149.154 | L125: 150.77 | M125: 153.259 | N125: 154.939 | O125: 157.418 | P125: 162.039 | Q125: 166.66 | R125: 169.14 | S125: 170.819 | T125: 173.308 | U125: 174.925 | V125: 177.977 | W125: 183.211 | X125: 1 | Y125: 162.0393 | Z125: 0.04228 | AA125: 6.851 | AB125: 127.784 | AC125: 134.635 | AD125: 141.486 | AE125: 148.337 | AF125: 155.188 | AG125: 162.039 | AH125: 168.89 | AI125: 175.741 | AJ125: 182.592 | AK125: 189.443
A126: 125 | B126: altura | C126: menina | D126: 185 | E126: 1 | F126: 162.116 | G126: 0.04221 | H126: 6.8429 | I126: 140.97 | J126: 146.197 | K126: 149.246 | L126: 150.861 | M126: 153.347 | N126: 155.024 | O126: 157.501 | P126: 162.116 | Q126: 166.732 | R126: 169.209 | S126: 170.886 | T126: 173.372 | U126: 174.987 | V126: 178.035 | W126: 183.263 | X126: 1 | Y126: 162.1164 | Z126: 0.04221 | AA126: 6.8429 | AB126: 127.902 | AC126: 134.745 | AD126: 141.588 | AE126: 148.431 | AF126: 155.273 | AG126: 162.116 | AH126: 168.959 | AI126: 175.802 | AJ126: 182.645 | AK126: 189.488
A127: 126 | B127: altura | C127: menina | D127: 186 | E127: 1 | F127: 162.188 | G127: 0.04214 | H127: 6.8346 | I127: 141.067 | J127: 146.288 | K127: 149.334 | L127: 150.946 | M127: 153.429 | N127: 155.104 | O127: 157.578 | P127: 162.188 | Q127: 166.798 | R127: 169.272 | S127: 170.947 | T127: 173.43 | U127: 175.042 | V127: 178.088 | W127: 183.309 | X127: 1 | Y127: 162.188 | Z127: 0.04214 | AA127: 6.8346 | AB127: 128.015 | AC127: 134.85 | AD127: 141.684 | AE127: 148.519 | AF127: 155.353 | AG127: 162.188 | AH127: 169.023 | AI127: 175.857 | AJ127: 182.692 | AK127: 189.526
A128: 127 | B128: altura | C128: menina | D128: 187 | E128: 1 | F128: 162.254 | G128: 0.04208 | H128: 6.8277 | I128: 141.155 | J128: 146.371 | K128: 149.413 | L128: 151.024 | M128: 153.504 | N128: 155.178 | O128: 157.649 | P128: 162.254 | Q128: 166.859 | R128: 169.331 | S128: 171.004 | T128: 173.485 | U128: 175.096 | V128: 178.138 | W128: 183.353 | X128: 1 | Y128: 162.2542 | Z128: 0.04208 | AA128: 6.8277 | AB128: 128.116 | AC128: 134.944 | AD128: 141.771 | AE128: 148.599 | AF128: 155.427 | AG128: 162.254 | AH128: 169.082 | AI128: 175.91 | AJ128: 182.737 | AK128: 189.565
A129: 128 | B129: altura | C129: menina | D129: 188 | E129: 1 | F129: 162.315 | G129: 0.04201 | H129: 6.8189 | I129: 141.244 | J129: 146.452 | K129: 149.491 | L129: 151.099 | M129: 153.577 | N129: 155.248 | O129: 157.716 | P129: 162.315 | Q129: 166.915 | R129: 169.383 | S129: 171.054 | T129: 173.531 | U129: 175.14 | V129: 178.178 | W129: 183.387 | X129: 1 | Y129: 162.3154 | Z129: 0.04201 | AA129: 6.8189 | AB129: 128.221 | AC129: 135.04 | AD129: 141.859 | AE129: 148.678 | AF129: 155.497 | AG129: 162.315 | AH129: 169.134 | AI129: 175.953 | AJ129: 182.772 | AK129: 189.591
A130: 129 | B130: altura | C130: menina | D130: 189 | E130: 1 | F130: 162.372 | G130: 0.04195 | H130: 6.8115 | I130: 141.323 | J130: 146.526 | K130: 149.561 | L130: 151.168 | M130: 153.643 | N130: 155.312 | O130: 157.778 | P130: 162.372 | Q130: 166.966 | R130: 169.432 | S130: 171.101 | T130: 173.576 | U130: 175.183 | V130: 178.218 | W130: 183.421 | X130: 1 | Y130: 162.3719 | Z130: 0.04195 | AA130: 6.8115 | AB130: 128.314 | AC130: 135.126 | AD130: 141.937 | AE130: 148.749 | AF130: 155.56 | AG130: 162.372 | AH130: 169.183 | AI130: 175.995 | AJ130: 182.806 | AK130: 189.618
A131: 130 | B131: altura | C131: menina | D131: 190 | E131: 1 | F131: 162.424 | G131: 0.04189 | H131: 6.8039 | I131: 141.398 | J131: 146.596 | K131: 149.627 | L131: 151.232 | M131: 153.704 | N131: 155.372 | O131: 157.835 | P131: 162.424 | Q131: 167.013 | R131: 169.476 | S131: 171.143 | T131: 173.615 | U131: 175.221 | V131: 178.252 | W131: 183.45 | X131: 1 | Y131: 162.4239 | Z131: 0.04189 | AA131: 6.8039 | AB131: 128.404 | AC131: 135.208 | AD131: 142.012 | AE131: 148.816 | AF131: 155.62 | AG131: 162.424 | AH131: 169.228 | AI131: 176.032 | AJ131: 182.836 | AK131: 189.64
